{"text_format":"1","workbook":"xlsx","n_sheets":25,"sheets":["Hlavní list","Zateplení","Rekuperace","Osvětlení","Zdroj","FVE","Protokol","Export","Vstupy","Bilance","Globální","Listy","Parametry","ParametryZateplení","Budova","Budova_Opatření","ParametryRekuperace","ParametryZdroje","Nositele","ParametryOsvětlení","ParametryFVE","Jen_zdroj","Jen_zateplení","Zdroj_a_zateplení","Primární"],"not_rendered":{"charts":0,"images":5,"macros":1,"external_links":0,"defined_names":118,"comments":3,"pivot_tables":0},"unopened":[],"bounds":{"document_bytes":16777216,"sheet_cells":100000,"rows_first":2000,"rows_last":500,"rows_between":2000,"halvings":0,"cell_chars":16384,"cell_head_chars":4096},"cells_cut":0,"cells_raw":0,"read":"whole","date_system":"1900"}

{"sheet":"Hlavní list","index":0,"n_rows":113,"n_cols":27,"rows_kept":113,"cut":false,"hidden":false,"merged":[[66,2,66,3],[67,2,67,3],[83,1,83,3],[81,1,81,3],[82,1,82,3],[77,1,77,3],[78,1,78,3],[79,1,79,3],[80,1,80,3],[8,2,8,6],[2,1,2,4],[3,1,3,4],[5,2,5,6],[6,2,6,6],[7,2,7,6],[9,2,9,6],[10,2,10,6],[14,4,14,6],[21,2,21,3],[19,2,19,3],[20,2,20,3],[13,4,13,6],[18,2,18,3],[61,4,61,5],[41,2,41,3],[48,2,48,3],[22,2,22,3],[25,1,25,2],[27,1,27,2],[28,1,28,2],[29,1,29,2],[26,1,26,2],[43,2,43,3],[30,1,30,2],[53,4,53,5],[58,2,58,3],[58,4,58,5],[54,2,54,3],[52,2,52,3],[100,2,100,3],[100,4,100,6],[98,2,98,3],[98,4,98,6],[90,2,90,3],[90,4,90,6],[91,2,91,3],[91,4,91,6],[92,2,92,3],[92,4,92,6],[96,2,96,3],[96,4,96,6],[97,2,97,3],[97,4,97,6],[93,2,93,3],[93,4,93,6],[88,2,88,3],[88,4,88,6],[89,2,89,3],[89,4,89,6],[99,2,99,3],[99,4,99,6],[94,2,94,3],[94,4,94,6],[95,2,95,3],[95,4,95,6],[62,2,62,3],[86,2,86,3],[86,4,86,5],[87,2,87,3],[87,4,87,6],[73,1,73,3],[74,1,74,3],[75,1,75,3],[76,1,76,3],[71,1,71,3],[72,1,72,3],[63,2,63,3],[64,2,64,3],[68,2,68,3],[70,2,70,3],[65,2,65,3]]}
[null,null,null,null,null,"vytvořil:"]
[]
[null,"Nástroj k posouzení potenciálu úspor energie v programu Úspory energie",null,null,null,null,"Verze - 14.01"]
[null,"u klientů Národní rozvojové banky realizací jednoho až čtyř úsporných opatření nebo jejich kombinací."]
[null,"0. Vyplňte identifikační údaje",null,null,null,null,null,null,"Viditelnost","Hodnota buňky","Další buňka","Řádek OK","Průběžně OK","Porušení podmínek","Hlášení","Hláška č.","Hlášky…",null,null,null,null,null,null,null,null,"Vyplněnost","Způsobilost"]
[null,"Název projektu:",null,null,null,null,null,{"$f":"IFERROR(INDEX(Q6:S6,1,P6),\"\")","v":"Zadejte název projektu."},true,{"$f":"IF(AND(I6,L6),C6,\"\")","v":""},null,{"$f":"NOT(ISBLANK(C6))","v":false},{"$f":"L6","v":false},null,null,{"$f":"myidx(AND(L6),ISBLANK(C6))","v":2},"OK","Zadejte název projektu.",null,null,null,null,null,null,null,{"$f":"NOT(ISBLANK(C6))","v":false}]
[null,"Klient:",null,null,null,null,null,{"$f":"IFERROR(INDEX(Q7:S7,1,P7),\"\")","v":"Zadejte klienta."},true,{"$f":"IF(AND(I7,L7),C7,\"\")","v":""},null,{"$f":"NOT(ISBLANK(C7))","v":false},{"$f":"AND(M6,L7)","v":false},null,null,{"$f":"myidx(AND(L7),ISBLANK(C7))","v":2},"OK","Zadejte klienta.",null,null,null,null,null,null,null,{"$f":"NOT(ISBLANK(C7))","v":false}]
[null,"IČ klienta:",null,null,null,null,null,{"$f":"IFERROR(INDEX(Q8:S8,1,P8),\"\")","v":"Zadejte IČ klienta."},true,"",null,false,{"$f":"AND(M7,L8)","v":false},null,null,{"$f":"myidx(AND(L8),ISBLANK(C8))","v":2},"OK","Zadejte IČ klienta.",null,null,null,null,null,null,null,false]
[null,"Adresa žadatele:",null,null,null,null,null,{"$f":"IFERROR(INDEX(Q9:S9,1,P9),\"\")","v":"Zadejte adresu žadatele."},true,"",null,false,false,null,null,{"$f":"myidx(AND(L9),ISBLANK(C9))","v":2},"OK","Zadejte adresu žadatele.",null,null,null,null,null,null,null,false]
[null,"Adresa místa realizace projektu:",null,null,null,null,null,{"$f":"IFERROR(INDEX(Q10:S10,1,P10),\"\")","v":"Zadejte adresu místarealizace projektu"},true,"",null,false,false,null,null,{"$f":"myidx(AND(L10),ISBLANK(C10))","v":2},"OK","Zadejte adresu místarealizace projektu",null,null,null,null,null,null,null,false]
[null,"Popis projektu:",null,null,null,null,null,{"$f":"IFERROR(INDEX(Q11:S11,1,P11),\"\")","v":"Vyplňte popis projektu"},true,"",null,false,false,null,null,{"$f":"myidx(AND(L11),ISBLANK(C11))","v":2},"OK","Vyplňte popis projektu",null,null,null,null,null,null,null,false]
[null,null,null,null,null,null,null,null,true]
[null,"1. Vyplňte povinné údaje",null,null,null,null,null,null,true]
[null,"Součástí projektu je náhrada zařízení, které již nelze používat ze zákona.","Vyberte ano nebo ne",null,{"$f":"IF(N14,O14,IFERROR(INDEX(Q14:S14,1,P14),\"\"))","v":"Vyberte ano nebo ne."},null,null,null,true,{"$f":"IF(AND(I14,L14),D14,\"\")","v":""},null,{"$f":"OR(D14=\"ano\",D14=\"ne\")","v":false},{"$f":"AND(M11,L14)","v":false},{"$f":"D14=ano","v":false},"Projekt není způsobilý k podpoře.",{"$f":"myidx(AND(L14),ISBLANK(D14))","v":2},"OK","Vyberte ano nebo ne.",null,null,null,null,null,null,null,{"$f":"NOT(ISBLANK(C14))","v":true}]
[null,"Způsob veřejné podpory","Vyberte bloková výjimka nebo de minimis",null,{"$f":"IF(N15,O15,IFERROR(INDEX(Q15:S15,1,P15),\"\"))","v":"Vyberte způsob podpory"},null,null,null,true,{"$f":"IF(AND(I15,L15),D15,\"\")","v":""},null,{"$f":"NOT(ISBLANK(D15))","v":false},{"$f":"AND(M14,L15)","v":false},{"$f":"Globální!E1=2","v":false},"Pro žádost dle blokové výjimky je nutný energetický posudek.",{"$f":"myidx(AND(L15),ISBLANK(D15))","v":2},"OK","Vyberte způsob podpory",null,null,null,null,null,null,null,true]
[null,null,null,null,null,null,null,null,true]
[null,null,null,null,null,null,null,null,true]
[null,"2. Zaškrtněte, jaká opatření plánujete realizovat:",null,null,null,null,null,null,true]
[null,null,"1. Zateplení, výměna výplní",null,{"$f":"IFERROR(INDEX(Q19:T19,1,P19),\"\")","v":"OK"},null,null,null,true,null,null,{"$f":"je_zateplení","v":true},null,null,null,{"$f":"myidx(L19,NOT(je_zateplení))","v":1},"OK","List Zateplení musí být vybrán."]
[null,null,"2. Rekuperace tepla",null,{"$f":"IFERROR(INDEX(Q20:T20,1,P20),\"\")","v":"OK"},null,null,null,true,null,null,true,null,null,null,1,"OK"]
[null,null,"3. Náhrada světelných zdrojů LED zdroji",null,{"$f":"IFERROR(INDEX(Q21:T21,1,P21),\"\")","v":"OK"},null,null,null,true,null,null,true,null,null,null,1,"OK"]
[null,null,"4. Výměna zdroje tepla",null,{"$f":"IFERROR(INDEX(Q22:T22,1,P22),\"\")","v":"OK"},null,null,null,true,null,null,{"$f":"OR(NOT(je_zdroj),AND(je_zdroj,OR(je_zateplení,je_rekuperace,je_osvětlení)))","v":true},null,null,null,{"$f":"IF(L22,1,2)","v":1},"OK","Výměna zdroje musí být v kombinaci s alespoň jedním z prvních tří opatření."]
[null,null,"5. FVE",null,{"$f":"IFERROR(INDEX(Q23:T23,1,P23),\"\")","v":"OK"},null,null,null,true,null,null,{"$f":"OR(NOT(je_FVE),AND(je_FVE,OR(je_zateplení,je_rekuperace,je_osvětlení)))","v":true},null,null,null,{"$f":"IF(L23,1,2)","v":1},"OK","FVE musí být v kombinaci s alespoň jedním z prvních tří opatření."]
[null,null,null,null,null,null,null,null,true]
[null,"3. Vyplňte údaje o výdajích",null,null,null,null,null,null,true]
[null,"Celkové výdaje na technické zhodnocení stavby (materiál a práce pro provedení zateplení, výměna u stavebních otvorů, další stavební práce spojené s provedením energetického opatření)",null,null,{"$f":"IFERROR(INDEX(Q26:T26,1,P26),\"\")","v":"Doplňte náklady na zateplení."},null,null,null,{"$f":"je_zateplení","v":true},{"$f":"D26*I26*L26","v":0},null,{"$f":"AND(ISNUMBER(D26),IF(ISNUMBER(D26),D26>0,FALSE))","v":false},null,null,null,{"$f":"myidx(L26,ISBLANK(D26),NOT(ISNUMBER(D26)),D26<=0)","v":2},"OK","Doplňte náklady na zateplení.","Hodnota není číslo.","Náklady musí být kladné.",null,null,null,null,null,{"$f":"OR(NOT(ISBLANK(D26)),NOT(Parametry!B18))","v":true}]
[null,"Celkové výdaje na instalaci rekuperace",null,null,{"$f":"IFERROR(INDEX(Q27:T27,1,P27),\"\")","v":"Doplňte náklady na rekuperaci."},null,null,null,{"$f":"je_rekuperace","v":false},{"$f":"D27*I27*L27","v":0},null,{"$f":"AND(ISNUMBER(D27),IF(ISNUMBER(D27),D27>0,FALSE))","v":false},null,null,null,{"$f":"myidx(L27,ISBLANK(D27),NOT(ISNUMBER(D27)),D27<=0)","v":2},"OK","Doplňte náklady na rekuperaci.","Hodnota není číslo.","Náklady musí být kladné."]
[null,"Celkové výdaje na výměnu stávajícího zdroje energie (výměna kotle, apod.)",null,null,{"$f":"IFERROR(INDEX(Q28:T28,1,P28),\"\")","v":"Doplňte náklady na výměnu zdroje tepla."},null,null,null,{"$f":"je_zdroj","v":false},0,null,false,null,null,null,{"$f":"myidx(L28,ISBLANK(D28),NOT(ISNUMBER(D28)),D28<=0)","v":2},"OK","Doplňte náklady na výměnu zdroje tepla.","Hodnota není číslo.","Náklady musí být kladné.",null,null,null,null,null,{"$f":"OR(NOT(ISBLANK(D28)),NOT(Parametry!B17))","v":true}]
[null,"Celkové výdaje na provedení výměny stávajícího osvětlení v budovách ",null,null,{"$f":"IFERROR(INDEX(Q29:T29,1,P29),\"\")","v":"Doplňte náklady na modernizaci osvětlení."},null,null,null,{"$f":"je_osvětlení","v":false},0,null,false,null,null,null,{"$f":"myidx(L29,ISBLANK(D29),NOT(ISNUMBER(D29)),D29<=0)","v":2},"OK","Doplňte náklady na modernizaci osvětlení.","Hodnota není číslo.","Náklady musí být kladné.",null,null,null,null,null,{"$f":"OR(NOT(ISBLANK(D29)),NOT(Parametry!B19))","v":true}]
[null,"Celkové výdaje na FVE",null,null,{"$f":"IFERROR(INDEX(Q30:T30,1,P30),\"\")","v":"Doplňte náklady na FVE."},null,null,null,{"$f":"je_FVE","v":false},0,null,false,null,null,null,{"$f":"myidx(L30,ISBLANK(D30),NOT(ISNUMBER(D30)),D30<=0)","v":2},"OK","Doplňte náklady na FVE.","Hodnota není číslo.","Náklady musí být kladné.",null,null,null,null,null,{"$f":"OR(NOT(ISBLANK(D30)),NOT(Parametry!B20))","v":true}]
[null,"Celkové způsobilé výdaje",null,{"$f":"SUM(J26:J30)","v":0},{"$f":"IF(N31,O31,\"OK\")","v":"OK"},null,null,null,true,null,null,null,null,{"$f":"D31>Globální!B8","v":false},{"$f":"\"Kalkulačku lze použít pro investice do maximální výše \" & Globální!B8 & \" Kč.\"","v":"Kalkulačku lze použít pro investice do maximální výše 5000000 Kč."},null,null,null,null,null,null,null,null,null,null,{"$f":"AND(Z6:Z11,Z14:Z15,Z26:Z30)","v":false},"Jen tento list:"]
[null,null,null,null,null,null,null,null,true]
[null,"4. Vyplňte postupně následující formuláře:",null,null,null,null,null,{"$f":"IF(C35=\"Doplňte list Zateplení\",IF(C35=\"List Zateplení je celý vyplněn\",TRUE,FALSE),\"\")","v":false},true,null,null,null,null,null,null,null,null,null,null,null,null,null,null,null,null,"Všechny listy:"]
[null,null,null,null,null,null,null,null,true]
[null,null,{"$f":"IF(L35,\"List Zateplení je celý vyplněn\",\"Doplňte list Zateplení\")","v":"Doplňte list Zateplení"},null,null,null,null,null,{"$f":"je_zateplení","v":true},null,null,{"$f":"OR(AND(Zateplení!M81,NOT(Zateplení!I86)),AND(JePENB,Výjimka,Zateplení!M20))","v":false},null,null,null,null,null,null,null,null,null,null,null,null,null,{"$f":"Kontrola","v":false}]
[null,null,{"$f":"IF(L36,\"List Rekuperace je celý vyplněn\",\"Doplňte list Rekuperace\")","v":"Doplňte list Rekuperace"},null,null,null,null,null,{"$f":"je_rekuperace","v":false},null,null,{"$f":"Rekuperace!K6","v":false}]
[null,null,{"$f":"IF(L37,\"List Osvětlení je celý vyplněn\",\"Doplňte list Osvětlení\")","v":"Doplňte list Osvětlení"},null,null,null,null,null,{"$f":"je_osvětlení","v":false},null,null,{"$f":"Osvětlení!L41","v":false}]
[null,null,{"$f":"IF(L38,\"List Zdroj je celý vyplněn\",\"Doplňte list Zdroj\")","v":"Doplňte list Zdroj"},null,null,null,null,null,{"$f":"je_zdroj","v":false},null,null,{"$f":"Zdroj!L26","v":false}]
[null,null,{"$f":"IF(L39,\"List FVE je celý vyplněn\",\"Doplňte list FVE\")","v":"Doplňte list FVE"},null,null,null,null,null,{"$f":"je_FVE","v":false},null,null,{"$f":"FVE!L9","v":false}]
[null,null,null,null,null,null,null,null,true]
[null,"5. Výsledky",null,null,null,null,null,null,true]
[null,"Jedná se o komplexní opatření",{"$f":"IF(AND(je_zateplení,OR(je_rekuperace,je_osvětlení)),\"Ano\",\"Ne, intenzita podpory může být snížena o 5 %.\")","v":"Ne, intenzita podpory může být snížena o 5 %."},null,null,null,null,null,true]
[null,null,null,null,null,null,null,null,true]
[null,null,"Celkem / Total",null,null,null,null,null,true]
[null,null,"kWh","GJ",null,null,null,null,true]
[null,"Výchozí roční konečná spotřeba energie bez vlivu opatření dle 4.1.c) Výzvy",{"$f":"IF(Kontrola,IF(Výjimka,Bilance!E34,Bilance!E33),0)","v":0},{"$f":"IF(Kontrola,C46*kWh_na_GJ,0)","v":0},null,null,null,null,true]
[null,"Navrhovaná roční konečná spotřeba energie bez vlivu opatření dle 4.1.c) Výzvy",{"$f":"IF(Kontrola,IF(IF(Výjimka,Bilance!F34,Bilance!F33)/C46<0.05,0.05*C46,IF(Výjimka,Bilance!F34,Bilance!F33)),0)","v":0},0,null,null,null,null,true]
[null,"Roční úspora v konečné spotřebě energie bez vlivu opatření dle 4.1.c) Výzvy",{"$f":"IF(Kontrola,IFERROR(IF(C46=\"\",\"\",C46-C47),0),0)","v":0},0,null,null,null,null,true]
[null,"Roční úspora v konečné spotřebě energie bez vlivu opatření dle 4.1.c) Výzvy [%]",{"$f":"IF(Kontrola,IFERROR(C48/C46,0),0)","v":0},null,null,null,null,null,true]
[null,"Výchozí roční konečná spotřeba energie celého projektu",{"$f":"IF(Kontrola,Bilance!E35,0)","v":0},0,null,null,null,null,true]
[null,"Navrhovaná roční konečná spotřeba energie celého projektu",{"$f":"IF(Kontrola,IF(Bilance!F35/C50<0.05,0.05*C50,Bilance!F35),0)","v":0},0,null,null,null,null,true]
[null,"Roční úspora v konečné spotřebě energie celého projektu [%]",{"$f":"IF(Kontrola,IFERROR(IF(C50=\"\",\"\",C50-C51),0),0)","v":0},0,null,null,null,null,true]
[null,"Roční úspora v konečné spotřebě energie celého projektu [%]",{"$f":"IF(Kontrola,IFERROR(C52/C50,0),0)","v":0},null,null,null,null,null,true]
[null,"Roční výroba FVE ",{"$f":"IF(Kontrola,IF(Parametry!B20,FVE!E5,0),0)","v":0},0,null,null,null,null,{"$f":"je_FVE","v":false}]
[null,"Podíl FVE na úspoře konečné spotřeby energie projektu [%]",{"$f":"IF(Kontrola,IFERROR(C54/C52,0),0)","v":0},null,null,null,null,null,{"$f":"je_FVE","v":false}]
[null,"Výchozí roční spotřeba primární energie bez vlivu opatření dle 4.1.c) Výzvy",{"$f":"IF(Kontrola,IF(Výjimka,Bilance!H34,Bilance!H33),0)","v":0},0,null,null,null,null,true]
[null,"Navrhovaná roční spotřeba primární energie bez vlivu opatření dle 4.1.c) Výzvy",{"$f":"IF(Kontrola,IF(IF(Výjimka,Bilance!I34,Bilance!I33)/C56<0.05,0.05*C56,IF(Výjimka,Bilance!I34,Bilance!I33)),0)","v":0},0,null,null,null,null,true]
[null,"Roční úspora primární energie bez vlivu opatření dle 4.1.c) Výzvy",{"$f":"C56-C57","v":0},0,null,null,null,null,true]
[null,"Roční úspora primární energie bez vlivu opatření dle 4.1.c) Výzvy [%]",{"$f":"IF(Kontrola,IFERROR(C58/C56,0),0)","v":0},null,null,null,null,null,true]
[null,"Výchozí roční spotřeba primární energie celého projektu",{"$f":"IF(Kontrola,Bilance!H35,0)","v":0},0,null,null,null,null,true]
[null,"Navrhovaná roční spotřeba primární energie celého projektu",{"$f":"IF(Kontrola,IF(Bilance!I35/C60<0.05,0.05*C60,Bilance!I35),0)","v":0},0,null,null,null,null,true]
[null,"Roční úspora primární energie celého projektu",{"$f":"C60-C61","v":0},{"$f":"IF(Kontrola,C62*kWh_na_GJ,0)","v":0},null,null,null,null,true]
[null,"Roční úspora primární energie celého projektu [%]",{"$f":"MIN(IF(Kontrola,IFERROR(C62/C60,0),0),1)","v":0},null,null,null,null,null,true]
[null,"Roční úspora emisí CO2 [kg] ",{"$f":"IF(Kontrola,Bilance!M35,0)","v":0},null,null,null,null,null,true]
[null,"Roční úspora emisí CO2 [%] ",{"$f":"MIN(IF(Kontrola,IFERROR(Bilance!M35/Bilance!K35,0),0),1)","v":0},null,null,null,null,null,true]
[null,"Roční úspora emisí tuhých látek [kg]",{"$f":"IF(Kontrola,Bilance!P35,0)","v":0},null,null,null,null,null,true]
[null,"Roční úspora emisí frakcí PM10 [kg]",{"$f":"IF(Kontrola,Bilance!S35,0)","v":0},null,null,null,null,null,true]
[null,"Roční úspora emisí  frakcí PM2,5 [kg]",{"$f":"IF(Kontrola,Bilance!V34,0)","v":0},null,null,null,null,null,true]
[null,"Roční úspora nákladů na energii [Kč]",{"$f":"IF(Kontrola,Bilance!Y35,0)","v":0},null,null,null,null,null,true]
[null,null,null,null,null,null,null,null,true]
[null,"Celkové vyhodnocení",{"$f":"IF(OR(N31,I79),\"Kalkulačku nelze použít.\",IF(Kontrola,IF(Způsobilost,\"Projekt je způsobilý k podpoře.\",\"Projekt není způsobilý k podpoře.\"),\"Nejsou správně vyplněna všechna data.\"))","v":"Nejsou správně vyplněna všechna data."},null,null,null,null,null,true]
[null,{"$f":"IF(NOT(Zateplení!M81),\"Data pro zateplení nejsou kompletní.\",\"Zateplení nesplňuje podmínky programu.\") & \" Viz list Zateplení.\"","v":"Data pro zateplení nejsou kompletní. Viz list Zateplení."},null,null,null,null,null,null,{"$f":"AND(je_zateplení,OR(Zateplení!N42:N83,NOT(Zateplení!M81)),NOT(AND(Výjimka,Zateplení!M20)))","v":true}]
[null,{"$f":"IF(NOT(Rekuperace!K6),\"Data pro rekuperaci nejsou kompletní.\",\"Rekuperace nesplňuje podmínky programu.\") & \" Viz list Rekuperace.\"","v":"Data pro rekuperaci nejsou kompletní. Viz list Rekuperace."},null,null,null,null,null,null,{"$f":"AND(je_rekuperace,OR(Rekuperace!L4:L6,NOT(Rekuperace!K6)))","v":false}]
[null,"Data pro osvětlení nejsou kompletní. Viz list Osvětlení.",null,null,null,null,null,null,{"$f":"AND(je_osvětlení,NOT(Osvětlení!L41))","v":false}]
[null,{"$f":"IF(NOT(Zdroj!L24),\"Data pro zdroj nejsou kompletní.\",\"Zdroj nesplňuje podmínky programu.\") & \" Viz list Zdroj.\"","v":"Data pro zdroj nejsou kompletní. Viz list Zdroj."},null,null,null,null,null,null,{"$f":"AND(je_zdroj,OR(Zdroj!M4:M24,NOT(Zdroj!L24)))","v":false}]
[null,{"$f":"IF(NOT(FVE!L8),\"Data pro FVE nejsou kompletní.\",\"FVE nesplňuje podmínky programu.\") & \" Viz list FVE.\"","v":"Data pro FVE nejsou kompletní. Viz list FVE."},null,null,null,null,null,null,{"$f":"AND(je_FVE,OR(FVE!M4:M8,NOT(FVE!L8)))","v":false}]
[null,"Projekt nedosahuje požadované úspory primární energie bez vlivu opatření dle 4.1.c) Výzvy ve výši 10 %.",null,null,null,null,null,null,{"$f":"AND(NOT(Výjimka),C59<0.1)","v":true}]
[null,"Součástí projektu je náhrada zařízení, které již nelze používat ze zákona.",null,null,null,null,null,null,{"$f":"J14=ano","v":false}]
[null,"Kalkulačku nelze použít pro žádost o podporu podle blokové výjimky. Je potřeba zpracovat energetický posudek.",null,null,null,null,null,null,{"$f":"J15=\"bloková výjimka\"","v":false}]
[null,"Kalkulačku lze použít pouze pro celkové uznatelné náklady do 5 000 000 Kč.",null,null,null,null,null,null,{"$f":"N31","v":false}]
[null,"Podíl FVE na snížení konečné spotřeby energie projektu přesahuje 30 %.",null,null,null,null,null,null,{"$f":"IFERROR(AND(je_FVE,C54/Bilance!G35>Globální!B9),FALSE)","v":false}]
[null,"Zdroj musí být v kombinaci se zateplením.",null,null,null,null,null,null,{"$f":"AND(je_zdroj,NOT(je_zateplení),NOT(Výjimka))","v":false}]
[null,"FVE musí být v kombinaci s alespoň jedním z opatření zateplení, rekuperace, osvětlení.",null,null,null,null,null,null,{"$f":"AND(je_FVE,NOT(OR(je_zateplení,je_rekuperace,je_osvětlení)))","v":false}]
[null,"Není vybráno žádné opatření.",null,null,null,null,null,null,{"$f":"NOT(OR(je_zateplení,je_rekuperace,je_osvětlení,je_zdroj,je_FVE))","v":false}]
[null,null,null,null,null,null,null,null,true]
[1,"6. Specifikace realizovaných opatření",null,null,null,null,null,null,true]
[2,"Realizovaná opatření","Popis opatření",null,"Vyhodnocení opatření",null,null,null,true]
[3,"Výměna zdroje",{"$f":"Zdroj!I16 & \", instalovaný výkon \" & TEXT(Zdroj!E19,\"### 0\") & \" kW, \" & IF(ZdrojIdxNew=4, \"COP \" & Zdroj!I21,\"účinnost \" & Zdroj!I18*100 & \" %\")","v":", instalovaný výkon 0 kW, účinnost 0 %"},null,{"$f":"IFERROR(INDEX(Zdroj!C29:C32,MATCH(TRUE,Zdroj!H29:H32,0)),\"\")","v":""},null,null,null,{"$f":"je_zdroj","v":false}]
[4,"Zateplení obvodového pláště",{"$f":"Zateplení!J43 & \",  tloušťka \" & Zateplení!F44 & \" mm, plocha \" & TEXT(Zateplení!F45,\"### 0\") & \" m2\"","v":",  tloušťka  mm, plocha 0 m2"},null,{"$f":"Zateplení!F49","v":"Zateplení obvodových stěn splňuje požadavky programu."},null,null,null,{"$f":"AND(je_zateplení,ZatepleníStěn)","v":false}]
[5,"Zateplení střechy",{"$f":"Zateplení!J51 & \", tloušťka \" & Zateplení!F52 & \" mm, plocha \" & TEXT(Zateplení!F53,\"### 0\") & \" m2\"","v":", tloušťka  mm, plocha 0 m2"},null,{"$f":"Zateplení!F57","v":"Zateplení střechy splňuje požadavky programu."},null,null,null,{"$f":"AND(je_zateplení,ZatepleníStřechy)","v":false}]
[6,"Zateplení podlahy",{"$f":"Zateplení!J59 & \", tloušťka \" & Zateplení!F60 & \" mm, plocha \" & TEXT(Zateplení!F61,\"### 0\") & \" m2\"","v":", tloušťka  mm, plocha 0 m2"},null,{"$f":"Zateplení!F65","v":"Zateplení podlahy splňuje požadavky programu."},null,null,null,{"$f":"AND(je_zateplení,ZatepleníPodlahy)","v":false}]
[7,"Výměna oken, výplní ve stěně ",{"$f":"Zateplení!J67 & \", plocha \" & TEXT(Zateplení!F68,\"### 0\") & \" m2, součinitel prostupu tepla \" & Zateplení!F69 & \" W/(m2.K)\"","v":", plocha 0 m2, součinitel prostupu tepla  W/(m2.K)"},null,{"$f":"Zateplení!F71","v":"Okna splňují požadavky programu."},null,null,null,{"$f":"AND(je_zateplení,VýměnaOken)","v":false}]
[8,"Výměna dveří, vrat",{"$f":"Zateplení!J73 & \", plocha \" & TEXT(Zateplení!F74,\"### 0\") & \" m2, součinitel prostupu tepla \" & Zateplení!F75 & \" W/(m2.K)\"","v":", plocha 0 m2, součinitel prostupu tepla  W/(m2.K)"},null,{"$f":"Zateplení!F77","v":"Dveře/vrata splňují požadavky programu."},null,null,null,{"$f":"AND(je_zateplení,VýměnaDveří)","v":false}]
[9,"Výměna střešních oken, světlíků",{"$f":"Zateplení!J79 & \", plocha \" & TEXT(Zateplení!F80,\"### 0\") & \" m2, součinitel prostupu tepla \" & Zateplení!F81 & \" W/(m2.K)\"","v":", plocha 0 m2, součinitel prostupu tepla  W/(m2.K)"},null,{"$f":"Zateplení!F83","v":"Světlíky/střešní okna splňují požadavky programu."},null,null,null,{"$f":"AND(je_zateplení,VýměnaSvětlíků)","v":false}]
[10,"Instalace mechanického větrání s rekuperací",{"$f":"IF(je_rekuperace,\"účinnost rekuperace \" & Rekuperace!D4*100 & \" %, objem vzduchu \" & TEXT(Rekuperace!D5,\"### 0\") & \" m3/h\",\"\")","v":""},null,{"$f":"IFERROR(INDEX(Rekuperace!C9:C10,MATCH(TRUE,Rekuperace!G9:G10,0)),\"\")","v":""},null,null,null,{"$f":"je_rekuperace","v":false}]
[11,"Výměna klasických žárovek",{"$f":"\"počet vyměňovaných zdrojů \" & TEXT(Osvětlení!E5,\"### 0\") & \", celkový příkon \" & TEXT(IF(Osvětlení!I6=ano,Osvětlení!I7,Osvětlení!I5*Osvětlení!I8),\"### 0\") & \" W, průměrný příkon zdroje \" & TEXT(IF(Osvětlení!I6=ano,IFERROR(Osvětlení!I7/Osvětlení!I5,0),Osvětlení!I8),\"### 0\") & \" W\"","v":"počet vyměňovaných zdrojů 0, celkový příkon 0 W, průměrný příkon zdroje 0 W"},null,null,null,null,null,{"$f":"AND(je_osvětlení,Osvětlení!I4=ano)","v":false}]
[12,"Výměna halogenových žárovek",{"$f":"\"počet vyměňovaných zdrojů \" & TEXT(Osvětlení!I11,\"### 0\") & \", celkový příkon \" & TEXT(IF(Osvětlení!I12=ano,Osvětlení!I13,Osvětlení!I11*Osvětlení!I14),\"### 0\") & \" W, průměrný příkon zdroje \" & TEXT(IF(Osvětlení!I12=ano,IFERROR(Osvětlení!I13/Osvětlení!I11,0),Osvětlení!I14),\"### 0\") & \" W\"","v":"počet vyměňovaných zdrojů 0, celkový příkon 0 W, průměrný příkon zdroje 0 W"},null,null,null,null,null,{"$f":"AND(je_osvětlení,Osvětlení!I10=ano)","v":false}]
[13,"Výměna zářivek",{"$f":"\"počet vyměňovaných zdrojů \" & TEXT(Osvětlení!I17,\"### 0\") & \", celkový příkon \" & TEXT(IF(Osvětlení!I18=ano,Osvětlení!I19,Osvětlení!I17*Osvětlení!I20),\"### 0\") & \" W, průměrný příkon zdroje \" & TEXT(IF(Osvětlení!I18=ano,IFERROR(Osvětlení!I19/Osvětlení!I17,0),Osvětlení!I20),\"### 0\") & \" W\"","v":"počet vyměňovaných zdrojů 0, celkový příkon 0 W, průměrný příkon zdroje 0 W"},null,null,null,null,null,{"$f":"AND(je_osvětlení,Osvětlení!I16=ano)","v":false}]
[14,"Výměna rtuťových výbojek",{"$f":"\"počet vyměňovaných zdrojů \" & TEXT(Osvětlení!I23,\"### 0\") & \", celkový příkon \" & TEXT(IF(Osvětlení!I24=ano,Osvětlení!I25,Osvětlení!I23*Osvětlení!I26),\"### 0\") & \" W, průměrný příkon zdroje \" & TEXT(IF(Osvětlení!I24=ano,IFERROR(Osvětlení!I25/Osvětlení!I23,0),Osvětlení!I26),\"### 0\") & \" W\"","v":"počet vyměňovaných zdrojů 0, celkový příkon 0 W, průměrný příkon zdroje 0 W"},null,null,null,null,null,{"$f":"AND(je_osvětlení,Osvětlení!I22=ano)","v":false}]
[null,"Výměna kompaktních zářivek (CFL)",{"$f":"\"počet vyměňovaných zdrojů \" & TEXT(Osvětlení!I29,\"### 0\") & \", celkový příkon \" & TEXT(IF(Osvětlení!I30=ano,Osvětlení!I31,Osvětlení!I29*Osvětlení!I32),\"### 0\") & \" W, průměrný příkon zdroje \" & TEXT(IF(Osvětlení!I30=ano,IFERROR(Osvětlení!I31/Osvětlení!I29,0),Osvětlení!I32),\"### 0\") & \" W\"","v":"počet vyměňovaných zdrojů 0, celkový příkon 0 W, průměrný příkon zdroje 0 W"},null,null,null,null,null,{"$f":"AND(je_osvětlení,Osvětlení!I28=ano)","v":false}]
[null,"FVE",{"$f":"IF(je_FVE,\"instalovaný výkon \"&FVE!I4&\" kWp, roční výroba elektřiny \" & TEXT(FVE!I5,\"### 0\") & \" kWh, kapacita baterie \" & FVE!I7 & \" kWh\",\"\")","v":""},null,{"$f":"IFERROR(INDEX(FVE!C11:C15,MATCH(TRUE,FVE!H11:H15,0)),\"\")","v":""},null,null,null,{"$f":"je_FVE","v":false}]
[null,null,null,null,null,null,null,null,true]
[null,null,null,null,null,null,null,null,true]
[null,null,null,null,null,null,null,null,true]
[null,null,null,null,null,null,null,null,true]
[null,null,null,null,null,null,null,null,true]
[null,null,null,null,null,null,null,null,true]
[null,null,null,null,null,null,null,null,true]
[null,null,null,null,null,null,null,null,true]
[null,"Heslo:",null,null,null,null,null,null,true]
[null,null,null,null,null,null,null,null,{"$f":"AdminMode","v":false}]
[null,null,null,null,null,null,null,null,true]
["Konec listu",null,null,null,null,null,null,null,true]

{"sheet":"Zateplení","index":1,"n_rows":106,"n_cols":22,"rows_kept":106,"cut":false,"hidden":false,"merged":[[37,2,38,2],[25,2,26,2],[27,2,29,2],[30,2,32,2],[33,2,34,2],[35,2,36,2],[4,3,4,4],[84,2,84,5],[8,3,8,4],[0,6,1,6],[3,3,3,4],[5,3,5,4],[6,3,6,4],[7,3,7,4],[20,3,20,4],[9,3,9,4],[10,3,10,4],[11,3,11,4],[12,3,12,4],[13,3,13,4],[14,3,14,4],[16,3,16,4],[17,3,17,4],[18,3,18,4],[19,3,19,4],[21,3,21,4],[25,3,25,4],[57,3,57,4],[27,3,27,4],[28,3,28,4],[45,3,45,4],[30,3,30,4],[31,3,31,4],[33,3,33,4],[35,3,35,4],[37,3,37,4],[41,3,41,4],[42,3,42,4],[43,3,43,4],[44,3,44,4],[51,3,51,4],[52,3,52,4],[53,3,53,4],[54,3,54,4],[56,3,56,4],[46,3,46,4],[47,3,47,4],[48,3,48,4],[49,3,49,4],[50,3,50,4],[66,3,66,4],[67,3,67,4],[68,3,68,4],[70,3,70,4],[58,3,58,4],[59,3,59,4],[60,3,60,4],[61,3,61,4],[62,3,62,4],[64,3,64,4],[65,3,65,4],[82,3,82,4],[71,3,71,4],[77,3,77,4],[78,3,78,4],[79,3,79,4],[80,3,80,4],[73,3,73,4],[74,3,74,4],[76,3,76,4],[72,3,72,4]]}
[null,"Zateplení budovy"]
[]
[null,"1.","Základní informace o budově",null,null,null,null,null,"Viditelnost","Hodnota buňky","Další řádek","Řádek OK","Průběžně OK","Porušení podmínek","Hlášení","Hláška č.","Hlášky…"]
[null,"1.1","Jakým způsobem budete zadávat projekt?","Vyberte",null,null,{"$f":"IFERROR(INDEX(Q4:S4,1,P4),\"\")","v":"Vyberte způsob zadání."},null,true,{"$f":"IF(AND(I4,L4),F4,\"\")","v":""},{"$f":"IF(L4,IF(ZpůsobVýpočtu=2,ROW(F5),ROW(F6)),ROW())","v":4},{"$f":"NOT(ISBLANK(F4))","v":false},{"$f":"L4","v":false},null,null,{"$f":"myidx(L4,ISBLANK(F4))","v":2},"OK","Vyberte způsob zadání."]
[null,"1.2","Obálka budovy splňuje již před registrací žádosti o podporu referenční hodnotu průměrného součinitele tepla Uem, R","Vyberte ano/ne",null,null,{"$f":"IFERROR(INDEX(Q5:S5,1,P5),\"\")","v":"Vyberte ano nebo ne."},null,{"$f":"AND(I4,M4,ZpůsobVýpočtu=2)","v":false},{"$f":"IF(AND(I5,L5),F5,\"\")","v":""},{"$f":"IF(L5,ROW(F6),ROW())","v":5},{"$f":"OR(F5=ano,F5=ne)","v":false},{"$f":"AND(M3,L5)","v":false},null,null,{"$f":"myidx(L5,ISBLANK(F5))","v":2},"OK","Vyberte ano nebo ne."]
[null,"1.3.","Vyberte typ posuzované budovy","Vyberte",null,null,{"$f":"IFERROR(INDEX(Q6:S6,1,P6),\"\")","v":"Vyberte typ budovy"},null,{"$f":"IF(JePENB,AND(I5,M5),AND(I4,M4))","v":false},{"$f":"IF(AND(I6,L6),F6,\"\")","v":""},{"$f":"IF(L6,ROW(F7),ROW())","v":6},{"$f":"NOT(ISBLANK(F6))","v":false},{"$f":"AND(M4,L6)","v":false},null,null,{"$f":"myidx(L6,ISBLANK(F6))","v":2},"OK","Vyberte typ budovy"]
[null,"1.4","Památková ochrana budovy","Vyberte ano/ne",null,null,{"$f":"IFERROR(INDEX(Q7:S7,1,P7),\"\")","v":"Vyberte ano nebo ne."},null,{"$f":"AND(I6,M6)","v":false},{"$f":"IF(AND(I7,L7),F7,\"\")","v":""},{"$f":"IF(L7,IF(JePENB,ROW(F10),ROW(F8)),ROW())","v":7},{"$f":"OR(F7=ano,F7=ne)","v":false},{"$f":"AND(L7,M6)","v":false},null,null,{"$f":"myidx(L7,ISBLANK(F7))","v":2},"OK","Vyberte ano nebo ne."]
[null,"1.5","Znáte roční spotřebu budovy?","Vyberte ano/ne",null,null,{"$f":"IFERROR(INDEX(Q8:S8,1,P8),\"\")","v":"Vyberte ano nebo ne."},null,{"$f":"AND(NOT(JePENB),I7,M7)","v":false},{"$f":"IF(AND(I8,L8),F8,\"\")","v":""},{"$f":"IF(L8,IF(J8=ano,ROW(F9),ROW(F10)),ROW())","v":8},{"$f":"OR(F8=ano,F8=ne)","v":false},{"$f":"AND(M7,OR(L8,JePENB))","v":false},null,null,{"$f":"myidx(L8,ISBLANK(F8))","v":2},"OK","Vyberte ano nebo ne."]
[null,"1.6","Jaká je roční spotřeba energie budovy?","kWh",null,null,{"$f":"IFERROR(INDEX(Q9:S9,1,P9),\"\")","v":"Zdejte roční spotřebu energie budovy."},null,{"$f":"AND(J8=ano,I8,M8)","v":false},{"$f":"I9*L9*F9","v":0},{"$f":"IF(L9,ROW(F10),ROW())","v":9},{"$f":"OR(J8=ne,AND(ISNUMBER(F9),IF(ISNUMBER(F9),F9>0,FALSE)))","v":false},{"$f":"AND(M8,OR(L9,JePENB))","v":false},null,null,{"$f":"myidx(L9,ISBLANK(F9),NOT(ISNUMBER(F9)),F9<=0)","v":2},"OK","Zdejte roční spotřebu energie budovy.","Hodnota není číslo.","Spotřeba energie musí být kladná."]
[null,"1.7","Jaká je celková vytápěná (energeticky vztažná) plocha?","m2",null,null,{"$f":"IFERROR(INDEX(Q10:S10,1,P10),\"\")","v":"Zadejte plochu."},null,{"$f":"OR(M9,OR(AND(I8,J8=ne),AND(M9,J8=ano)))","v":false},{"$f":"I10*L10*F10","v":0},{"$f":"IF(L10,ROW(F11),ROW())","v":10},{"$f":"AND(ISNUMBER(F10),IF(ISNUMBER(F10),F10>0,FALSE))","v":false},{"$f":"AND(M9,L10)","v":false},null,null,{"$f":"myidx(L10,ISBLANK(F10),NOT(ISNUMBER(F10)),F10<=0)","v":2},"OK","Zadejte plochu.","Hodnota není číslo.","Plocha musí být kladná."]
[null,"1.8","Období výstavby","Vyberte",null,null,{"$f":"IFERROR(INDEX(Q11:S11,1,P11),\"\")","v":"Vyberte období výstavby."},null,{"$f":"AND(I10,M10)","v":false},{"$f":"IF(AND(I11,L11),F11,\"\")","v":""},{"$f":"IF(L11,ROW(F12),ROW())","v":11},{"$f":"NOT(ISBLANK(F11))","v":false},{"$f":"AND(M10,L11)","v":false},null,null,{"$f":"myidx(L11,ISBLANK(F11))","v":2},"OK","Vyberte období výstavby."]
[null,"1.9","Vnitřní návrhová teplota v otopném období ","°C",null,null,{"$f":"IFERROR(INDEX(Q12:T12,1,P12),\"\")","v":"Zadejte vnitřní teplotu v objektu, pozn. standartně 20°C pro pobyt osob"},null,{"$f":"AND(I11,M11)","v":false},{"$f":"I12*L12*F12","v":0},{"$f":"IF(L12,IF(JePENB,IF(NOT(je_zdroj),ROW(F13),ROW(F17)),IF(NOT(je_zdroj),ROW(F13),ROW(F26))),ROW())","v":12},{"$f":"AND(ISNUMBER(F12),IF(ISNUMBER(F12),AND(F12>=MinTeplota,F12<=MaxTeplota),FALSE))","v":false},false,null,null,{"$f":"myidx(L12,ISBLANK(F12),NOT(ISNUMBER(F12)),OR(F12<MinTeplota,F12>MaxTeplota))","v":2},"OK","Zadejte vnitřní teplotu v objektu, pozn. standartně 20°C pro pobyt osob","Hodnota není číslo.",{"$f":"\"Teplota musí být v rozmezí \" & MinTeplota & \" - \" & MaxTeplota & \" °C.\"","v":"Teplota musí být v rozmezí 5 - 30 °C."}]
[null,"1.9","Jaký typ zdroje je instalován?","Vyberte",null,null,{"$f":"IFERROR(INDEX(Q13:S13,1,P13),\"\")","v":"Vyberte typ zdroje."},null,{"$f":"AND(NOT(je_zdroj),I12,M12)","v":false},{"$f":"IF(AND(I13,L13),F13,\"\")","v":""},{"$f":"IF(L13,IF(ZdrojPočetPalivBudova>1,ROW(F14),IF(ZdrojIdxBudova=6,ROW(Zateplení!F15),IF(ZpůsobVýpočtu=1,ROW(F26),ROW(F17)))),ROW(F13))","v":13},{"$f":"OR(je_zdroj,NOT(ISBLANK(F13)))","v":false},false,null,null,{"$f":"myidx(L13,ISBLANK(F13))","v":2},"OK","Vyberte typ zdroje."]
[null,"1.10","Jaké se používá palivo?","Vyberte",null,null,{"$f":"IF(P14>0,INDEX(Q14:S14,1,P14),\"\")","v":"Vyberte palivo."},null,{"$f":"AND(ZdrojPočetPalivBudova>1,I13,M13)","v":false},{"$f":"IF(L14,IF(ZdrojPočetPalivBudova=1,INDEX(ParametryZateplení!$B$20:$G$20,1,ZdrojIdxBudova),F14),\"\")","v":""},{"$f":"IF(L14,IF(ZdrojIdxBudova=6,ROW(F15),IF(ZpůsobVýpočtu=1,ROW(F26),ROW(F17))),ROW())","v":14},{"$f":"OR(je_zdroj,OR(ZdrojPočetPalivBudova=1,AND(ZdrojPočetPalivBudova>1,INDEX(ParametryZateplení!$B$18:$G$18,1,ZdrojIdxBudova))))","v":false},false,null,null,{"$f":"myidx(L14,ISBLANK(F14),AND(ZdrojPočetPalivBudova>1,NOT(INDEX(ParametryZateplení!$B$18:$G$18,1,ZdrojIdxBudova))))","v":2},"OK",{"$f":"IF(ParametryZateplení!B15=6,\"Vyberte palivo zdroje SZT. Pokud nevíte, zvolte \"\"zemní plyn\"\".\",\"Vyberte palivo.\")","v":"Vyberte palivo."},"Nesprávné palivo."]
[null,"1.11","Jak účinná je soustava zásobování teplem (SZT)?","Vyberte",null,null,{"$f":"IFERROR(INDEX(Q15:S15,1,P15),\"\")","v":"OK"},null,{"$f":"AND(M14,ZdrojIdxBudova=6,OR(I14,ZdrojPočetPalivBudova=1))","v":false},{"$f":"IF(AND(L15,ZdrojIdxBudova=6),F15,\"\")","v":""},{"$f":"IF(L15,IF(ZpůsobVýpočtu=1,ROW(F26),ROW(F17)),ROW())","v":17},{"$f":"OR(je_zdroj,OR(ZdrojIdxBudova<>6,NOT(ISBLANK(F15))))","v":true},false,null,null,{"$f":"myidx(OR(L15,ZdrojIdxBudova<>6),ISBLANK(F15))","v":1},"OK","Vyberte typ soustavy. Pokud nevíte, zvolte \"ostatní SZT\"."]
[null,null,null,null,null,null,null,null,{"$f":"I17","v":false}]
[null,"2.1",{"$f":"IF(Výjimka,\"Vypočtená hodnota průměrného součinitele prostupu tepla Uem stávajícího stavu projektu\",\"Vypočtená hodnota průměrného součinitele prostupu tepla Uem po realizaci projektu\")","v":"Vypočtená hodnota průměrného součinitele prostupu tepla Uem po realizaci projektu"},"W/(m2K)",null,null,{"$f":"IFERROR(INDEX(Q17:T17,1,P17),\"\")","v":"Zadejte hodnotu z PENB po realizaci z tabulky: Informace o stavebních prvcích a konstrukcích a technických systémech a.2) požadavky na průměrný součinitel prostupu tepla."},null,{"$f":"AND(JePENB,OR(AND(je_zdroj,I12,M12),AND(NOT(je_zdroj),OR(AND(ZdrojIdxBudova=6,I15,M15),AND(ZdrojIdxBudova<>6,ZdrojPočetPalivBudova=1,I13,M13),AND(ZdrojIdxBudova<>6,ZdrojPočetPalivBudova>1,I14,M14)))))","v":false},{"$f":"I17*L17*F17","v":0},{"$f":"IF(L17,ROW(F18),ROW())","v":17},{"$f":"AND(ISNUMBER(F17),IF(ISNUMBER(F17),AND(F17>=MinU,F17<=MaxU),FALSE))","v":false},{"$f":"AND(M15,L17)","v":false},null,null,{"$f":"myidx(L17,ISBLANK(F17),NOT(ISNUMBER(F17)),OR(F17<MinU,F17>MaxU))","v":2},"OK","Zadejte hodnotu z PENB po realizaci z tabulky: Informace o stavebních prvcích a konstrukcích a technických systémech a.2) požadavky na průměrný součinitel prostupu tepla.","Hodnota není číslo.",{"$f":"\"Hodnota musí být v rozsahu \" & MinU & \" - \" & MaxU & \".\"","v":"Hodnota musí být v rozsahu 0 - 5."}]
[null,"2.2",{"$f":"IF(Výjimka,\"Referenční hodnota průměrného součinitele prostupu tepla Uem,R stávajícího stavu projektu\",\"Referenční hodnota průměrného součinitele prostupu tepla Uem,R po realizaci projektu\")","v":"Referenční hodnota průměrného součinitele prostupu tepla Uem,R po realizaci projektu"},"W/(m2K)",null,null,{"$f":"IFERROR(INDEX(Q18:U18,1,P18),\"\")","v":"Zadejte hodnotu z PENB po realizaci z tabulky: Informace o stavebních prvcích a konstrukcích a technických systémech a.2) požadavky na průměrný součinitel prostupu tepla."},null,{"$f":"AND(I17,M17)","v":false},0,18,{"$f":"AND(ISNUMBER(F18),IF(ISNUMBER(F18),AND(F18>=MinU,F18<=MaxU,F18>=F17),FALSE))","v":false},{"$f":"AND(M17,L18)","v":false},{"$f":"P18=4","v":false},null,{"$f":"myidx(L18,ISBLANK(F18),NOT(ISNUMBER(F18)),F18<F17,OR(F18<MinU,F18>MaxU))","v":2},"OK","Zadejte hodnotu z PENB po realizaci z tabulky: Informace o stavebních prvcích a konstrukcích a technických systémech a.2) požadavky na průměrný součinitel prostupu tepla.","Hodnota není číslo.","Referenční hodnota nemůže být nižší než vypočtená hodnota v bodu 2.1.",{"$f":"\"Hodnota musí být v rozsahu \" & MinU & \" - \" & MaxU & \".\"","v":"Hodnota musí být v rozsahu 0 - 5."}]
[null,"2.3",{"$f":"IF(Výjimka,\"Vypočtená hodnota dodané energie ER stávajícího stavu projektu\",\"Vypočtená hodnota dodané energie ER po realizaci projektu\")","v":"Vypočtená hodnota dodané energie ER po realizaci projektu"},"kWh",null,null,{"$f":"IFERROR(INDEX(Q19:U19,1,P19),\"\")","v":{"$error":"#VALUE!"}},null,false,0,{"$f":"IF(L19,ROW(F20),ROW())","v":19},{"$f":"AND(ISNUMBER(F19),IF(ISNUMBER(F19),F19>0,FALSE))","v":false},{"$f":"AND(M18,L19)","v":false},null,null,{"$f":"IFERROR(myidx(AND(L19,(F19/$F$10)>=MinSpotř_m2),ISBLANK(F19),NOT(ISNUMBER(F19)),F19<0,(F19/$F$10)<MinSpotř_m2),0)","v":0},"OK","Zadejte hodnotu z PENB po realizaci z tabulky: Energetická náročnost hodnocené budovy  e) požadavek na celkovou dodanou energii.","Hodnota není číslo.","Spotřeba musí být kladná.","Zadaná hodnota spotřeby je příliš nízká"]
[null,"2.4",{"$f":"IF(Výjimka,\"Vypočtená hodnota referenční dodané energie ER stávajícího stavu projektu\",\"Vypočtená hodnota referenční dodané energie ER po realizaci projektu\")","v":"Vypočtená hodnota referenční dodané energie ER po realizaci projektu"},"kWh",null,null,{"$f":"IFERROR(INDEX(Q20:V20,1,P20),\"\")","v":{"$error":"#VALUE!"}},null,{"$f":"AND(I19,M19)","v":false},0,{"$f":"IF(Výjimka,ROW(),IF(L20,ROW(F21),ROW()))","v":20},{"$f":"AND(ISNUMBER(F20),IF(ISNUMBER(F20),AND(F20>0,F20>F19),FALSE))","v":false},{"$f":"AND(M19,L20)","v":false},{"$f":"P20=5","v":false},null,{"$f":"IFERROR(myidx(AND(L20,(F20/$F$10)>=MinSpotř_m2),ISBLANK(F20),NOT(ISNUMBER(F20)),F20<0,F20<F19,(F20/$F$10)<MinSpotř_m2),0)","v":0},"OK","Zadejte hodnotu z PENB po realizaci z tabulky: Energetická náročnost hodnocené budovy  e) požadavek na celkovou dodanou energii.","Hodnota není číslo.","Spotřeba musí být kladná.","Referenční hodnota nemůže být nižší než vypočtená hodnota v bodu 2.3.","Zadaná hodnota spotřeby je příliš nízká"]
[null,"2.5","Vypočtená hodnota dodané energie ER před realizací projektu","kWh",null,null,{"$f":"IFERROR(INDEX(Q21:V21,1,P21),\"\")","v":{"$error":"#VALUE!"}},null,{"$f":"AND(I20,M20,J5=ne)","v":false},{"$f":"IF(Výjimka,J19,I21*L21*F21)","v":0},{"$f":"IF(L21,IF(AND(JePENB,P18<>5,P19<>5,P20<>5),ROW(F26),IF(J5=27,ROW(F26),ROW(F22))),ROW())","v":21},{"$f":"OR(AND(ISNUMBER(F21),IF(ISNUMBER(F21),AND(F21>0,F21>F19),FALSE)),J5=ano)","v":false},false,{"$f":"P21=5","v":false},null,{"$f":"IFERROR(myidx(OR(AND(L21,(F21/$F$10)>=MinSpotř_m2),J5=ano),ISBLANK(F21),NOT(ISNUMBER(F21)),F21<0,F21<F19,(F21/$F$10)<MinSpotř_m2),0)","v":0},"OK","Zadejte hodnotu z PENB po realizaci z tabulky: Energetická náročnost hodnocené budovy  e) požadavek na celkovou dodanou energii.","Hodnota není číslo.","Spotřeba musí být kladná.","Hodnota před realizací projektu nemůže být nižší než vypočtená hodnota v bodu 2.3.","Zadaná hodnota spotřeby je příliš nízká"]
[null,"2.6","Potvrďte, že jsou hodnoty zadány správně",null,null,null,{"$f":"IFERROR(INDEX(Q22:S22,1,P22),\"\")","v":"OK"},null,{"$f":"AND(JePENB,I21,M21,OR(P19=5,P20=6,P21=6))","v":false},{"$f":"IF(AND(JePENB,P18<>5,P19<>6,P20<>6),ano,IF(AND(I22,L22),F22,\"\"))","v":""},{"$f":"IF(L22,ROW(F26),ROW())","v":26},{"$f":"OR(F22=ano,F22=ne,AND(P19<>5,P20<>6,P21<>6))","v":true},{"$f":"AND(M21,OR(L22,J5=ano))","v":false},null,null,{"$f":"IFERROR(myidx(OR(F22=ano,AND(L22,P19<>5,P20<>6,P21<>6)),AND(OR(ISBLANK(F22),F22=ne),OR(P19=5,P20=5,P21=5))),0)","v":1},"OK","Zkontrolujte prosím správnost zadaných zadaných spotřeb (body 2.3, 2.4, 2.5) a vytápěné plochy (bod 1.6). Pokud jsou zadány správně, zvolte ano."]
[null,null,null,null,null,null,null,null,true]
[null,"3.","Vlastnosti budovy před realizací opatření",null,null,null,"Výběrem z předvolených možností definujte budovu, kterou chcete rekonstruovat v rámci programu",null,{"$f":"I26","v":false}]
[null,"Popis stávajících konstrukcí",null,null,null,null,null,null,{"$f":"I26","v":false}]
[null,"3.1.1","Obvodový plášť","Specifikujte konstrukci",null,null,{"$f":"IF(P26>0,INDEX(Q26:S26,1,P26),\"\")","v":"Vyberte z předvolených konstrukcí konstrukci, která nejvíce odpovídá vašemu objektu"},null,{"$f":"OR(AND(NOT(JePENB),M15),AND(JePENB,M22))","v":false},{"$f":"IF(AND(I26,L26),F26,\"\")","v":""},{"$f":"IF(L26,ROW(F27),ROW())","v":26},{"$f":"AND(NOT(ISBLANK(F26)),Budova!K16>0)","v":false},{"$f":"AND(M15,L26)","v":false},null,null,{"$f":"myidx(L26,ISBLANK(F26),Budova!K16<=0)","v":2},"OK","Vyberte z předvolených konstrukcí konstrukci, která nejvíce odpovídá vašemu objektu","Nesprávná kombinace období výstavby v bodu 1.7 a zvolené konstrukce."]
[null,"3.1.2",null,"Celková plocha","m2",null,{"$f":"IFERROR(INDEX(Q27:U27,1,P27),\"\")","v":"Zadejte celkovou plochu obvodového pláště."},null,{"$f":"AND(I26,M26)","v":false},{"$f":"I27*L27*F27","v":0},{"$f":"IF(L27,ROW(F28),ROW())","v":27},{"$f":"AND(ISNUMBER(F27),IF(ISNUMBER(F27),F27>0,FALSE))","v":false},{"$f":"AND(M26,L27)","v":false},null,null,{"$f":"myidx(L27,ISBLANK(F27),NOT(ISNUMBER(F27)),F27<=0)","v":2},"OK","Zadejte celkovou plochu obvodového pláště.","Hodnota není číslo.","Plocha musí být kladná."]
[null,"3.2.1","Střecha","Vyberte typ konstrukce",null,null,{"$f":"IF(P28>0,INDEX(Q28:S28,1,P28),\"\")","v":"\"Šikmá střecha\" znamená využívané podkroví, \"Strop půdy\" znamená nevytápěnou půdu"},null,{"$f":"AND(I27,M27)","v":false},{"$f":"IF(AND(I28,L28),F28,\"\")","v":""},{"$f":"IF(L28,ROW(F29),ROW())","v":28},{"$f":"NOT(ISBLANK(F28))","v":false},{"$f":"AND(M26,L28)","v":false},null,null,{"$f":"myidx(L28,ISBLANK(F28))","v":2},"OK","\"Šikmá střecha\" znamená využívané podkroví, \"Strop půdy\" znamená nevytápěnou půdu","Nesprávná kombinace období výstavby v bodu 1.7 a zvolené konstrukce."]
[null,"3.2.2",null,"Specifikujte konstrukci",null,null,{"$f":"IF(P29>0,INDEX(Q29:S29,1,P29),\"\")","v":"Vyberte z předvolených konstrukcí konstrukci, která nejvíce odpovídá vašemu objektu, pokud je předvolená pouze 1 možnost, vyberte ji"},null,{"$f":"AND(I28,M28)","v":false},"",29,{"$f":"AND(NOT(ISBLANK(F29)),Budova!J13)","v":false},{"$f":"AND(M28,L29)","v":false},null,null,{"$f":"myidx(L29,ISBLANK(F29),NOT(Budova!J13))","v":2},"OK","Vyberte z předvolených konstrukcí konstrukci, která nejvíce odpovídá vašemu objektu, pokud je předvolená pouze 1 možnost, vyberte ji","Nesprávná kombinace typu střechy v bodu 3.1.2 a zvolené konstrukce."]
[null,"3.2.3",null,"Celková plocha","m2",null,{"$f":"IFERROR(INDEX(Q30:U30,1,P30),\"\")","v":"Zadejte celkovou plochu střechy nebo stropu pod půdou."},null,false,{"$f":"I30*L30*F30","v":0},30,{"$f":"AND(ISNUMBER(F30),IF(ISNUMBER(F30),F30>0,FALSE))","v":false},false,null,null,{"$f":"myidx(L30,ISBLANK(F30),NOT(ISNUMBER(F30)),F30<=0)","v":2},"OK","Zadejte celkovou plochu střechy nebo stropu pod půdou.","Hodnota není číslo.","Plocha musí být kladná."]
[null,"3.3.1","Podlaha, strop nad suterénem","Vyberte typ konstrukce",null,null,{"$f":"IF(P31>0,INDEX(Q31:S31,1,P31),\"\")","v":"Pokud je v budově vytápěný suterén - zvolte \"Podlaha na zemině\""},null,false,{"$f":"IF(AND(I31,L31),F31,\"\")","v":""},31,{"$f":"NOT(ISBLANK(F31))","v":false},{"$f":"AND(M29,L31)","v":false},null,null,{"$f":"myidx(L31,ISBLANK(F31))","v":2},"OK","Pokud je v budově vytápěný suterén - zvolte \"Podlaha na zemině\"","Nesprávná kombinace období výstavby v bodu 1.7 a zvolené konstrukce."]
[null,"3.3.2",null,"Specifikujte konstrukci",null,null,{"$f":"IF(P32>0,INDEX(Q32:S32,1,P32),\"\")","v":"Vyberte z předvolených konstrukcí konstrukci, která nejvíce odpovídá vašemu objektu, pokud je předvolená pouze 1 možnost, vyberte ji."},null,false,"",32,{"$f":"AND(NOT(ISBLANK(F32)),Budova!L13)","v":false},{"$f":"AND(M31,L32)","v":false},null,null,{"$f":"myidx(L32,ISBLANK(F32),NOT(Budova!L13))","v":2},"OK","Vyberte z předvolených konstrukcí konstrukci, která nejvíce odpovídá vašemu objektu, pokud je předvolená pouze 1 možnost, vyberte ji.","Nesprávná kombinace typu podlahy v bodu 3.1.4 a zvolené konstrukce."]
[null,"3.3.3",null,"Celková plocha","m2",null,{"$f":"IFERROR(INDEX(Q33:U33,1,P33),\"\")","v":"Zadejte celkovou plochu podlahy."},null,false,{"$f":"I33*L33*F33","v":0},33,{"$f":"AND(ISNUMBER(F33),IF(ISNUMBER(F33),F33>0,FALSE))","v":false},false,null,null,{"$f":"myidx(L33,ISBLANK(F33),NOT(ISNUMBER(F33)),F33<=0)","v":2},"OK","Zadejte celkovou plochu podlahy.","Hodnota není číslo.","Plocha musí být kladná."]
[null,"3.4.1","Okna","Vyberte typ konstrukce",null,null,{"$f":"IF(P34>0,INDEX(Q34:S34,1,P34),\"\")","v":"Vyberte výplň, kterou hodláte měnit. Pokud měníte více typů výplní, zvolte tu , která odpovídá největší ploše měněných výplní."},null,false,{"$f":"IF(AND(I34,L34),F34,\"\")","v":""},34,{"$f":"AND(NOT(ISBLANK(F34)),Budova!K19>0)","v":false},{"$f":"AND(M32,L34)","v":false},null,null,{"$f":"myidx(L34,ISBLANK(F34),Budova!K19<=0)","v":2},"OK","Vyberte výplň, kterou hodláte měnit. Pokud měníte více typů výplní, zvolte tu , která odpovídá největší ploše měněných výplní.","Nesprávná kombinace období výstavby v bodu 1.7 a zvolené konstrukce."]
[null,"3.4.2",null,"Celková plocha","m2",null,{"$f":"IFERROR(INDEX(Q35:U35,1,P35),\"\")","v":"Zadejte celkovou plochu oken."},null,false,{"$f":"I35*L35*F35","v":0},35,{"$f":"AND(ISNUMBER(F35),IF(ISNUMBER(F35),F35>0,FALSE))","v":false},{"$f":"AND(M34,L35)","v":false},null,null,{"$f":"myidx(L35,ISBLANK(F35),NOT(ISNUMBER(F35)),F35<=0)","v":2},"OK","Zadejte celkovou plochu oken.","Hodnota není číslo.","Plocha musí být kladná."]
[null,"3.5.1","Dveře, vrata","Vyberte typ konstrukce",null,null,{"$f":"IF(P36>0,INDEX(Q36:S36,1,P36),\"\")","v":"Vyberte dveřní výplň, kterou hodláte měnit. Pokud měníte více typů výplní, zvolte tu , která odpovídá největší ploše měněných výplní."},null,false,{"$f":"IF(AND(I36,L36),F36,\"\")","v":""},36,{"$f":"AND(NOT(ISBLANK(F36)),Budova!K20>0)","v":false},{"$f":"AND(M34,L36)","v":false},null,null,{"$f":"myidx(L36,ISBLANK(F36),Budova!K20<=0)","v":2},"OK","Vyberte dveřní výplň, kterou hodláte měnit. Pokud měníte více typů výplní, zvolte tu , která odpovídá největší ploše měněných výplní.","Nesprávná kombinace období výstavby v bodu 1.7 a zvolené konstrukce."]
[null,"3.5.2",null,"Celková plocha","m2",null,{"$f":"IFERROR(INDEX(Q37:U37,1,P37),\"\")","v":"Zadejte celkovou plochu dveří nebo vrat."},null,false,{"$f":"I37*L37*F37","v":0},37,{"$f":"AND(ISNUMBER(F37),IF(ISNUMBER(F37),F37>0,FALSE))","v":false},{"$f":"AND(M36,L37)","v":false},null,null,{"$f":"myidx(L37,ISBLANK(F37),NOT(ISNUMBER(F37)),F37<=0)","v":2},"OK","Zadejte celkovou plochu dveří nebo vrat.","Hodnota není číslo.","Plocha musí být kladná."]
[null,"3.6.1","Střešní okna, světlíky","Vyberte typ konstrukce",null,null,{"$f":"IF(P38>0,INDEX(Q38:S38,1,P38),\"\")","v":"Pokud v budově nejsou střešní okna ani světlíky, nevybírejte nic a pokračujte vyplněním tabulky č. 4"},null,false,{"$f":"IF(AND(I38,L38),F38,\"\")","v":""},{"$f":"IF(L38,IF(ISBLANK(F38),ROW(F42),ROW(F39)),ROW())","v":38},{"$f":"AND(NOT(ISBLANK(F38)),Budova!K21>0)","v":false},{"$f":"M36","v":false},null,null,{"$f":"myidx(L38,ISBLANK(F38),Budova!K21<=0)","v":2},"OK","Pokud v budově nejsou střešní okna ani světlíky, nevybírejte nic a pokračujte vyplněním tabulky č. 4","Nesprávná kombinace období výstavby v bodu 1.7 a zvolené konstrukce."]
[null,"3.6.2",null,"Celková plocha","m2",null,{"$f":"IFERROR(INDEX(Q39:U39,1,P39),\"\")","v":"Zadejte celkovou plochu střešních oken nebo světlíků."},null,{"$f":"AND(NOT(ISBLANK(F38)),I38,M38)","v":false},{"$f":"I39*L39*F39","v":0},{"$f":"IF(L39,ROW(F42),ROW())","v":39},{"$f":"AND(ISNUMBER(F39),IF(ISNUMBER(F39),F39>0,FALSE))","v":false},{"$f":"AND(M38,OR(L39,ISBLANK(F38)))","v":false},null,null,{"$f":"myidx(L39,ISBLANK(F39),NOT(ISNUMBER(F39)),F39<=0)","v":2},"OK","Zadejte celkovou plochu střešních oken nebo světlíků.","Hodnota není číslo.","Plocha musí být kladná."]
[null,null,null,null,null,null,null,null,{"$f":"I38","v":false}]
[null,"4.","Opatření k realizaci",null,null,null,"Definujte parametry opatření, která hodláte realizovat v rámci programu",null,{"$f":"I38","v":false}]
[null,"4.1.","Zateplení obvodového pláště","Vyberte ano / ne",null,null,{"$f":"IFERROR(INDEX(Q42:S42,1,P42),\"\")","v":"Vyberte ano nebo ne."},null,{"$f":"I38","v":false},{"$f":"IF(AND(I42,L42,je_zateplení),F42=ano,FALSE)","v":false},{"$f":"IF(L42,IF(F42=ano,ROW(F43),ROW(F50)),ROW())","v":42},{"$f":"OR(F42=ano,F42=ne)","v":false},{"$f":"OR($F$42=ne,AND(M38,L42))","v":false},null,null,{"$f":"myidx(L42,ISBLANK(F42))","v":2},"OK","Vyberte ano nebo ne."]
[null,"4.1.2",null,"Typ zateplení",null,null,{"$f":"IFERROR(INDEX(Q43:S43,1,P43),\"\")","v":"Vyberte typ zateplení, které nejlépe charakterizuje vámi realizované. V případě realizace více typů, uveďte ten s největší plochou."},null,{"$f":"AND(I42,M42,$J$42)","v":false},{"$f":"IF(AND(I43,L43),F43,\"\")","v":""},{"$f":"IF(L43,ROW(F44),ROW())","v":43},{"$f":"NOT(ISBLANK(F43))","v":false},{"$f":"OR($F$42=ne,AND(M42,L43))","v":false},null,null,{"$f":"myidx(L43,ISBLANK(F43))","v":2},"OK","Vyberte typ zateplení, které nejlépe charakterizuje vámi realizované. V případě realizace více typů, uveďte ten s největší plochou."]
[null,"4.1.3",null,"Tloušťka tepelné izolace [mm]",null,null,{"$f":"IFERROR(INDEX(Q44:U44,1,P44),\"\")","v":"Zadejte tloušťku izolace v mm."},null,{"$f":"AND(I43,M43,$J$42)","v":false},{"$f":"I44*L44*F44","v":0},44,{"$f":"AND(ISNUMBER(F44),IF(ISNUMBER(F44),AND(F44>0,F44<=MaxTlIzol),FALSE))","v":false},{"$f":"OR($F$42=ne,AND(M43,L44))","v":false},null,null,{"$f":"myidx(L44,ISBLANK(F44),NOT(ISNUMBER(F44)),F44<=0,F44>MaxTlIzol)","v":2},"OK","Zadejte tloušťku izolace v mm.","Hodnota není číslo.","Hodnota musí být kladná.",{"$f":"\"Obvyklá tloušťka izolace je do \" & MaxTlIzol & \" mm.\"","v":"Obvyklá tloušťka izolace je do 500 mm."}]
[null,"4.1.4",null,"Plocha zateplované konstrukce [m2]",null,null,{"$f":"IFERROR(INDEX(Q45:V45,1,P45),\"\")","v":"Zadejte plochu."},null,{"$f":"AND(I44,M44,$J$42)","v":false},0,{"$f":"IF(L45,IF(JePENB,ROW(F46),ROW(F50)),ROW())","v":45},{"$f":"AND(ISNUMBER(F45),IF(ISNUMBER(F45),AND(F45>0,F45<=F27),FALSE))","v":false},{"$f":"OR($F$42=ne,AND(M44,L45))","v":false},null,null,{"$f":"myidx(L45,ISBLANK(F45),NOT(ISNUMBER(F45)),F45<=0,F45>F27)","v":2},"OK","Zadejte plochu.","Hodnota není číslo.","Hodnota musí být kladná.","Zateplovaná plocha nemůže být větší než celková plocha v bodu 3.1.2."]
[null,"4.1.5",null,"Součinitel prostupu tepla konstrukce z PENB [W/(m2.K)]",null,null,{"$f":"IFERROR(INDEX(Q46:T46,1,P46),\"\")","v":"Zadejte hodnotu z Průkazu energetické náročnosti po realizaci projektu z tabulky a.1) požadavky na součinitel prostupu tepla - Vypočtená hodnota Uj."},null,{"$f":"AND(I45,M45,$J$42,JePENB)","v":false},0,{"$f":"IF(L46,ROW(F50),ROW())","v":46},{"$f":"OR(AND(M45,NOT(JePENB)),AND(ISNUMBER(F46),IF(ISNUMBER(F46),AND(F46>MinUPENB,F46<=MaxUPENB),FALSE)))","v":false},{"$f":"OR($F$42=ne,AND(M45,L46))","v":false},null,null,{"$f":"myidx(L46,ISBLANK(F46),NOT(ISNUMBER(F46)),OR(F46<=MinUPENB,F46>MaxUPENB))","v":2},"OK","Zadejte hodnotu z Průkazu energetické náročnosti po realizaci projektu z tabulky a.1) požadavky na součinitel prostupu tepla - Vypočtená hodnota Uj.","Hodnota není číslo.",{"$f":"\"Hodnota musí být větší než \" & MinUPENB & \" menší nebo rovna \" & MaxUPENB & \".\"","v":"Hodnota musí být větší než 0 menší nebo rovna 7."}]
[null,"4.1.6",null,"Součinitel prostupu tepla výpočet z kalkulačky  [W/(m2.K)]",null,{"$f":"IF(ISBLANK(F44),\"\",Parametry!D8)","v":""},null,null,{"$f":"AND(J42,M46,NOT(JePENB))","v":false}]
[null,"4.1.7",null,"Požadavek programu na U [W/(m2.K)]",{"$error":"#N/A"},{"$f":"IF(ISBLANK(F44),\"\",Parametry!G8)","v":""},"Hodnota je nastavená dle specifických podmínek programu a vámi zvoleného typu budovy a dalších kritérií",null,{"$f":"AND(J42,M46)","v":false}]
[null,"4.1.8",null,"Vyhodnocení plnění požadavku",null,{"$f":"IF(N49,O49,\"Zateplení obvodových stěn splňuje požadavky programu.\")","v":"Zateplení obvodových stěn splňuje požadavky programu."},null,null,{"$f":"AND(J42,M46)","v":false},{"$f":"IF(JePENB,J46,F47)","v":""},null,null,null,{"$f":"IFERROR(AND(F42=ano,J49>F48),FALSE)","v":false},"Zateplení obvodových stěn nesplňuje podmínky programu."]
[null,"4.2.","Zateplení střechy","Vyberte ano / ne",null,null,{"$f":"IFERROR(INDEX(Q50:S50,1,P50),\"\")","v":"Vyberte ano nebo ne."},null,{"$f":"OR(AND(F42=ne,I42),AND(JePENB,I46,M46),AND(NOT(JePENB),I45,M45))","v":false},{"$f":"IF(AND(I50,L50,je_zateplení),F50=ano,FALSE)","v":false},{"$f":"IF(L50,IF(F50=ano,ROW(F51),ROW(F58)),ROW())","v":50},{"$f":"OR(F50=ano,F50=ne)","v":false},{"$f":"AND(M46,L50)","v":false},null,null,{"$f":"myidx(L50,ISBLANK(F50))","v":2},"OK","Vyberte ano nebo ne."]
[null,"4.2.2",null,"Typ zateplení",null,null,{"$f":"IFERROR(INDEX(Q51:S51,1,P51),\"\")","v":"Vyberte typ zateplení, které nejlépe charakterizuje vámi realizované.  V případě realizace více typů, uveďte ten s největší plochou."},null,{"$f":"AND(I50,M50,$J$50)","v":false},{"$f":"IF(AND(I51,L51),F51,\"\")","v":""},{"$f":"IF(L51,ROW(F52),ROW())","v":51},{"$f":"AND(NOT(ISBLANK(F51)),LambdaStřecha>0)","v":false},{"$f":"OR($F$50=ne,AND(M50,L51))","v":false},null,null,{"$f":"myidx(L51,ISBLANK(F51),LambdaStřecha<=0)","v":2},"OK","Vyberte typ zateplení, které nejlépe charakterizuje vámi realizované.  V případě realizace více typů, uveďte ten s největší plochou.","Nesprávná kombinace typu střechy v bodu 3.1.2 a způsobu zateplení."]
[null,"4.2.3",null,"Tloušťka tepelné izolace [mm]",null,null,{"$f":"IFERROR(INDEX(Q52:U52,1,P52),\"\")","v":"Zadejte tloušťku izolace v mm."},null,{"$f":"AND(I51,M51,$J$50)","v":false},{"$f":"I52*L52*F52","v":0},52,{"$f":"AND(ISNUMBER(F52),IF(ISNUMBER(F52),AND(F52>0,F52<=MaxTlIzol),FALSE))","v":false},{"$f":"OR($F$50=ne,AND(M51,L52))","v":false},null,null,{"$f":"myidx(L52,ISBLANK(F52),NOT(ISNUMBER(F52)),F52<=0,F52>MaxTlIzol)","v":2},"OK","Zadejte tloušťku izolace v mm.","Hodnota není číslo.","Hodnota musí být kladná.",{"$f":"\"Obvyklá tloušťka izolace je do \" & MaxTlIzol & \" mm.\"","v":"Obvyklá tloušťka izolace je do 500 mm."}]
[null,"4.2.4",null,"Plocha zateplované konstrukce [m2]",null,null,{"$f":"IFERROR(INDEX(Q53:V53,1,P53),\"\")","v":"Zadejte plochu zateplované konstrukce."},null,{"$f":"AND(I52,M52,$J$50)","v":false},0,{"$f":"IF(L53,IF(JePENB,ROW(F54),ROW(F58)),ROW())","v":53},{"$f":"AND(ISNUMBER(F53),IF(ISNUMBER(F53),AND(F53>0,F53<=F30),FALSE))","v":false},{"$f":"OR($F$50=ne,AND(M52,L53))","v":false},null,null,{"$f":"myidx(L53,ISBLANK(F53),NOT(ISNUMBER(F53)),F53<=0,F53>F328)","v":2},"OK","Zadejte plochu zateplované konstrukce.","Hodnota není číslo.","Hodnota musí být kladná.","Zateplovaná plocha nemůže být větší než celková plocha v bodu 3.2.3."]
[null,"4.2.5",null,"Součinitel prostupu tepla konstrukce z PENB [W/(m2.K)]",null,null,{"$f":"IFERROR(INDEX(Q54:T54,1,P54),\"\")","v":"Zadejte hodnotu z Průkazu energetické náročnosti po realizaci projektu z tabulky a.1) požadavky na součinitel prostupu tepla - Vypočtená hodnota Uj"},null,{"$f":"AND(I53,M53,$J$50,JePENB)","v":false},0,{"$f":"IF(L54,ROW(F58),ROW())","v":54},{"$f":"OR(AND(M53,NOT(JePENB)),AND(ISNUMBER(F54),IF(ISNUMBER(F54),AND(F54>MinUPENB,F54<=MaxUPENB),FALSE)))","v":false},{"$f":"OR($F$50=ne,AND(M53,L54))","v":false},null,null,{"$f":"myidx(L54,ISBLANK(F54),NOT(ISNUMBER(F54)),OR(F54<=MinUPENB,F54>MaxUPENB))","v":2},"OK","Zadejte hodnotu z Průkazu energetické náročnosti po realizaci projektu z tabulky a.1) požadavky na součinitel prostupu tepla - Vypočtená hodnota Uj","Hodnota není číslo.",{"$f":"\"Hodnota musí být větší než \" & MinUPENB & \" menší nebo rovna \" & MaxUPENB & \".\"","v":"Hodnota musí být větší než 0 menší nebo rovna 7."}]
[null,"4.2.6",null,"Součinitel prostupu tepla výpočet z kalkulačky  [W/(m2.K)]",null,{"$f":"IF(ISBLANK(F52),\"\",Parametry!D9)","v":""},null,null,{"$f":"AND(J50,M54,NOT(JePENB))","v":false},null,null,null,null,null,null,null,"OK"]
[null,"4.2.7",null,"Požadavek programu na U [W/(m2.K)]",{"$f":"Parametry!H9","v":"Upož,20*e1"},{"$f":"IF(ISBLANK(F52),\"\",Parametry!G9)","v":""},"Hodnota je nastavená dle specifických podmínek programu a vámi zvoleného typu budovy a dalších kritérií",null,{"$f":"AND(J50,M54)","v":false}]
[null,"4.2.8",null,"Vyhodnocení plnění požadavku",null,{"$f":"IF(N57,O57,\"Zateplení střechy splňuje požadavky programu.\")","v":"Zateplení střechy splňuje požadavky programu."},{"$f":"IF(F57=\"Konstrukce nesplňuje požadavky programu\",\"Pozn. Upravte tloušťku nebo typ zateplení nebo součinitel prostupu tepla konstrukce\",\"\")","v":""},null,{"$f":"AND(J50,M54)","v":false},{"$f":"IF(JePENB,J54,F55)","v":""},null,null,null,{"$f":"IFERROR(AND(F50=ano,J57>F56),FALSE)","v":false},"Zateplení střechy nesplňuje podmínky programu."]
[null,"4.3.","Zateplení podlahy","Vyberte ano / ne",null,null,{"$f":"IFERROR(INDEX(Q58:S58,1,P58),\"\")","v":"Vyberte ano nebo ne."},null,{"$f":"OR(AND(F50=ne,I50),AND(JePENB,I54,M54),AND(NOT(JePENB),I53,M53))","v":false},{"$f":"IF(AND(I58,L58,je_zateplení),F58=ano,FALSE)","v":false},{"$f":"IF(L58,IF(F58=ano,ROW(F59),ROW(F66)),ROW())","v":58},{"$f":"OR(F58=ano,F58=ne)","v":false},{"$f":"AND(M54,L58)","v":false},null,null,{"$f":"myidx(L58,ISBLANK(F58))","v":2},"OK","Vyberte ano nebo ne."]
[null,"4.3.2",null,"Typ zateplení",null,null,{"$f":"IFERROR(INDEX(Q59:S59,1,P59),\"\")","v":"Vyberte typ zateplení, které nejlépe charakterizuje vámi realizované.  V případě realizace více typů, uveďte ten s největší plochou."},null,{"$f":"AND(I58,M58,$J$58)","v":false},{"$f":"IF(AND(I59,L59),F59,\"\")","v":""},{"$f":"IF(L59,ROW(F60),ROW())","v":59},{"$f":"AND(NOT(ISBLANK(F59)),LambdaPodlaha>0)","v":false},{"$f":"OR($F$58=ne,AND(M58,L59))","v":false},null,null,{"$f":"myidx(L59,ISBLANK(F59),LambdaPodlaha<=0)","v":2},"OK","Vyberte typ zateplení, které nejlépe charakterizuje vámi realizované.  V případě realizace více typů, uveďte ten s největší plochou.","Nesprávná kombinace typu podlahy v bodu 3.1.5 a způsobu zateplení."]
[null,"4.3.3",null,"Tloušťka tepelné izolace [mm]",null,null,{"$f":"IFERROR(INDEX(Q60:U60,1,P60),\"\")","v":"Zadejte tloušťku izolace v mm."},null,{"$f":"AND(I59,M59,$J$58)","v":false},{"$f":"I60*L60*F60","v":0},60,{"$f":"AND(ISNUMBER(F60),IF(ISNUMBER(F60),AND(F60>0,F60<=MaxTlIzol),FALSE))","v":false},{"$f":"OR($F$58=ne,AND(M59,L60))","v":false},null,null,{"$f":"myidx(L60,ISBLANK(F60),NOT(ISNUMBER(F60)),F60<=0,F60>MaxTlIzol)","v":2},"OK","Zadejte tloušťku izolace v mm.","Hodnota není číslo.","Hodnota musí být kladná.",{"$f":"\"Obvyklá tloušťka izolace je do \" & MaxTlIzol & \" mm.\"","v":"Obvyklá tloušťka izolace je do 500 mm."}]
[null,"4.3.4",null,"Plocha zateplované konstrukce [m2]",null,null,{"$f":"IFERROR(INDEX(Q61:V61,1,P61),\"\")","v":"Zadejte plochu zateplované konstrukce."},null,{"$f":"AND(I60,M60,$J$58)","v":false},0,{"$f":"IF(L61,IF(JePENB,ROW(F62),ROW(F66)),ROW())","v":61},{"$f":"AND(ISNUMBER(F61),IF(ISNUMBER(F61),AND(F61>0,F61<=F33),FALSE))","v":false},{"$f":"OR($F$58=ne,AND(M60,L61))","v":false},null,null,{"$f":"myidx(L61,ISBLANK(F61),NOT(ISNUMBER(F61)),F61<=0,F61>F33)","v":2},"OK","Zadejte plochu zateplované konstrukce.","Hodnota není číslo.","Hodnota musí být kladná.","Zateplovaná plocha nemůže být větší než celková plocha v bodu 3.3.3."]
[null,"4.3.5",null,"Součinitel prostupu tepla konstrukce z PENB [W/(m2.K)]",null,null,{"$f":"IFERROR(INDEX(Q62:T62,1,P62),\"\")","v":"Zadejte hodnotu z Průkazu energetické náročnosti po realizaci projektu z tabulky a.1) požadavky na součinitel prostupu tepla - Vypočtená hodnota Uj"},null,{"$f":"AND(I61,M61,$J$58,JePENB)","v":false},0,{"$f":"IF(L62,ROW(F66),ROW())","v":62},{"$f":"OR(AND(M61,NOT(JePENB)),AND(ISNUMBER(F62),IF(ISNUMBER(F62),AND(F62>MinUPENB,F62<=MaxUPENB),FALSE)))","v":false},{"$f":"OR($F$58=ne,AND(M61,L62))","v":false},null,null,{"$f":"myidx(L62,ISBLANK(F62),NOT(ISNUMBER(F62)),OR(F62<=MinUPENB,F62>MaxUPENB))","v":2},"OK","Zadejte hodnotu z Průkazu energetické náročnosti po realizaci projektu z tabulky a.1) požadavky na součinitel prostupu tepla - Vypočtená hodnota Uj","Hodnota není číslo.",{"$f":"\"Hodnota musí být větší než \" & MinUPENB & \" menší nebo rovna \" & MaxUPENB & \".\"","v":"Hodnota musí být větší než 0 menší nebo rovna 7."}]
[null,"4.3.6",null,"Součinitel prostupu tepla výpočet z kalkulačky  [W/(m2.K)]",null,{"$f":"IF(ISBLANK(F60),\"\",Parametry!D10)","v":""},null,null,{"$f":"AND(I61,M61,$J$58,NOT(JePENB))","v":false},null,null,null,null,null,null,null,"OK"]
[null,"4.3.7",null,"Požadavek programu  [W/(m2.K)]",{"$f":"Parametry!H10","v":"Upož,20*e1"},{"$f":"IF(ISBLANK(F60),\"\",Parametry!G10)","v":""},"Hodnota je nastavená dle specifických podmínek programu a vámi zvoleného typu budovy a dalších kritérií",null,{"$f":"AND(J58,M62)","v":false}]
[null,"4.3.8",null,"Vyhodnocení plnění požadavku",null,{"$f":"IF(N65,O65,\"Zateplení podlahy splňuje požadavky programu.\")","v":"Zateplení podlahy splňuje požadavky programu."},{"$f":"IF(F65=\"Konstrukce nesplňuje požadavky programu\",\"Pozn. Upravte tloušťku nebo typ zateplení nebo součinitel prostupu tepla konstrukce\",\"\")","v":""},null,{"$f":"AND(J58,M62)","v":false},{"$f":"IF(JePENB,J62,F63)","v":""},null,null,null,{"$f":"IFERROR(AND(F58=ano,J65>F64),FALSE)","v":false},"Zateplení podlahy nesplňuje podmínky programu."]
[null,"4.4.","Výměna oken, výplní ve stěně","Vyberte ano / ne",null,null,{"$f":"IFERROR(INDEX(Q66:S66,1,P66),\"\")","v":"Vyberte ano nebo ne."},null,{"$f":"OR(AND(F58=ne,I58),AND(JePENB,I62,M62),AND(NOT(JePENB),I61,M61))","v":false},{"$f":"IF(AND(I66,L66,je_zateplení),F66=ano,FALSE)","v":false},{"$f":"IF(L66,IF(F66=ano,ROW(F67),ROW(F72)),ROW())","v":66},{"$f":"OR(F66=ano,F66=ne)","v":false},{"$f":"AND(M62,L66)","v":false},null,null,{"$f":"myidx(L66,ISBLANK(F66))","v":2},"OK","Vyberte ano nebo ne."]
[null,"4.4.2",null,"Typ oken",null,null,{"$f":"IFERROR(INDEX(Q67:S67,1,P67),\"\")","v":"Vyberte typ oken, která nejlépe charakterizují vámi realizované. V případě realizace více typů, uveďte ten s největší plochou"},null,{"$f":"AND(I66,M66,$J$66)","v":false},{"$f":"IF(AND(I67,L67),F67,\"\")","v":""},{"$f":"IF(L67,ROW(F68),ROW())","v":67},{"$f":"NOT(ISBLANK(F67))","v":false},{"$f":"OR($F$66=ne,AND(M66,L67))","v":false},null,null,{"$f":"myidx(L67,ISBLANK(F67))","v":2},"OK","Vyberte typ oken, která nejlépe charakterizují vámi realizované. V případě realizace více typů, uveďte ten s největší plochou"]
[null,"4.4.3",null," Plocha vyměňovaných oken [m2]",null,null,{"$f":"IFERROR(INDEX(Q68:V68,1,P68),\"\")","v":"Zadejte plochu vyměňovaných oken."},null,{"$f":"AND(I67,M67,$J$66)","v":false},{"$f":"I68*L68*F68","v":0},68,{"$f":"AND(ISNUMBER(F68),IF(ISNUMBER(F68),AND(F68>0,F68<=F35),FALSE))","v":false},{"$f":"OR($F$66=ne,AND(M67,L68))","v":false},null,null,{"$f":"myidx(L68,ISBLANK(F68),NOT(ISNUMBER(F68)),F68<=0,F68>F35)","v":2},"OK","Zadejte plochu vyměňovaných oken.","Hodnota není číslo.","Hodnota musí být kladná.","Plocha měněných oken nemůže být větší než celová plocha oken v bodu 3.4.2."]
[null,"4.4.4",null,"Zadejte součinitel prostupu tepla nových oken [W/(m2.K)]",null,null,{"$f":"IFERROR(INDEX(Q69:T69,1,P69),\"\")","v":"Zadejte součinitel prostupu tepla."},null,{"$f":"AND(I68,M68,$J$66)","v":false},{"$f":"I69*L69*F69","v":0},{"$f":"IF(L69,ROW(F72),ROW())","v":69},{"$f":"AND(M68,ISNUMBER(F69),IF(ISNUMBER(F69),AND(F69>MinUPENB,F69<=MaxUPENB),FALSE))","v":false},{"$f":"OR($F$66=ne,AND(M68,L69))","v":false},null,null,{"$f":"myidx(L69,ISBLANK(F69),NOT(ISNUMBER(F69)),OR(F69<=MinUPENB,F69>MaxUPENB))","v":2},"OK","Zadejte součinitel prostupu tepla.","Hodnota není číslo.",{"$f":"\"Hodnota musí být větší než \" & MinUPENB & \" menší nebo rovna \" & MaxUPENB & \".\"","v":"Hodnota musí být větší než 0 menší nebo rovna 7."}]
[null,"4.4.5",null,"Požadavek programu  [W/(m2.K)]",{"$f":"Parametry!H11","v":"Upož,20*e1"},{"$f":"IF(ISBLANK(F69),\"\",Parametry!G11)","v":""},"Hodnota je nastavená dle specifických podmínek programu a vámi zvoleného typu budovy a dalších kritérií",null,{"$f":"AND(I69,M69,$J$58)","v":false}]
[null,"4.4.6",null,"Vyhodnocení plnění požadavku",null,{"$f":"IF(N71,O71,\"Okna splňují požadavky programu.\")","v":"Okna splňují požadavky programu."},{"$f":"IF(F71=\"Konstrukce nesplňuje požadavky programu\",\"Pozn. Upravte tloušťku nebo typ zateplení nebo součinitel prostupu tepla konstrukce\",\"\")","v":""},null,{"$f":"I70","v":false},null,null,null,null,{"$f":"AND(F66=ano,UOken>F70)","v":false},"Okna nesplňují požadavky programu."]
[null,"4.5.","Výměna dveří, vrat","Vyberte ano / ne",null,null,{"$f":"IFERROR(INDEX(Q72:S72,1,P72),\"\")","v":"Vyberte ano nebo ne."},null,{"$f":"OR(AND(I66,F66=ne),AND(M69,J66))","v":false},{"$f":"IF(AND(I72,L72,je_zateplení),F72=ano,FALSE)","v":false},{"$f":"IF(L72,IF(F72=ano,ROW(F73),ROW(F78)),ROW())","v":72},{"$f":"OR(F72=ano,F72=ne)","v":false},{"$f":"AND(M69,L72)","v":false},null,null,{"$f":"myidx(L72,ISBLANK(F72))","v":2},"OK","Vyberte ano nebo ne."]
[null,"4.5.2",null,"Vyberte typ dveří, vrat",null,null,{"$f":"IFERROR(INDEX(Q73:S73,1,P73),\"\")","v":"Vyberte typ dveří, které nejlépe charakterizují vámi realizované. V případě realizace více typů, uveďte ten s největší plochou."},null,{"$f":"AND(I72,M72,$J$72)","v":false},{"$f":"IF(AND(I73,L73),F73,\"\")","v":""},{"$f":"IF(L73,ROW(F74),ROW())","v":73},{"$f":"NOT(ISBLANK(F73))","v":false},{"$f":"OR($F$72=ne,AND(M72,L73))","v":false},null,null,{"$f":"myidx(L73,ISBLANK(F73))","v":2},"OK","Vyberte typ dveří, které nejlépe charakterizují vámi realizované. V případě realizace více typů, uveďte ten s největší plochou."]
[null,"4.5.3",null,"Plocha vyměňovaných dveří [m2]",null,null,{"$f":"IFERROR(INDEX(Q74:V74,1,P74),\"\")","v":"Zadejte plochu vyměňovaných dveří."},null,{"$f":"AND(I73,M73,$J$72)","v":false},{"$f":"I74*L74*F74","v":0},74,{"$f":"AND(ISNUMBER(F74),IF(ISNUMBER(F74),AND(F74>0,F74<=F37),FALSE))","v":false},{"$f":"OR($F$72=ne,AND(M73,L74))","v":false},null,null,{"$f":"myidx(L74,ISBLANK(F74),NOT(ISNUMBER(F74)),F74<=0,F74>F37)","v":2},"OK","Zadejte plochu vyměňovaných dveří.","Hodnota není číslo.","Hodnota musí být kladná.","Plocha měněných dveří nemůže být větší než celová plocha dveří v bodu 3.5.2."]
[null,"4.5.4",null,"Zadejte součinitel prostupu tepla [W/(m2.K)]",null,null,{"$f":"IFERROR(INDEX(Q75:T75,1,P75),\"\")","v":"Zadejte součinitel prostupu tepla."},null,{"$f":"AND(I74,M74,$J$72)","v":false},{"$f":"I75*L75*F75","v":0},{"$f":"IF(L75,ROW(F78),ROW())","v":75},{"$f":"AND(M74,ISNUMBER(F75),IF(ISNUMBER(F75),AND(F75>MinUPENB,F75<=MaxUPENB),FALSE))","v":false},{"$f":"OR($F$72=ne,AND(M74,L75))","v":false},null,null,{"$f":"myidx(L75,ISBLANK(F75),NOT(ISNUMBER(F75)),OR(F75<=MinUPENB,F75>MaxUPENB))","v":2},"OK","Zadejte součinitel prostupu tepla.","Hodnota není číslo.",{"$f":"\"Hodnota musí být větší než \" & MinUPENB & \" menší nebo rovna \" & MaxUPENB & \".\"","v":"Hodnota musí být větší než 0 menší nebo rovna 7."}]
[null,"4.5.5",null,"Požadavek programu  [W/(m2.K)]",{"$f":"Parametry!H12","v":"Upož,20*e1"},{"$f":"IF(ISBLANK(F75),\"\",Parametry!G12)","v":""},"Hodnota je nastavená dle specifických podmínek programu a vámi zvoleného typu budovy a dalších kritérií",null,{"$f":"AND(I75,M75,$J$72)","v":false},null,null,null,null,null,null,null,"OK"]
[null,"4.5.6",null,"Vyhodnocení plnění požadavku",null,{"$f":"IF(N77,O77,\"Dveře/vrata splňují požadavky programu.\")","v":"Dveře/vrata splňují požadavky programu."},{"$f":"IF(F77=\"Konstrukce nesplňuje požadavky programu\",\"Pozn. Upravte tloušťku nebo typ zateplení nebo součinitel prostupu tepla konstrukce\",\"\")","v":""},null,{"$f":"I76","v":false},null,null,null,null,{"$f":"AND(F72=ano,UDveří>F76)","v":false},"Dveře/vrata nesplňují požadavky programu.",null,"OK"]
[null,"4.6.","Výměna střešních oken, světlíků ","Vyberte ano / ne",null,null,{"$f":"IFERROR(INDEX(Q78:S78,1,P78),\"\")","v":"OK"},null,{"$f":"AND(OR(AND(I72,F72=ne),AND(M75,J72)),NOT(ISBLANK(F38)))","v":false},{"$f":"IF(AND(I78,L78,je_zateplení),F78=ano,FALSE)","v":false},{"$f":"IF(L78,IF(F78=ano,ROW(F79),ROW()),ROW())","v":78},{"$f":"OR(F78=ano,F78=ne,ISBLANK(F38))","v":true},{"$f":"AND(M75,L78)","v":false},null,null,{"$f":"myidx(L78,ISBLANK(F78))","v":1},"OK","Vyberte ano nebo ne."]
[null,"4.6.2",null,"Vyperte typ oken",null,null,{"$f":"IFERROR(INDEX(Q79:S79,1,P79),\"\")","v":"OK"},null,{"$f":"AND(I78,M78,$J$78)","v":false},{"$f":"IF(AND(I79,L79),F79,\"\")","v":""},{"$f":"IF(L79,ROW(F80),ROW())","v":80},{"$f":"OR(ISBLANK(F38),NOT(ISBLANK(F79)))","v":true},{"$f":"OR($F$78=ne,AND(M78,L79))","v":false},null,null,{"$f":"myidx(L79,ISBLANK(F79))","v":1},"OK","Vyberte typ oken, která nejlépe charakterizují vámi realizované. V případě realizace více typů, uveďte ten s největší plochou"]
[null,"4.6.3",null," Plocha vyměňovaných oken / světlíků [m2]",null,null,{"$f":"IFERROR(INDEX(Q80:V80,1,P80),\"\")","v":"OK"},null,{"$f":"AND(I79,M79,$J$78)","v":false},{"$f":"I80*L80*F80","v":0},81,{"$f":"OR(ISBLANK(F38),AND(ISNUMBER(F80),IF(ISNUMBER(F80),AND(F80>0,F80<=F39),FALSE)))","v":true},{"$f":"OR($F$78=ne,AND(M79,L80))","v":false},null,null,{"$f":"myidx(L80,ISBLANK(F80),NOT(ISNUMBER(F80)),F80<=0,F80>F39)","v":1},"OK","Zadejte plochu vyměňovaných dveří.","Hodnota není číslo.","Hodnota musí být kladná.","Plocha měněných střešních oken nemůže být větší než celová plocha střešních oken v bodu 3.6.2."]
[null,"4.6.4",null,"Zadejte součinitel prostupu tepla",null,null,{"$f":"IFERROR(INDEX(Q81:T81,1,P81),\"\")","v":"OK"},null,{"$f":"AND(I80,M80,$J$78)","v":false},{"$f":"I81*L81*F81","v":0},{"$f":"ROW()","v":81},{"$f":"OR(ISBLANK(F38),AND(M80,ISNUMBER(F81),IF(ISNUMBER(F81),AND(F81>MinUPENB,F81<=MaxUPENB),FALSE)))","v":true},{"$f":"OR($F$78=ne,AND(M80,L81))","v":false},null,null,{"$f":"myidx(L81,ISBLANK(F81),NOT(ISNUMBER(F81)),OR(F81<=MinUPENB,F81>MaxUPENB))","v":1},"OK","Zadejte součinitel prostupu tepla.","Hodnota není číslo.",{"$f":"\"Hodnota musí být větší než \" & MinUPENB & \" menší nebo rovna \" & MaxUPENB & \".\"","v":"Hodnota musí být větší než 0 menší nebo rovna 7."}]
[null,"4.6.5",null,"Požadavek programu  [W/(m2.K)]",{"$f":"Parametry!H13","v":"Upož,20*e1"},{"$f":"IF(ISBLANK(F81),\"\",Parametry!G13)","v":""},"Hodnota je nastavená dle specifických podmínek programu a vámi zvoleného typu budovy a dalších kritérií",null,{"$f":"AND(I81,M81,$J$78)","v":false},null,null,null,null,null,null,null,"OK"]
[null,"4.6.6",null,"Vyhodnocení plnění požadavku",null,{"$f":"IF(N83,O83,\"Světlíky/střešní okna splňují požadavky programu.\")","v":"Světlíky/střešní okna splňují požadavky programu."},{"$f":"IF(F83=\"Konstrukce nesplňuje požadavky programu\",\"Pozn. Upravte tloušťku nebo typ zateplení nebo součinitel prostupu tepla konstrukce\",\"\")","v":""},null,{"$f":"I82","v":false},null,null,null,null,{"$f":"AND(F78=ano,USvětlíků>F82)","v":false},"Světlíky/střešní okna nesplňují požadavky programu.",null,"OK"]
[null,null,null,null,null,{"$f":"IF(OR(M81,AND(JePENB,Výjimka,M20)),\"Konec formuláře\",\"\")","v":""},null,null,true]
[null,"5.","Vyhodnocení plnění požadavků na energetickou náročnost",null,null,null,null,null,{"$f":"AND(OR(ZatepleníStěn,ZatepleníStřechy,ZatepleníPodlahy,VýměnaOken,VýměnaDveří,VýměnaSvětlíků),AND(M46,M54,M62,M69,M75,M81))","v":false}]
[null,null,"Vyplňte alespoň jedno opatření pro zateplení.",null,null,null,null,null,{"$f":"AND(NOT(OR(ZatepleníStěn,ZatepleníStřechy,ZatepleníPodlahy,VýměnaOken,VýměnaDveří,VýměnaSvětlíků)),M81,NOT(Výjimka))","v":false}]
[null,null,"Byla zvolena výměna zdroje tepla, ale list Zdroj není vyplněn.",null,null,null,null,null,{"$f":"AND(je_zdroj,NOT(Zdroj!L24))","v":false}]
[null,null,"Opatření pro zateplení splňují požadavky programu.",null,null,null,null,null,{"$f":"AND(NOT(I90),$I$85)","v":false}]
[null,null,"Nesrovnalosti v zadání spotřeby budovy podle PENB.",null,null,null,null,null,{"$f":"OR(N18,N20,N21)","v":false}]
[null,null,"Opatření pro zateplení nesplňují požadavky programu.",null,null,null,null,null,{"$f":"AND(OR(N49,N57,N65,N71,N77,N83),$I$85)","v":false}]
[null,null,null,null,null,null,null,null,{"$f":"AND(I88,NOT(I87))","v":false}]
[null,"6.","Bilance spotřeby energie před a po realizaci opatření (bez vlivu zdrojů tepla).",null,null,null,{"$f":"je_zdroj","v":false},null,{"$f":"I91","v":false}]
[null,null,"Konečná spotřeba energie",null,null,null,null,null,{"$f":"I92","v":false}]
[null,null,"Před zateplením",{"$f":"Bilance!E24","v":0},null,"kWh/rok",null,null,false]
[null,null,"Po zateplení",{"$f":"Bilance!F24","v":0},null,"kWh/rok",null,null,false]
[null,null,"Úspora",{"$f":"Bilance!G24","v":0},null,"kWh/rok",null,null,false]
[null,null,"Úspora",{"$f":"IFERROR(D96/D94,0)","v":0},null,"%",null,null,false]
[null,null,"Snížení emisí CO2",{"$f":"Bilance!M24","v":0},null,"kg/rok",null,null,false]
[null,null,"Úspora nákladů za energii Kč",{"$f":"Bilance!Y24","v":0},null,"Kč/rok",null,null,false]
[null,null,"Spotřeba primární energie",null,null,null,null,null,false]
[null,null,"Před zateplením",{"$f":"Bilance!H24","v":0},null,"kWh/rok",null,null,false]
[null,null,"Po zateplení",{"$f":"Bilance!I24","v":0},null,"kWh/rok",null,null,false]
[null,null,"Úspora",{"$f":"Bilance!J24","v":0},null,"kWh/rok",null,null,false]
[null,null,"Úspora",{"$f":"IFERROR(D103/D101,0)","v":0},null,"%",null,null,false]
[]
["Konec listu"]

{"sheet":"Rekuperace","index":2,"n_rows":11,"n_cols":19,"rows_kept":11,"cut":false,"hidden":true,"merged":[[8,2,8,3],[9,2,9,3],[0,4,1,4]]}
[null,"Rekuperace tepla"]
[]
[null,"1.","Základní informace o rekuperaci tepla",null,null,null,"Viditelnost","Hodnota buňky","Další řádek","Řádek OK","Průběžně OK","Porušení podmínek","Hlášení","Hláška č.","Hlášky…"]
[null,"1.1","Zadejte účinnost rekuperace systému nuceného větrání v %",null,{"$f":"IFERROR(INDEX(O4:S4,1,N4),\"\")","v":"Zadejte účinnost rekuperace."},null,true,{"$f":"G4*J4*D4","v":0},{"$f":"IF(J4,ROW(D5),ROW())","v":4},{"$f":"AND(NOT(ISBLANK(D4)),IF(NOT(ISBLANK(D4)),AND(D4>=0,D4<=1)))","v":false},{"$f":"AND(NOT(ISBLANK(D4)),IF(NOT(ISBLANK(D4)),AND(D4>=0,D4<=1)))","v":false},{"$f":"AND(J4,H4<MinEtaRekuperace)","v":false},{"$f":"\"Nesplňuje požadavky na účinnost rekuperace tepla, účinnost musí být alespoň \" & MinEtaRekuperace*100 & \" %.\"","v":"Nesplňuje požadavky na účinnost rekuperace tepla, účinnost musí být alespoň 67 %."},{"$f":"myidx(AND(J4,H4>=MinEtaRekuperace),ISBLANK(D4),NOT(ISNUMBER(D4)),D4<MinEtaRekuperace,OR(D4<0,D4>1))","v":2},"OK","Zadejte účinnost rekuperace.","Hodnota není číslo.",{"$f":"\"Nesplňuje požadavky na účinnost rekuperace, účinnost musí být alespoň \" & MinEtaRekuperace & \" %.\"","v":"Nesplňuje požadavky na účinnost rekuperace, účinnost musí být alespoň 0,67 %."},"Účinnost musí být v rozmezí 0 - 100 %."]
[null,"1.2","Zadejte větraný objem v m3/h",null,{"$f":"IFERROR(INDEX(O5:R5,1,N5),\"\")","v":"Zadejte větraný objem vzduchu."},null,{"$f":"AND(G4,K4)","v":false},0,5,{"$f":"AND(ISNUMBER(D5),IF(ISNUMBER(D5),D5>0))","v":false},{"$f":"AND(K4,J5)","v":false},null,null,{"$f":"myidx(J5,ISBLANK(D5),NOT(ISNUMBER(D5)),D5<=0)","v":2},"OK","Zadejte větraný objem vzduchu.","Hodnota není číslo.","Větrané množství vzduchu musí být kladné."]
[null,"1.3","Je toto opatření součástí PENB? Vyberte ano / ne",null,{"$f":"IFERROR(INDEX(O6:Q6,1,N6),\"\")","v":"OK"},null,{"$f":"AND(G5,K5,JePENB)","v":false},{"$f":"IF(AND(G6,J6),D6,\"\")","v":""},{"$f":"ROW()","v":6},{"$f":"OR(D6=ano,D6=ne,NOT(JePENB))","v":true},false,null,null,{"$f":"myidx(J6,ISBLANK(D6))","v":1},"OK","Vyberte ano nebo ne."]
[null,null,null,{"$f":"IF(K6=TRUE,\"Konec formuláře\",\"\")","v":""},null,null,true]
[null,"2.","Vyhodnocení rekuperace tepla",null,null,null,{"$f":"K6","v":false}]
[null,null,"Rekuperace tepla vyhovuje podmínkám programu.",null,null,null,{"$f":"AND(NOT(L4),K6)","v":false}]
[null,null,{"$f":"M4","v":"Nesplňuje požadavky na účinnost rekuperace tepla, účinnost musí být alespoň 67 %."},null,null,null,{"$f":"AND(L4,K6)","v":false}]
["Konec listu",null,null,null,null,null,true]

{"sheet":"Osvětlení","index":3,"n_rows":56,"n_cols":20,"rows_kept":56,"cut":false,"hidden":true,"merged":[[0,6,2,6]]}
[null,"Náhrada světelných zdrojů"]
[]
[null,"1","Jakého typu jsou stávající světelné zdroje?",null,null,null,null,"Viditelnost","Hodnota buňky","Další řádek","Řádek OK","Průběžně OK","Porušení podmínek","Hlášení","Hláška č.","Hlášky…"]
[null,"1.1","Jsou to klasické žárovky?","Vyberte ano / ne",null,{"$f":"IFERROR(INDEX(P4:Q4,1,O4),\"\")","v":"Vyberte ano nebo ne."},null,true,{"$f":"IF(AND(H4,K4,L4),E4,\"\")","v":""},{"$f":"IF(K4,IF(E4=ano,ROW(E5),ROW(E10)),ROW())","v":4},{"$f":"OR(E4=ano,E4=ne)","v":false},{"$f":"K4","v":false},null,null,{"$f":"myidx(AND(K4,L4),AND(E4<>ano,E4<>ne),NOT(L4))","v":2},"OK","Vyberte ano nebo ne."]
[null,"1.1.1","Jaký je jejich počet?",null,null,{"$f":"IFERROR(INDEX(P5:S5,1,O5),\"\")","v":"Zadejte jejich počet."},null,{"$f":"E4=ano","v":false},{"$f":"E5*H5*K5*L5","v":0},{"$f":"IF(K5,ROW(E6),ROW())","v":5},{"$f":"AND(ISNUMBER(E5),IF(ISNUMBER(E5),E5>0,FALSE))","v":false},{"$f":"K5","v":false},null,null,{"$f":"myidx(K5,ISBLANK(E5),NOT(ISNUMBER(E5)),E5<=0)","v":2},"OK","Zadejte jejich počet.","Hodnota není číslo.","Počet musí být kladný."]
[null,"1.1.2","Znáte celkový příkon všech klasických žárovek?","Vyberte ano / ne",null,{"$f":"IFERROR(INDEX(P6:Q6,1,O6),\"\")","v":"Vyberte ano nebo ne."},null,{"$f":"AND(H5,K5,L5)","v":false},{"$f":"IF(AND(H6,K6,L6),E6,\"\")","v":""},{"$f":"IF(K6,IF(E6=ano,ROW(E7),ROW(E8)),ROW())","v":6},{"$f":"OR(E6=ano,E6=ne)","v":false},{"$f":"K6","v":false},null,null,{"$f":"myidx(AND(K6,L6),AND(E6<>ano,E6<>ne),NOT(L6))","v":2},"OK","Vyberte ano nebo ne."]
[null,"1.1.3","Uveďte jejich celkový příkon","W",null,{"$f":"IFERROR(INDEX(P7:T7,1,O7),\"\")","v":"Zadejte celkový příkon klasických žárovek."},null,{"$f":"AND(E6=ano,H6,K6,L6)","v":false},{"$f":"E7*H7*K7*L7","v":0},{"$f":"IF(K7,ROW(E10),ROW())","v":7},{"$f":"IFERROR(AND(ISNUMBER(E7),IF(ISNUMBER(E7),AND(E7/E5>=ŽárovkaMin,E7/E5<=ŽárovkaMax),FALSE)),FALSE)","v":false},{"$f":"K7","v":false},null,null,{"$f":"myidx(K7,ISBLANK(E7),NOT(ISNUMBER(E7)),E7/E5 < ŽárovkaMin, E7/E5 > ŽárovkaMax)","v":2},"OK","Zadejte celkový příkon klasických žárovek.","Hodnota není číslo.",{"$f":"\"Příliš malý příkon, průměrný příkon klasické žárovky musí být alespoň \" & ŽárovkaMin & \" W.\"","v":"Příliš malý příkon, průměrný příkon klasické žárovky musí být alespoň 40 W."},{"$f":"\"Příliš velký příkon, průměrný příkon klasické žárovky může být nejvíce \" & ŽárovkaMax & \" W.\"","v":"Příliš velký příkon, průměrný příkon klasické žárovky může být nejvíce 1000 W."}]
[null,"1.1.4","Jaký je průměrný příkon klasických žárovek?","W",null,{"$f":"IFERROR(INDEX(P8:T8,1,O8),\"\")","v":"Zadejte průměrný příkon klasických žárovek."},null,{"$f":"AND(E6=ne,H6,K6,L6)","v":false},{"$f":"E8*H8*K8*L8","v":0},{"$f":"IF(K8,ROW(E10),ROW())","v":8},{"$f":"IFERROR(AND(ISNUMBER(E8),IF(ISNUMBER(E8),AND(E8>=ŽárovkaMin,E8<=ŽárovkaMax),FALSE)),FALSE)","v":false},{"$f":"K8","v":false},null,null,{"$f":"myidx(K8,ISBLANK(E8),NOT(ISNUMBER(E8)),E8 < ŽárovkaMin, E8 > ŽárovkaMax)","v":2},"OK","Zadejte průměrný příkon klasických žárovek.","Hodnota není číslo.",{"$f":"\"Příliš malý příkon, průměrný příkon žárovky musí být alespoň \" & ŽárovkaMin & \" W.\"","v":"Příliš malý příkon, průměrný příkon žárovky musí být alespoň 40 W."},{"$f":"\"Příliš velký příkon, průměrný příkon žárovky může být nejvíce \" & ŽárovkaMax & \" W.\"","v":"Příliš velký příkon, průměrný příkon žárovky může být nejvíce 1000 W."}]
[null,null,null,null,null,null,null,true,null,null,{"$f":"OR(E4=ne,AND(K4,K5,E6=ano,K7),AND(K4,K5,E6=ne,K8))","v":false},{"$f":"IFERROR(K9*(I8+I7/I5),0)","v":0},null,null,{"$f":"IFERROR(SIGN(L9)*E5*VLOOKUP(L9,TOsvětlení[[klasika]:[příkon led]],6,1),0)","v":0}]
[null,"1.2","Halogenové žárovky","Vyberte ano / ne",null,{"$f":"IFERROR(INDEX(P10:Q10,1,O10),\"\")","v":"Vyberte ano nebo ne."},null,true,{"$f":"IF(AND(H10,K10,L10),E10,\"\")","v":""},{"$f":"IF(K10,IF(E10=ano,ROW(E11),ROW(E16)),ROW())","v":10},{"$f":"OR(E10=ano,E10=ne)","v":false},{"$f":"K10","v":false},null,null,{"$f":"myidx(AND(K10,L10),AND(E10<>ano,E10<>ne),NOT(L10))","v":2},"OK","Vyberte ano nebo ne."]
[null,"1.2.1","Jaký je jejich počet?",null,null,{"$f":"IFERROR(INDEX(P11:S11,1,O11),\"\")","v":"Zadejte jejich počet."},null,{"$f":"E10=ano","v":false},{"$f":"E11*H11*K11*L11","v":0},{"$f":"IF(K11,ROW(E12),ROW())","v":11},{"$f":"AND(ISNUMBER(E11),IF(ISNUMBER(E11),E11>0,FALSE))","v":false},{"$f":"K11","v":false},null,null,{"$f":"myidx(K11,ISBLANK(E11),NOT(ISNUMBER(E11)),E11<=0)","v":2},"OK","Zadejte jejich počet.","Hodnota není číslo.","Počet musí být kladný."]
[null,"1.2.2","Znáte celkový příkon všech halogenových žárovek?","Vyberte ano / ne",null,{"$f":"IFERROR(INDEX(P12:Q12,1,O12),\"\")","v":"Vyberte ano nebo ne."},null,{"$f":"AND(H11,K11,L11)","v":false},{"$f":"IF(AND(H12,K12,L12),E12,\"\")","v":""},{"$f":"IF(K12,IF(E12=ano,ROW(E13),ROW(E14)),ROW())","v":12},{"$f":"OR(E12=ano,E12=ne)","v":false},{"$f":"K12","v":false},null,null,{"$f":"myidx(AND(K12,L12),AND(E12<>ano,E12<>ne),NOT(L12))","v":2},"OK","Vyberte ano nebo ne."]
[null,"1.2.3","Uveďte jejich celkový příkon","W",null,{"$f":"IFERROR(INDEX(P13:T13,1,O13),\"\")","v":"Zadejte celkový příkon hlogenových žárovek."},null,{"$f":"AND(E12=ano,H12,K12,L12)","v":false},{"$f":"E13*H13*K13*L13","v":0},{"$f":"IF(K13,ROW(E16),ROW())","v":13},{"$f":"IFERROR(AND(ISNUMBER(E13),IF(ISNUMBER(E13),AND(E13/E11>=HalogenMin,E13/E11<=HalogenMax),FALSE)),FALSE)","v":false},{"$f":"K13","v":false},null,null,{"$f":"myidx(K13,ISBLANK(E13),NOT(ISNUMBER(E13)),E13/E11 < HalogenMin, E13/E11 > HalogenMax)","v":2},"OK","Zadejte celkový příkon hlogenových žárovek.","Hodnota není číslo.",{"$f":"\"Příliš malý příkon, průměrný příkon halogenové žárovky musí být alespoň \" & HalogenMin & \" W.\"","v":"Příliš malý příkon, průměrný příkon halogenové žárovky musí být alespoň 30 W."},{"$f":"\"Příliš velký příkon, průměrný příkon halogenové žárovky může být nejvíce \" & HalogenMax & \" W.\"","v":"Příliš velký příkon, průměrný příkon halogenové žárovky může být nejvíce 500 W."}]
[null,"1.2.4","Jaký je průměrný příkon halogenových žárovek?","W",null,{"$f":"IFERROR(INDEX(P14:T14,1,O14),\"\")","v":"Zadejte průměrný příkon halogenových žárovek."},null,{"$f":"AND(E12=ne,H12,K12,L12)","v":false},{"$f":"E14*H14*K14*L14","v":0},{"$f":"IF(K14,ROW(E16),ROW())","v":14},{"$f":"IFERROR(AND(ISNUMBER(E14),IF(ISNUMBER(E14),AND(E14>=HalogenMin,E14<=HalogenMax),FALSE)),FALSE)","v":false},{"$f":"K14","v":false},null,null,{"$f":"myidx(K14,ISBLANK(E14),NOT(ISNUMBER(E14)),E14 < HalogenMin, E14 > HalogenMax)","v":2},"OK","Zadejte průměrný příkon halogenových žárovek.","Hodnota není číslo.",{"$f":"\"Příliš malý příkon, průměrný příkon halogenové žárovky musí být alespoň \" & HalogenMin & \" W.\"","v":"Příliš malý příkon, průměrný příkon halogenové žárovky musí být alespoň 30 W."},{"$f":"\"Příliš velký příkon, průměrný příkon halogenové žárovky může být nejvíce \" & HalogenMax & \" W.\"","v":"Příliš velký příkon, průměrný příkon halogenové žárovky může být nejvíce 500 W."}]
[null,null,null,null,null,null,null,true,null,null,{"$f":"OR(E10=ne,AND(K10,K11,E12=ano,K13),AND(K10,K11,E12=ne,K14))","v":false},{"$f":"IFERROR(K15*(I14+I13/I11),0)","v":0},null,null,{"$f":"IFERROR(SIGN(L15)*E11*VLOOKUP(L15,TOsvětlení[[halogen]:[příkon led]],5,1),0)","v":0}]
[null,"1.3","Zářivky","Vyberte ano / ne",null,{"$f":"IFERROR(INDEX(P16:Q16,1,O16),\"\")","v":"Vyberte ano nebo ne."},null,true,{"$f":"IF(AND(H16,K16,L16),E16,\"\")","v":""},{"$f":"IF(K16,IF(E16=ano,ROW(E17),ROW(E22)),ROW())","v":16},{"$f":"OR(E16=ano,E16=ne)","v":false},{"$f":"K16","v":false},null,null,{"$f":"myidx(AND(K16,L16),AND(E16<>ano,E16<>ne),NOT(L16))","v":2},"OK","Vyberte ano nebo ne."]
[null,"1.3.1","Jaký je jejich počet?",null,null,{"$f":"IFERROR(INDEX(P17:S17,1,O17),\"\")","v":"Zadejte jejich počet."},null,{"$f":"E16=ano","v":false},{"$f":"E17*H17*K17*L17","v":0},{"$f":"IF(K17,ROW(E18),ROW())","v":17},{"$f":"AND(ISNUMBER(E17),IF(ISNUMBER(E17),E17>0,FALSE))","v":false},{"$f":"K17","v":false},null,null,{"$f":"myidx(K17,ISBLANK(E17),NOT(ISNUMBER(E17)),E17<=0)","v":2},"OK","Zadejte jejich počet.","Hodnota není číslo.","Počet musí být kladný."]
[null,"1.3.2","Znáte celkový příkon všech zářivek?","Vyberte ano / ne",null,{"$f":"IFERROR(INDEX(P18:Q18,1,O18),\"\")","v":"Vyberte ano nebo ne."},null,{"$f":"AND(H17,K17,L17)","v":false},{"$f":"IF(AND(H18,K18,L18),E18,\"\")","v":""},{"$f":"IF(K18,IF(E18=ano,ROW(E19),ROW(E20)),ROW())","v":18},{"$f":"OR(E18=ano,E18=ne)","v":false},{"$f":"K18","v":false},null,null,{"$f":"myidx(AND(K18,L18),AND(E18<>ano,E18<>ne),NOT(L18))","v":2},"OK","Vyberte ano nebo ne."]
[null,"1.3.3","Uveďte jejich celkový příkon","W",null,{"$f":"IFERROR(INDEX(P19:T19,1,O19),\"\")","v":"Zadejte celkový příkon zářivek."},null,{"$f":"AND(E18=ano,H18,K18,L18)","v":false},{"$f":"E19*H19*K19*L19","v":0},{"$f":"IF(K19,ROW(E22),ROW())","v":19},{"$f":"IFERROR(AND(ISNUMBER(E19),IF(ISNUMBER(E19),AND(E19/E17>=ZářivkaMin,E19/E17<=ZářivkaMax),FALSE)),FALSE)","v":false},{"$f":"K19","v":false},null,null,{"$f":"myidx(K19,ISBLANK(E19),NOT(ISNUMBER(E19)),E19/E17 < ZářivkaMin, E19/E17 > ZářivkaMax)","v":2},"OK","Zadejte celkový příkon zářivek.","Hodnota není číslo.",{"$f":"\"Příliš malý příkon, průměrný příkon zářivky musí být alespoň \" & ZářivkaMin & \" W.\"","v":"Příliš malý příkon, průměrný příkon zářivky musí být alespoň 4 W."},{"$f":"\"Příliš velký příkon, průměrný příkon zářivky může být nejvíce \" & ZářivkaMax & \" W.\"","v":"Příliš velký příkon, průměrný příkon zářivky může být nejvíce 500 W."}]
[null,"1.3.4","Jaký je průměrný příkon zářivek?","W",null,{"$f":"IFERROR(INDEX(P20:T20,1,O20),\"\")","v":"Zadejte průměrný příkon zářivek."},null,{"$f":"AND(E18=ne,H18,K18,L18)","v":false},{"$f":"E20*H20*K20*L20","v":0},{"$f":"IF(K20,ROW(E22),ROW())","v":20},{"$f":"IFERROR(AND(ISNUMBER(E20),IF(ISNUMBER(E20),AND(E20>=RtuťovkaMin,E20<=RtuťovkaMax),FALSE)),FALSE)","v":false},{"$f":"K20","v":false},null,null,{"$f":"myidx(K20,ISBLANK(E20),NOT(ISNUMBER(E20)),E20 < ZářivkaMin, E20 > ZářivkaMax)","v":2},"OK","Zadejte průměrný příkon zářivek.","Hodnota není číslo.",{"$f":"\"Příliš malý příkon, průměrný příkon zářivky musí být alespoň \" & ZářivkaMin & \" W.\"","v":"Příliš malý příkon, průměrný příkon zářivky musí být alespoň 4 W."},{"$f":"\"Příliš velký příkon, průměrný příkon zářivky může být nejvíce \" & ZářivkaMax & \" W.\"","v":"Příliš velký příkon, průměrný příkon zářivky může být nejvíce 500 W."}]
[null,null,null,null,null,null,null,true,null,null,{"$f":"OR(E16=ne,AND(K16,K17,E18=ano,K19),AND(K16,K17,E18=ne,K20))","v":false},{"$f":"IFERROR(K21*(I20+I19/I17),0)","v":0},null,null,{"$f":"IFERROR(SIGN(L21)*E17*VLOOKUP(L21,TOsvětlení[[zářivka]:[příkon led]],2,1),0)","v":0}]
[null,"1.4.","Rtuťové výbojky","Vyberte ano / ne",null,{"$f":"IFERROR(INDEX(P22:Q22,1,O22),\"\")","v":"Vyberte ano nebo ne."},null,true,{"$f":"IF(AND(H22,K22,L22),E22,\"\")","v":""},{"$f":"IF(K22,IF(E22=ano,ROW(E23),ROW(E28)),ROW())","v":22},{"$f":"OR(E22=ano,E22=ne)","v":false},{"$f":"K22","v":false},null,null,{"$f":"myidx(AND(K22,L22),AND(E22<>ano,E22<>ne),NOT(L22))","v":2},"OK","Vyberte ano nebo ne."]
[null,"1.4.1","Jaký je jejich počet?",null,null,{"$f":"IFERROR(INDEX(P23:S23,1,O23),\"\")","v":"Zadejte jejich počet."},null,{"$f":"E22=ano","v":false},{"$f":"E23*H23*K23*L23","v":0},{"$f":"IF(K23,ROW(E24),ROW())","v":23},{"$f":"AND(ISNUMBER(E23),IF(ISNUMBER(E23),E23>0,FALSE))","v":false},{"$f":"K23","v":false},null,null,{"$f":"myidx(K23,ISBLANK(E23),NOT(ISNUMBER(E23)),E23<=0)","v":2},"OK","Zadejte jejich počet.","Hodnota není číslo.","Počet musí být kladný."]
[null,"1.4.2","Znáte celkový příkon všech rtuťových výbojek?","Vyberte ano / ne",null,{"$f":"IFERROR(INDEX(P24:Q24,1,O24),\"\")","v":"Vyberte ano nebo ne."},null,{"$f":"AND(H23,K23,L23)","v":false},{"$f":"IF(AND(H24,K24,L24),E24,\"\")","v":""},{"$f":"IF(K24,IF(E24=ano,ROW(E25),ROW(E26)),ROW())","v":24},{"$f":"OR(E24=ano,E24=ne)","v":false},{"$f":"K24","v":false},null,null,{"$f":"myidx(AND(K24,L24),AND(E24<>ano,E24<>ne),NOT(L24))","v":2},"OK","Vyberte ano nebo ne."]
[null,"1.4.3","Uveďte jejich celkový příkon","W",null,{"$f":"IFERROR(INDEX(P25:T25,1,O25),\"\")","v":"Zadejte celkový příkon rtuťových výbojek."},null,{"$f":"AND(E24=ano,H24,K24,L24)","v":false},{"$f":"E25*H25*K25*L25","v":0},{"$f":"IF(K25,ROW(E28),ROW())","v":25},{"$f":"IFERROR(AND(ISNUMBER(E25),IF(ISNUMBER(E25),AND(E25/E23>=RtuťovkaMin,E25/E23<=RtuťovkaMax),FALSE)),FALSE)","v":false},{"$f":"K25","v":false},null,null,{"$f":"myidx(K25,ISBLANK(E25),NOT(ISNUMBER(E25)),E25/E23 < RtuťovkaMin, E25/E23 > RtuťovkaMax)","v":2},"OK","Zadejte celkový příkon rtuťových výbojek.","Hodnota není číslo.",{"$f":"\"Příliš malý příkon, průměrný příkon rtuťové výbojky musí být alespoň \" & RtuťovkaMin & \" W.\"","v":"Příliš malý příkon, průměrný příkon rtuťové výbojky musí být alespoň 7 W."},{"$f":"\"Příliš velký příkon, průměrný příkon rtuťové výbojky může být nejvíce \" & RtuťovkaMax & \" W.\"","v":"Příliš velký příkon, průměrný příkon rtuťové výbojky může být nejvíce 500 W."}]
[null,"1.4.4","Jaký je průměrný příkon rtuťových výbojek?","W",null,{"$f":"IFERROR(INDEX(P26:T26,1,O26),\"\")","v":"Zadejte průměrný příkon rtuťových výbojek."},null,{"$f":"AND(E24=ne,H24,K24,L24)","v":false},{"$f":"E26*H26*K26*L26","v":0},{"$f":"IF(K26,ROW(E28),ROW())","v":26},{"$f":"IFERROR(AND(ISNUMBER(E26),IF(ISNUMBER(E26),AND(E26>=RtuťovkaMin,E26<=RtuťovkaMax),FALSE)),FALSE)","v":false},{"$f":"K26","v":false},null,null,{"$f":"myidx(K26,ISBLANK(E26),NOT(ISNUMBER(E26)),E26 < RtuťovkaMin, E26 > RtuťovkaMax)","v":2},"OK","Zadejte průměrný příkon rtuťových výbojek.","Hodnota není číslo.",{"$f":"\"Příliš malý příkon, průměrný příkon rtuťové výbojky musí být alespoň \" & RtuťovkaMin & \" W.\"","v":"Příliš malý příkon, průměrný příkon rtuťové výbojky musí být alespoň 7 W."},{"$f":"\"Příliš velký příkon, průměrný příkon rtuťové výbojky může být nejvíce \" & RtuťovkaMax & \" W.\"","v":"Příliš velký příkon, průměrný příkon rtuťové výbojky může být nejvíce 500 W."}]
[null,null,null,null,null,null,null,true,null,null,{"$f":"OR(E22=ne,AND(K22,K23,E24=ano,K25),AND(K22,K23,E24=ne,K26))","v":false},{"$f":"IFERROR(K27*(I26+I25/I23),0)","v":0},null,null,{"$f":"IFERROR(SIGN(L27)*E23*VLOOKUP(L27,TOsvětlení[[výbojka]:[příkon led]],4,1),0)","v":0}]
[null,"1.5","Kompaktní zářivky (CFL)","Vyberte ano / ne",null,{"$f":"IFERROR(INDEX(P28:Q28,1,O28),\"\")","v":"Vyberte ano nebo ne."},null,true,{"$f":"IF(AND(H28,K28,L28),E28,\"\")","v":""},{"$f":"IF(K28,IF(E28=ano,ROW(E29),ROW(E35)),ROW())","v":28},{"$f":"OR(E28=ano,E28=ne)","v":false},{"$f":"K28","v":false},null,null,{"$f":"myidx(AND(K28,L28),AND(E28<>ano,E28<>ne),NOT(L28))","v":2},"OK","Vyberte ano nebo ne."]
[null,"1.5.1","Jaký je jejich počet?",null,null,{"$f":"IFERROR(INDEX(P29:S29,1,O29),\"\")","v":"Zadejte jejich počet."},null,{"$f":"E28=ano","v":false},{"$f":"E29*H29*K29*L29","v":0},{"$f":"IF(K29,ROW(E30),ROW())","v":29},{"$f":"AND(ISNUMBER(E29),IF(ISNUMBER(E29),E29>0,FALSE))","v":false},{"$f":"K29","v":false},null,null,{"$f":"myidx(K29,ISBLANK(E29),NOT(ISNUMBER(E29)),E29<=0)","v":2},"OK","Zadejte jejich počet.","Hodnota není číslo.","Počet musí být kladný."]
[null,"1.5.2","Znáte celkový příkon všech kompaktních zářivek?","Vyberte ano / ne",null,{"$f":"IFERROR(INDEX(P30:Q30,1,O30),\"\")","v":"Vyberte ano nebo ne."},null,{"$f":"AND(H29,K29,L29)","v":false},{"$f":"IF(AND(H30,K30,L30),E30,\"\")","v":""},{"$f":"IF(K30,IF(E30=ano,ROW(E31),ROW(E32)),ROW())","v":30},{"$f":"OR(E30=ano,E30=ne)","v":false},{"$f":"K30","v":false},null,null,{"$f":"myidx(AND(K30,L30),AND(E30<>ano,E30<>ne),NOT(L30))","v":2},"OK","Vyberte ano nebo ne."]
[null,"1.5.3","Uveďte jejich celkový příkon","W",null,{"$f":"IFERROR(INDEX(P31:T31,1,O31),\"\")","v":"Zadejte celkový příkon kompaktních zářivek."},null,{"$f":"AND(E30=ano,H30,K30,L30)","v":false},{"$f":"E31*H31*K31*L31","v":0},{"$f":"IF(K31,ROW(E35),ROW())","v":31},{"$f":"IFERROR(AND(ISNUMBER(E31),IF(ISNUMBER(E31),AND(E31/E29>=CFLMin,E31/E29<=CFLMax),FALSE)),FALSE)","v":false},{"$f":"K31","v":false},null,null,{"$f":"myidx(K31,ISBLANK(E31),NOT(ISNUMBER(E31)),E31/E29 < CFLMin, E31/E29 > CFLMax)","v":2},"OK","Zadejte celkový příkon kompaktních zářivek.","Hodnota není číslo.",{"$f":"\"Příliš malý příkon, průměrný příkon kompaktní zářivky musí být alespoň \" & CFLMin & \" W.\"","v":"Příliš malý příkon, průměrný příkon kompaktní zářivky musí být alespoň 5 W."},{"$f":"\"Příliš velký příkon, průměrný příkon kompaktní zářivky může být nejvíce \" & CFLMax & \" W.\"","v":"Příliš velký příkon, průměrný příkon kompaktní zářivky může být nejvíce 500 W."}]
[null,"1.5.4","Jaký je průměrný příkon kompaktních zářivek?","W",null,{"$f":"IFERROR(INDEX(P32:T32,1,O32),\"\")","v":"Zadejte průměrný příkon kompaktních zářivek."},null,{"$f":"AND(E30=ne,H30,K30,L30)","v":false},{"$f":"E32*H32*K32*L32","v":0},{"$f":"IF(K32,ROW(E35),ROW())","v":32},{"$f":"IFERROR(AND(ISNUMBER(E32),IF(ISNUMBER(E32),AND(E32>=CFLMin,E32<=CFLMax),FALSE)),FALSE)","v":false},{"$f":"K32","v":false},null,null,{"$f":"myidx(K32,ISBLANK(E32),NOT(ISNUMBER(E32)),E32 < CFLMin, E32 > CFLMax)","v":2},"OK","Zadejte průměrný příkon kompaktních zářivek.","Hodnota není číslo.",{"$f":"\"Příliš malý příkon, průměrný příkon kompaktní zářivky musí být alespoň \" & CFLMin & \" W.\"","v":"Příliš malý příkon, průměrný příkon kompaktní zářivky musí být alespoň 5 W."},{"$f":"\"Příliš velký příkon, průměrný příkon kompaktní zářivky může být nejvíce \" & CFLMax & \" W.\"","v":"Příliš velký příkon, průměrný příkon kompaktní zářivky může být nejvíce 500 W."}]
[null,null,null,null,null,null,null,true,null,null,{"$f":"OR(E28=ne,AND(K28,K29,E30=ano,K31),AND(K28,K29,E30=ne,K32))","v":false},{"$f":"IFERROR(K33*(I32+I31/I29),0)","v":0},null,null,{"$f":"IFERROR(SIGN(L33)*E29*VLOOKUP(L33,TOsvětlení[[CFL]:[příkon led]],3,1),0)","v":0}]
[null,"2","Stávající spotřeba elektřiny",null,null,null,null,{"$f":"AND(K9,K15,K21,K27,K33,OR(E4=ano,E10=ano,E16=ano,E22=ano,E28=ano))","v":false}]
[null,"2.1","Znáte celkovou spotřebu elektřiny všech světelných zdrojů?","Vyberte ano / ne",null,{"$f":"IFERROR(INDEX(P35:Q35,1,O35),\"\")","v":"Vyberte ano nebo ne."},null,{"$f":"H34","v":false},{"$f":"IF(AND(H35,K35,L35),E35,\"\")","v":""},{"$f":"IF(K35,IF(E35=ano,ROW(E36),ROW(E37)),ROW())","v":35},{"$f":"OR(E35=ano,E35=ne)","v":false},{"$f":"K35","v":false},null,null,{"$f":"myidx(AND(K35,L35),AND(E35<>ano,E35<>ne),NOT(L35))","v":2},"OK","Vyberte ano nebo ne."]
[null,"2.1.1","Uveďte spotřebu elektřiny","kWh",null,{"$f":"IFERROR(INDEX(P36:T36,1,O36),\"\")","v":"Zadejte celkovou spotřebu elekřiny na osvětlení."},null,{"$f":"AND(E35=ano,H35,K35,L35)","v":false},{"$f":"E36*H36*K36*L36","v":0},{"$f":"IF(K36,ROW(E37),ROW())","v":36},{"$f":"AND(ISNUMBER(E36),IF(ISNUMBER(E36),E36>0,FALSE))","v":false},{"$f":"K36","v":false},null,null,{"$f":"myidx(K36,ISBLANK(E36),NOT(ISNUMBER(E36)),E36<=0)","v":2},"OK","Zadejte celkovou spotřebu elekřiny na osvětlení.","Hodnota není číslo.","Hodnota musí být kladná."]
[null,"2.2","Kolik hodin denně jsou v průměru zapnuté všechny světelné zdroje?","h",null,{"$f":"IFERROR(INDEX(P37:T37,1,O37),\"\")","v":"Zadejte počet hodin."},null,{"$f":"AND(H35,K35,L35)","v":false},{"$f":"E37*H37*K37*L37","v":0},{"$f":"IF(K37,ROW(E38),ROW())","v":37},{"$f":"AND(ISNUMBER(E37),IF(ISNUMBER(E37),AND(E37>=0,E37<=24),FALSE))","v":false},{"$f":"K37","v":false},null,null,{"$f":"myidx(K37,ISBLANK(E37),NOT(ISNUMBER(E37)),OR(E37<0,E37>24))","v":2},"OK","Zadejte počet hodin.","Hodnota není číslo.","Hodnota musí být v rozsahu 0 - 24."]
[null,"2.2","Jaký je počet uvažovaných pracovních dní za rok?","d",null,{"$f":"IFERROR(INDEX(P38:T38,1,O38),\"\")","v":"Zadejte počet dní."},null,{"$f":"AND(H37,K37,L37)","v":false},{"$f":"E38*H38*K38*L38","v":0},{"$f":"IF(K38,IF(JePENB,ROW(E40),ROW(E38)),ROW())","v":38},{"$f":"AND(ISNUMBER(E38),IF(ISNUMBER(E38),AND(E38>=1,E38<=365),FALSE))","v":false},{"$f":"K38","v":false},null,null,{"$f":"myidx(K38,ISBLANK(E38),NOT(ISNUMBER(E38)),OR(E38<1,E38>365))","v":2},"OK","Zadejte počet dní.","Hodnota není číslo.","Hodnota musí být v rozsahu 1 - 365."]
[null,"3","PENB",null,null,null,null,{"$f":"H40","v":false}]
[null,"3.1","Je výměna osvětlení zahrnuta v PENB?","Vyberte ano/ne",null,{"$f":"IFERROR(INDEX(P40:Q40,1,O40),\"\")","v":"Vyberte ano nebo ne."},null,{"$f":"AND(JePENB,H38,K38,L38)","v":false},{"$f":"IF(AND(H40,K40,L40),E40,\"\")","v":""},{"$f":"ROW()","v":40},{"$f":"OR(E40=ano,E40=ne)","v":false},{"$f":"AND(L38,K40)","v":false},null,null,{"$f":"myidx(AND(K40,L40),AND(E40<>ano,E40<>ne),NOT(L40))","v":2},"OK","Vyberte ano nebo ne."]
[null,null,null,{"$f":"IFERROR(IF(L41,\"Konec formuláře\",\"\"),\"\")","v":""},null,{"$f":"IF(AND(E4=ne,E10=ne,E16=ne,E22=ne,E28=ne),\"Nebyl vybrán žádný světelný zdroj.\",\"\")","v":""},null,true,null,null,null,{"$f":"IF(JePENB,L40,L38)","v":false}]
[null,"4","Bilance spotřeby energie před výměnou po výměně světelných zdrojů",null,null,null,null,{"$f":"$L$41","v":false}]
[null,null,"Spotřeba elektrické energie",null,null,null,null,false]
[null,null,"Spotřeba před výměnou světlených zdrojů",{"$f":"IF(E35=ano,E36,(I7+I13+I19+I25+I31+I5*I8+I11*I14+I17*I20+I23*I26+I29*I32)*E37*E38/1000)","v":0},"kWh",null,null,false]
[null,null,"Spotřeba po výměně světelných zdrojů",{"$f":"E37*E38/1000*(O9+O15+O21+O27+O33)","v":0},"kWh",null,null,false]
[null,null,"Úspora",{"$f":"D44-D45","v":0},"kWh",null,null,false]
[null,null,"Úspora",{"$f":"IFERROR(D46/D44,0)","v":0},"%",null,null,false]
[null,null,"Snížení emisí  CO2",{"$f":"Bilance!M20","v":0},"kg",null,null,false]
[null,null,"Úsporá nákladů za energii Kč",{"$f":"Bilance!Y20","v":0},"Kč",null,null,false]
[null,null,"Neobnovitelná primární energie",null,null,null,null,false]
[null,null,"Spotřeba před výměnou světlených zdrojů",{"$f":"Bilance!H20","v":0},"kWh",null,null,false]
[null,null,"Spotřeba po výměně světelných zdrojů",{"$f":"Bilance!I20","v":0},"kWh",null,null,false]
[null,null,"Úspora",{"$f":"D51-D52","v":0},"kWh",null,null,false]
[null,null,"Úspora",{"$f":"IFERROR(D53/D51,0)","v":0},"%",null,null,false]
[null,null,null,null,null,null,null,false]
[null,"Konec listu"]

{"sheet":"Zdroj","index":4,"n_rows":49,"n_cols":20,"rows_kept":49,"cut":false,"hidden":true,"merged":[[32,2,32,4],[28,2,28,4],[31,2,31,4],[29,2,29,4],[30,2,30,4]]}
[null,"Výměna zdroje tepla"]
[]
[null,"1","Parametry stávajícího zdroje tepla",null,null,null,null,"Viditelnost","Hodnota buňky","Další řádek","Řádek OK","Průběžně OK","Porušení podmínek","Hlášení","Hláška č.","Hlášky…"]
[null,"1.1","O jaký typ zdroje se jedná?","Vyberte",null,{"$f":"IFERROR(INDEX(P4:R4,1,O4),\"\")","v":"Vyberte typ zdroje."},null,true,{"$f":"IF(AND(H4,K4),E4,\"\")","v":""},{"$f":"IF(K4,ROW(E5),ROW(E4))","v":4},{"$f":"NOT(ISBLANK(E4))","v":false},{"$f":"K4","v":false},null,null,{"$f":"myidx(AND(K4),ISBLANK(E4))","v":2},"OK","Vyberte typ zdroje."]
[null,"1.2","V jakém období byl zdroj vyroben?","Vyberte",null,{"$f":"IFERROR(INDEX(P5:R5,1,O5),\"\")","v":"Vyberte období."},null,{"$f":"AND(L4,H4)","v":false},{"$f":"IF(AND(H5,K5),E5,\"\")","v":""},{"$f":"IF(K5,IF(ZdrojPočetPaliv=1,ROW(E7)+IF(ZdrojPočetPaliv=6,0,1),ROW(E6)),ROW(E5))","v":5},{"$f":"NOT(ISBLANK(E5))","v":false},{"$f":"AND(K5,$L$4:L4)","v":false},null,null,{"$f":"myidx(AND(K5),ISBLANK(E5))","v":2},"OK","Vyberte období."]
[null,"1.3","Jaké se používá palivo?","Vyberte",null,{"$f":"IF(O6>0,INDEX(P6:R6,1,O6),\"\")","v":"Vyberte palivo."},null,{"$f":"AND(L5,H5,ZdrojPočetPaliv>1)","v":false},{"$f":"IF(K6,IF(ZdrojPočetPaliv=1,INDEX(ParametryZdroje!$B$8:$G$8,1,ZdrojIdxOld),E6),\"\")","v":""},{"$f":"IF(K6,IF(ZdrojIdxOld=6,ROW(E7),ROW(E8)),ROW(E6))","v":6},{"$f":"OR(ZdrojPočetPaliv=1,AND(ZdrojPočetPaliv>1,INDEX(ParametryZdroje!$B$6:$G$6,1,ZdrojIdxOld)))","v":false},{"$f":"AND(K6,$L$4:L5)","v":false},null,null,{"$f":"myidx(AND(K6),ISBLANK(E6),AND(ZdrojPočetPaliv>1,NOT(INDEX(ParametryZdroje!$B$6:$G$6,1,ZdrojIdxOld))))","v":2},"OK",{"$f":"IF(ZdrojIdxOld=6,\"Vyberte palivo zdroje SZT. Pokud nevíte, zvolte \"\"zemní plyn\"\".\",\"Vyberte palivo.\")","v":"Vyberte palivo."},"Nesprávné palivo."]
[null,"1.4","Jak účinná je soustava zásobování teplem (SZT)?","Vyberte",null,{"$f":"IFERROR(INDEX(P7:R7,1,O7),\"\")","v":"OK"},null,{"$f":"AND(L6,ZdrojIdxOld=6,OR(H6,ZdrojPočetPaliv=1))","v":false},{"$f":"IF(AND(K7,ZdrojIdxOld=6),E7,\"\")","v":""},{"$f":"IF(K7,ROW(E8),ROW(E7))","v":8},{"$f":"OR(ZdrojIdxOld<>6,NOT(ISBLANK(E7)))","v":true},{"$f":"AND(K7,$L$4:L6)","v":false},null,null,{"$f":"myidx(AND(K7),ISBLANK(E7))","v":1},"OK","Vyberte typ soustavy. Pokud nevíte, zvolte \"ostatní SZT\"."]
[null,"1.5",{"$f":"\"Jaká je spotřeba \" & ParametryZdroje!N6  & \" za jeden rok?\"","v":"Jaká je spotřeba  za jeden rok?"},{"$f":"ParametryZdroje!N5","v":""},null,{"$f":"IFERROR(INDEX(P8:S8,1,O8),\"\")","v":"Zadejte spotřebu."},null,{"$f":"AND(L7,OR(ZdrojPočetPaliv=1,H6),OR(ZdrojIdxOld<>6,H7))","v":false},{"$f":"H8*K8*E8","v":0},{"$f":"IF(K8,IF(ZdrojIdxOld<5,ROW(E9),IF(ZdrojIdxOld=5,ROW(E11),ROW(E16))),ROW(E8))","v":8},{"$f":"AND(ISNUMBER(E8),IF(ISNUMBER(E8),E8>0,FALSE))","v":false},{"$f":"AND(K8,$L$4:L7)","v":false},null,null,{"$f":"myidx(AND(K8),ISBLANK(E8),NOT(ISNUMBER(E8)),E8<=0)","v":2},"OK","Zadejte spotřebu.","Hodnota není číslo.","Spotřeba musí být kladná."]
[null,"1.6","Znáte účinnost zdroje?","Vyberte ano/ne",null,{"$f":"IFERROR(INDEX(P9:R9,1,O9),\"\")","v":"Vyberte ano nebo ne."},null,{"$f":"AND(L8,H8,ZdrojIdxOld<5)","v":false},{"$f":"IF(AND(H9,K9),E9,\"\")","v":""},{"$f":"IF(K9,IF(E9=\"ano\",ROW(E10),ROW(E13)),ROW(E9))","v":9},{"$f":"OR(ZdrojIdxOld>=5,E9=\"ano\",E9=\"ne\")","v":false},{"$f":"AND(K9,$L$4:L8)","v":false},null,null,{"$f":"myidx(AND(K9),ISBLANK(E9))","v":2},"OK","Vyberte ano nebo ne."]
[null,"1.7","Jaká je účinnost?","Zatejte v %",null,{"$f":"IFERROR(INDEX(P10:T10,1,O10),\"\")","v":"Zadejte účinnost."},null,{"$f":"AND(L9,H9,E9=\"ano\")","v":false},{"$f":"IF(AND(ZdrojIdxOld<5,E9=\"ano\"),H10*K10*E10,IF(AND(ZdrojIdxOld<>5,E9=\"ne\"),ETAZdrOld,0))","v":0},{"$f":"IF(K10,ROW(E13),ROW(E10))","v":10},{"$f":"OR(ZdrojIdxOld>=5,E9=\"ne\",AND(ISNUMBER(E10),IF(ISNUMBER(E10),AND(E10>=0,E10<=0.995),FALSE)))","v":false},{"$f":"AND(K10,$L$4:L9)","v":false},null,null,{"$f":"myidx(AND(K10),ISBLANK(E10),NOT(ISNUMBER(E10)),E10<0,E10>0.995)","v":2},"OK","Zadejte účinnost.","Hodnota není číslo.",{"$f":"\"Účinnost musí být alespoň \" & 100 * MinEtaZdrOld & \" %.\"","v":"Účinnost musí být alespoň 5 %."},{"$f":"\"Účinnost může být maximálně \" & 100 * MaxEtaZdrOld & \" %.\"","v":"Účinnost může být maximálně 95 %."}]
[null,"1.8","Znáte sezónní účinnost (COP) tepelného čerpadla?","Vyberte ano / ne",null,{"$f":"IFERROR(INDEX(P11:R11,1,O11),\"\")","v":"OK"},null,{"$f":"AND(L8,H8,ZdrojIdxOld=5)","v":false},{"$f":"IF(AND(H11,K11),E11,\"\")","v":""},{"$f":"IF(K11,IF(E11=\"ano\",ROW(E12),ROW(E13)),ROW(E11))","v":13},{"$f":"OR(ZdrojIdxOld<>5,E11=\"ano\",E11=\"ne\")","v":true},{"$f":"AND(K11,$L$4:L10)","v":false},null,null,{"$f":"myidx(AND(K11),ISBLANK(E11))","v":1},"OK","Vyberte ano nebo ne."]
[null,"1.9","Zadejte sezónní účinnost tepelného čerpadla","COP",null,{"$f":"IFERROR(INDEX(P12:V12,1,O12),\"\")","v":"OK"},null,{"$f":"AND(H11,K11,L11,E11=\"ano\")","v":false},{"$f":"IF(AND(E11=\"ano\",ZdrojIdxOld=5),H12*K12*E12,IF(AND(E11=\"ne\",ZdrojIdxOld=5),ETAZdrOld,0))","v":0},{"$f":"IF(K12,ROW(E13),ROW(E12))","v":13},{"$f":"OR(ZdrojIdxOld<>5,E11=\"ne\",AND(ISNUMBER(E12),IF(ISNUMBER(E12),AND(E12>=1,E12<=6),FALSE)))","v":true},{"$f":"AND(K12,$L$4:L11)","v":false},null,null,{"$f":"IF(E11=\"ne\",1,myidx(K12,ISBLANK(E12),NOT(ISNUMBER(E12)),E12<1,E12>6))","v":1},"OK","Zadejte COP.","Hodnota není číslo.",{"$f":"\"COP musí být alespoň \" & MinCOPTČOld & \".\"","v":"COP musí být alespoň 1."},{"$f":"\"COP může být nejvýše \" & MaxCOPTČOld & \".\"","v":"COP může být nejvýše 6."}]
[null,"1.10","Jaký je instalovaný výkon zdroje?","kWt",null,{"$f":"IFERROR(INDEX(P13:V13,1,O13),\"\")","v":"Zadejte instalovaný výkon."},null,{"$f":"AND(AND(ZdrojIdxOld<6,L8,H8,L12),OR(AND(ZdrojIdxOld=5,L11,H11,IF(E11=\"ano\",AND(L12,H12),TRUE)),AND(ZdrojIdxOld<5,L8,H8,IF(E9=\"ano\",AND(L10,H10),TRUE))))","v":false},{"$f":"H13*K13*E13","v":0},{"$f":"IF(K13,ROW(E16),ROW(E13))","v":13},{"$f":"OR(ZdrojIdxOld=6,AND(ISNUMBER(E13),IF(ISNUMBER(E13),E13>0,FALSE)))","v":false},{"$f":"AND(K13,$L$4:L12)","v":false},null,null,{"$f":"myidx(AND(K13),ISBLANK(E13),NOT(ISNUMBER(E13)),E13<=0)","v":2},"OK","Zadejte instalovaný výkon.","Hodnota není číslo.","Instalovaný výkon musí být kladný."]
[null,null,null,null,null,null,null,{"$f":"H16","v":false}]
[null,"2","Parametry nového zdroje tepla",null,null,null,null,{"$f":"H16","v":false}]
[null,"2.1","Jaký je typ nového zdroje?","Vyberte",null,{"$f":"IFERROR(INDEX(P16:R16,1,O16),\"\")","v":"Vyberte typ zdroje."},null,{"$f":"AND(L13,OR(AND(ZdrojIdxOld=6,H8),AND(ZdrojIdxOld<6,H13)))","v":false},{"$f":"IF(AND(H16,K16),E16,\"\")","v":""},{"$f":"IF(K16,IF(ZdrojIdxNew<4,ROW(E17),ROW(E19)),ROW(E16))","v":16},{"$f":"NOT(ISBLANK(E16))","v":false},{"$f":"K16","v":false},null,null,{"$f":"myidx(AND(K16),ISBLANK(E16))","v":2},"OK","Vyberte typ zdroje."]
[null,"2.2","Znáte účinnost nového zdroje?","Vyberte ano/ne",null,{"$f":"IFERROR(INDEX(P17:R17,1,O17),\"\")","v":"Vyberte ano nebo ne."},null,{"$f":"AND(L16,H16,ZdrojIdxNew<4)","v":false},{"$f":"IF(AND(H17,K17),E17,\"\")","v":""},{"$f":"IF(K17,IF(E17=\"ano\",ROW(E18),ROW(E19)),ROW(E17))","v":17},{"$f":"OR(ZdrojIdxNew=4,E17=\"ano\",E17=\"ne\")","v":false},{"$f":"AND(K17,$L$4:L16)","v":false},null,null,{"$f":"myidx(AND(K17),ISBLANK(E17))","v":2},"OK","Vyberte ano nebo ne."]
[null,"2.3","Jaká je účinnost?","Zatejte v %",null,{"$f":"IF(M18,N18,IFERROR(INDEX(P18:T18,1,O18),\"\"))","v":"Zadejte účinnost."},null,{"$f":"AND(H17,K17,L17,E17=\"ano\")","v":false},{"$f":"IF(ZdrojIdxNew=4,0,IF(E17=\"ano\",H18*K18*E18,EtaZdrNew))","v":0},{"$f":"IF(K18,ROW(E19),ROW(E18))","v":18},{"$f":"OR(ZdrojIdxNew=4,E17=\"ne\",AND(ISNUMBER(E18),IF(ISNUMBER(E18),AND(E18>=0.05,E18<=1.11),FALSE)))","v":false},{"$f":"AND(K18,$L$4:L17)","v":false},{"$f":"AND(ZdrojIdxNew<4,E17=\"ano\",E18<ParametryZdroje!B25,K18)","v":false},{"$f":"\"Nově instalovaný kotel nesplňuje požadavek na účinnost dle vyhl. 264/2020 Sb., minimální účinnost je \" & ParametryZdroje!B25 * 100 & \" %.\"","v":"Nově instalovaný kotel nesplňuje požadavek na účinnost dle vyhl. 264/2020 Sb., minimální účinnost je 0 %."},{"$f":"myidx(AND(K18),ISBLANK(E18),NOT(ISNUMBER(E18)),E18<0.05,E18>1.11)","v":2},"OK","Zadejte účinnost.","Hodnota není číslo.","Příliš nízká účinnost.","Příliš vysoká účinnost."]
[null,"2.4","Jaký je instalovaný výkon zdroje?","kWt",null,{"$f":"IF(M19,N19,IFERROR(INDEX(P19:T19,1,O19),\"\"))","v":"Zadejte výkon zdroje."},null,{"$f":"OR(AND(ZdrojIdxNew=4,H16,K16,L16),AND(ZdrojIdxNew<4,E17=\"ne\"),AND(ZdrojIdxNew<4,E17=\"ano\",H18,K18,L18))","v":false},{"$f":"H19*K19*E19","v":0},{"$f":"IF(K19,IF(ZdrojIdxNew=4,ROW(E20),ROW(E24)),ROW(E19))","v":19},{"$f":"AND(ISNUMBER(E19),IF(ISNUMBER(E19),E19>0,FALSE))","v":false},{"$f":"AND(K19,$L$4:L18)","v":false},{"$f":"AND(L19,E19>ParametryZdroje!B28)","v":false},{"$f":"\"Nově instalovaný kotel na štěpku, pelety nebo brikety má vyšší příkon než \" & ParametryZdroje!B28 & \" MW, nesplňuje poždavek programu.\"","v":"Nově instalovaný kotel na štěpku, pelety nebo brikety má vyšší příkon než 0 MW, nesplňuje poždavek programu."},{"$f":"myidx(K19,ISBLANK(E19),NOT(ISNUMBER(E19)),E19<=0)","v":2},"OK","Zadejte výkon zdroje.","Hodnota není číslo.","Výkon musí být kladný."]
[null,"2.5","Znáte sezónní účinnost (COP) tepelného čerpadla?","Vyberte ano / ne",null,{"$f":"IFERROR(INDEX(P20:R20,1,O20),\"\")","v":"OK"},null,{"$f":"AND(ZdrojIdxNew=4,H19,K19,L19)","v":false},{"$f":"IF(AND(H20,K20),E20,\"\")","v":""},{"$f":"IF(K20,IF(E20=\"ano\",ROW(E21),ROW(E24)),ROW(E20))","v":24},{"$f":"OR(ZdrojIdxOld<>5,E20=\"ano\",E20=\"ne\")","v":true},{"$f":"AND(K20,$L$4:L19)","v":false},null,null,{"$f":"myidx(AND(K20),ISBLANK(E20))","v":1},"OK","Vyberte ano nebo ne."]
[null,"2.6","Zadejte sezónní účinnost tepelného čerpadla","COP",null,{"$f":"IF(M21,N21,IFERROR(INDEX(P21:T21,1,O21),\"\"))","v":"OK"},null,{"$f":"AND(L20,H20,ZdrojIdxNew=4,E20=\"ano\")","v":false},{"$f":"IF(ZdrojIdxNew=4,IF(E20=\"ano\",H21*K21*E21,EtaZdrNew),0)","v":0},{"$f":"IF(K21,ROW(E24),ROW(E21))","v":24},{"$f":"OR(ZdrojIdxNew<4,E20=\"ne\",AND(ISNUMBER(E21),IF(ISNUMBER(E21),AND(E21>=1,E21<=6),FALSE)))","v":true},{"$f":"AND(K21,$L$4:L20)","v":false},{"$f":"AND(ZdrojIdxNew=4,E20=\"ano\",E21<ParametryZdroje!B25,L21)","v":false},{"$f":"\"Nově instalované tepelné čerpadlo nesplňuje požadavek na účinnost dle vyhl. 264/2020 Sb., minimální COP je \" & ParametryZdroje!B25 & \".\"","v":"Nově instalované tepelné čerpadlo nesplňuje požadavek na účinnost dle vyhl. 264/2020 Sb., minimální COP je 0."},{"$f":"myidx(AND(K21),ISBLANK(E21),NOT(ISNUMBER(E21)),E21<1,E21>6)","v":1},"OK","Zadejte COP.","Hodnota není číslo.","Příliš nízká hodnota COP.","Příliš vysoká hodnota COP."]
[null,null,null,null,null,null,null,{"$f":"H24","v":false}]
[null,"3","PENB",null,null,null,null,{"$f":"H24","v":false}]
[null,"3.1","Je výměna kotle zahrnuta v PENB?","Vyberte ano/ne",null,{"$f":"IFERROR(INDEX(P24:R24,1,O24),\"\")","v":"OK"},null,{"$f":"AND(JePENB,OR(AND(ZdrojIdxNew=4,L21),AND(ZdrojIdxNew<4,L19)))","v":false},{"$f":"IF(AND(H24,K24),E24,\"\")","v":""},{"$f":"ROW()","v":24},{"$f":"OR(NOT(JePENB),E24=\"ano\",E24=\"ne\")","v":true},{"$f":"AND(K24,$L$4:L23)","v":false},null,null,{"$f":"myidx(AND(K24),ISBLANK(E24))","v":1},"OK","Vyberte ano nebo ne."]
[null,null,null,null,null,null,null,true]
[null,null,null,null,{"$f":"IF(L26,\"Konec formuláře\",\"\")","v":""},null,null,true,null,null,null,{"$f":"L24","v":false},{"$f":"OR(M4:M24)","v":false}]
[null,null,null,null,null,null,null,true]
[null,"4","Vyhodnocení plnění požadavků programu",null,null,null,null,{"$f":"L26","v":false}]
[null,null,"Nově instalovaný zdroj splňuje požadavek na účinnost podle vyhlášky 264/2020 Sb.",null,null,null,null,{"$f":"AND(L26,NOT(M26))","v":false}]
[null,null,{"$f":"N18","v":"Nově instalovaný kotel nesplňuje požadavek na účinnost dle vyhl. 264/2020 Sb., minimální účinnost je 0 %."},null,null,null,null,{"$f":"AND(L26,M18)","v":false}]
[null,null,{"$f":"N21","v":"Nově instalované tepelné čerpadlo nesplňuje požadavek na účinnost dle vyhl. 264/2020 Sb., minimální COP je 0."},null,null,null,null,{"$f":"AND(L26,M21)","v":false}]
[null,null,"Nově instalovaný kotel na štěpku, pelety nebo brikety má vyšší příkon než 20 MW, nesplňuje poždavek programu.",null,null,null,null,{"$f":"AND(L24,M19)","v":false}]
[null,null,"Je instalován kotel na biomasu, je nutno doložit smlouvu nebo čestné prohlášení o zabezpečení dodávky biomasy z lokálních zdrojů či budoucího dodavatele.",null,null,null,null,{"$f":"AND(L24,ZdrojIdxNew=1)","v":false}]
[null,null,null,null,null,null,null,{"$f":"$L$26","v":false}]
[null,"5","Bilance spotřeby energie před a po výměně kotle (včetně zateplení)",null,null,null,null,{"$f":"$L$26","v":false}]
[null,null,"Konečná spotřeba energie",null,null,null,null,false]
[null,null,"před realizací opatření",{"$f":"Bilance!E34","v":{"$error":"#DIV/0!"}},"kWh/rok",null,null,false]
[null,null,"po realizaci opatření",{"$f":"Bilance!F34","v":{"$error":"#DIV/0!"}},"kWh/rok",null,null,false]
[null,null,"úspora",{"$f":"Bilance!G34","v":{"$error":"#DIV/0!"}},"kWh/rok",null,null,false]
[null,null,"úspora",{"$f":"IFERROR(D39/D37,0)","v":0},"%",null,null,false]
[null,null,"Snížení emisí CO2",{"$f":"Bilance!M34","v":{"$error":"#DIV/0!"}},"kg/rok",null,null,false]
[null,null,"Snížení nákladů na energii",{"$f":"Bilance!Y34","v":{"$error":"#DIV/0!"}},"Kč/rok",null,null,false]
[null,null,"Spotřeba primární energie",null,null,null,null,false]
[null,null,"před realizací opatření",{"$f":"Bilance!H34","v":{"$error":"#DIV/0!"}},"kWh/rok",null,null,false]
[null,null,"po realizaci opatření",{"$f":"Bilance!I34","v":{"$error":"#DIV/0!"}},"kWh/rok",null,null,false]
[null,null,"úspora",{"$f":"Bilance!J34","v":{"$error":"#DIV/0!"}},"kWh/rok",null,null,false]
[null,null,"úspora",{"$f":"IFERROR(D46/D44,0)","v":0},"%",null,null,false]
[null,null,null,null,null,null,null,true]
[null,"Konec listu",null,null,null,null,null,true]

{"sheet":"FVE","index":5,"n_rows":219,"n_cols":20,"rows_kept":219,"cut":false,"hidden":true,"merged":[[9,2,9,4],[10,2,10,4],[12,2,12,4],[14,2,14,4],[11,2,11,4]]}
[null,"FVE"]
[]
["  ",1,"Parametry FVE systému",null,null,null,null,"Viditelnost","Hodnota buňky","Další řádek","Řádek OK","Průběžně OK","Porušení podmínek","Hlášení","Hláška č.","Hlášky…"]
[null,"1.1","Jaký je jmenovitý instalovaný výkon FVE ?","kWp",null,{"$f":"IF(AND(L4,M4),N4,IFERROR(INDEX(P4:T4,1,O4),\"\"))","v":"Zadejte instalovaný výkon."},null,true,{"$f":"E4*H4*K4","v":0},{"$f":"IF(K4,ROW(E5),ROW())","v":4},{"$f":"AND(ISNUMBER(E4),IF(ISNUMBER(E4),E4>0,FALSE))","v":false},{"$f":"K4","v":false},{"$f":"I4>ParametryFVE!C6","v":false},{"$f":"\"Instalovaný výkon FVE může být maximálně \" & ParametryFVE!C6 & \" kWp.\"","v":"Instalovaný výkon FVE může být maximálně 1000 kWp."},{"$f":"myidx(K4,ISBLANK(E4),NOT(ISNUMBER(E4)),E4<=0)","v":2},"OK","Zadejte instalovaný výkon.","Hodnota není číslo.","Výkon musí být kladný."]
[null,"1.2","Jaká je předpokládaná roční výroba elektrické energie z FVE ?","kWh",null,{"$f":"IFERROR(INDEX(P5:T5,1,O5),\"\")","v":"Zadejte výrobu."},null,{"$f":"IFERROR(AND(H4,K4,L4),FALSE)","v":false},{"$f":"E5*H5*K5","v":0},{"$f":"IF(K5,ROW(E6),ROW())","v":5},{"$f":"AND(ISNUMBER(E5),IF(ISNUMBER(E5),AND(E5/E4>=MinVyužFVE,E5/E4<=MaxVyužFVE),FALSE))","v":false},{"$f":"AND(K5,$L$4:L4)","v":false},null,null,{"$f":"myidx(K5,ISBLANK(E5),NOT(ISNUMBER(E5)),(E5/E4)<MinVyužFVE,(E5/E4)>MaxVyužFVE)","v":2},"OK","Zadejte výrobu.","Hodnota není číslo.",{"$f":"\"Výroba je příliš malá, musí být alespoň \" & MinVyužFVE*E4 & \" MWh.\"","v":"Výroba je příliš malá, musí být alespoň 0 MWh."},{"$f":" \"Výroba je příliš velká. Může být maximálně \" & E4*MaxVyužFVE & \" MWh.\"","v":"Výroba je příliš velká. Může být maximálně 0 MWh."}]
[null,"1.3","Je součástí projektu instalace FVE také akumulace elektrické energie do baterie?","Vyberte ano / ne",null,{"$f":"IF(AND(L6,M6),N6,IFERROR(INDEX(P6:R6,1,O6),\"\"))","v":"Vyberte ano nebo ne."},null,{"$f":"IFERROR(AND(H5,K5,L5),FALSE)","v":false},{"$f":"IF(AND(H6,K6),E6,\"\")","v":""},{"$f":"IF(AND(K6,E6=ano),ROW(E7),ROW(E6))","v":6},{"$f":"OR(E6=ano,E6=ne)","v":false},{"$f":"AND(K6,$L$4:L5)","v":false},{"$f":"AND(L6,E6=ne)","v":false},"Projekt je nezpůsobilý, protože FVE bez baterie není podporována.",{"$f":"myidx(AND(K6,L6),AND(E6<>ano,E6<>ne))","v":2},"OK","Vyberte ano nebo ne."]
[null,"1.4","Jaká je jmenovitá kapacita instalované baterie ?","kWh",null,{"$f":"IF(AND(L7,M7),N7,IFERROR(INDEX(P7:T7,1,O7),\"\"))","v":"Zadejte kapacitu baterie."},null,{"$f":"IFERROR(AND(E6=ano,H6,K6,L6),FALSE)","v":false},{"$f":"E7*H7*K7","v":0},{"$f":"IF(K7,ROW(E8),ROW(E7))","v":7},{"$f":"AND(ISNUMBER(E7),IF(ISNUMBER(E7),E7>0,FALSE))","v":false},{"$f":"AND(K7,$L$4:L6)","v":false},{"$f":"AND(L6,OR(E7<E4*MinPiBaterie,E7>E4*MaxPiBaterie,E4>ParametryFVE!C7))","v":false},{"$f":"\"Kapacita baterie může být maximálně \" & ParametryFVE!C7 & \" kWp.\"","v":"Kapacita baterie může být maximálně 1000 kWp."},{"$f":"myidx(K7,ISBLANK(E7),NOT(ISNUMBER(E7)),E7<=0)","v":2},"OK","Zadejte kapacitu baterie.","Hodnota není číslo.","Kapacita baterie musí být větší než 0."]
[null,"1.5","Jaká je celková roční spotřeba elektrické energie v budově / budovách, pro které se FVE instaluje ?","kWh",null,{"$f":"IF(AND(L8,M8),N8,IFERROR(INDEX(P8:S8,1,O8),\"\"))","v":"Zadejte roční spotřebu elektřiny."},null,{"$f":"IFERROR(AND(H7,K7,L7),FALSE)","v":false},{"$f":"E8*H8*K8","v":0},{"$f":"ROW()","v":8},{"$f":"AND(ISNUMBER(E8),IF(ISNUMBER(E8),E8>0,FALSE))","v":false},{"$f":"AND(K8,$L$4:L7)","v":false},{"$f":"AND(L7,E8<E5)","v":false},"Za uvedených podmínek je příliš  vysoká pravděpodobnost překročení limitu přetoků do distribuční sítě. Výroba FVE musí být menší nebo rovna spotřebě.",{"$f":"myidx(K8,ISBLANK(E8),NOT(ISNUMBER(E8)),E8<=0)","v":2},"OK","Zadejte roční spotřebu elektřiny.","Hodnota není číslo.","Spotřeba musí být větší než 0."]
[null,null,null,{"$f":"IFERROR(IF(L9,\"Konec formuláře\",\"\"),\"\")","v":""},null,null,null,true,null,null,null,{"$f":"OR(L8,AND(L6,I6=ne))","v":false},{"$f":"OR(M4:M8)","v":false}]
[null,"2","Vyhodnocení plnění požadavků programu",null,null,null,null,{"$f":"OR(L9,AND(L6,E6=ne))","v":false}]
[null,null,"FVE vyhovuje podmínkám programu.",null,null,null,null,{"$f":"AND(L9,NOT(M9))","v":false}]
[null,null,{"$f":"N4","v":"Instalovaný výkon FVE může být maximálně 1000 kWp."},null,null,null,null,{"$f":"AND(M4,H10)","v":false}]
[null,null,"Projekt je nezpůsobilý, protože FVE bez baterie není podporována.",null,null,null,null,{"$f":"AND(M6,H10)","v":false}]
[null,null,{"$f":"N7","v":"Kapacita baterie může být maximálně 1000 kWp."},null,null,null,null,{"$f":"AND(H10,M7,I6=ano)","v":false}]
[null,null,"Za uvedených podmínek je příliš  vysoká pravděpodobnost překročení limitu přetoků do distribuční sítě. Výroba FVE musí být menší nebo rovna spotřebě.",null,null,null,null,{"$f":"AND(M8,L9,I6=ano)","v":false}]
[]
[null,"Konec listu"]
[]
[]
[]
[]
[]
[]
[]
[]
[]
[]
[]
[]
[]
[]
[]
[]
[]
[]
[]
[]
[]
[]
[]
[]
[]
[]
[]
[]
[]
[]
[]
[]
[]
[]
[]
[]
[]
[]
[]
[]
[]
[]
[]
[]
[]
[]
[]
[]
[]
[]
[]
[]
[]
[]
[]
[]
[]
[]
[]
[]
[]
[]
[]
[]
[]
[]
[]
[]
[]
[]
[]
[]
[]
[]
[]
[]
[]
[]
[]
[]
[]
[]
[]
[]
[]
[]
[]
[]
[]
[]
[]
[]
[]
[]
[]
[]
[]
[]
[]
[]
[]
[]
[]
[]
[]
[]
[]
[]
[]
[]
[]
[]
[]
[]
[]
[]
[]
[]
[]
[]
[]
[]
[]
[]
[]
[]
[]
[]
[]
[]
[]
[]
[]
[]
[]
[]
[]
[]
[]
[]
[]
[]
[]
[]
[]
[]
[]
[]
[]
[]
[]
[]
[]
[]
[]
[]
[]
[]
[]
[]
[]
[]
[]
[]
[]
[]
[]
[]
[]
[]
[]
[]
[]
[]
[]
[]
[]
[]
[]
[]
[]
[]
[]
[]
[]
[]
[]
[]
[]
[]
[]
[]
[]
[]
[]
[]
[]
[]
[]
[]
[]
[null,false]

{"sheet":"Protokol","index":6,"n_rows":122,"n_cols":10,"rows_kept":122,"cut":false,"hidden":true,"merged":[[36,5,36,7],[89,1,89,7],[110,1,110,5],[111,1,111,5],[113,1,113,7],[114,1,114,7],[120,4,120,6],[121,4,121,6],[105,1,105,2],[105,3,105,4],[105,5,105,7],[108,1,108,5],[109,1,109,5],[109,6,109,7],[103,1,103,2],[103,3,103,4],[103,5,103,7],[104,1,104,2],[104,3,104,4],[104,5,104,7],[101,1,101,2],[101,3,101,4],[101,5,101,7],[102,1,102,2],[102,3,102,4],[102,5,102,7],[99,1,99,2],[99,3,99,4],[99,5,99,7],[100,1,100,2],[100,3,100,4],[100,5,100,7],[97,1,97,2],[97,3,97,4],[97,5,97,7],[98,1,98,2],[98,3,98,4],[98,5,98,7],[95,1,95,2],[95,3,95,4],[95,5,95,7],[96,1,96,2],[96,3,96,4],[96,5,96,7],[93,1,93,2],[93,3,93,4],[93,5,93,7],[94,1,94,2],[94,3,94,4],[94,5,94,7],[87,1,87,6],[91,3,91,4],[91,5,91,7],[92,1,92,2],[92,3,92,4],[92,5,92,7],[78,1,78,6],[82,1,82,6],[83,1,83,6],[84,1,84,6],[85,1,85,6],[86,1,86,6],[79,1,79,6],[80,1,80,6],[81,1,81,6],[70,1,70,5],[71,1,71,5],[72,1,72,5],[73,1,73,5],[77,1,77,5],[60,1,60,5],[60,6,60,7],[63,1,63,5],[64,1,64,5],[65,1,65,5],[66,1,66,5],[67,1,67,5],[68,1,68,5],[69,1,69,5],[74,1,74,5],[75,1,75,5],[76,1,76,5],[57,1,57,5],[57,6,57,7],[58,1,58,5],[58,6,58,7],[59,1,59,5],[59,6,59,7],[54,1,54,5],[54,6,54,7],[55,1,55,5],[55,6,55,7],[56,1,56,5],[56,6,56,7],[31,1,31,4],[40,1,40,4],[41,1,41,4],[42,1,42,4],[43,1,43,4],[44,1,44,4],[26,1,26,4],[27,1,27,4],[32,1,32,4],[33,1,33,4],[34,1,34,4],[35,1,35,4],[38,1,38,4],[39,1,39,4],[36,1,37,4],[8,4,8,7],[9,1,9,3],[9,4,9,7],[30,1,30,4],[28,1,28,4],[17,1,17,4],[18,1,18,4],[19,1,19,4],[23,1,23,4],[24,1,24,4],[25,1,25,4],[20,1,20,4],[29,1,29,4],[21,1,22,4],[21,5,21,7],[3,5,3,7],[46,1,47,4],[46,5,46,7],[51,1,51,4],[52,1,52,4],[49,1,49,4],[50,1,50,4],[48,1,48,4],[1,1,1,7],[2,1,2,7],[5,1,5,3],[5,4,5,7],[6,1,6,3],[6,4,6,7],[10,1,10,3],[10,4,10,7],[11,1,11,3],[11,4,11,7],[13,1,13,7],[15,1,16,4],[15,5,15,7],[7,1,7,3],[7,4,7,7],[8,1,8,3]]}
[]
[null,"Energetické vyhodnocení projektu"]
[null,"v programu podpory Úspory energie "]
[null,null,null,null,"Evidenční číslo:"]
[]
[null,"Identifikační údaje",null,null,null,null,null,null,null,"Viditelnost"]
[null,"Název projektu:",null,null,{"$f":"IF(ISBLANK('Hlavní list'!C6), \"\",'Hlavní list'!C6)","v":""},null,null,null,null,true]
[null,"Klient:",null,null,{"$f":"IF(ISBLANK('Hlavní list'!C7), \"\",'Hlavní list'!C7)","v":""},null,null,null,null,true]
[null,"IČ klienta:",null,null,{"$f":"IF(ISBLANK('Hlavní list'!C8), \"\",'Hlavní list'!C8)","v":""},null,null,null,null,true]
[null,"Adresa žadatele:",null,null,{"$f":"IF(ISBLANK('Hlavní list'!C9), \"\",'Hlavní list'!C9)","v":""},null,null,null,null,true]
[null,"Adresa místa realizace projektu:",null,null,{"$f":"IF(ISBLANK('Hlavní list'!C10), \"\",'Hlavní list'!C10)","v":""},null,null,null,null,true]
[null,"Popis projektu:",null,null,{"$f":"IF(ISBLANK('Hlavní list'!C11), \"\",'Hlavní list'!C11)","v":""},null,null,null,null,true]
[null,null,null,null,null,null,null,null,null,true]
[null,"Vysvětlivky pro žadatele:\n• Odpovězte prosím na otázky v checklistu ano / ne / není relevantní.\n• Po zaškrtnutí odpovědí pokračujte prosím podpisem prohlášení. \n",null,null,null,null,null,null,null,true]
[null,null,null,null,null,null,null,null,null,true]
[null,"Checklist",null,null,null,"Označte pomocí x  jednu z možností",null,null,null,true]
[null,null,null,null,null,"ano","ne","není relevantní",null,true]
[null,"a)         V rámci Výzvy bude podpořen projekt, který prokáže úsporu energie v konečné spotřebě energie podle Tabulky č. 3 Analýza užití energie – bilance přínosu projektů uvedené v Příloze č. 3 k vyhlášce č. 141/2021 Sb. o energetickém posudku a o údajích vedených v Systému monitoringu spotřeby energie, v platném znění.",null,null,null,null,null,null,null,true]
[null,"b)        Navržená energeticky úsporná opatření musí splnit minimálně 10 % roční úsporu primární energie (režim de minimis) po realizaci projektu oproti stavu před realizací projektu. Pro výpočet primární energie je nutné použít faktory primární energie podle Přílohy č. 9 této Výzvy. Pro splnění uvedených limitů roční úspory primární energie nelze započítat úsporu primární energie z opatření dle bodu 7 čl. 38a GBER (realizace opatření dle 4.1.c) Výzvy, mimo případy v režimu de minimis, kdy obálka budovy splňuje již před registrací žádosti o podporu referenční hodnotu průměrného součinitele tepla Uem, R (referenční hodnota je stanovena v úrovni pro dokončenou budovu nebo její změnu podle průkazu energetické náročnosti budovy) v souladu s vyhláškou č.264/2020 Sb. o energetické náročnosti budov v platném znění.",null,null,null,null,null,null,null,true]
[null,"c)         Pokud jsou absolutní anebo relativní emise vyšší než 20 000 tun CO2 ekv./rok, tak je nutné stanovit uhlíkovou stopu podle sdělení Evropské komise 2021/C373/01 (Technické pokyny k provádění infrastruktury z hlediska klimatického dopadu v období 2021-2027).",null,null,null,null,null,null,null,true]
[null,"d)        Podle § 25 odst. 5 zákona č. 165/2012 Sb., o podporovaných zdrojích energie a o změně některých zákonů ve znění pozdějších předpisů se investiční podpora tepla nevztahuje na solární systémy nebo systémy s tepelnými čerpadly, které by svým provozem zhoršily celkovou průměrnou roční účinnost stávajících účinných soustav zásobování tepelnou energií. Tyto soustavy zásobování tepelnou energií eviduje a způsobem umožňujícím dálkový přístup zveřejňuje Energetický regulační úřad do 30. dubna následujícího roku. V případě částečné náhrady dodávek energií ze SZTE, je možno projekt podpořit pouze se souhlasem vlastníka či provozovatele SZTE.",null,null,null,null,null,null,null,true]
[null,"Checklist",null,null,null,"Označte pomocí x  jednu z možností",null,null,null,true]
[null,null,null,null,null,"ano","ne","není relevantní",null,true]
[null,"e)        V případě, že výroba elektřiny z FVE je připojena do přenosové nebo distribuční soustavy, nesmí dodat do přenosové nebo distribuční soustavy více než 20 % ročního množství elektřiny vyrobené v jím provozované výrobně elektřiny, sníženého o technologickou vlastní spotřebu elektřiny. Do výpočtu úspory primární energie nebude započítána energie dodaná mimo energetické hospodářství žadatele. U projektu zahrnujícího instalaci fotovoltaických systémů nesmí výše úspory energie z těchto opatření překročit hranici 30 % projektu. Jedná se o velikost podílu u indikátoru \"323000 - Snížení konečné spotřeby energie u podpořených subjektů\". Poměr kapacity bateriového úložiště energie (kWh) k výkonu FVE (kWp) nesmí být větší, než 2:1.",null,null,null,null,null,{"$f":"IF(NOT(je_FVE),\"\",\"x\")","v":""},null,{"$f":"je_FVE","v":false}]
[null,"f)          Zařízení pro ukládání energie musí ročně přijmout alespoň 75 % své energie z přímo připojeného zařízení na výrobu energie z obnovitelných zdrojů. Podpora na akumulaci elektrické energie může být poskytnuta pouze v případě, že akumulace je součástí investice do nové FVE. V případě projektů akumulace elektřiny je třeba prokázat množství přijaté energie akumulačním zařízením. Z toho vyplývá, že zařízení pro ukládání energie musí být osazeno mechanismem pro měření přijaté energie na bázi elektroměru nebo softwarového vyhodnocení přijaté energie.",null,null,null,null,null,{"$f":"IF(NOT(je_FVE),\"\",\"x\")","v":""},null,{"$f":"je_FVE","v":false}]
[null,"g)         Elektrická tepelná čerpadla a klimatizační zařízení musí splňovat podmínky, uvedené v Příloze č. 11 této Výzvy. ",null,null,null,null,null,{"$f":"IF(OR(NOT(je_zdroj),AND(je_zdroj,ZdrojIdxNew<>4)),\"x\",\"\")","v":"x"},null,{"$f":"AND(je_zdroj,ZdrojIdxNew=4)","v":false}]
[null,"h)        V případě elektrických tepelných čerpadel jsou splněny požadavky pro obnovitelnou energii u vytápění a chlazení v souladu se směrnicí (EU) 2018/2001, a pomocných technických zařízení. Minimální sezonní topný faktor je požadován ve výši 2,8.",null,null,null,{"$f":"IF(AND(je_zdroj,ZdrojIdxNew=4,Zdroj!$I$21>=ParametryZdroje!$D$33),\"x\",\"\")","v":""},{"$f":"IF(AND(je_zdroj,ZdrojIdxNew=4,Zdroj!$I$21<ParametryZdroje!$D$33),\"x\",\"\")","v":""},{"$f":"IF(OR(NOT(je_zdroj),AND(je_zdroj,ZdrojIdxNew<>4)),\"x\",\"\")","v":"x"},null,{"$f":"AND(je_zdroj,ZdrojIdxNew=4)","v":false}]
[null,"i)          Podpořeny budou pouze projekty, které splňují požadavky vyhlášky č. 452/2017 Sb., kterou se mění vyhláška č. 415/2012 Sb., o přípustné úrovni znečišťování a jejím zjišťování a o provedení některých dalších ustanovení o ochraně ovzduší, ve znění pozdějších předpisů.",null,null,null,null,null,null,null,true]
[null,"j)          Pokud nelze při stanovení výchozího stavu spotřeby energie předmětu energetického posudku postupovat na základě historie spotřeby energie stanovené pro ucelené období alespoň jednoho roku, postupuje se v souladu s vyhláškou č. 141/2021 Sb., v platném znění stanovením referenčního stavu. Referenčním stavem je spotřeba energie budovy stanovená na základě průkazu energetické náročnosti budovy pro stav po realizaci navržených úspor odpovídající 1,2 x ER - násobku spotřeby energie referenční budovy (pro všechny energetické ukazatele). Typický profil užívání je stanoven podrobně na základě skutečných projektových parametrů (nepřipouští se využití typického profilu užívání dle ČSN 730331-1). Pro stanovení výchozího stavu se uvažuje pro vytápění a přípravu teplé vody faktor primární energie zemního plynu, pro ostatní technické systémy faktor primární energie pro elektřinu.  Referenční stav na základě 1,2 x ER není možné použít pro budovy, které jsou v době podání žádosti o podporu rozestavěné a/nebo nezkolaudované.  ",null,null,null,null,null,null,null,true]
[null,"k)         V případě realizace opatření ke snižování energetické náročnosti budov musí být provedeno hydraulické vyvážení otopné soustavy.",null,null,null,null,null,null,null,true]
[null,"l)          V rámci programu Nové Úspory energie nelze podporovat spotřebiče pro neprofesionální použití (zařízení pro domácnost) podle nařízení Evropského parlamentu a Rady 2017/1369 ze dne 4. července 2017, kterým se stanoví rámec pro označování energetickými štítky a zrušuje směrnice 2010/30/EU.",null,null,null,null,null,null,null,true]
[null,"m)      Pokud se na elektromotory a pohony vztahují požadavky na ekodesign a označování energetickými štítky, v příslušných případech splňují požadavky na nejvyšší třídu energetického štítku stanovené v nařízení (EU) 2017/1369 a požadavky prováděcích předpisů podle směrnice 2009/125/ES a představují nejlepší dostupnou technologii. ",null,null,null,null,null,null,null,false]
[null,"n)        Pokud se na použité výrobky vztahují požadavky na  označování energetickými štítky stanovené v nařízení (EU) 2017/1369 a požadavky prováděcích předpisů podle směrnice 2009/125/ES, tak v příslušných případech splňují požadavky na  třídy energetického štítku podle přílohy č. 10 této Výzvy.",null,null,null,null,null,null,null,true]
[null,"o)        Přírodní chladiva chladících a mrazících zařízení musí být v souladu s Přílohou č. 11 této Výzvy.",null,null,null,null,null,null,null,true]
[null,"p)        zařízení musí být nové a současně musí být prokazatelné, že nahrazovaná zařízení již nejsou používána[3]",null,null,null,null,null,null,null,true]
[null,"q)        \tProjekt musí být realizován na území ČR mimo NUTS II Praha.\n●        \tV rámci projektu lze uplatnit pouze jedno místo realizace. Místo realizace musí být součástí jednoho energetického hospodářství a zároveň se bude jednat o ucelené území podle katastrální mapy. \n●        \tProjekt nesmí být realizován na následujících objektech  :\n●        \trodinný rekreační dům, \n●        \tbytový dům,\n●        \trodinný dům\n●        \tveřejné budovy (budovy vlastnictví státu, obcí, ústředních orgánů státní správy a právnických osob jimi založených či zřízených a používaných k činnostem, které nejsou podnikáním) ",null,null,null,null,null,null,null,true]
[null,"Checklist",null,null,null,"Označte pomocí x  jednu z možností",null,null,null,true]
[null,null,null,null,null,"ano","ne","není relevantní",null,true]
[null,"r)          Projekty, které spadají pod integrovanou prevenci a omezování znečištění podle Přílohy č. 1 zákona č. 76/2002 Sb., o integrované prevenci a omezování znečištění, o integrovaném registru znečišťování a o změně některých zákonů, v platném znění (zákon o integrované prevenci), musí splňovat požadavky na úrovni nejlepších dostupných technik.",null,null,null,null,null,null,null,true]
[null,"s)        \tPro podporu využití obnovitelných zdrojů energie na pevnou biomasu jsou následující podmínky:\n●        \tBiomasou se rozumí přirozená dřevní hmota (kusové palivo, štěpka, pelety) bez jakýchkoliv příměsí jiných hmot (např. uhlí)\n●        \tZdroj biomasy musí být do 250 km (musí se doložit smlouvou o smlouvě budoucí s dodavatelem biomasy)\n●        \tMax. výkon zařízení = 1 MW\n●        \tZařízení musí splňovat emisní limity\n●        \tMusí dojít k docílení alespoň 80 % úspory emisí skleníkových plynů pocházejících z používání biomasy. Biomasa, která odpovídá této podmínce, je uvedena v Příloze č. 6",null,null,null,null,null,null,null,{"$f":"AND(je_zdroj,OR(ZdrojIdxNew=1,ZdrojIdxNew=2))","v":false}]
[null,"t)          Pokud je pro danou kombinaci podpor relevantní, tak v případě investiční podpory bude odpovídajícím způsobem snížena vnitrostátní provozní podpora podle oznámení Evropské komise",null,null,null,null,null,null,null,true]
[null,"x)         Projekty obsahující návrh na kombinovanou výrobu elektřiny a tepla budou podporovány pouze v případě, pokud splní kritéria pro vysokoúčinnou výrobu elektřiny a tepla podle vyhlášky č. 37/2016 Sb. o elektřině z vysokoúčinné kombinované výroby elektřiny a tepla a elektřině z druhotných zdrojů.",null,null,null,null,null,null,null,false]
[null,"y)         Podpořeny nebudou výdaje související s výrobou, zpracováním, přepravou, distribucí, skladováním nebo spalováním fosilních paliv.",null,null,null,null,null,null,null,true]
[null,"z)         Tepelně technické vlastnosti budov jsou v souladu s požadavky, uvedenými v Příloze č. 8 Výzvy",null,null,null,null,null,null,null,true]
[null,"aa)     Emise jsou nejvýše na úrovni emisí spojené s rozsahem hodnot nejlepších dostupných technik (BAT-AEL) stanovených v relevantních závěrech o nejlepších dostupných technikách (BAT), včetně závěrů o nejlepších dostupných technikách (BAT) pro předmětné odvětví.",null,null,null,null,null,null,null,true]
[null,null,null,null,null,null,null,null,null,true]
[null,"Checklist - specifické podmínky",null,null,null,"Označte pomocí x  jednu z možností",null,null,null,true]
[null,null,null,null,null,"ano","ne","není relevantní",null,true]
[null,"1)      Byl posouzen výskyt ptáků a netopýrů a byla přijata vhodná opatření k jejich ochraně (práce mimo dobu jejich výskytu, instalace budek, realizace větracích otvorů tak, aby byly i nadále přístupné). Vztahuje se pouze na opatření v rámci Snížení energetické náročnosti budov podnikatelských subjektů včetně opatření podle bodu 7 článku 38a GBER.",null,null,null,null,null,null,null,true]
[null,"5)      Žadatel o podporu není provozovatel stacionárního zařízení v České republice, která jsou součástí Evropského systému emisního obchodování.",null,null,null,null,null,null,null,true]
[null,"6)      Pokud je žadatel o podporu provozovatel stacionárního zařízení v České republice, která jsou součástí Evropského systému emisního obchodování, tak se bude jednat o způsobilé opatření za předpokladu splnění podmínek uvedených v kapitole výzvy.",null,null,null,null,null,null,null,true]
[null,"7)      Je-li součástí Projektu pořízení zdroje na biomasu, musí příjemce nejpozději k prvnímu podání žádosti o platbu, ve které jsou zahrnuty způsobilé výdaje na zdroj na biomasu, předložit uzavřenou smlouvu o dodávce biomasy. Pokud příjemce používá jako druh biomasy Dřevní štěpku z průmyslových zbytků, Dřevěné brikety nebo pelety ze zbytků z dřevozpracujícího průmyslu (pouze výroba tepla) anebo Slámové pelety (pouze výroba tepla) podle Přílohy č. 6 Výzvy „Druhy pevné biomasy s úsporami emisí skleníkových plynů“, musí nejpozději k prvnímu podání žádosti o platbu, ve které jsou zahrnuty způsobilé výdaje na zdroj na biomasu, doložit provedení opatření k přizpůsobování se změnám klimatu a zavedení adaptačního opatření v podobě recyklace popela ze spalování biomasy zpět na ornou půdu. Uvedené příjemce doloží smlouvou o smlouvě budoucí/smlouvou na odběr popela se zemědělským podnikatelem. ",null,null,null,null,null,null,null,{"$f":"AND(je_zdroj,OR(ZdrojIdxNew=1,ZdrojIdxNew=2))","v":false}]
[null,"8)      Je-li v rámci Projektu používána zemědělská biomasa, tak splňuje kritéria stanovená v čl. 29 odst. 2 až 5 směrnice (EU) 2018/2001. Pokud zařízení vyrábí elektřinu, KVET, tepelnou energii, chlazení s celkovým jmenovitým tepelným příkonem nejméně 2 MW využívající plynná paliva ze zemědělské biomasy, tak dokladem k prokázání plnění těchto kritérií je platný certifikát kritérií udržitelnosti podle systému KZR INiG nebo SURE nebo ISCC. Tento certifikát se dokládá nejpozději ve lhůtě pro předložení Ověřovacího energetického posudku.",null,null,null,null,null,null,null,{"$f":"AND(je_zdroj,OR(ZdrojIdxNew=1,ZdrojIdxNew=2))","v":false}]
[null,null,null,null,null,null,null,null,null,true]
[null,"Předpokládané výdaje na realizaci projektu:",null,null,null,null,"Kč",null,null,true]
[null,"Výdaje na technické zhodnocení stavby (materiál a práce pro provedení zateplení, výměna u stavebních otvorů, další stavební práce spojené s provedením energetického opatření)",null,null,null,null,{"$f":"'Hlavní list'!D26","v":0},null,null,{"$f":"je_zateplení","v":true}]
[null,"Výdaje na instalaci rekuperace tepla",null,null,null,null,{"$f":"'Hlavní list'!D27","v":0},null,null,{"$f":"je_rekuperace","v":false}]
[null,"Výdaje na výměnu stávajícího zdroje energie (výměna kotle, apod.)",null,null,null,null,{"$f":"'Hlavní list'!D28","v":0},null,null,{"$f":"je_zdroj","v":false}]
[null,"Výdaje na provedení výměny stávajícího osvětlení v budovách ",null,null,null,null,{"$f":"'Hlavní list'!D29","v":0},null,null,{"$f":"je_osvětlení","v":false}]
[null,"Výdaje na FVE",null,null,null,null,{"$f":"'Hlavní list'!D30","v":0},null,null,{"$f":"je_FVE","v":false}]
[null,"Výdaje celkem",null,null,null,null,{"$f":"'Hlavní list'!D31","v":0},null,null,true]
[null,null,null,null,null,null,null,null,null,true]
[null,null,null,null,null,null,null,null,null,true]
[null,"Dosažené výsledky projektu:",null,null,null,null,"kWh","GJ",null,true]
[null,"Výchozí roční konečná spotřeba energie bez vlivu opatření dle 4.1.c) Výzvy",null,null,null,null,{"$f":"'Hlavní list'!C46","v":0},{"$f":"'Hlavní list'!D46","v":0},null,true]
[null,"Navrhovaná roční konečná spotřeba energie bez vlivu opatření dle 4.1.c) Výzvy",null,null,null,null,{"$f":"'Hlavní list'!C47","v":0},{"$f":"'Hlavní list'!D47","v":0},null,true]
[null,"Roční úspora konečné spotřeby energie bez vlivu opatření dle 4.1.c) Výzvy",null,null,null,null,{"$f":"'Hlavní list'!C48","v":0},{"$f":"'Hlavní list'!D48","v":0},null,true]
[null,"Výchozí roční konečná spotřeba energie celého projektu",null,null,null,null,{"$f":"'Hlavní list'!C50","v":0},{"$f":"'Hlavní list'!D50","v":0},null,true]
[null,"Navrhovaná roční konečná spotřeba energie celého projektu",null,null,null,null,{"$f":"'Hlavní list'!C51","v":0},{"$f":"'Hlavní list'!D51","v":0},null,true]
[null,"Roční úspora konečné spotřeby energi celého projektu",null,null,null,null,{"$f":"'Hlavní list'!C52","v":0},{"$f":"'Hlavní list'!D52","v":0},null,{"$f":"je_FVE","v":false}]
[null,"Roční výroba FVE ",null,null,null,null,{"$f":"'Hlavní list'!C54","v":0},{"$f":"'Hlavní list'!D54","v":0},null,true]
[null,"Výchozí roční spotřeba primární energie bez vlivu opatření dle 4.1.c) Výzvy",null,null,null,null,{"$f":"'Hlavní list'!C56","v":0},{"$f":"'Hlavní list'!D56","v":0},null,true]
[null,"Navrhovaná roční spotřeba primární energie bez vlivu opatření dle 4.1.c) Výzvy",null,null,null,null,{"$f":"'Hlavní list'!C57","v":0},{"$f":"'Hlavní list'!D57","v":0},null,true]
[null,"Roční úspora primární energie bez vlivu opatření dle 4.1.c) Výzvy",null,null,null,null,{"$f":"'Hlavní list'!C58","v":0},{"$f":"'Hlavní list'!D58","v":0},null,true]
[null,"Výchozí roční spotřeba primární energie celého projektu",null,null,null,null,{"$f":"'Hlavní list'!C60","v":0},{"$f":"'Hlavní list'!D60","v":0},null,true]
[null,"Navrhovaná roční spotřeba primární energie celého projektu",null,null,null,null,{"$f":"'Hlavní list'!C61","v":0},{"$f":"'Hlavní list'!D61","v":0},null,true]
[null,"Roční úspora primární energie celého projektu",null,null,null,null,{"$f":"'Hlavní list'!C62","v":0},{"$f":"'Hlavní list'!D62","v":0},null,true]
[null,null,null,null,null,null,null,null,null,true]
[null,"Roční úspora primární energie bez vlivu opatření dle 4.1.c) Výzvy [%]",null,null,null,null,null,{"$f":"'Hlavní list'!C59","v":0},null,true]
[null,"Podíl FVE na úspoře konečné spotřeby energie celého projektu [%]",null,null,null,null,null,{"$f":"'Hlavní list'!C55","v":0},null,{"$f":"je_FVE","v":false}]
[null,"Roční úspora primární energie celého projektu [%]",null,null,null,null,null,{"$f":"'Hlavní list'!C63","v":0},null,true]
[null,"Roční úspora konečné spotřeby energi celého projektu [%]",null,null,null,null,null,{"$f":"'Hlavní list'!C53","v":0},null,true]
[null,"Roční úspora  emisí CO2 [kg] ",null,null,null,null,null,{"$f":"'Hlavní list'!C64","v":0},null,true]
[null,"Roční úspora emisí CO2 [%]",null,null,null,null,null,{"$f":"'Hlavní list'!C65","v":0},null,true]
[null,"Roční úspora emisí tuhých látek [kg]",null,null,null,null,null,{"$f":"'Hlavní list'!C66","v":0},null,true]
[null,"Roční úspora emisí frakcí PM10 [kg]",null,null,null,null,null,{"$f":"'Hlavní list'!C67","v":0},null,true]
[null,"Roční úspora emisí  frakcí PM2,5 [kg]",null,null,null,null,null,{"$f":"'Hlavní list'!C68","v":0},null,true]
[null,"Roční úspora nákladů na energii [Kč]",null,null,null,null,null,{"$f":"'Hlavní list'!C69","v":0},null,true]
[null,null,null,null,null,null,null,null,null,true]
[null,{"$f":"'Hlavní list'!C71","v":"Nejsou správně vyplněna všechna data."},null,null,null,null,null,null,null,true]
[null,null,null,null,null,null,null,null,null,true]
[null,"Realizovaná opatření",null,"Popis opatření",null,"Vyhodnocení opatření",null,null,null,true]
[null,{"$f":"'Hlavní list'!B88","v":"Výměna zdroje"},null,{"$f":"IF(ISBLANK('Hlavní list'!C88),\"\",'Hlavní list'!C88)","v":", instalovaný výkon 0 kW, účinnost 0 %"},null,{"$f":"IF(ISBLANK('Hlavní list'!E88),\"\",'Hlavní list'!E88)","v":""},null,null,null,{"$f":"'Hlavní list'!I88","v":false}]
[null,{"$f":"'Hlavní list'!B89","v":"Zateplení obvodového pláště"},null,{"$f":"IF(ISBLANK('Hlavní list'!C89),\"\",'Hlavní list'!C89)","v":",  tloušťka  mm, plocha 0 m2"},null,{"$f":"IF(ISBLANK('Hlavní list'!E89),\"\",'Hlavní list'!E89)","v":"Zateplení obvodových stěn splňuje požadavky programu."},null,null,null,{"$f":"'Hlavní list'!I89","v":false}]
[null,{"$f":"'Hlavní list'!B90","v":"Zateplení střechy"},null,{"$f":"IF(ISBLANK('Hlavní list'!C90),\"\",'Hlavní list'!C90)","v":", tloušťka  mm, plocha 0 m2"},null,{"$f":"IF(ISBLANK('Hlavní list'!E90),\"\",'Hlavní list'!E90)","v":"Zateplení střechy splňuje požadavky programu."},null,null,null,{"$f":"'Hlavní list'!I90","v":false}]
[null,{"$f":"'Hlavní list'!B91","v":"Zateplení podlahy"},null,{"$f":"IF(ISBLANK('Hlavní list'!C91),\"\",'Hlavní list'!C91)","v":", tloušťka  mm, plocha 0 m2"},null,{"$f":"IF(ISBLANK('Hlavní list'!E91),\"\",'Hlavní list'!E91)","v":"Zateplení podlahy splňuje požadavky programu."},null,null,null,{"$f":"'Hlavní list'!I91","v":false}]
[null,{"$f":"'Hlavní list'!B92","v":"Výměna oken, výplní ve stěně "},null,{"$f":"IF(ISBLANK('Hlavní list'!C92),\"\",'Hlavní list'!C92)","v":", plocha 0 m2, součinitel prostupu tepla  W/(m2.K)"},null,{"$f":"IF(ISBLANK('Hlavní list'!E92),\"\",'Hlavní list'!E92)","v":"Okna splňují požadavky programu."},null,null,null,{"$f":"'Hlavní list'!I92","v":false}]
[null,{"$f":"'Hlavní list'!B93","v":"Výměna dveří, vrat"},null,{"$f":"IF(ISBLANK('Hlavní list'!C93),\"\",'Hlavní list'!C93)","v":", plocha 0 m2, součinitel prostupu tepla  W/(m2.K)"},null,{"$f":"IF(ISBLANK('Hlavní list'!E93),\"\",'Hlavní list'!E93)","v":"Dveře/vrata splňují požadavky programu."},null,null,null,{"$f":"'Hlavní list'!I93","v":false}]
[null,{"$f":"'Hlavní list'!B94","v":"Výměna střešních oken, světlíků"},null,{"$f":"IF(ISBLANK('Hlavní list'!C94),\"\",'Hlavní list'!C94)","v":", plocha 0 m2, součinitel prostupu tepla  W/(m2.K)"},null,{"$f":"IF(ISBLANK('Hlavní list'!E94),\"\",'Hlavní list'!E94)","v":"Světlíky/střešní okna splňují požadavky programu."},null,null,null,{"$f":"'Hlavní list'!I94","v":false}]
[null,{"$f":"'Hlavní list'!B95","v":"Instalace mechanického větrání s rekuperací"},null,{"$f":"IF(ISBLANK('Hlavní list'!C95),\"\",'Hlavní list'!C95)","v":""},null,{"$f":"IF(ISBLANK('Hlavní list'!E95),\"\",'Hlavní list'!E95)","v":""},null,null,null,{"$f":"'Hlavní list'!I95","v":false}]
[null,{"$f":"'Hlavní list'!B96","v":"Výměna klasických žárovek"},null,{"$f":"IF(ISBLANK('Hlavní list'!C96),\"\",'Hlavní list'!C96)","v":"počet vyměňovaných zdrojů 0, celkový příkon 0 W, průměrný příkon zdroje 0 W"},null,{"$f":"IF(ISBLANK('Hlavní list'!E96),\"\",'Hlavní list'!E96)","v":""},null,null,null,{"$f":"'Hlavní list'!I96","v":false}]
[null,{"$f":"'Hlavní list'!B97","v":"Výměna halogenových žárovek"},null,{"$f":"IF(ISBLANK('Hlavní list'!C97),\"\",'Hlavní list'!C97)","v":"počet vyměňovaných zdrojů 0, celkový příkon 0 W, průměrný příkon zdroje 0 W"},null,{"$f":"IF(ISBLANK('Hlavní list'!E97),\"\",'Hlavní list'!E97)","v":""},null,null,null,{"$f":"'Hlavní list'!I97","v":false}]
[null,{"$f":"'Hlavní list'!B98","v":"Výměna zářivek"},null,{"$f":"IF(ISBLANK('Hlavní list'!C98),\"\",'Hlavní list'!C98)","v":"počet vyměňovaných zdrojů 0, celkový příkon 0 W, průměrný příkon zdroje 0 W"},null,{"$f":"IF(ISBLANK('Hlavní list'!E98),\"\",'Hlavní list'!E98)","v":""},null,null,null,{"$f":"'Hlavní list'!I98","v":false}]
[null,{"$f":"'Hlavní list'!B99","v":"Výměna rtuťových výbojek"},null,{"$f":"IF(ISBLANK('Hlavní list'!C99),\"\",'Hlavní list'!C99)","v":"počet vyměňovaných zdrojů 0, celkový příkon 0 W, průměrný příkon zdroje 0 W"},null,{"$f":"IF(ISBLANK('Hlavní list'!E99),\"\",'Hlavní list'!E99)","v":""},null,null,null,{"$f":"'Hlavní list'!I99","v":false}]
[null,{"$f":"'Hlavní list'!B100","v":"Výměna kompaktních zářivek (CFL)"},null,{"$f":"IF(ISBLANK('Hlavní list'!C100),\"\",'Hlavní list'!C100)","v":"počet vyměňovaných zdrojů 0, celkový příkon 0 W, průměrný příkon zdroje 0 W"},null,{"$f":"IF(ISBLANK('Hlavní list'!E100),\"\",'Hlavní list'!E100)","v":""},null,null,null,{"$f":"'Hlavní list'!I100","v":false}]
[null,{"$f":"'Hlavní list'!B101","v":"FVE"},null,{"$f":"IF(ISBLANK('Hlavní list'!C101),\"\",'Hlavní list'!C101)","v":""},null,{"$f":"IF(ISBLANK('Hlavní list'!E101),\"\",'Hlavní list'!E101)","v":""},null,null,null,{"$f":"'Hlavní list'!I101","v":false}]
[null,null,null,null,null,null,null,null,null,true]
[null,null,null,null,null,null,null,null,null,true]
[null,"Projekt,  který  je předmětem  energetického  posouzení generuje  roční úsporu  primárních  energetických  vstupů  v hodnotě",null,null,null,null,{"$f":"H74","v":0},"GJ",null,true]
[null,"Způsobilé výdaje pro realizaci projektu jsou ve výši",null,null,null,null,{"$f":"G61","v":0},null,null,true]
[null,"Výše roční úspory emisí CO2 realizované projektem jsou ve výši",null,null,null,null,{"$f":"H83","v":0},"kg",null,true]
[null,"Měrné způsobilé výdaje na snížení CO2",null,null,null,null,{"$f":"IFERROR(G61/H83,0)","v":0},"Kč/kg",null,true]
[null,null,null,null,null,null,null,null,null,true]
[null,"Žadatel, který provedl Energetické posouzení projektu, si zajistil patřičnou kontrolu kvality a platnosti výsledků samo-hodnotícího nástroje. Potvrzuje, že Energetické posouzení bylo provedeno správně a v souladu s podmínkami uvedenými v Příloze č .2 Výzvy v rámci Finančního nástroje Úspory energie - úvěry. Byly použity správné údaje a byla zvolena správná opatření. ",null,null,null,null,null,null,null,true]
[null,"Žadatel je povinen realizovat projekt dle zadaných parametrů v rozsahu popisu zadanými pro správné vyhodnocení energetické úspory. V případě, že by došlo během realizace k odchýlení od plánovaného stavu, je žadatel povinen předložit nové energetické posouzení, které prokáže, že projekt splňuje parametry platné Výzvy programu Úspory energie - úvěry. V případě, že by energetické hodnocení nemohlo být použito pro nový stav, je žadatel povinen postupovat podle pravidel Výzvy, a to zpracovat energetický posudek a následně ověřovací energetický posudek, který prokáže splnění podmínek Výzvy.",null,null,null,null,null,null,null,true]
[null,null,null,null,null,null,null,null,null,true]
[null,null,null,null,null,null,null,null,null,true]
[null,null,null,null,null,null,null,null,null,true]
[null,null,null,null,null,null,null,null,null,true]
[null,null,null,null,null,null,null,null,null,true]
[null,"Dne",{"$f":"TODAY()","v":"2024-10-03"},null,null,null,null,null,null,true]
[null,null,null,null,"Jméno osoby jednající za žadatele a podpis",null,null,null,null,true]

{"sheet":"Export","index":7,"n_rows":5,"n_cols":152,"rows_kept":5,"cut":false,"hidden":true,"merged":[]}
["Hlavní list",null,null,null,null,null,null,null,null,null,null,null,null,null,null,null,"Zateplení",null,null,null,null,null,null,null,null,null,null,null,null,null,null,null,null,null,null,null,null,null,null,null,null,null,null,null,null,null,null,null,null,null,null,null,null,null,null,null,null,null,null,null,null,null,null,null,null,null,null,null,null,null,null,null,null,null,null,null,null,null,null,null,null,null,null,null,null,null,null,null,"Zdroj",null,null,null,null,null,null,null,null,null,null,null,null,null,"Osvětlení",null,null,null,null,null,null,null,null,null,null,null,null,null,null,null,null,null,null,null,null,null,null,null,null,null,null,null,null,null,"Hlavní list",null,null,null,null,null,null,null,null,null,null,null,null,null,null,"FVE"]
[null,null,null,null,null,null,null,null,null,null,null,null,null,null,null,null,"Základní informace o budově / Basic information about the building",null,null,null,null,null,null,null,null,null,null,null,"Vyhodnocení plnění požadavků dle Průkazu energetické náročnosti",null,null,null,null,null,"Vlastnosti budovy před realizací opatření / Building description",null,null,null,null,null,null,null,"Opatření k realizaci / Measures for implementation",null,null,null,null,null,null,null,null,null,null,null,null,null,null,null,null,null,null,null,null,null,null,null,null,null,null,null,null,null,null,null,null,null,null,null,null,null,null,null,null,null,null,null,null,null,"Parametry stávajícího zdroje tepla/Old boiler parameters",null,null,null,null,null,null,null,"Parametry nového zdroje tepla / New boiler parameters",null,null,null,null,null,"Jakého typu jsou stávající světelné zdroje? / What type of lighting do you plan to replace?",null,null,null,null,null,null,null,null,null,null,null,null,null,null,null,null,null,null,null,null,null,null,null,null,null,null,null,null,null,"3. Výsledky / Results"]
[null,null,null,null,null,null,null,null,null,null,null,null,null,null,null,null,"1.1","1.2","1.3.","1.4","1.5","1.6","1.7","1.8","1.9","1.10","1.11","1.12","2.1","2.2","2.3","2.4","2.5","2.6","3.1.1","3.1.2","3.1.3","3.1.4","3.1.5","3.1.6","3.1.7","3.1.8","4.1.1","4.1.2","4.1.3","4.1.4","4.1.5","4.1.6","4.1.7","4.1.8","4.2.1","4.2.2","4.2.3","4.2.4","4.2.5","4.2.6","4.2.7","4.2.8","4.3.1","4.3.2","4.3.3","4.3.4","4.3.5","4.3.6","4.3.7","4.3.8","4.4.1","4.4.2","4.4.3","4.4.4","4.4.5","4.4.6","4.5.1","4.5.2","4.5.3","4.5.4","4.5.5","4.5.6","4.6.1","4.6.2","4.6.3","4.6.4","4.6.5","4.6.6","4.7.1","4.7.2","4.7.3",null,"1.1","1.2","1.3","1.4","1.5","1.6","1.7","1.8","2.1","2.2","2.3","2.4","2.5","2.6","1.1.1","1.1.2","1.1.3","1.1.4","1.1.5","1.2.1","1.2.2","1.2.3","1.2.4","1.2.5","1.3.1","1.3.2","1.3.3","1.3.4","1.3.5","1.4.1","1.4.2","1.4.3","1.4.4","1.4.5","1.5.1","1.5.2","1.5.3","1.5.4","1.5.5","2.1.1","2.1.2","2.2","2.3","3.1",null,null,null,null,null,null,null,null,null,null,null,null,null,null,null,1.1000000000000001,1.2,1.3,"1.4a","1.4b"]
[{"$f":"TRANSPOSE('Hlavní list'!B6:B11)","v":"Název projektu:"},"Klient:","IČ klienta:","Adresa žadatele:","Adresa místa realizace projektu:","Popis projektu:",{"$f":"TRANSPOSE('Hlavní list'!B14:B15)","v":"Součástí projektu je náhrada zařízení, které již nelze používat ze zákona."},"Způsob veřejné podpory","Výdaje na technické zhodnocení stavby ","Výdaje na výměnu stávajícího zdroje energie (výměna kotle, apod.) ","Výdaje na provedení výměny stávajícího osvětlení v budovách","Náklady projektu:","1. Výměna zdroje tepla / Boiler replacement","2. Zateplení, výměna oken / thermal insulation, windows replacement","3. Náhrada světelných zdrojů LED zdroji / Replacement of lighting with LED","4.\nFVE","Jakým způsobem budete zadávat projekt?","Typ posuzovaného objektu","Památková ochrana budovy","Znáte roční spotřebu budovy?","Jaká je roční spotřeba domu? ","Jaká je celková vytápěná plocha? ","Období výstavby","Vnitřní návrhová teplota v otopném období ","Dochází v projektu ke změně zdroje na vytápění?","Jaký typ zdroje je instalován?","Jaké se používá palivo?","Jak účinná je soustava zásobování teplem (SZT)?","Vypočtená hodnota průměrného součinitele prostupu tepla Uem po realizaci projektu","Referenční hodnota průměrného součinitele prostupu tepla Uem,R po realizaci projektu","Vypočtená hodnota dodané energie ER po realizaci projektu","Vypočtená hodnota referenční dodané energie ER po realizaci projektu","Vypočtená hodnota dodané energie ER před realizací projektu","Vyhodnocení plnění požadavků na energetickou náročnost pro projekt jako celek","Obvodový plášť","Střecha","Střecha - typ konstrukce","Podlaha, strop nad suterénem","Podlaha, strop nad suterénem typ konstrukce","Okna","Dveře, vrata","Střešní okna, světlíky","Vyberte ano / ne","Typ zateplení","Tloušťka tepelné izolace [mm]","Plocha zateplované konstrukce [m2]","Součinitel prostupu tepla konstrukce z PENB [W/(m2.K)]","Součinitel prostupu tepla výpočet z kalkulačky  [W/(m2.K)]","Požadavek programu na U [W/(m2.K)]","Vyhodnocení plnění požadavku","Vyberte ano / ne","Typ zateplení","Tloušťka tepelné izolace [mm]","Plocha zateplované konstrukce [m2]","Součinitel prostupu tepla konstrukce z PENB [W/(m2.K)]","Součinitel prostupu tepla výpočet z kalkulačky  [W/(m2.K)]","Požadavek programu na U [W/(m2.K)]","Vyhodnocení plnění požadavku","Vyberte ano / ne","Typ zateplení","Tloušťka tepelné izolace [mm]","Plocha zateplované konstrukce [m2]","Součinitel prostupu tepla konstrukce z PENB [W/(m2.K)]","Součinitel prostupu tepla výpočet z kalkulačky  [W/(m2.K)]","Požadavek programu na U [W/(m2.K)]","Vyhodnocení plnění požadavku","Vyberte ano / ne","Typ oken"," Plocha vyměňovaných oken [m2]","Součinitel prostupu tepla nových oken [W/(m2.K)]","Požadavek programu na U [W/(m2.K)]","Vyhodnocení plnění požadavku","Vyberte ano / ne","Typ dveří, vrat"," Plocha vyměňovaných dveří, vrat [m2]","Součinitel prostupu tepla nových dveří, vrat [W/(m2.K)]","Požadavek programu na U [W/(m2.K)]","Vyhodnocení plnění požadavku","Vyberte ano / ne","Typ oken"," Plocha vyměňovaných oken [m2]","Součinitel prostupu tepla nových oken [W/(m2.K)]","Požadavek programu na U [W/(m2.K)]","Vyhodnocení plnění požadavku","Vyberte ano / ne","účinnost systému nuceného větrání v %","větraný objem v m3/h","vyhonocení plnění požadavků","O jaký typ zdroje se jedná?","V jakém období byl Zdroj vyroben?","Jaké se používá palivo?","Jak účinná je soustava zásobování teplem (SZT)?","Jaká je spotřeba paliva za jeden rok?","Znáte účinnost kotle?","Jaká je účinnost?","Jaký je instalovaný výkon kotle?","Jaký je typ nového kotle?","Znáte účinnost nového kotle?","Jaká je účinnost?","Jaký je instalovaný výkon zdroje?","Znáte sezónní účinnost (COP) tepelného čerpadla?","Zadejte sezónní účinnost tepelného čerpadla","Jsou to klasické žárovky?","Jaký je jejich počet?","Znáte celkový příkon všech klasických žárovek?","Uveďte jejich celkový příkon","Jaký je průměrný příkon klasických žárovek?","Halogenové žárovky","Jaký je jejich počet?","Znáte celkový příkon všech halogenových žárovek?","Uveďte jejich celkový příkon","Jaký je průměrný příkon halogenových žárovek?","Zářivky / Fluorescent lamp","Jaký je jejich počet?","Znáte celkový příkon všech zářivek?","Uveďte jejich celkový příkon","Jaký je průměrný příkon zářivek?","Rtuťové výbojky / Discharge lamp","Jaký je jejich počet?","Znáte celkový příkon všech rtuťových výbojek?","Uveďte jejich celkový příkon","Jaký je průměrný příkon rtuťových výbojek?","Kompaktní zářivky (CFL) / Compact fluorescent lamps","Jaký je jejich počet?","Znáte celkový příkon všech kompaktních zářivek?","Uveďte jejich celkový příkon","Jaký je průměrný příkon kompaktních zářivek?","Znáte celkovou spotřebu elektřiny všech světelných zdrojů?","Uveďte spotřebu elektřiny?","Kolik hodin denně jsou v průměru zapnuté všechny světelné zdroje?","Jaký se počet uvažovaných pracovních dní za rok?","Je výměna osvětlení zahrnuta v PENB?","Výchozí roční konečná spotřeba energie\n[kWh]","Výsledná roční konečná spotřeba energie\n[kWh]","Roční úspora v konečné spotřebě energie\n[kWh]","Roční výroba FVE \n[kWh]","Výchozí roční spotřeba neobnovitelné primární energie\n[kWh]","Výsledná roční spotřeba neobnovitelné primární energie\n[kWh]","Roční úspora neobnovitelné primární energie\n[kWh]","Roční úspora neobnovitelné primární energie [%]","Roční úspora neobnovitelné primární energie včetně FVE\n[kWh]","Roční úspora emisí CO2\n[kg]","Roční úspora emisí CO2\n[%]","Roční úspora emisí tuhých látek\n[kg]","Roční úspora emisí frakcí PM10\n[kg]","Roční úspora emisí  frakcí PM2,5\n[kg]","Roční úspora nákladů na energii\n[Kč]",{"$f":"FVE!C4","v":"Jaký je jmenovitý instalovaný výkon FVE ?"},{"$f":"FVE!C5","v":"Jaká je předpokládaná roční výroba elektrické energie z FVE ?"},{"$f":"FVE!C6","v":"Je součástí projektu instalace FVE také akumulace elektrické energie do baterie?"},{"$f":"FVE!C7","v":"Jaká je jmenovitá kapacita instalované baterie ?"},{"$f":"FVE!C8","v":"Jaká je celková roční spotřeba elektrické energie v budově / budovách, pro které se FVE instaluje ?"}]
[{"$f":"TRANSPOSE('Hlavní list'!C6:C11)","v":0},0,0,0,0,0,{"$f":"TRANSPOSE('Hlavní list'!D14:D15)","v":0},0,{"$f":"'Hlavní list'!D25","v":0},{"$f":"'Hlavní list'!D26","v":0},{"$f":"'Hlavní list'!D27","v":0},{"$f":"'Hlavní list'!D29","v":0},{"$f":"Parametry!B113","v":0},{"$f":"Parametry!B114","v":0},{"$f":"Parametry!B115","v":0},{"$f":"Parametry!B116","v":0},{"$f":"IF(Parametry!B140=1,Parametry!A123,Parametry!A124)","v":0},{"$f":"Zateplení!F6","v":0},{"$f":"Zateplení!F7","v":0},{"$f":"Zateplení!F8","v":0},{"$f":"Zateplení!F9","v":0},{"$f":"Zateplení!F10","v":0},{"$f":"Zateplení!F11","v":0},{"$f":"Zateplení!F12","v":0},{"$f":"Zateplení!F13","v":0},{"$f":"Zateplení!F14","v":0},{"$f":"Zateplení!F15","v":0},{"$f":"Zateplení!F16","v":0},{"$f":"Zateplení!F19","v":0},{"$f":"Zateplení!F20","v":0},{"$f":"Zateplení!F21","v":0},{"$f":"Zateplení!F22","v":0},{"$f":"Zateplení!#REF!","v":{"$error":"#REF!"}},{"$f":"Zateplení!F23","v":0},{"$f":"Zateplení!F29","v":0},{"$f":"Zateplení!#REF!","v":{"$error":"#REF!"}},{"$f":"Zateplení!F31","v":0},{"$f":"Zateplení!F32","v":0},{"$f":"Zateplení!#REF!","v":{"$error":"#REF!"}},{"$f":"Zateplení!F34","v":0},{"$f":"Zateplení!#REF!","v":{"$error":"#REF!"}},{"$f":"Zateplení!F36","v":0},{"$f":"Zateplení!#REF!","v":{"$error":"#REF!"}},{"$f":"Zateplení!F40","v":0},{"$f":"Zateplení!F41","v":0},{"$f":"Zateplení!F42","v":0},{"$f":"Zateplení!F43","v":0},{"$f":"Zateplení!F44","v":0},{"$f":"Zateplení!F45","v":0},{"$f":"Zateplení!F54","v":0},{"$f":"Zateplení!F47","v":""},{"$f":"Zateplení!F48","v":""},{"$f":"Zateplení!F49","v":"Zateplení obvodových stěn splňuje požadavky programu."},{"$f":"Zateplení!F50","v":0},{"$f":"Zateplení!F51","v":0},{"$f":"Zateplení!F52","v":0},{"$f":"Zateplení!F53","v":0},{"$f":"Zateplení!F54","v":0},{"$f":"Zateplení!F55","v":""},{"$f":"Zateplení!F56","v":""},{"$f":"Zateplení!F57","v":"Zateplení střechy splňuje požadavky programu."},{"$f":"Zateplení!F58","v":0},{"$f":"Zateplení!F59","v":0},{"$f":"Zateplení!F60","v":0},{"$f":"Zateplení!F61","v":0},{"$f":"Zateplení!F62","v":0},{"$f":"Zateplení!F63","v":""},{"$f":"Zateplení!F64","v":""},{"$f":"Zateplení!F65","v":"Zateplení podlahy splňuje požadavky programu."},{"$f":"Zateplení!F66","v":0},{"$f":"Zateplení!F67","v":0},{"$f":"Zateplení!F68","v":0},{"$f":"Zateplení!F69","v":0},{"$f":"Zateplení!F70","v":""},{"$f":"Zateplení!F71","v":"Okna splňují požadavky programu."},{"$f":"Zateplení!F72","v":0},{"$f":"Zateplení!F73","v":0},{"$f":"Zateplení!F74","v":0},{"$f":"Zateplení!F75","v":0},{"$f":"Zateplení!F76","v":""},{"$f":"Zateplení!F77","v":"Dveře/vrata splňují požadavky programu."},{"$f":"Zateplení!F78","v":0},{"$f":"Zateplení!F79","v":0},{"$f":"Zateplení!F80","v":0},{"$f":"Zateplení!F81","v":0},{"$f":"Zateplení!F82","v":""},{"$f":"Zateplení!F83","v":"Světlíky/střešní okna splňují požadavky programu."},{"$f":"Zateplení!G82","v":"Hodnota je nastavená dle specifických podmínek programu a vámi zvoleného typu budovy a dalších kritérií"},{"$f":"Zdroj!E4","v":0},{"$f":"Zdroj!E5","v":0},{"$f":"Zdroj!E6","v":0},{"$f":"Zdroj!E7","v":0},{"$f":"Zdroj!E8","v":0},{"$f":"Zdroj!E9","v":0},{"$f":"Parametry!G79","v":0},{"$f":"Zdroj!E13","v":0},{"$f":"Zdroj!E16","v":0},{"$f":"Zdroj!E17","v":0},{"$f":"Parametry!G80","v":0},{"$f":"Zdroj!E19","v":0},{"$f":"Zdroj!E20","v":0},{"$f":"Zdroj!E21","v":0},{"$f":"Osvětlení!E4","v":0},{"$f":"Osvětlení!E5","v":0},{"$f":"Osvětlení!E6","v":0},{"$f":"Osvětlení!E7","v":0},{"$f":"Osvětlení!E8","v":0},{"$f":"Osvětlení!E10","v":0},{"$f":"Osvětlení!E11","v":0},{"$f":"Osvětlení!E12","v":0},{"$f":"Osvětlení!E13","v":0},{"$f":"Osvětlení!E14","v":0},{"$f":"Osvětlení!E16","v":0},{"$f":"Osvětlení!E17","v":0},{"$f":"Osvětlení!E18","v":0},{"$f":"Osvětlení!E19","v":0},{"$f":"Osvětlení!E20","v":0},{"$f":"Osvětlení!E22","v":0},{"$f":"Osvětlení!E23","v":0},{"$f":"Osvětlení!E24","v":0},{"$f":"Osvětlení!E25","v":0},{"$f":"Osvětlení!E26","v":0},{"$f":"Osvětlení!E28","v":0},{"$f":"Osvětlení!E29","v":0},{"$f":"Osvětlení!E30","v":0},{"$f":"Osvětlení!E31","v":0},{"$f":"Osvětlení!E32","v":0},{"$f":"Osvětlení!E35","v":0},{"$f":"Osvětlení!E36","v":0},{"$f":"Osvětlení!E37","v":0},{"$f":"Osvětlení!E38","v":0},{"$f":"Osvětlení!E40","v":0},{"$f":"'Hlavní list'!C43","v":0},{"$f":"'Hlavní list'!C44","v":"Celkem / Total"},{"$f":"'Hlavní list'!C45","v":"kWh"},{"$f":"'Hlavní list'!C54","v":0},{"$f":"'Hlavní list'!C56","v":0},{"$f":"'Hlavní list'!C57","v":0},{"$f":"'Hlavní list'!C62","v":0},null,null,null,null,null,null,null,null,{"$f":"FVE!E4","v":0},{"$f":"FVE!E5","v":0},{"$f":"FVE!E6","v":0},{"$f":"FVE!E7","v":0},{"$f":"FVE!E8","v":0}]

{"sheet":"Vstupy","index":8,"n_rows":216,"n_cols":5,"rows_kept":216,"cut":false,"hidden":true,"merged":[]}
["Tool NRB",{"$f":"Verze","v":"Verze - 14.01"}]
[]
["Odkaz","Default","List","Buňka","Hodnota"]
[{"$f":"CELL(\"odkaz\",'Hlavní list'!C6)","v":"'[12 - Kalkulačka_2024_09_30.xlsm]Hlavní list'!$C$6"},null,{"$f":"MID(SUBSTITUTE(A4,\"'\",\"\"),FIND(\"]\",SUBSTITUTE(A4,\"'\",\"\"))+1,FIND(\"!\",SUBSTITUTE(A4,\"'\",\"\"))-FIND(\"]\",SUBSTITUTE(A4,\"'\",\"\"))-1)","v":"Hlavní list"},{"$f":"MID(A4,SEARCH(\"$\",A4),20)","v":"$C$6"},"a"]
[{"$f":"CELL(\"odkaz\",'Hlavní list'!C7)","v":"'[12 - Kalkulačka_2024_09_30.xlsm]Hlavní list'!$C$7"},null,{"$f":"MID(SUBSTITUTE(A5,\"'\",\"\"),FIND(\"]\",SUBSTITUTE(A5,\"'\",\"\"))+1,FIND(\"!\",SUBSTITUTE(A5,\"'\",\"\"))-FIND(\"]\",SUBSTITUTE(A5,\"'\",\"\"))-1)","v":"Hlavní list"},{"$f":"MID(A5,SEARCH(\"$\",A5),20)","v":"$C$7"},"b"]
[{"$f":"CELL(\"odkaz\",'Hlavní list'!C8)","v":"'[12 - Kalkulačka_2024_09_30.xlsm]Hlavní list'!$C$8"},null,"Hlavní list","$C$8","c "]
[{"$f":"CELL(\"odkaz\",'Hlavní list'!C9)","v":"'[12 - Kalkulačka_2024_09_30.xlsm]Hlavní list'!$C$9"},null,"Hlavní list","$C$9","d"]
[{"$f":"CELL(\"odkaz\",'Hlavní list'!C10)","v":"'[12 - Kalkulačka_2024_09_30.xlsm]Hlavní list'!$C$10"},null,"Hlavní list","$C$10","e"]
[{"$f":"CELL(\"odkaz\",'Hlavní list'!C11)","v":"'[12 - Kalkulačka_2024_09_30.xlsm]Hlavní list'!$C$11"},null,"Hlavní list","$C$11","f"]
[{"$f":"CELL(\"odkaz\",'Hlavní list'!D14)","v":"'[12 - Kalkulačka_2024_09_30.xlsm]Hlavní list'!$D$14"},null,"Hlavní list","$D$14","ne"]
[{"$f":"CELL(\"odkaz\",'Hlavní list'!D15)","v":"'[12 - Kalkulačka_2024_09_30.xlsm]Hlavní list'!$D$15"},null,"Hlavní list","$D$15","de minimis"]
[{"$f":"CELL(\"odkaz\",Listy!B2)","v":"'[12 - Kalkulačka_2024_09_30.xlsm]Listy'!$B$2"},true,"Listy","$B$2",true]
[{"$f":"CELL(\"odkaz\",Listy!B3)","v":"'[12 - Kalkulačka_2024_09_30.xlsm]Listy'!$B$3"},false,"Listy","$B$3",true]
[{"$f":"CELL(\"odkaz\",Listy!B4)","v":"'[12 - Kalkulačka_2024_09_30.xlsm]Listy'!$B$4"},false,"Listy","$B$4",true]
[{"$f":"CELL(\"odkaz\",Listy!B5)","v":"'[12 - Kalkulačka_2024_09_30.xlsm]Listy'!$B$5"},false,"Listy","$B$5",true]
[{"$f":"CELL(\"odkaz\",Listy!B6)","v":"'[12 - Kalkulačka_2024_09_30.xlsm]Listy'!$B$6"},false,"Listy","$B$6",true]
[{"$f":"CELL(\"odkaz\",Listy!B7)","v":"'[12 - Kalkulačka_2024_09_30.xlsm]Listy'!$B$7"},false,"Listy","$B$7",false]
[{"$f":"CELL(\"odkaz\",Listy!B8)","v":"'[12 - Kalkulačka_2024_09_30.xlsm]Listy'!$B$8"},false,{"$f":"MID(SUBSTITUTE(A18,\"'\",\"\"),FIND(\"]\",SUBSTITUTE(A18,\"'\",\"\"))+1,FIND(\"!\",SUBSTITUTE(A18,\"'\",\"\"))-FIND(\"]\",SUBSTITUTE(A18,\"'\",\"\"))-1)","v":"Listy"},{"$f":"MID(A18,SEARCH(\"$\",A18),20)","v":"$B$8"},false]
[{"$f":"CELL(\"odkaz\",'Hlavní list'!D26)","v":"'[12 - Kalkulačka_2024_09_30.xlsm]Hlavní list'!$D$26"},null,"Hlavní list","$D$26",1000000]
[{"$f":"CELL(\"odkaz\",'Hlavní list'!D27)","v":"'[12 - Kalkulačka_2024_09_30.xlsm]Hlavní list'!$D$27"},null,"Hlavní list","$D$27",1000000]
[{"$f":"CELL(\"odkaz\",'Hlavní list'!D28)","v":"'[12 - Kalkulačka_2024_09_30.xlsm]Hlavní list'!$D$28"},null,"Hlavní list","$D$28",1000000]
[{"$f":"CELL(\"odkaz\",'Hlavní list'!D29)","v":"'[12 - Kalkulačka_2024_09_30.xlsm]Hlavní list'!$D$29"},null,"Hlavní list","$D$29",500000]
[{"$f":"CELL(\"odkaz\",'Hlavní list'!D30)","v":"'[12 - Kalkulačka_2024_09_30.xlsm]Hlavní list'!$D$30"},null,"Hlavní list","$D$30",1000000]
[{"$f":"CELL(\"odkaz\",Zateplení!F4)","v":"'[12 - Kalkulačka_2024_09_30.xlsm]Zateplení'!$F$4"},null,"Zateplení","$F$4","Obecné zadaní projektu (vyplnění Kalkulačky)"]
[{"$f":"CELL(\"odkaz\",Zateplení!F5)","v":"'[12 - Kalkulačka_2024_09_30.xlsm]Zateplení'!$F$5"},null,{"$f":"MID(SUBSTITUTE(A25,\"'\",\"\"),FIND(\"]\",SUBSTITUTE(A25,\"'\",\"\"))+1,FIND(\"!\",SUBSTITUTE(A25,\"'\",\"\"))-FIND(\"]\",SUBSTITUTE(A25,\"'\",\"\"))-1)","v":"Zateplení"},{"$f":"MID(A25,SEARCH(\"$\",A25),20)","v":"$F$5"}]
[{"$f":"CELL(\"odkaz\",Zateplení!F6)","v":"'[12 - Kalkulačka_2024_09_30.xlsm]Zateplení'!$F$6"},null,"Zateplení","$F$6","Výrobní hala"]
[{"$f":"CELL(\"odkaz\",Zateplení!F7)","v":"'[12 - Kalkulačka_2024_09_30.xlsm]Zateplení'!$F$7"},null,"Zateplení","$F$7","ne"]
[{"$f":"CELL(\"odkaz\",Zateplení!F8)","v":"'[12 - Kalkulačka_2024_09_30.xlsm]Zateplení'!$F$8"},null,{"$f":"MID(SUBSTITUTE(A28,\"'\",\"\"),FIND(\"]\",SUBSTITUTE(A28,\"'\",\"\"))+1,FIND(\"!\",SUBSTITUTE(A28,\"'\",\"\"))-FIND(\"]\",SUBSTITUTE(A28,\"'\",\"\"))-1)","v":"Zateplení"},{"$f":"MID(A28,SEARCH(\"$\",A28),20)","v":"$F$8"},"ne"]
[{"$f":"CELL(\"odkaz\",Zateplení!F9)","v":"'[12 - Kalkulačka_2024_09_30.xlsm]Zateplení'!$F$9"},null,"Zateplení","$F$9"]
[{"$f":"CELL(\"odkaz\",Zateplení!F10)","v":"'[12 - Kalkulačka_2024_09_30.xlsm]Zateplení'!$F$10"},null,"Zateplení","$F$10",400]
[{"$f":"CELL(\"odkaz\",Zateplení!F11)","v":"'[12 - Kalkulačka_2024_09_30.xlsm]Zateplení'!$F$11"},null,"Zateplení","$F$11","1961 až 1980"]
[{"$f":"CELL(\"odkaz\",Zateplení!F12)","v":"'[12 - Kalkulačka_2024_09_30.xlsm]Zateplení'!$F$12"},null,"Zateplení","$F$12",18]
[{"$f":"CELL(\"odkaz\",Zateplení!F13)","v":"'[12 - Kalkulačka_2024_09_30.xlsm]Zateplení'!$F$13"},null,"Zateplení","$F$13","kotel na zemní plyn"]
[{"$f":"CELL(\"odkaz\",Zateplení!F14)","v":"'[12 - Kalkulačka_2024_09_30.xlsm]Zateplení'!$F$14"},null,"Zateplení","$F$14"]
[{"$f":"CELL(\"odkaz\",Zateplení!F15)","v":"'[12 - Kalkulačka_2024_09_30.xlsm]Zateplení'!$F$15"},null,"Zateplení","$F$15"]
[{"$f":"CELL(\"odkaz\",Zateplení!F17)","v":"'[12 - Kalkulačka_2024_09_30.xlsm]Zateplení'!$F$17"},null,"Zateplení","$F$17"]
[{"$f":"CELL(\"odkaz\",Zateplení!F18)","v":"'[12 - Kalkulačka_2024_09_30.xlsm]Zateplení'!$F$18"},null,"Zateplení","$F$18"]
[{"$f":"CELL(\"odkaz\",Zateplení!F19)","v":"'[12 - Kalkulačka_2024_09_30.xlsm]Zateplení'!$F$19"},null,"Zateplení","$F$19"]
[{"$f":"CELL(\"odkaz\",Zateplení!F20)","v":"'[12 - Kalkulačka_2024_09_30.xlsm]Zateplení'!$F$20"},null,"Zateplení","$F$20"]
[{"$f":"CELL(\"odkaz\",Zateplení!F21)","v":"'[12 - Kalkulačka_2024_09_30.xlsm]Zateplení'!$F$21"},null,"Zateplení","$F$21"]
[{"$f":"CELL(\"odkaz\",Zateplení!F22)","v":"'[12 - Kalkulačka_2024_09_30.xlsm]Zateplení'!$F$22"},null,"Zateplení","$F$22"]
[{"$f":"CELL(\"odkaz\",Zateplení!F26)","v":"'[12 - Kalkulačka_2024_09_30.xlsm]Zateplení'!$F$26"},null,"Zateplení","$F$26","zdivo z děrovaných cihel a tvárnic tloušťky cca 300 mm"]
[{"$f":"CELL(\"odkaz\",Zateplení!F27)","v":"'[12 - Kalkulačka_2024_09_30.xlsm]Zateplení'!$F$27"},null,{"$f":"MID(SUBSTITUTE(A43,\"'\",\"\"),FIND(\"]\",SUBSTITUTE(A43,\"'\",\"\"))+1,FIND(\"!\",SUBSTITUTE(A43,\"'\",\"\"))-FIND(\"]\",SUBSTITUTE(A43,\"'\",\"\"))-1)","v":"Zateplení"},{"$f":"MID(A43,SEARCH(\"$\",A43),20)","v":"$F$27"},500]
[{"$f":"CELL(\"odkaz\",Zateplení!F28)","v":"'[12 - Kalkulačka_2024_09_30.xlsm]Zateplení'!$F$28"},null,"Zateplení","$F$28","plochá střecha"]
[{"$f":"CELL(\"odkaz\",Zateplení!F29)","v":"'[12 - Kalkulačka_2024_09_30.xlsm]Zateplení'!$F$29"},null,"Zateplení","$F$29","plochá jednoplášťová střecha s tepelnou izolací z polystyrénu tl. 50 mm"]
[{"$f":"CELL(\"odkaz\",Zateplení!F30)","v":"'[12 - Kalkulačka_2024_09_30.xlsm]Zateplení'!$F$30"},null,{"$f":"MID(SUBSTITUTE(A46,\"'\",\"\"),FIND(\"]\",SUBSTITUTE(A46,\"'\",\"\"))+1,FIND(\"!\",SUBSTITUTE(A46,\"'\",\"\"))-FIND(\"]\",SUBSTITUTE(A46,\"'\",\"\"))-1)","v":"Zateplení"},{"$f":"MID(A46,SEARCH(\"$\",A46),20)","v":"$F$30"},400]
[{"$f":"CELL(\"odkaz\",Zateplení!F31)","v":"'[12 - Kalkulačka_2024_09_30.xlsm]Zateplení'!$F$31"},null,"Zateplení","$F$31","podlaha na zemině"]
[{"$f":"CELL(\"odkaz\",Zateplení!F32)","v":"'[12 - Kalkulačka_2024_09_30.xlsm]Zateplení'!$F$32"},null,"Zateplení","$F$32","podlaha na zemině nezateplená"]
[{"$f":"CELL(\"odkaz\",Zateplení!F33)","v":"'[12 - Kalkulačka_2024_09_30.xlsm]Zateplení'!$F$33"},null,{"$f":"MID(SUBSTITUTE(A49,\"'\",\"\"),FIND(\"]\",SUBSTITUTE(A49,\"'\",\"\"))+1,FIND(\"!\",SUBSTITUTE(A49,\"'\",\"\"))-FIND(\"]\",SUBSTITUTE(A49,\"'\",\"\"))-1)","v":"Zateplení"},{"$f":"MID(A49,SEARCH(\"$\",A49),20)","v":"$F$33"},400]
[{"$f":"CELL(\"odkaz\",Zateplení!F34)","v":"'[12 - Kalkulačka_2024_09_30.xlsm]Zateplení'!$F$34"},null,"Zateplení","$F$34","okna dřevěná zdvojená se 2 skly"]
[{"$f":"CELL(\"odkaz\",Zateplení!F35)","v":"'[12 - Kalkulačka_2024_09_30.xlsm]Zateplení'!$F$35"},null,{"$f":"MID(SUBSTITUTE(A51,\"'\",\"\"),FIND(\"]\",SUBSTITUTE(A51,\"'\",\"\"))+1,FIND(\"!\",SUBSTITUTE(A51,\"'\",\"\"))-FIND(\"]\",SUBSTITUTE(A51,\"'\",\"\"))-1)","v":"Zateplení"},{"$f":"MID(A51,SEARCH(\"$\",A51),20)","v":"$F$35"},70]
[{"$f":"CELL(\"odkaz\",Zateplení!F36)","v":"'[12 - Kalkulačka_2024_09_30.xlsm]Zateplení'!$F$36"},null,"Zateplení","$F$36","dveře/vrata kovová plná"]
[{"$f":"CELL(\"odkaz\",Zateplení!F37)","v":"'[12 - Kalkulačka_2024_09_30.xlsm]Zateplení'!$F$37"},null,{"$f":"MID(SUBSTITUTE(A53,\"'\",\"\"),FIND(\"]\",SUBSTITUTE(A53,\"'\",\"\"))+1,FIND(\"!\",SUBSTITUTE(A53,\"'\",\"\"))-FIND(\"]\",SUBSTITUTE(A53,\"'\",\"\"))-1)","v":"Zateplení"},{"$f":"MID(A53,SEARCH(\"$\",A53),20)","v":"$F$37"},30]
[{"$f":"CELL(\"odkaz\",Zateplení!F38)","v":"'[12 - Kalkulačka_2024_09_30.xlsm]Zateplení'!$F$38"},null,"Zateplení","$F$38"]
[{"$f":"CELL(\"odkaz\",Zateplení!F39)","v":"'[12 - Kalkulačka_2024_09_30.xlsm]Zateplení'!$F$39"},null,{"$f":"MID(SUBSTITUTE(A55,\"'\",\"\"),FIND(\"]\",SUBSTITUTE(A55,\"'\",\"\"))+1,FIND(\"!\",SUBSTITUTE(A55,\"'\",\"\"))-FIND(\"]\",SUBSTITUTE(A55,\"'\",\"\"))-1)","v":"Zateplení"},{"$f":"MID(A55,SEARCH(\"$\",A55),20)","v":"$F$39"}]
[{"$f":"CELL(\"odkaz\",Zateplení!F42)","v":"'[12 - Kalkulačka_2024_09_30.xlsm]Zateplení'!$F$42"},null,"Zateplení","$F$42","ano"]
[{"$f":"CELL(\"odkaz\",Zateplení!F43)","v":"'[12 - Kalkulačka_2024_09_30.xlsm]Zateplení'!$F$43"},null,"Zateplení","$F$43","zateplení kontaktní systém,  EPS"]
[{"$f":"CELL(\"odkaz\",Zateplení!F44)","v":"'[12 - Kalkulačka_2024_09_30.xlsm]Zateplení'!$F$44"},null,"Zateplení","$F$44",280]
[{"$f":"CELL(\"odkaz\",Zateplení!F45)","v":"'[12 - Kalkulačka_2024_09_30.xlsm]Zateplení'!$F$45"},null,"Zateplení","$F$45",500]
[{"$f":"CELL(\"odkaz\",Zateplení!F46)","v":"'[12 - Kalkulačka_2024_09_30.xlsm]Zateplení'!$F$46"},null,"Zateplení","$F$46"]
[{"$f":"CELL(\"odkaz\",Zateplení!F50)","v":"'[12 - Kalkulačka_2024_09_30.xlsm]Zateplení'!$F$50"},null,"Zateplení","$F$50","ano"]
[{"$f":"CELL(\"odkaz\",Zateplení!F51)","v":"'[12 - Kalkulačka_2024_09_30.xlsm]Zateplení'!$F$51"},null,"Zateplení","$F$51","zateplení ploché střechy, EPS"]
[{"$f":"CELL(\"odkaz\",Zateplení!F52)","v":"'[12 - Kalkulačka_2024_09_30.xlsm]Zateplení'!$F$52"},null,"Zateplení","$F$52",380]
[{"$f":"CELL(\"odkaz\",Zateplení!F53)","v":"'[12 - Kalkulačka_2024_09_30.xlsm]Zateplení'!$F$53"},null,"Zateplení","$F$53",400]
[{"$f":"CELL(\"odkaz\",Zateplení!F54)","v":"'[12 - Kalkulačka_2024_09_30.xlsm]Zateplení'!$F$54"},null,"Zateplení","$F$54"]
[{"$f":"CELL(\"odkaz\",Zateplení!F58)","v":"'[12 - Kalkulačka_2024_09_30.xlsm]Zateplení'!$F$58"},null,"Zateplení","$F$58","ne"]
[{"$f":"CELL(\"odkaz\",Zateplení!F59)","v":"'[12 - Kalkulačka_2024_09_30.xlsm]Zateplení'!$F$59"},null,"Zateplení","$F$59","zateplení v konstrukci podlahy, EPS"]
[{"$f":"CELL(\"odkaz\",Zateplení!F60)","v":"'[12 - Kalkulačka_2024_09_30.xlsm]Zateplení'!$F$60"},null,"Zateplení","$F$60",200]
[{"$f":"CELL(\"odkaz\",Zateplení!F61)","v":"'[12 - Kalkulačka_2024_09_30.xlsm]Zateplení'!$F$61"},null,"Zateplení","$F$61",400]
[{"$f":"CELL(\"odkaz\",Zateplení!F62)","v":"'[12 - Kalkulačka_2024_09_30.xlsm]Zateplení'!$F$62"},null,{"$f":"MID(SUBSTITUTE(A70,\"'\",\"\"),FIND(\"]\",SUBSTITUTE(A70,\"'\",\"\"))+1,FIND(\"!\",SUBSTITUTE(A70,\"'\",\"\"))-FIND(\"]\",SUBSTITUTE(A70,\"'\",\"\"))-1)","v":"Zateplení"},{"$f":"MID(A70,SEARCH(\"$\",A70),20)","v":"$F$62"}]
[{"$f":"CELL(\"odkaz\",Zateplení!F66)","v":"'[12 - Kalkulačka_2024_09_30.xlsm]Zateplení'!$F$66"},null,"Zateplení","$F$66","ano"]
[{"$f":"CELL(\"odkaz\",Zateplení!F67)","v":"'[12 - Kalkulačka_2024_09_30.xlsm]Zateplení'!$F$67"},null,"Zateplení","$F$67","plastová s izolačním trojsklem"]
[{"$f":"CELL(\"odkaz\",Zateplení!F68)","v":"'[12 - Kalkulačka_2024_09_30.xlsm]Zateplení'!$F$68"},null,"Zateplení","$F$68",70]
[{"$f":"CELL(\"odkaz\",Zateplení!F69)","v":"'[12 - Kalkulačka_2024_09_30.xlsm]Zateplení'!$F$69"},null,"Zateplení","$F$69",0.8]
[{"$f":"CELL(\"odkaz\",Zateplení!F72)","v":"'[12 - Kalkulačka_2024_09_30.xlsm]Zateplení'!$F$72"},null,"Zateplení","$F$72","ano"]
[{"$f":"CELL(\"odkaz\",Zateplení!F73)","v":"'[12 - Kalkulačka_2024_09_30.xlsm]Zateplení'!$F$73"},null,"Zateplení","$F$73","vrata tepelně izolační"]
[{"$f":"CELL(\"odkaz\",Zateplení!F74)","v":"'[12 - Kalkulačka_2024_09_30.xlsm]Zateplení'!$F$74"},null,"Zateplení","$F$74",30]
[{"$f":"CELL(\"odkaz\",Zateplení!F75)","v":"'[12 - Kalkulačka_2024_09_30.xlsm]Zateplení'!$F$75"},null,"Zateplení","$F$75",1]
[{"$f":"CELL(\"odkaz\",Zateplení!F78)","v":"'[12 - Kalkulačka_2024_09_30.xlsm]Zateplení'!$F$78"},null,"Zateplení","$F$78"]
[{"$f":"CELL(\"odkaz\",Zateplení!F79)","v":"'[12 - Kalkulačka_2024_09_30.xlsm]Zateplení'!$F$79"},null,"Zateplení","$F$79"]
[{"$f":"CELL(\"odkaz\",Zateplení!F80)","v":"'[12 - Kalkulačka_2024_09_30.xlsm]Zateplení'!$F$80"},null,"Zateplení","$F$80"]
[{"$f":"CELL(\"odkaz\",Zateplení!F81)","v":"'[12 - Kalkulačka_2024_09_30.xlsm]Zateplení'!$F$81"},null,"Zateplení","$F$81"]
[{"$f":"CELL(\"odkaz\",Rekuperace!D4)","v":"'[12 - Kalkulačka_2024_09_30.xlsm]Rekuperace'!$D$4"},null,"Rekuperace","$D$4",0.85]
[{"$f":"CELL(\"odkaz\",Rekuperace!D5)","v":"'[12 - Kalkulačka_2024_09_30.xlsm]Rekuperace'!$D$5"},null,"Rekuperace","$D$5",1500]
[{"$f":"CELL(\"odkaz\",Rekuperace!D6)","v":"'[12 - Kalkulačka_2024_09_30.xlsm]Rekuperace'!$D$6"},null,"Rekuperace","$D$6"]
[{"$f":"CELL(\"odkaz\",Osvětlení!E4)","v":"'[12 - Kalkulačka_2024_09_30.xlsm]Osvětlení'!$E$4"},null,"Osvětlení","$E$4","ne"]
[{"$f":"CELL(\"odkaz\",Osvětlení!E5)","v":"'[12 - Kalkulačka_2024_09_30.xlsm]Osvětlení'!$E$5"},null,"Osvětlení","$E$5"]
[{"$f":"CELL(\"odkaz\",Osvětlení!E6)","v":"'[12 - Kalkulačka_2024_09_30.xlsm]Osvětlení'!$E$6"},null,"Osvětlení","$E$6"]
[{"$f":"CELL(\"odkaz\",Osvětlení!E7)","v":"'[12 - Kalkulačka_2024_09_30.xlsm]Osvětlení'!$E$7"},null,"Osvětlení","$E$7"]
[{"$f":"CELL(\"odkaz\",Osvětlení!E8)","v":"'[12 - Kalkulačka_2024_09_30.xlsm]Osvětlení'!$E$8"},null,"Osvětlení","$E$8"]
[{"$f":"CELL(\"odkaz\",Osvětlení!E10)","v":"'[12 - Kalkulačka_2024_09_30.xlsm]Osvětlení'!$E$10"},null,"Osvětlení","$E$10","ne"]
[{"$f":"CELL(\"odkaz\",Osvětlení!E11)","v":"'[12 - Kalkulačka_2024_09_30.xlsm]Osvětlení'!$E$11"},null,"Osvětlení","$E$11"]
[{"$f":"CELL(\"odkaz\",Osvětlení!E12)","v":"'[12 - Kalkulačka_2024_09_30.xlsm]Osvětlení'!$E$12"},null,"Osvětlení","$E$12"]
[{"$f":"CELL(\"odkaz\",Osvětlení!E13)","v":"'[12 - Kalkulačka_2024_09_30.xlsm]Osvětlení'!$E$13"},null,"Osvětlení","$E$13"]
[{"$f":"CELL(\"odkaz\",Osvětlení!E14)","v":"'[12 - Kalkulačka_2024_09_30.xlsm]Osvětlení'!$E$14"},null,"Osvětlení","$E$14"]
[{"$f":"CELL(\"odkaz\",Osvětlení!E16)","v":"'[12 - Kalkulačka_2024_09_30.xlsm]Osvětlení'!$E$16"},null,"Osvětlení","$E$16","ne"]
[{"$f":"CELL(\"odkaz\",Osvětlení!E17)","v":"'[12 - Kalkulačka_2024_09_30.xlsm]Osvětlení'!$E$17"},null,"Osvětlení","$E$17"]
[{"$f":"CELL(\"odkaz\",Osvětlení!E18)","v":"'[12 - Kalkulačka_2024_09_30.xlsm]Osvětlení'!$E$18"},null,"Osvětlení","$E$18"]
[{"$f":"CELL(\"odkaz\",Osvětlení!E19)","v":"'[12 - Kalkulačka_2024_09_30.xlsm]Osvětlení'!$E$19"},null,"Osvětlení","$E$19"]
[{"$f":"CELL(\"odkaz\",Osvětlení!E20)","v":"'[12 - Kalkulačka_2024_09_30.xlsm]Osvětlení'!$E$20"},null,"Osvětlení","$E$20"]
[{"$f":"CELL(\"odkaz\",Osvětlení!E22)","v":"'[12 - Kalkulačka_2024_09_30.xlsm]Osvětlení'!$E$22"},null,"Osvětlení","$E$22","ano"]
[{"$f":"CELL(\"odkaz\",Osvětlení!E23)","v":"'[12 - Kalkulačka_2024_09_30.xlsm]Osvětlení'!$E$23"},null,"Osvětlení","$E$23",10]
[{"$f":"CELL(\"odkaz\",Osvětlení!E24)","v":"'[12 - Kalkulačka_2024_09_30.xlsm]Osvětlení'!$E$24"},null,"Osvětlení","$E$24","ne"]
[{"$f":"CELL(\"odkaz\",Osvětlení!E25)","v":"'[12 - Kalkulačka_2024_09_30.xlsm]Osvětlení'!$E$25"},null,"Osvětlení","$E$25"]
[{"$f":"CELL(\"odkaz\",Osvětlení!E26)","v":"'[12 - Kalkulačka_2024_09_30.xlsm]Osvětlení'!$E$26"},null,"Osvětlení","$E$26",500]
[{"$f":"CELL(\"odkaz\",Osvětlení!E28)","v":"'[12 - Kalkulačka_2024_09_30.xlsm]Osvětlení'!$E$28"},null,"Osvětlení","$E$28","ne"]
[{"$f":"CELL(\"odkaz\",Osvětlení!E29)","v":"'[12 - Kalkulačka_2024_09_30.xlsm]Osvětlení'!$E$29"},null,"Osvětlení","$E$29"]
[{"$f":"CELL(\"odkaz\",Osvětlení!E30)","v":"'[12 - Kalkulačka_2024_09_30.xlsm]Osvětlení'!$E$30"},null,"Osvětlení","$E$30"]
[{"$f":"CELL(\"odkaz\",Osvětlení!E31)","v":"'[12 - Kalkulačka_2024_09_30.xlsm]Osvětlení'!$E$31"},null,"Osvětlení","$E$31"]
[{"$f":"CELL(\"odkaz\",Osvětlení!E32)","v":"'[12 - Kalkulačka_2024_09_30.xlsm]Osvětlení'!$E$32"},null,"Osvětlení","$E$32"]
[{"$f":"CELL(\"odkaz\",Osvětlení!E35)","v":"'[12 - Kalkulačka_2024_09_30.xlsm]Osvětlení'!$E$35"},null,"Osvětlení","$E$35","ne"]
[{"$f":"CELL(\"odkaz\",Osvětlení!E36)","v":"'[12 - Kalkulačka_2024_09_30.xlsm]Osvětlení'!$E$36"},null,"Osvětlení","$E$36"]
[{"$f":"CELL(\"odkaz\",Osvětlení!E37)","v":"'[12 - Kalkulačka_2024_09_30.xlsm]Osvětlení'!$E$37"},null,"Osvětlení","$E$37",8]
[{"$f":"CELL(\"odkaz\",Osvětlení!E38)","v":"'[12 - Kalkulačka_2024_09_30.xlsm]Osvětlení'!$E$38"},null,"Osvětlení","$E$38",220]
[{"$f":"CELL(\"odkaz\",Osvětlení!E40)","v":"'[12 - Kalkulačka_2024_09_30.xlsm]Osvětlení'!$E$40"},null,"Osvětlení","$E$40"]
[{"$f":"CELL(\"odkaz\",Zdroj!E4)","v":"'[12 - Kalkulačka_2024_09_30.xlsm]Zdroj'!$E$4"},null,"Zdroj","$E$4","kotel na zemní plyn"]
[{"$f":"CELL(\"odkaz\",Zdroj!E5)","v":"'[12 - Kalkulačka_2024_09_30.xlsm]Zdroj'!$E$5"},null,"Zdroj","$E$5","2000-2010"]
[{"$f":"CELL(\"odkaz\",Zdroj!E6)","v":"'[12 - Kalkulačka_2024_09_30.xlsm]Zdroj'!$E$6"},null,"Zdroj","$E$6"]
[{"$f":"CELL(\"odkaz\",Zdroj!E7)","v":"'[12 - Kalkulačka_2024_09_30.xlsm]Zdroj'!$E$7"},null,"Zdroj","$E$7"]
[{"$f":"CELL(\"odkaz\",Zdroj!E8)","v":"'[12 - Kalkulačka_2024_09_30.xlsm]Zdroj'!$E$8"},null,"Zdroj","$E$8",10000]
[{"$f":"CELL(\"odkaz\",Zdroj!E9)","v":"'[12 - Kalkulačka_2024_09_30.xlsm]Zdroj'!$E$9"},null,"Zdroj","$E$9","ne"]
[{"$f":"CELL(\"odkaz\",Zdroj!E10)","v":"'[12 - Kalkulačka_2024_09_30.xlsm]Zdroj'!$E$10"},null,"Zdroj","$E$10"]
[{"$f":"CELL(\"odkaz\",Zdroj!E11)","v":"'[12 - Kalkulačka_2024_09_30.xlsm]Zdroj'!$E$11"},null,"Zdroj","$E$11"]
[{"$f":"CELL(\"odkaz\",Zdroj!E12)","v":"'[12 - Kalkulačka_2024_09_30.xlsm]Zdroj'!$E$12"},null,"Zdroj","$E$12"]
[{"$f":"CELL(\"odkaz\",Zdroj!E13)","v":"'[12 - Kalkulačka_2024_09_30.xlsm]Zdroj'!$E$13"},null,"Zdroj","$E$13",50]
[{"$f":"CELL(\"odkaz\",Zdroj!E16)","v":"'[12 - Kalkulačka_2024_09_30.xlsm]Zdroj'!$E$16"},null,"Zdroj","$E$16","tepelné čerpadlo"]
[{"$f":"CELL(\"odkaz\",Zdroj!E17)","v":"'[12 - Kalkulačka_2024_09_30.xlsm]Zdroj'!$E$17"},null,"Zdroj","$E$17"]
[{"$f":"CELL(\"odkaz\",Zdroj!E18)","v":"'[12 - Kalkulačka_2024_09_30.xlsm]Zdroj'!$E$18"},null,"Zdroj","$E$18"]
[{"$f":"CELL(\"odkaz\",Zdroj!E19)","v":"'[12 - Kalkulačka_2024_09_30.xlsm]Zdroj'!$E$19"},null,"Zdroj","$E$19",25]
[{"$f":"CELL(\"odkaz\",Zdroj!E20)","v":"'[12 - Kalkulačka_2024_09_30.xlsm]Zdroj'!$E$20"},null,"Zdroj","$E$20","ano"]
[{"$f":"CELL(\"odkaz\",Zdroj!E21)","v":"'[12 - Kalkulačka_2024_09_30.xlsm]Zdroj'!$E$21"},null,"Zdroj","$E$21",4]
[{"$f":"CELL(\"odkaz\",Zdroj!E24)","v":"'[12 - Kalkulačka_2024_09_30.xlsm]Zdroj'!$E$24"},null,"Zdroj","$E$24"]
[{"$f":"CELL(\"odkaz\",FVE!E4)","v":"'[12 - Kalkulačka_2024_09_30.xlsm]FVE'!$E$4"},null,"FVE","$E$4",20]
[{"$f":"CELL(\"odkaz\",FVE!E5)","v":"'[12 - Kalkulačka_2024_09_30.xlsm]FVE'!$E$5"},null,{"$f":"MID(SUBSTITUTE(A134,\"'\",\"\"),FIND(\"]\",SUBSTITUTE(A134,\"'\",\"\"))+1,FIND(\"!\",SUBSTITUTE(A134,\"'\",\"\"))-FIND(\"]\",SUBSTITUTE(A134,\"'\",\"\"))-1)","v":"FVE"},{"$f":"MID(A134,SEARCH(\"$\",A134),20)","v":"$E$5"},20000]
[{"$f":"CELL(\"odkaz\",FVE!E6)","v":"'[12 - Kalkulačka_2024_09_30.xlsm]FVE'!$E$6"},null,"FVE","$E$6","ano"]
[{"$f":"CELL(\"odkaz\",FVE!E7)","v":"'[12 - Kalkulačka_2024_09_30.xlsm]FVE'!$E$7"},null,"FVE","$E$7",30]
[{"$f":"CELL(\"odkaz\",FVE!E8)","v":"'[12 - Kalkulačka_2024_09_30.xlsm]FVE'!$E$8"},null,"FVE","$E$8",30000]
[{"$f":"CELL(\"odkaz\",Protokol!F18)","v":"'[12 - Kalkulačka_2024_09_30.xlsm]Protokol'!$F$18"},null,{"$f":"MID(SUBSTITUTE(A138,\"'\",\"\"),FIND(\"]\",SUBSTITUTE(A138,\"'\",\"\"))+1,FIND(\"!\",SUBSTITUTE(A138,\"'\",\"\"))-FIND(\"]\",SUBSTITUTE(A138,\"'\",\"\"))-1)","v":"Protokol"},{"$f":"MID(A138,SEARCH(\"$\",A138),20)","v":"$F$18"},"x"]
[{"$f":"CELL(\"odkaz\",Protokol!F19)","v":"'[12 - Kalkulačka_2024_09_30.xlsm]Protokol'!$F$19"},null,"Protokol","$F$19","x"]
[{"$f":"CELL(\"odkaz\",Protokol!F20)","v":"'[12 - Kalkulačka_2024_09_30.xlsm]Protokol'!$F$20"},null,"Protokol","$F$20"]
[{"$f":"CELL(\"odkaz\",Protokol!F21)","v":"'[12 - Kalkulačka_2024_09_30.xlsm]Protokol'!$F$21"},null,"Protokol","$F$21"]
[{"$f":"CELL(\"odkaz\",Protokol!F24)","v":"'[12 - Kalkulačka_2024_09_30.xlsm]Protokol'!$F$24"},null,"Protokol","$F$24"]
[{"$f":"CELL(\"odkaz\",Protokol!F25)","v":"'[12 - Kalkulačka_2024_09_30.xlsm]Protokol'!$F$25"},null,"Protokol","$F$25"]
[{"$f":"CELL(\"odkaz\",Protokol!F26)","v":"'[12 - Kalkulačka_2024_09_30.xlsm]Protokol'!$F$26"},null,"Protokol","$F$26","x"]
[{"$f":"CELL(\"odkaz\",Protokol!F28)","v":"'[12 - Kalkulačka_2024_09_30.xlsm]Protokol'!$F$28"},null,"Protokol","$F$28"]
[{"$f":"CELL(\"odkaz\",Protokol!F29)","v":"'[12 - Kalkulačka_2024_09_30.xlsm]Protokol'!$F$29"},null,"Protokol","$F$29"]
[{"$f":"CELL(\"odkaz\",Protokol!F30)","v":"'[12 - Kalkulačka_2024_09_30.xlsm]Protokol'!$F$30"},null,"Protokol","$F$30","x"]
[{"$f":"CELL(\"odkaz\",Protokol!F31)","v":"'[12 - Kalkulačka_2024_09_30.xlsm]Protokol'!$F$31"},null,"Protokol","$F$31"]
[{"$f":"CELL(\"odkaz\",Protokol!F32)","v":"'[12 - Kalkulačka_2024_09_30.xlsm]Protokol'!$F$32"},null,"Protokol","$F$32"]
[{"$f":"CELL(\"odkaz\",Protokol!F33)","v":"'[12 - Kalkulačka_2024_09_30.xlsm]Protokol'!$F$33"},null,"Protokol","$F$33","x"]
[{"$f":"CELL(\"odkaz\",Protokol!F34)","v":"'[12 - Kalkulačka_2024_09_30.xlsm]Protokol'!$F$34"},null,"Protokol","$F$34","x"]
[{"$f":"CELL(\"odkaz\",Protokol!F35)","v":"'[12 - Kalkulačka_2024_09_30.xlsm]Protokol'!$F$35"},null,"Protokol","$F$35"]
[{"$f":"CELL(\"odkaz\",Protokol!F36)","v":"'[12 - Kalkulačka_2024_09_30.xlsm]Protokol'!$F$36"},null,"Protokol","$F$36","x"]
[{"$f":"CELL(\"odkaz\",Protokol!F39)","v":"'[12 - Kalkulačka_2024_09_30.xlsm]Protokol'!$F$39"},null,"Protokol","$F$39"]
[{"$f":"CELL(\"odkaz\",Protokol!F40)","v":"'[12 - Kalkulačka_2024_09_30.xlsm]Protokol'!$F$40"},null,"Protokol","$F$40"]
[{"$f":"CELL(\"odkaz\",Protokol!F41)","v":"'[12 - Kalkulačka_2024_09_30.xlsm]Protokol'!$F$41"},null,"Protokol","$F$41"]
[{"$f":"CELL(\"odkaz\",Protokol!F42)","v":"'[12 - Kalkulačka_2024_09_30.xlsm]Protokol'!$F$42"},null,"Protokol","$F$42"]
[{"$f":"CELL(\"odkaz\",Protokol!F43)","v":"'[12 - Kalkulačka_2024_09_30.xlsm]Protokol'!$F$43"},null,"Protokol","$F$43"]
[{"$f":"CELL(\"odkaz\",Protokol!F44)","v":"'[12 - Kalkulačka_2024_09_30.xlsm]Protokol'!$F$44"},null,"Protokol","$F$44","x"]
[{"$f":"CELL(\"odkaz\",Protokol!F45)","v":"'[12 - Kalkulačka_2024_09_30.xlsm]Protokol'!$F$45"},null,"Protokol","$F$45"]
[{"$f":"CELL(\"odkaz\",Protokol!F49)","v":"'[12 - Kalkulačka_2024_09_30.xlsm]Protokol'!$F$49"},null,"Protokol","$F$49","x"]
[{"$f":"CELL(\"odkaz\",Protokol!F50)","v":"'[12 - Kalkulačka_2024_09_30.xlsm]Protokol'!$F$50"},null,"Protokol","$F$50","x"]
[{"$f":"CELL(\"odkaz\",Protokol!F51)","v":"'[12 - Kalkulačka_2024_09_30.xlsm]Protokol'!$F$51"},null,"Protokol","$F$51"]
[{"$f":"CELL(\"odkaz\",Protokol!F52)","v":"'[12 - Kalkulačka_2024_09_30.xlsm]Protokol'!$F$52"},null,"Protokol","$F$52"]
[{"$f":"CELL(\"odkaz\",Protokol!F53)","v":"'[12 - Kalkulačka_2024_09_30.xlsm]Protokol'!$F$53"},null,"Protokol","$F$53"]
[{"$f":"CELL(\"odkaz\",Protokol!G18)","v":"'[12 - Kalkulačka_2024_09_30.xlsm]Protokol'!$G$18"},null,"Protokol","$G$18"]
[{"$f":"CELL(\"odkaz\",Protokol!G19)","v":"'[12 - Kalkulačka_2024_09_30.xlsm]Protokol'!$G$19"},null,"Protokol","$G$19"]
[{"$f":"CELL(\"odkaz\",Protokol!G20)","v":"'[12 - Kalkulačka_2024_09_30.xlsm]Protokol'!$G$20"},null,"Protokol","$G$20"]
[{"$f":"CELL(\"odkaz\",Protokol!G21)","v":"'[12 - Kalkulačka_2024_09_30.xlsm]Protokol'!$G$21"},null,"Protokol","$G$21"]
[{"$f":"CELL(\"odkaz\",Protokol!G24)","v":"'[12 - Kalkulačka_2024_09_30.xlsm]Protokol'!$G$24"},null,"Protokol","$G$24"]
[{"$f":"CELL(\"odkaz\",Protokol!G25)","v":"'[12 - Kalkulačka_2024_09_30.xlsm]Protokol'!$G$25"},null,"Protokol","$G$25"]
[{"$f":"CELL(\"odkaz\",Protokol!G26)","v":"'[12 - Kalkulačka_2024_09_30.xlsm]Protokol'!$G$26"},null,"Protokol","$G$26"]
[{"$f":"CELL(\"odkaz\",Protokol!G28)","v":"'[12 - Kalkulačka_2024_09_30.xlsm]Protokol'!$G$28"},null,"Protokol","$G$28"]
[{"$f":"CELL(\"odkaz\",Protokol!G29)","v":"'[12 - Kalkulačka_2024_09_30.xlsm]Protokol'!$G$29"},null,"Protokol","$G$29"]
[{"$f":"CELL(\"odkaz\",Protokol!G30)","v":"'[12 - Kalkulačka_2024_09_30.xlsm]Protokol'!$G$30"},null,"Protokol","$G$30"]
[{"$f":"CELL(\"odkaz\",Protokol!G31)","v":"'[12 - Kalkulačka_2024_09_30.xlsm]Protokol'!$G$31"},null,"Protokol","$G$31"]
[{"$f":"CELL(\"odkaz\",Protokol!G32)","v":"'[12 - Kalkulačka_2024_09_30.xlsm]Protokol'!$G$32"},null,"Protokol","$G$32"]
[{"$f":"CELL(\"odkaz\",Protokol!G33)","v":"'[12 - Kalkulačka_2024_09_30.xlsm]Protokol'!$G$33"},null,"Protokol","$G$33"]
[{"$f":"CELL(\"odkaz\",Protokol!G34)","v":"'[12 - Kalkulačka_2024_09_30.xlsm]Protokol'!$G$34"},null,"Protokol","$G$34"]
[{"$f":"CELL(\"odkaz\",Protokol!G35)","v":"'[12 - Kalkulačka_2024_09_30.xlsm]Protokol'!$G$35"},null,"Protokol","$G$35"]
[{"$f":"CELL(\"odkaz\",Protokol!G36)","v":"'[12 - Kalkulačka_2024_09_30.xlsm]Protokol'!$G$36"},null,"Protokol","$G$36"]
[{"$f":"CELL(\"odkaz\",Protokol!G39)","v":"'[12 - Kalkulačka_2024_09_30.xlsm]Protokol'!$G$39"},null,"Protokol","$G$39"]
[{"$f":"CELL(\"odkaz\",Protokol!G40)","v":"'[12 - Kalkulačka_2024_09_30.xlsm]Protokol'!$G$40"},null,"Protokol","$G$40"]
[{"$f":"CELL(\"odkaz\",Protokol!G41)","v":"'[12 - Kalkulačka_2024_09_30.xlsm]Protokol'!$G$41"},null,"Protokol","$G$41"]
[{"$f":"CELL(\"odkaz\",Protokol!G42)","v":"'[12 - Kalkulačka_2024_09_30.xlsm]Protokol'!$G$42"},null,"Protokol","$G$42"]
[{"$f":"CELL(\"odkaz\",Protokol!G43)","v":"'[12 - Kalkulačka_2024_09_30.xlsm]Protokol'!$G$43"},null,"Protokol","$G$43"]
[{"$f":"CELL(\"odkaz\",Protokol!G44)","v":"'[12 - Kalkulačka_2024_09_30.xlsm]Protokol'!$G$44"},null,"Protokol","$G$44"]
[{"$f":"CELL(\"odkaz\",Protokol!G45)","v":"'[12 - Kalkulačka_2024_09_30.xlsm]Protokol'!$G$45"},null,"Protokol","$G$45"]
[{"$f":"CELL(\"odkaz\",Protokol!G49)","v":"'[12 - Kalkulačka_2024_09_30.xlsm]Protokol'!$G$49"},null,"Protokol","$G$49"]
[{"$f":"CELL(\"odkaz\",Protokol!G50)","v":"'[12 - Kalkulačka_2024_09_30.xlsm]Protokol'!$G$50"},null,"Protokol","$G$50"]
[{"$f":"CELL(\"odkaz\",Protokol!G51)","v":"'[12 - Kalkulačka_2024_09_30.xlsm]Protokol'!$G$51"},null,"Protokol","$G$51"]
[{"$f":"CELL(\"odkaz\",Protokol!G52)","v":"'[12 - Kalkulačka_2024_09_30.xlsm]Protokol'!$G$52"},null,"Protokol","$G$52"]
[{"$f":"CELL(\"odkaz\",Protokol!G53)","v":"'[12 - Kalkulačka_2024_09_30.xlsm]Protokol'!$G$53"},null,"Protokol","$G$53"]
[{"$f":"CELL(\"odkaz\",Protokol!H20)","v":"'[12 - Kalkulačka_2024_09_30.xlsm]Protokol'!$H$20"},null,"Protokol","$H$20","x"]
[{"$f":"CELL(\"odkaz\",Protokol!H21)","v":"'[12 - Kalkulačka_2024_09_30.xlsm]Protokol'!$H$21"},null,"Protokol","$H$21","x"]
[{"$f":"CELL(\"odkaz\",Protokol!H28)","v":"'[12 - Kalkulačka_2024_09_30.xlsm]Protokol'!$H$28"},null,"Protokol","$H$28","x"]
[{"$f":"CELL(\"odkaz\",Protokol!H29)","v":"'[12 - Kalkulačka_2024_09_30.xlsm]Protokol'!$H$29"},null,"Protokol","$H$29","x"]
[{"$f":"CELL(\"odkaz\",Protokol!H30)","v":"'[12 - Kalkulačka_2024_09_30.xlsm]Protokol'!$H$30"},null,"Protokol","$H$30"]
[{"$f":"CELL(\"odkaz\",Protokol!H31)","v":"'[12 - Kalkulačka_2024_09_30.xlsm]Protokol'!$H$31"},null,"Protokol","$H$31","x"]
[{"$f":"CELL(\"odkaz\",Protokol!H32)","v":"'[12 - Kalkulačka_2024_09_30.xlsm]Protokol'!$H$32"},null,"Protokol","$H$32"]
[{"$f":"CELL(\"odkaz\",Protokol!H33)","v":"'[12 - Kalkulačka_2024_09_30.xlsm]Protokol'!$H$33"},null,"Protokol","$H$33"]
[{"$f":"CELL(\"odkaz\",Protokol!H34)","v":"'[12 - Kalkulačka_2024_09_30.xlsm]Protokol'!$H$34"},null,{"$f":"MID(SUBSTITUTE(A202,\"'\",\"\"),FIND(\"]\",SUBSTITUTE(A202,\"'\",\"\"))+1,FIND(\"!\",SUBSTITUTE(A202,\"'\",\"\"))-FIND(\"]\",SUBSTITUTE(A202,\"'\",\"\"))-1)","v":"Protokol"},{"$f":"MID(A202,SEARCH(\"$\",A202),20)","v":"$H$34"}]
[{"$f":"CELL(\"odkaz\",Protokol!H35)","v":"'[12 - Kalkulačka_2024_09_30.xlsm]Protokol'!$H$35"},null,"Protokol","$H$35","x"]
[{"$f":"CELL(\"odkaz\",Protokol!H36)","v":"'[12 - Kalkulačka_2024_09_30.xlsm]Protokol'!$H$36"},null,"Protokol","$H$36"]
[{"$f":"CELL(\"odkaz\",Protokol!H39)","v":"'[12 - Kalkulačka_2024_09_30.xlsm]Protokol'!$H$39"},null,"Protokol","$H$39","x"]
[{"$f":"CELL(\"odkaz\",Protokol!H40)","v":"'[12 - Kalkulačka_2024_09_30.xlsm]Protokol'!$H$40"},null,"Protokol","$H$40"]
[{"$f":"CELL(\"odkaz\",Protokol!H41)","v":"'[12 - Kalkulačka_2024_09_30.xlsm]Protokol'!$H$41"},null,"Protokol","$H$41","x"]
[{"$f":"CELL(\"odkaz\",Protokol!H42)","v":"'[12 - Kalkulačka_2024_09_30.xlsm]Protokol'!$H$42"},null,"Protokol","$H$42"]
[{"$f":"CELL(\"odkaz\",Protokol!H43)","v":"'[12 - Kalkulačka_2024_09_30.xlsm]Protokol'!$H$43"},null,"Protokol","$H$43","x"]
[{"$f":"CELL(\"odkaz\",Protokol!H44)","v":"'[12 - Kalkulačka_2024_09_30.xlsm]Protokol'!$H$44"},null,"Protokol","$H$44"]
[{"$f":"CELL(\"odkaz\",Protokol!H45)","v":"'[12 - Kalkulačka_2024_09_30.xlsm]Protokol'!$H$45"},null,"Protokol","$H$45","x"]
[{"$f":"CELL(\"odkaz\",Protokol!H49)","v":"'[12 - Kalkulačka_2024_09_30.xlsm]Protokol'!$H$49"},null,"Protokol","$H$49"]
[{"$f":"CELL(\"odkaz\",Protokol!H50)","v":"'[12 - Kalkulačka_2024_09_30.xlsm]Protokol'!$H$50"},null,"Protokol","$H$50"]
[{"$f":"CELL(\"odkaz\",Protokol!H51)","v":"'[12 - Kalkulačka_2024_09_30.xlsm]Protokol'!$H$51"},null,"Protokol","$H$51","x"]
[{"$f":"CELL(\"odkaz\",Protokol!H52)","v":"'[12 - Kalkulačka_2024_09_30.xlsm]Protokol'!$H$52"},null,"Protokol","$H$52"]
[{"$f":"CELL(\"odkaz\",Protokol!H53)","v":"'[12 - Kalkulačka_2024_09_30.xlsm]Protokol'!$H$53"},null,"Protokol","$H$53"]

{"sheet":"Bilance","index":9,"n_rows":35,"n_cols":26,"rows_kept":35,"cut":false,"hidden":true,"merged":[[16,16,16,18],[16,19,16,21],[16,22,16,24],[16,1,16,3],[16,4,16,6],[16,7,16,9],[16,10,16,12],[16,13,16,15]]}
["Spotřeby výchozí","přepočet na původní palivo [kWh]","přepočet na užitečné teplo [kWh]",null,"Přičíst úsporu z osvětlení","Přičíst rekuperaci k zateplení"]
["Spotřeba z listu zdroj",{"$f":"IFERROR(Zdroj!E8*Nositele!E22/3.6*1000,0)","v":0},{"$f":"KS_z_listu_kotel*ParametryZdroje!B16","v":0},null,{"$f":"AND(je_osvětlení,OR(NOT(JePENB),Osvětlení!I40=ne))","v":false},{"$f":"AND(je_rekuperace,OR(NOT(JePENB),Rekuperace!H6=ne))","v":false}]
["Spotřeba z listu zateplení zadaná",{"$f":"IFERROR(Zateplení!J9*Nositele!E25/3.6*1000,0)","v":0},{"$f":"KS_zateplení_zadaná*IF(je_zdroj,ParametryZdroje!B16,ParametryZateplení!B46)","v":0}]
["Spotřeba z listu zateplení bez zadání",{"$f":"IFERROR((ParametryZateplení!$G$1*Zateplení!F10)/1000*3.6,0)","v":0},{"$f":"B4*IF(je_zdroj,ParametryZdroje!B16,ParametryZateplení!B46)","v":0}]
["Spotřeba z listu zateplení před zateplením - PENB",{"$f":"Zateplení!$J$21","v":0},{"$f":"KS_PENB_před*IF(je_zdroj,ParametryZdroje!B16,ParametryZateplení!B46)","v":0}]
["Spotřeba z listu zateplení po zateplení - PENB",{"$f":"Zateplení!$J$19","v":0},{"$f":"B6*IF(je_zdroj,ParametryZdroje!B16,ParametryZateplení!B46)","v":0}]
["Spotřeba z konstrukcí před zateplením",{"$f":"IFERROR(US_konstrukce_před/IF(je_zdroj,ParametryZdroje!B16,ParametryZateplení!B46),0)","v":0},{"$f":"Parametry!J15","v":0}]
["Spotřeba z konstrukcí po zateplení",{"$f":"IFERROR(US_konstrukce_po/IF(je_zdroj,ParametryZdroje!B16,ParametryZateplení!B46),0)","v":0},{"$f":"Parametry!K15","v":0}]
["Úspora z konstrukcí",{"$f":"IFERROR(C9/IF(je_zdroj,ParametryZdroje!B16,ParametryZateplení!B46),0)","v":0},{"$f":"Parametry!L15","v":0}]
["Výchozí spotřeba osvětlení",{"$f":"IF(je_zdroj,Osvětlení!$D$44,0)","v":0}]
["Koncová spotřeba osvětlení",{"$f":"IF(je_zdroj,Osvětlení!$D$45,0)","v":0}]
["Výchozí celková spotřeba budovy",{"$f":"IF(JePENB,Zateplení!$J$21,MAX(Parametry!$B$4,(1+ParametryZateplení!H1+ParametryZateplení!I1)*Parametry!S15/Účinnost_stará))","v":{"$error":"#DIV/0!"}},{"$f":"C14+C13","v":{"$error":"#DIV/0!"}}]
["Výchozí spotřeba elektřiny",{"$f":"B12/(1+Globální!B15+ParametryZateplení!H1)*ParametryZateplení!H1","v":{"$error":"#DIV/0!"}},{"$f":"B13*Účinnost_stará","v":{"$error":"#DIV/0!"}}]
["Výchozí spotřeba pro zateplení a rekuperaci",{"$f":"(B12-B13)","v":{"$error":"#DIV/0!"}},{"$f":"B14*Účinnost_stará","v":{"$error":"#DIV/0!"}}]
[]
[]
[null,"Užitečná spotřeba",null,null,"Konečná spotřeba",null,null,"Spotřeba PEZ",null,null,"Emise CO2",null,null,"Emise TZL",null,null,"Emise PM10",null,null,"Emise PM2,5",null,null,"Náklady za energii"]
[null,"Výchozí [kWh]","Konečná [kWh]","Úspora [kWh]","Výchozí [kWh]","Konečná [kWh]","Úspora [kWh]","Výchozí [kWh]","Konečná [kWh]","Úspora [kWh]","Výchozí [kg]","Konečné [kg]","Úspora [kg]","Výchozí [kg]","Konečné [kg]","Úspora [kg]","Výchozí [kg]","Konečné [kg]","Úspora [kg]","Výchozí [kg]","Konečné [kg]","Úspora [kg]","Výchozí [Kč]","Konečné [Kč]","Úspora [Kč]"]
["Výchozí elektřina",{"$f":"$C$13","v":{"$error":"#DIV/0!"}},{"$f":"$C$13","v":{"$error":"#DIV/0!"}},0,{"$f":"$B$13","v":{"$error":"#DIV/0!"}},{"$f":"$B$13","v":{"$error":"#DIV/0!"}},0,{"$f":"E19*Primární!$B$7","v":{"$error":"#DIV/0!"}},{"$f":"F19*Primární!$B$7","v":{"$error":"#DIV/0!"}},0,{"$f":"E19*3.6/1000*Nositele!$G$7","v":{"$error":"#DIV/0!"}},{"$f":"F19*3.6/1000*Nositele!$G$7","v":{"$error":"#DIV/0!"}},0,{"$f":"E19*Nositele!$M$7","v":{"$error":"#DIV/0!"}},{"$f":"F19*Nositele!$M$7","v":{"$error":"#DIV/0!"}},0,{"$f":"N19*Nositele!$O$7","v":{"$error":"#DIV/0!"}},{"$f":"O19*Nositele!$O$7","v":{"$error":"#DIV/0!"}},0,{"$f":"N19*Nositele!$P$7","v":{"$error":"#DIV/0!"}},{"$f":"O19*Nositele!$P$7","v":{"$error":"#DIV/0!"}},0,{"$f":"E19*Nositele!$H$7","v":{"$error":"#DIV/0!"}},{"$f":"F19*Nositele!$H$7","v":{"$error":"#DIV/0!"}},0]
["Osvětlení",{"$f":"Osvětlení!$D$44*$Z$20*Účinnost_stará","v":0},{"$f":"Osvětlení!$D$45*$Z$20*Účinnost_stará","v":0},{"$f":"B20-C20","v":0},{"$f":"Osvětlení!$D$44*$Z$20","v":0},{"$f":"Osvětlení!$D$45*$Z$20","v":0},{"$f":"E20-F20","v":0},{"$f":"E20*Primární!$B$7*$Z$20","v":0},{"$f":"F20*Primární!$B$7*$Z$20","v":0},{"$f":"H20-I20","v":0},{"$f":"E20*3.6/1000*Nositele!$G$7*$Z$20","v":0},{"$f":"F20*3.6/1000*Nositele!$G$7*$Z$20","v":0},0,{"$f":"E20*Nositele!$M$7*$Z$20","v":0},{"$f":"F20*Nositele!$M$7*$Z$20","v":0},{"$f":"N20-O20","v":0},{"$f":"N20*Nositele!$O$7*$Z$20","v":0},{"$f":"O20*Nositele!$O$7*$Z$20","v":0},{"$f":"Q20-R20","v":0},{"$f":"N20*Nositele!$P$7*$Z$20","v":0},{"$f":"O20*Nositele!$P$7*$Z$20","v":0},{"$f":"T20-U20","v":0},{"$f":"E20*Nositele!$H$7*$Z$20","v":0},{"$f":"F20*Nositele!$H$7*$Z$20*$Z$20","v":0},{"$f":"W20-X20","v":0},{"$f":"IF(je_osvětlení,1,0)","v":0}]
["Konečná elektřina",{"$f":"MAX(B19:B20)","v":{"$error":"#DIV/0!"}},{"$f":"B21-D20","v":{"$error":"#DIV/0!"}},{"$f":"D20","v":0},{"$f":"MAX(E19:E20)","v":{"$error":"#DIV/0!"}},{"$f":"E21-G20","v":{"$error":"#DIV/0!"}},{"$f":"G20","v":0},{"$f":"MAX(H19:H20)","v":{"$error":"#DIV/0!"}},{"$f":"H21-J20","v":{"$error":"#DIV/0!"}},{"$f":"J20","v":0},{"$f":"MAX(K19:K20)","v":{"$error":"#DIV/0!"}},{"$f":"K21-M20","v":{"$error":"#DIV/0!"}},{"$f":"M20","v":0},{"$f":"MAX(N19:N20)","v":{"$error":"#DIV/0!"}},{"$f":"N21-P20","v":{"$error":"#DIV/0!"}},{"$f":"P20","v":0},{"$f":"MAX(Q19:Q20)","v":{"$error":"#DIV/0!"}},{"$f":"Q21-S20","v":{"$error":"#DIV/0!"}},{"$f":"S20","v":0},{"$f":"MAX(T19:T20)","v":{"$error":"#DIV/0!"}},{"$f":"T21-V20","v":{"$error":"#DIV/0!"}},{"$f":"V20","v":0},{"$f":"MAX(W19:W20)","v":{"$error":"#DIV/0!"}},{"$f":"W21-Y20","v":{"$error":"#DIV/0!"}},{"$f":"Y20","v":0}]
["Rekuperace",{"$f":"Parametry!J14*$Z$22","v":0},{"$f":"Parametry!K14*$Z$22*IF(AND(je_zdroj,JePENB,Zdroj!E24=ano),Účinnost_stará/Účinnost_nová,1)","v":0},{"$f":"Parametry!L14*$Z$22","v":0},{"$f":"IFERROR(B22/IF(je_zdroj,Zdroj_a_zateplení!E13,Jen_zateplení!D13),0)*$Z$22","v":0},{"$f":"IFERROR(C22/IF(je_zdroj,Zdroj_a_zateplení!E38,Jen_zateplení!D28),0)*$Z$22","v":0},{"$f":"E22-F22","v":0},{"$f":"E22*IF(je_zdroj,Zdroj_a_zateplení!F13,Jen_zateplení!E13)*$Z$22","v":0},{"$f":"F22*IF(je_zdroj,Zdroj_a_zateplení!F38,Jen_zateplení!E28)*$Z$22","v":0},0,{"$f":"H22*kWh_na_GJ*IF(je_zdroj,Zdroj_a_zateplení!J13,Jen_zateplení!I13)*$Z$22","v":0},{"$f":"I22*kWh_na_GJ*IF(je_zdroj,Zdroj_a_zateplení!J38,Jen_zateplení!I28)*$Z$22","v":0},0,{"$f":"IFERROR(E22*kWh_na_GJ/IF(je_zdroj,Zdroj_a_zateplení!D13,Jen_zateplení!C13)*IF(je_zdroj,Zdroj_a_zateplení!G13,Jen_zateplení!F13),0)*$Z$22","v":0},{"$f":"IFERROR(F22*kWh_na_GJ/IF(je_zdroj,Zdroj_a_zateplení!D38,Jen_zateplení!C28)*IF(je_zdroj,Zdroj_a_zateplení!G38,Jen_zateplení!F28),0)*$Z$22","v":0},0,{"$f":"N22*IF(je_zdroj,Zdroj_a_zateplení!G13,Jen_zateplení!G13)*$Z$22","v":0},{"$f":"O22*IF(je_zdroj,Zdroj_a_zateplení!H38,Jen_zateplení!G28)*$Z$22","v":0},0,{"$f":"N22*IF(je_zdroj,Zdroj_a_zateplení!I13,Jen_zateplení!H13)*$Z$22","v":0},{"$f":"O22*IF(je_zdroj,Zdroj_a_zateplení!I38,Jen_zateplení!H28)*$Z$22","v":0},0,{"$f":"IFERROR(E22*kWh_na_GJ/IF(je_zdroj,Zdroj_a_zateplení!D13,Jen_zateplení!C13)*IF(je_zdroj,Zdroj_a_zateplení!K13,Jen_zateplení!J13),0)*$Z$22","v":0},{"$f":"IFERROR(F22*kWh_na_GJ/IF(je_zdroj,Zdroj_a_zateplení!D38,Jen_zateplení!C28)*IF(je_zdroj,Zdroj_a_zateplení!K38,Jen_zateplení!J28),0)*$Z$22","v":0},{"$f":"W22-X22","v":0},{"$f":"IF(je_rekuperace,1,0)","v":0}]
["Zdroj",{"$f":"US_z_listu_kotel","v":0},{"$f":"US_z_listu_kotel","v":0},{"$f":"B23-C23","v":0},{"$f":"Jen_zdroj!M13","v":0},{"$f":"Jen_zdroj!M23","v":0},0,{"$f":"Jen_zdroj!O13","v":0},{"$f":"Jen_zdroj!O23","v":0},0,{"$f":"Jen_zdroj!R13","v":0},{"$f":"Jen_zdroj!R23","v":0},0,{"$f":"Jen_zdroj!S13","v":0},{"$f":"Jen_zdroj!S23","v":0},0,{"$f":"Jen_zdroj!T13","v":0},{"$f":"Jen_zdroj!T23","v":0},0,{"$f":"Jen_zdroj!U13","v":0},{"$f":"Jen_zdroj!U23","v":0},0,{"$f":"Jen_zdroj!V13","v":0},{"$f":"Jen_zdroj!V23","v":0},{"$f":"W23-X23","v":0}]
["Zateplení",{"$f":"Parametry!$S$15","v":0},{"$f":"B24-Parametry!$L$15*IF(AND(je_zdroj,JePENB,Zdroj!E24=ano),Účinnost_stará/Účinnost_nová,1)","v":0},0,{"$f":"Jen_zateplení!L13","v":0},{"$f":"Jen_zateplení!$L$28","v":0},{"$f":"Jen_zateplení!$L$32","v":0},{"$f":"Jen_zateplení!$N$13","v":0},{"$f":"Jen_zateplení!$N$28","v":0},{"$f":"Jen_zateplení!$N$32","v":0},{"$f":"Jen_zateplení!$O$13","v":0},{"$f":"Jen_zateplení!$O$28","v":0},{"$f":"Jen_zateplení!$O$32","v":0},{"$f":"Jen_zateplení!$P$13","v":0},{"$f":"Jen_zateplení!$P$28","v":0},{"$f":"Jen_zateplení!$P$32","v":0},{"$f":"Jen_zateplení!$Q$13","v":0},{"$f":"Jen_zateplení!$Q$28","v":0},{"$f":"Jen_zateplení!$Q$32","v":0},{"$f":"Jen_zdroj!U23","v":0},{"$f":"Jen_zateplení!$R$28","v":0},{"$f":"Jen_zateplení!$R$32","v":0},{"$f":"Jen_zateplení!$S$13","v":0},{"$f":"Jen_zateplení!$S$28","v":0},{"$f":"Jen_zateplení!$S$32","v":0}]
["Zateplení + zdroj",{"$f":"Parametry!$S$15","v":0},{"$f":"B25-Parametry!$L$15*IF(AND(je_zdroj,JePENB,Zdroj!E24=ano),Účinnost_stará/Účinnost_nová,1)","v":0},{"$f":"B25-C25","v":0},{"$f":"Zdroj_a_zateplení!M13","v":0},{"$f":"Zdroj_a_zateplení!$M$42","v":0},{"$f":"Zdroj_a_zateplení!$M$47","v":0},{"$f":"Zdroj_a_zateplení!$O$13","v":0},{"$f":"Zdroj_a_zateplení!$O$42","v":0},{"$f":"Zdroj_a_zateplení!$O$47","v":0},{"$f":"Zdroj_a_zateplení!$R$13","v":0},{"$f":"Zdroj_a_zateplení!$R$42","v":0},{"$f":"Zdroj_a_zateplení!$R$47","v":0},{"$f":"Zdroj_a_zateplení!$S$13","v":0},{"$f":"Zdroj_a_zateplení!$S$42","v":0},{"$f":"Zdroj_a_zateplení!$S$47","v":0},{"$f":"Zdroj_a_zateplení!$T$13","v":0},{"$f":"Zdroj_a_zateplení!$T$42","v":0},{"$f":"Zdroj_a_zateplení!$T$47","v":0},{"$f":"Zdroj_a_zateplení!$U$13","v":0},{"$f":"Zdroj_a_zateplení!$U$42","v":0},{"$f":"Zdroj_a_zateplení!$U$47","v":0},{"$f":"Zdroj_a_zateplení!$V$13","v":0},{"$f":"Zdroj_a_zateplení!$V$42","v":0},{"$f":"Zdroj_a_zateplení!$V$47","v":0}]
[]
["Potřeba pro budovu",{"$f":"$C$14","v":{"$error":"#DIV/0!"}},{"$f":"C24","v":0},{"$f":"D24","v":0},{"$f":"B27/Účinnost_stará","v":{"$error":"#DIV/0!"}},{"$f":"C28/Účinnost_nová+C29/Účinnost_stará","v":{"$error":"#DIV/0!"}}]
["Zdroj dodá",{"$f":"IF(US_z_listu_kotel>B27,B27,US_z_listu_kotel)","v":{"$error":"#DIV/0!"}},{"$f":"B28*C$27/B$27","v":{"$error":"#DIV/0!"}},null,{"$f":"IF(KS_z_listu_kotel>B27,B27,KS_z_listu_kotel)","v":{"$error":"#DIV/0!"}},{"$f":"C28/Účinnost_nová","v":{"$error":"#DIV/0!"}}]
["Pokryto jinými zdroji",{"$f":"IF(B27>B28,B27-B28,0)","v":{"$error":"#DIV/0!"}},{"$f":"B29*C$27/B$27","v":{"$error":"#DIV/0!"}},null,{"$f":"IF(E27>E28,E27-E28,0)","v":{"$error":"#DIV/0!"}},{"$f":"C29/Účinnost_stará","v":{"$error":"#DIV/0!"}}]
[]
["FVE",0,{"$f":"-FVE!$I$5","v":0},{"$f":"B31-C31","v":0},0,{"$f":"-FVE!$I$5","v":0},{"$f":"E31-F31","v":0},0,{"$f":"-FVE!$I$5","v":0},{"$f":"H31-I31","v":0},0,{"$f":"C31*Nositele!G7*3.6/1000","v":0},{"$f":"K31-L31","v":0},0,{"$f":"C31*Nositele!M7","v":0},{"$f":"N31-O31","v":0},0,{"$f":"O31*Nositele!O7","v":0},{"$f":"Q31-R31","v":0},0,{"$f":"O31*Nositele!P7","v":0},{"$f":"T31-U31","v":0},0,{"$f":"C31*Nositele!H7","v":0},{"$f":"W31-X31","v":0}]
[]
["Výsledek bez zdrojů",{"$f":"$C$12","v":{"$error":"#DIV/0!"}},{"$f":"C24+$C$13+$B$22-IF($E$2,D$20,0)-IF($F$2,D$22,0)","v":{"$error":"#DIV/0!"}},{"$f":"B33-C33","v":{"$error":"#DIV/0!"}},{"$f":"IF(JePENB,KS_PENB_před,$B$12)","v":{"$error":"#DIV/0!"}},{"$f":"IF(JePENB,B6,F24+B13+B22)-IF($E$2,G$20,0)-IF($F$2,G$22,0)","v":{"$error":"#DIV/0!"}},{"$f":"E33-F33","v":{"$error":"#DIV/0!"}},{"$f":"H$19+$B$14*IF(je_zdroj,Zdroj_a_zateplení!$F$13,Jen_zateplení!$E$13)","v":{"$error":"#DIV/0!"}},{"$f":"I24+H$19+H$22-IF($E$2,J$21,0)-IF($F$2,J$22,0)","v":{"$error":"#DIV/0!"}},{"$f":"H33-I33","v":{"$error":"#DIV/0!"}},{"$f":"K19+K24+$B$14*IF(je_zdroj,Zdroj_a_zateplení!J13,Jen_zateplení!I13)*kWh_na_GJ","v":{"$error":"#DIV/0!"}},{"$f":"L24+K$19+K$22-IF($E$2,M$21,0)-IF($F$2,M$22,0)","v":{"$error":"#DIV/0!"}},{"$f":"K33-L33","v":{"$error":"#DIV/0!"}},{"$f":"IFERROR(N$19+$B$14*kWh_na_GJ*IF(je_zdroj,Zdroj_a_zateplení!$G$13,Jen_zateplení!$F$13)/IF(je_zdroj,Zdroj_a_zateplení!$D$13,Jen_zateplení!$C$13),0)","v":0},{"$f":"O24+N$19+N$22-IF($E$2,P$21,0)-IF($F$2,P$22,0)","v":{"$error":"#DIV/0!"}},{"$f":"N33-O33","v":{"$error":"#DIV/0!"}},{"$f":"Q$19+N33*IF(je_zdroj,Zdroj_a_zateplení!$H$13,Jen_zateplení!$G$13)","v":{"$error":"#DIV/0!"}},{"$f":"R24+Q$19+Q$22-IF($E$2,S$21,0)-IF($F$2,S$22,0)","v":{"$error":"#DIV/0!"}},{"$f":"Q33-R33","v":{"$error":"#DIV/0!"}},{"$f":"T$19+N33*IF(je_zdroj,Zdroj_a_zateplení!$I$13,Jen_zateplení!$H$13)","v":{"$error":"#DIV/0!"}},{"$f":"U24+T$19+T$22-IF($E$2,V$21,0)-IF($F$2,V$22,0)","v":{"$error":"#DIV/0!"}},{"$f":"T33-U33","v":{"$error":"#DIV/0!"}},{"$f":"W$19+IFERROR($B$14*kWh_na_GJ/IF(je_zdroj,Zdroj_a_zateplení!$D$13,Jen_zateplení!$C$13)*IF(je_zdroj,Zdroj_a_zateplení!$K$13,Jen_zateplení!$J$13),0)","v":{"$error":"#DIV/0!"}},{"$f":"X24+W$19+W$22-IF($E$2,Y$21,0)-IF($F$2,Y$22,0)","v":{"$error":"#DIV/0!"}},{"$f":"W33-X33","v":{"$error":"#DIV/0!"}}]
["Výsledek se zdroji",{"$f":"$C$12","v":{"$error":"#DIV/0!"}},{"$f":"$C$13+$B$22-IF($E$2,D$20,0)-IF($F$2,D$22,0)+C25","v":{"$error":"#DIV/0!"}},{"$f":"B34-C34","v":{"$error":"#DIV/0!"}},{"$f":"IF(JePENB,KS_PENB_před,$B$12)","v":{"$error":"#DIV/0!"}},{"$f":"IF(JePENB,B6,F25+B13+B22)-IF($E$2,G$20,0)-IF($F$2,G$22,0)-IF(AND(je_zdroj,JePENB,Výjimka),G25,0)","v":{"$error":"#DIV/0!"}},{"$f":"E34-F34","v":{"$error":"#DIV/0!"}},{"$f":"H$19+$B$14*IF(je_zdroj,Zdroj_a_zateplení!$F$13,Jen_zateplení!$E$13)","v":{"$error":"#DIV/0!"}},{"$f":"IF(je_zdroj,I25,I24)+H$19+H$22-IF($E$2,J$20,0)-IF($F$2,J$22,0)","v":{"$error":"#DIV/0!"}},{"$f":"H34-I34","v":{"$error":"#DIV/0!"}},{"$f":"K19+K25+$B$14*IF(je_zdroj,Zdroj_a_zateplení!J13,Jen_zateplení!I13)*kWh_na_GJ","v":{"$error":"#DIV/0!"}},{"$f":"IF(je_zdroj,L25,L24)+K$19+K$22-IF($E$2,M$20,0)-IF($F$2,M$22,0)","v":{"$error":"#DIV/0!"}},{"$f":"K34-L34","v":{"$error":"#DIV/0!"}},{"$f":"N$19+IFERROR($B$14*kWh_na_GJ/IF(je_zdroj,Zdroj_a_zateplení!$D$13,Jen_zateplení!$C$13)*IF(je_zdroj,Zdroj_a_zateplení!$G$13,Jen_zateplení!$F$13),0)","v":{"$error":"#DIV/0!"}},{"$f":"IF(je_zdroj,O25,O24)+N$19+N$22-IF($E$2,P$20,0)-IF($F$2,P$22,0)","v":{"$error":"#DIV/0!"}},{"$f":"N34-O34","v":{"$error":"#DIV/0!"}},{"$f":"Q$19+N34*IF(je_zdroj,Zdroj_a_zateplení!$H$13,Jen_zateplení!$G$13)","v":{"$error":"#DIV/0!"}},{"$f":"IF(je_zdroj,R25,R24)+Q$19+Q$22-IF($E$2,S$20,0)-IF($F$2,S$22,0)","v":{"$error":"#DIV/0!"}},{"$f":"Q34-R34","v":{"$error":"#DIV/0!"}},{"$f":"T$19+N34*IF(je_zdroj,Zdroj_a_zateplení!$I$13,Jen_zateplení!$H$13)","v":{"$error":"#DIV/0!"}},{"$f":"IF(je_zdroj,U25,U24)+T$19+T$22-IF($E$2,V$20,0)-IF($F$2,V$22,0)","v":{"$error":"#DIV/0!"}},{"$f":"T34-U34","v":{"$error":"#DIV/0!"}},{"$f":"W$19+IFERROR($B$14*kWh_na_GJ/IF(je_zdroj,Zdroj_a_zateplení!$D$13,Jen_zateplení!$C$13)*IF(je_zdroj,Zdroj_a_zateplení!$K$13,Jen_zateplení!$J$13),0)","v":{"$error":"#DIV/0!"}},{"$f":"IF(je_zdroj,X25,X24)+W$19+W$22-IF($E$2,Y$20,0)-IF($F$2,Y$22,0)","v":{"$error":"#DIV/0!"}},{"$f":"W34-X34","v":{"$error":"#DIV/0!"}}]
["Výsledek se zdroji + FVE",{"$f":"B34+IF(je_FVE,B31,0)","v":{"$error":"#DIV/0!"}},{"$error":"#DIV/0!"},{"$error":"#DIV/0!"},{"$error":"#DIV/0!"},{"$error":"#DIV/0!"},{"$error":"#DIV/0!"},{"$error":"#DIV/0!"},{"$error":"#DIV/0!"},{"$error":"#DIV/0!"},{"$error":"#DIV/0!"},{"$error":"#DIV/0!"},{"$error":"#DIV/0!"},{"$error":"#DIV/0!"},{"$error":"#DIV/0!"},{"$error":"#DIV/0!"},{"$error":"#DIV/0!"},{"$error":"#DIV/0!"},{"$error":"#DIV/0!"},{"$error":"#DIV/0!"},{"$error":"#DIV/0!"},{"$error":"#DIV/0!"},{"$error":"#DIV/0!"},{"$error":"#DIV/0!"},{"$error":"#DIV/0!"}]

{"sheet":"Globální","index":10,"n_rows":15,"n_cols":5,"rows_kept":15,"cut":false,"hidden":true,"merged":[]}
["Je PENB",{"$f":"ZpůsobVýpočtu=2","v":false},null,null,{"$f":"IFERROR(MATCH('Hlavní list'!D15,TPodpora[Podpora],0),0)","v":0}]
["ano",null,null,null,"Podpora"]
["ne",null,null,null,"de minimis"]
["kWh => GJ",3.5999999999999999E-3,null,null,"bloková výjimka"]
["Stará účinnost",{"$f":"IF(je_zdroj,ParametryZdroje!B16,EtaZdrBudova)","v":0}]
["Nová účinnost",{"$f":"IF(je_zdroj,ParametryZdroje!B36,EtaZdrBudova)","v":0}]
["Typ SZT",{"$f":"IF(je_zdroj,ParametryZdroje!K6,ParametryZateplení!I18)","v":0}]
["Maximální investice",5000000]
["Maximální podíl FVE na úspoře KS projektu",0.3]
[]
["Kontrola",{"$f":"AND(OR(NOT(je_zdroj),Zdroj!L26),OR(NOT(je_zateplení),AND(JePENB,Výjimka,Zateplení!M21),AND(Zateplení!M81,NOT(Zateplení!I86))),OR(NOT(je_rekuperace),Rekuperace!K6),OR(NOT(je_osvětlení),Osvětlení!L41),OR(NOT(je_FVE),FVE!L8))","v":false}]
["Způsobilost",{"$f":"NOT(OR(Zateplení!N26:N83,Rekuperace!L4:L6,Zdroj!M4:M24,FVE!M4:M9,'Hlavní list'!I72,'Hlavní list'!I73:I83))","v":false}]
["Je PENB a kontrukce bez opatření vyhovuje",{"$f":"AND(JePENB,Zateplení!J5=ano)","v":false}]
["Maximální celková úspora",0.95]
["Rezerva spotřeby na TV a ostatní neelektrickou spotřebu",{"$f":"ParametryZateplení!I1","v":0}]

{"sheet":"Listy","index":11,"n_rows":25,"n_cols":19,"rows_kept":25,"cut":false,"hidden":true,"merged":[]}
["Název listu","Zatržení","Viditelnost","Tlačítko",null,null,"Administrátorský přístup"]
["Zateplení",true,{"$f":"je_zateplení","v":true},"BtnGoZateplení",null,null,false]
["Rekuperace",false,{"$f":"je_rekuperace","v":false},"BtnGoRekuperace"]
["Osvětlení",false,{"$f":"je_osvětlení","v":false},"BtnGoOsvětlení"]
["Zdroj",false,{"$f":"je_zdroj","v":false},"BtnGoZdroj"]
["FVE",false,{"$f":"je_FVE","v":false},"BtnGoFVE"]
["Protokol",false,{"$f":"je_protokol","v":false}]
["Export",false,{"$f":"je_export","v":false}]
["Budova",null,false]
["Budova_Opatření",null,false]
["Globální",null,false]
["Jen_zateplení",null,false]
["Jen_zdroj",null,false]
["Listy",null,false]
["Nositele",null,false,null,null,null,null,null,null,null,null,null,null,null,null,null,null,null,{"$f":"J15","v":0}]
["Parametry",null,false]
["ParametryFVE",null,false]
["ParametryOsvětlení",null,false]
["ParametryRekuperace",null,false]
["ParametryZateplení",null,false]
["ParametryZdroje",null,false]
["Primární",null,false]
["Vstupy",null,false]
["Bilance",null,false]
["Zdroj_a_zateplení",null,false]

{"sheet":"Parametry","index":12,"n_rows":20,"n_cols":19,"rows_kept":20,"cut":false,"hidden":true,"merged":[]}
["Spotřeba zadaná",{"$f":"IF(Zateplení!F8=\"ano\",Zateplení!F9,0)","v":0},"kWh"]
[]
["Základní měrná potřeba energie objektu na vytápění",{"$f":"IF(AND(ISNUMBER(B1),Zateplení!F8=\"ano\"),(B1)/PodlahováPlocha,ParametryZateplení!G1)","v":0},"kWh/m2"]
["Spotřeba celkem",{"$f":"IF(B1=0,PodlahováPlocha*B3,B1)","v":0},"kWh"]
["Spotřeba celkem",{"$f":"B4/1000*3.6","v":0},"GJ","pro porovnání zda budova spadá pod 700 GJ"]
[]
["Opatření, která budou realizovaná investicí","U před","U po z PENB","U po kalk","Un20","Upož,20","U požadavek",null,"vyhodnocení","potřeba před kWh","potřeba po","úspora kWh","úspora GJ","úspora energie realizací opatření - kWh/m2",null,null,null,"Plocha celkem [m2]","Celková spotřeba před [kWh]"]
["Stěny",{"$f":"Budova!K16","v":0},{"$f":"Zateplení!J46","v":0},{"$f":"IFERROR(1/(1/B8+TlIzolStěn/1000/LambdaStěny)+DeltaUStěny,0)","v":0},{"$f":"Budova!L16","v":0},{"$f":"Budova!N16","v":0},{"$f":"IF(PamátkováOchrana=ano,\"bez požadavku\",F8*ParametryZateplení!$C$41)","v":0},{"$f":"IF(PamátkováOchrana=ano,\"bez požadavku\",\"Upož,20*e1\")","v":"Upož,20*e1"},{"$f":"IF(NOT(ZatepleníStěn),\"\",IF(PamátkováOchrana=\"ano\",\"Bez požadavku na součinitel prostupu tepla\",IF(C8<=G8,\"Konstrukce splňuje požadavky programu\",\"Konstrukce nesplňuje požadavky programu\")))","v":""},{"$f":"(B8)*PlochaStěn*(VnitřníTeplota-VnějšíTeplota)/1000*24*Denostupně/(VnitřníTeplota-VnějšíTeplota)","v":0},{"$f":"IF(NOT(ZatepleníStěn),J8,(D8)*PlochaStěn*(VnitřníTeplota-VnějšíTeplota)/1000*24*Denostupně/(VnitřníTeplota-VnějšíTeplota))","v":0},{"$f":"IF(NOT(ZatepleníStěn),0,J8-K8)","v":0},{"$f":"L8/1000*3.6","v":0},{"$f":"L8/PodlahováPlocha","v":{"$error":"#DIV/0!"}},null,null,null,{"$f":"Zateplení!J27","v":0},{"$f":"(B8)*R8*(VnitřníTeplota-VnějšíTeplota)/1000*24*Denostupně/(VnitřníTeplota-VnějšíTeplota)","v":0}]
["Střecha",{"$f":"Budova!K17","v":0},{"$f":"Zateplení!J54","v":0},{"$f":"IFERROR(1/(1/B9+TlIzolStřechy/1000/LambdaStřecha)+DeltaUStřecha,0)","v":0},{"$f":"Budova!L17","v":0},{"$f":"Budova!N17","v":0},{"$f":"IF(PamátkováOchrana=ano,\"bez požadavku\",F9*ParametryZateplení!$C$41)","v":0},"Upož,20*e1","",{"$f":"(B9)*PlochaStřechy*(VnitřníTeplota-VnějšíTeplota)/1000*24*Denostupně/(VnitřníTeplota-VnějšíTeplota)","v":0},{"$f":"IF(NOT(ZatepleníStřechy),J9,(D9)*PlochaStřechy*(VnitřníTeplota-VnějšíTeplota)/1000*24*Denostupně/(VnitřníTeplota-VnějšíTeplota))","v":0},{"$f":"IF(NOT(ZatepleníStřechy),0,J9-K9)","v":0},{"$f":"L9/1000*3.6","v":0},{"$error":"#DIV/0!"},null,null,null,{"$f":"Zateplení!J30","v":0},0]
["Podlaha",{"$f":"Budova!K18","v":0},{"$f":"Zateplení!J62","v":0},{"$f":"IFERROR(1/(1/B10+TlIzolPodlahy/1000/LambdaPodlaha)+DeltaUPodlaha,0)","v":0},{"$f":"Budova!L18","v":0},{"$f":"Budova!N18","v":0},{"$f":"IF(PamátkováOchrana=ano,\"bez požadavku\",F10*ParametryZateplení!$C$41)","v":0},"Upož,20*e1","",{"$f":"(B10)*PlochaPodlahy*(VnitřníTeplota-VnějšíTeplota)/1000*24*Denostupně/(VnitřníTeplota-VnějšíTeplota)","v":0},{"$f":"IF(NOT(ZatepleníPodlahy),J10,(D10)*PlochaPodlahy*(VnitřníTeplota-VnějšíTeplota)/1000*24*Denostupně/(VnitřníTeplota-VnějšíTeplota))","v":0},{"$f":"IF(NOT(ZatepleníPodlahy),0,J10-K10)","v":0},0,{"$error":"#DIV/0!"},null,null,null,{"$f":"Zateplení!J33","v":0},0]
["Okna",{"$f":"Budova!K19","v":0},{"$f":"Zateplení!J69","v":0},{"$f":"Zateplení!J69","v":0},{"$f":"Budova!L19","v":0},{"$f":"Budova!N19","v":0},{"$f":"IF(PamátkováOchrana=ano,\"bez požadavku\",F11*ParametryZateplení!$C$41)","v":0},"Upož,20*e1","",{"$f":"(B11)*PlochaOken*(VnitřníTeplota-VnějšíTeplota)/1000*24*Denostupně/(VnitřníTeplota-VnějšíTeplota)","v":0},{"$f":"IF(NOT(VýměnaOken),J11,(D11)*PlochaOken*(VnitřníTeplota-VnějšíTeplota)/1000*24*Denostupně/(VnitřníTeplota-VnějšíTeplota))","v":0},{"$f":"IF(NOT(VýměnaOken),0,J11-K11)","v":0},0,{"$error":"#DIV/0!"},null,null,null,{"$f":"Zateplení!J35","v":0},0]
["Dveře",{"$f":"Budova!K20","v":0},{"$f":"Zateplení!J75","v":0},{"$f":"Zateplení!J75","v":0},{"$f":"Budova!L20","v":0},{"$f":"Budova!N20","v":0},{"$f":"IF(PamátkováOchrana=ano,\"bez požadavku\",F12*ParametryZateplení!$C$41)","v":0},"Upož,20*e1","",{"$f":"(B12)*PlochaDveří*(VnitřníTeplota-VnějšíTeplota)/1000*24*Denostupně/(VnitřníTeplota-VnějšíTeplota)","v":0},{"$f":"IF(NOT(VýměnaDveří),J12,(D12)*PlochaDveří*(VnitřníTeplota-VnějšíTeplota)/1000*24*Denostupně/(VnitřníTeplota-VnějšíTeplota))","v":0},{"$f":"IF(NOT(VýměnaDveří),0,J12-K12)","v":0},0,{"$error":"#DIV/0!"},null,null,null,{"$f":"Zateplení!J37","v":0},0]
["Světlíky",{"$f":"Budova!K21","v":0},{"$f":"Zateplení!J81","v":0},{"$f":"Zateplení!J81","v":0},{"$f":"Budova!L21","v":0},{"$f":"Budova!N21","v":0},{"$f":"IF(PamátkováOchrana=ano,\"bez požadavku\",F13*ParametryZateplení!$C$41)","v":0},"Upož,20*e1","",{"$f":"(B13)*PlochaSvětlíků*(VnitřníTeplota-VnějšíTeplota)/1000*24*Denostupně/(VnitřníTeplota-VnějšíTeplota)","v":0},{"$f":"IF(NOT(VýměnaSvětlíků),J13,(D13)*PlochaSvětlíků*(VnitřníTeplota-VnějšíTeplota)/1000*24*Denostupně/(VnitřníTeplota-VnějšíTeplota))","v":0},{"$f":"IF(NOT(VýměnaSvětlíků),0,J13-K13)","v":0},0,{"$error":"#DIV/0!"},null,null,null,{"$f":"Zateplení!J39","v":0},0]
["Rekuperace",null,null,null,null,null,null,null,"nucené větrání ",{"$f":"0.34*Rekuperace!H5*24*Denostupně/1000","v":0},{"$f":"IFERROR(0.34*Rekuperace!H5*(1-Rekuperace!D4)*24*Denostupně/1000,0)","v":0},{"$f":"J14-K14","v":0},0,{"$error":"#DIV/0!"},null,null,null,null,{"$f":"J14","v":0}]
["Total",null,null,null,null,null,null,null,"kWh",{"$f":"SUM(J8:J13)","v":0},{"$f":"SUM(K8:K13)","v":0},{"$f":"SUM(L8:L13)","v":0},{"$f":"SUM(M8:M13)","v":0},{"$error":"#DIV/0!"},null,null,null,null,{"$f":"SUM(S8:S13)","v":0}]
[null,null,null,null,null,null,null,null,null,null,null,null,"kWh/m2",{"$f":"J15/Zateplení!$F$10","v":{"$error":"#DIV/0!"}},{"$f":"K15/Zateplení!$F$10","v":{"$error":"#DIV/0!"}},{"$f":"L15/Zateplení!$F$10","v":{"$error":"#DIV/0!"}},{"$f":"L15/J15","v":{"$error":"#DIV/0!"}}]
["Měrná potřeba energie objektu na vytápění po realizaci",null,"kWh/m2"]
["Spotřeba energie objektu na vytápění před realizací",{"$f":"IF(NOT(JePENB),$J$15,Zateplení!F21)","v":0},"kWh",{"$f":"B18/1000*3.6","v":0},"GJ","bráno z konstrukcí / z PENB"]
["Spotřeba energie objektu na vytápění po realizaci",{"$f":"IF(NOT(JePENB),$K$15,Zateplení!F19)","v":0},"kWh",{"$f":"B19/1000*3.6","v":0},"GJ","bráno z konstrukcí / z PENB"]
["úspora z PENB",{"$f":"B18-B19","v":0},"kWh",{"$f":"D18-D19","v":0},"GJ"]

{"sheet":"ParametryZateplení","index":13,"n_rows":48,"n_cols":12,"rows_kept":48,"cut":false,"hidden":true,"merged":[]}
[{"$f":"IFERROR(MATCH(Zateplení!F4,TZadání[Zateplení],0),0)","v":0},null,{"$f":"IFERROR(MATCH(Zateplení!F6,TTypBudovy[typ budovy],0),0)","v":0},null,null,{"$f":"IFERROR(MATCH(Zateplení!F11,TObdobíVýstavby[Období výstavby],0),0)","v":0},{"$f":"IF(F1=0,0,INDEX(TObdobíVýstavby[Měrná spotřeba energie budovy (kWh/m2) - původní stav],F1))","v":0},{"$f":"IF(F1=0,0,INDEX(TObdobíVýstavby[Podíl elektřiny],F1))","v":0},{"$f":"IF(F1=0,0,INDEX(TObdobíVýstavby[Podíl rekuperace],F1))","v":0}]
["Zateplení",null,"typ budovy",null,"Období výstavby","Měrná spotřeba energie budovy (kWh/m2) - původní stav","Podíl elektřiny","Podíl rekuperace"]
["Obecné zadaní projektu (vyplnění Kalkulačky)",null,"Administrativní budova",null,"do 1920",170,0.25,0.3]
["Zadání projektu na základě Průkazu energetické náročnosti",null,"Výrobní hala",null,"1921 až 1945",180,0.25,0.3]
[null,null,"Skladová hala",null,"1946 až 1960",180,0.25,0.3]
[null,null,"Zemědělská budova",null,"1961 až 1980",220,0.2,0.25]
[null,null,"Budova pro vzdělávání",null,"1981 až 1994",130,0.3,0.35]
[null,null,"Budova pro sport",null,"1995 a dále",100,0.35,0.4]
[null,null,"Budova pro zdravotnictví"]
[null,null,"Budova pro ubytování a stravování"]
[null,null,"Budova pro obchodní účely"]
[]
["Zdroj v budově"]
[]
["Index vybraného typu zdroje",{"$f":"IFERROR(MATCH(Zateplení!F13,TZdrojBudova[#Headers],0),0)","v":0}]
["Počet nositelů energie vybraného zdroje",{"$f":"INDEX($B$17:$G$17,1,B15)","v":4},1,1,1,1,7]
["Počet nositelů energie",{"$f":"COUNTA(TZdrojBudova[kotel na tuhá paliva])","v":4},{"$f":"COUNTA(TZdrojBudova[kotel na zemní plyn])","v":1},{"$f":"COUNTA(TZdrojBudova[elektrokotel])","v":1},{"$f":"COUNTA(TZdrojBudova[kotel na topný olej])","v":1},{"$f":"COUNTA(TZdrojBudova[tepelné čerpadlo])","v":1},{"$f":"COUNTA(TZdrojBudova[centrální zásobování teplem])","v":7}]
["Vybraný nositel energie je v daném sloupci",{"$f":"IFERROR(MATCH(Zateplení!$F$14,TZdrojBudova[kotel na tuhá paliva],0),0)>0","v":false},{"$f":"IFERROR(MATCH(Zateplení!$F$14,TZdrojBudova[kotel na zemní plyn],0),0)>0","v":false},{"$f":"IFERROR(MATCH(Zateplení!$F$14,TZdrojBudova[elektrokotel],0),0)>0","v":false},{"$f":"IFERROR(MATCH(Zateplení!$F$14,TZdrojBudova[kotel na topný olej],0),0)>0","v":false},{"$f":"IFERROR(MATCH(Zateplení!$F$14,TZdrojBudova[tepelné čerpadlo],0),0)>0","v":false},{"$f":"IFERROR(MATCH(Zateplení!$F$14,TZdrojBudova[centrální zásobování teplem],0),0)>0","v":false},null,{"$f":"IFERROR(MATCH(Zateplení!J15,TTypSZTBudova[typ SZT],0),0)","v":0},null,null,{"$f":"IF(B15>0,INDEX(Tabulka9[Účinnost],B15),0)","v":0}]
["Paliva vybraného zdroje","kotel na tuhá paliva","kotel na zemní plyn","elektrokotel","kotel na topný olej","tepelné čerpadlo","centrální zásobování teplem",null,"typ SZT",null,"Zdroj v budově","Účinnost"]
[{"$f":"ADDRESS(ROW(),COLUMN()+B15,1,1,\"ParametryZateplení\") & \":\" & ADDRESS(ROW(A20)+B16-1,COLUMN()+B15,1,1)","v":"ParametryZateplení!$A$20:$A$23"},"hnědé uhlí","zemní plyn","elektřina","topný olej","elektřina","zemní plyn",null,"účinná SZT",null,"kotel na tuhá paliva",0.6]
[null,"černé uhlí",null,null,null,null,"hnědé uhlí",null,"ostatní SZT",null,"kotel na zemní plyn",0.89]
[null,"palivové dřevo",null,null,null,null,"černé uhlí",null,null,null,"elektrokotel",0.98]
[null,"pelety",null,null,null,null,"palivové dřevo",null,null,null,"kotel na topný olej",0.87]
[null,null,null,null,null,null,"pelety",null,null,null,"tepelné čerpadlo",2.7]
[null,null,null,null,null,null,"elektřina",null,null,null,"centrální zásobování teplem",1]
[null,null,null,null,null,null,"topný olej"]
[]
[]
["Minimální vnitřní teplota [°C]",5]
["Minimální vnitřní teplota [°C]",30]
["Minimální U [W/(m2K)]",0]
["Minimální U [W/(m2K)]",5]
["Minimální měrná spotřeba tepla na jednotku vztažné plochy [kWh/m2]",20]
["Minimální úspora projektu [%]",0.1]
["Minimální snížení U [%]",0.05]
["Minimální snížení spotřeby energie [%]",0.1]
["Maximální tloušťka izolace [mm]",500]
["Minimální součinitel prostupu tepla konstrukce z PENB [W/(m2.K)]",0]
["Maximální součinitel prostupu tepla konstrukce z PENB [W/(m2.K)]",7]
["Venkovní teplota (implicitně) [°C]",-12]
["Vnitřní teplota",{"$f":"VnitřníTeplota","v":0},{"$f":"IF(AND(VnitřníTeplota>=18,VnitřníTeplota<=22),1,16/(VnitřníTeplota-4))","v":-4}]
["Průměrná venkovní teplota v otopném období (implicitně) [°C]",3.9]
["Délka otopného období (implicitně) [dny]",242]
["Počet denostupňů teoretický [1]",{"$f":"(B41-B42)*B43","v":-943.8}]
[]
["Výsledná účinnost:",{"$f":"EtaZdrBudova","v":0}]
[]
["Maximální úspora zateplením",0.9]

{"sheet":"Budova","index":14,"n_rows":304,"n_cols":16,"rows_kept":304,"cut":false,"hidden":true,"merged":[]}
["Index období",null,{"$f":"ParametryZateplení!F1","v":0},null,null,null,null,null,null,{"$f":"IFERROR(MATCH(Zateplení!F28,TStřecha[Střecha],0),0)","v":0},null,{"$f":"IFERROR(MATCH(Zateplení!F31,TPodlaha[Podlaha],0),0)","v":0}]
[null,null,null,null,null,null,null,null,null,"Střecha",null,"Podlaha"]
[null,null,null,null,null,null,null,null,null,"plochá střecha",null,"nevytápěný suterén"]
["stěny",{"$f":"$C$1","v":0},{"$f":"C1","v":0},{"$f":"INDEX(D5:D10,C4)","v":{"$error":"#VALUE!"}},null,null,null,null,null,"šikmá střecha",null,"podlaha na zemině"]
["stěny",{"$f":"ParametryZateplení!$E$3","v":"do 1920"},1,"budova!$C$70:$C$70",null,null,null,null,null,"strop půdy"]
["stěny",{"$f":"ParametryZateplení!$E$4","v":"1921 až 1945"},2,"budova!$C$71:$C$73"]
["stěny",{"$f":"ParametryZateplení!$E$5","v":"1946 až 1960"},3,"budova!$C$74:$C$77"]
["stěny",{"$f":"ParametryZateplení!$E$6","v":"1961 až 1980"},4,"budova!$C$78:$C$85"]
["stěny",{"$f":"ParametryZateplení!$E$7","v":"1981 až 1994"},5,"budova!$C$86:$C$89"]
["stěny",{"$f":"ParametryZateplení!$E$8","v":"1995 a dále"},6,"budova!$C$90:$C$95"]
["plochá střecha",{"$f":"$C$1","v":0},{"$f":"$C$4","v":0},{"$f":"INDEX(D12:D17,C11)","v":{"$error":"#VALUE!"}},null,null,null,null,null,"Střecha OK",null,"Podlaha OK"]
["plochá střecha",{"$f":"ParametryZateplení!$E$3","v":"do 1920"},1,"budova!$C$96:$C$96",null,null,null,null,null,{"$f":"CHOOSE(J1,D11,D18,D25)","v":{"$error":"#VALUE!"}},null,{"$f":"CHOOSE(L1,D32,D60)","v":{"$error":"#VALUE!"}}]
["plochá střecha",{"$f":"ParametryZateplení!$E$4","v":"1921 až 1945"},2,"budova!$C$97:$C$99",null,null,null,null,null,{"$f":"IFERROR(MATCH(Zateplení!F29,INDIRECT(J12),0),0)>0","v":false},null,{"$f":"IFERROR(MATCH(Zateplení!F32,INDIRECT(L12),0),0)>0","v":false}]
["plochá střecha",{"$f":"ParametryZateplení!$E$5","v":"1946 až 1960"},3,"budova!$C$100:$C$100"]
["plochá střecha",{"$f":"ParametryZateplení!$E$6","v":"1961 až 1980"},4,"budova!$C$101:$C$103",null,null,null,null,null,"Výsledné parametry","Součinitel prostupu tepla","Požadavek U","U rec","Upož","období","konstrukce"]
["plochá střecha",{"$f":"ParametryZateplení!$E$7","v":"1981 až 1994"},5,"budova!$C$104:$C$105",null,null,null,null,null,"stěny",{"$f":"SUMIFS(E$70:E$304,$B$70:$B$304,$O16,$C$70:$C$304,$P16,$I$70:$I$304,$J16)","v":0},{"$f":"SUMIFS(F$70:F$304,$B$70:$B$304,$O16,$C$70:$C$304,$P16,$I$70:$I$304,$J16)","v":0},{"$f":"SUMIFS(G$70:G$304,$B$70:$B$304,$O16,$C$70:$C$304,$P16,$I$70:$I$304,$J16)","v":0},0,{"$f":"Zateplení!$F$11","v":0},{"$f":"Zateplení!F26","v":0}]
["plochá střecha",{"$f":"ParametryZateplení!$E$8","v":"1995 a dále"},6,"budova!$C$106:$C$110",null,null,null,null,null,"střecha",{"$f":"SUMIFS(E$70:E$304,$B$70:$B$304,$O17,$C$70:$C$304,$P17,$I$70:$I$304,$J17)","v":0},0,0,0,{"$f":"Zateplení!$F$11","v":0},{"$f":"Zateplení!F29","v":0}]
["šikmá střecha",{"$f":"$C$1","v":0},{"$f":"$C$4","v":0},{"$f":"INDEX(D19:D24,C18)","v":{"$error":"#VALUE!"}},null,null,null,null,null,"podlaha",0,0,0,0,{"$f":"Zateplení!$F$11","v":0},{"$f":"Zateplení!F32","v":0}]
["šikmá střecha",{"$f":"ParametryZateplení!$E$3","v":"do 1920"},1,"budova!$C$111:$C$111",null,null,null,null,null,"okna",0,0,0,0,{"$f":"Zateplení!$F$11","v":0},{"$f":"Zateplení!F34","v":0}]
["šikmá střecha",{"$f":"ParametryZateplení!$E$4","v":"1921 až 1945"},2,"budova!$C$112:$C$112",null,null,null,null,null,"dveře",0,0,0,0,{"$f":"Zateplení!$F$11","v":0},{"$f":"Zateplení!F36","v":0}]
["šikmá střecha",{"$f":"ParametryZateplení!$E$5","v":"1946 až 1960"},3,"budova!$C$113:$C$113",null,null,null,null,null,"světlíky",0,0,0,0,{"$f":"Zateplení!$F$11","v":0},{"$f":"Zateplení!F38","v":0}]
["šikmá střecha",{"$f":"ParametryZateplení!$E$6","v":"1961 až 1980"},4,"budova!$C$114:$C$114"]
["šikmá střecha",{"$f":"ParametryZateplení!$E$7","v":"1981 až 1994"},5,"budova!$C$115:$C$115"]
["šikmá střecha",{"$f":"ParametryZateplení!$E$8","v":"1995 a dále"},6,"budova!$C$116:$C$117"]
["strop půdy",{"$f":"$C$1","v":0},{"$f":"$C$4","v":0},{"$f":"INDEX(D26:D31,C25)","v":{"$error":"#VALUE!"}}]
["strop půdy",{"$f":"ParametryZateplení!$E$3","v":"do 1920"},1,"budova!$C$118:$C$119"]
["strop půdy",{"$f":"ParametryZateplení!$E$4","v":"1921 až 1945"},2,"budova!$C$120:$C$122"]
["strop půdy",{"$f":"ParametryZateplení!$E$5","v":"1946 až 1960"},3,"budova!$C$123:$C$126"]
["strop půdy",{"$f":"ParametryZateplení!$E$6","v":"1961 až 1980"},4,"budova!$C$127:$C$132"]
["strop půdy",{"$f":"ParametryZateplení!$E$7","v":"1981 až 1994"},5,"budova!$C$133:$C$138"]
["strop půdy",{"$f":"ParametryZateplení!$E$8","v":"1995 a dále"},6,"budova!$C$1369:$C$141"]
["nevytápěný suterén",{"$f":"$C$1","v":0},{"$f":"$C$4","v":0},{"$f":"INDEX(D33:D38,C32)","v":{"$error":"#VALUE!"}}]
["nevytápěný suterén",{"$f":"ParametryZateplení!$E$3","v":"do 1920"},1,"budova!$C$142:$C$143"]
["nevytápěný suterén",{"$f":"ParametryZateplení!$E$4","v":"1921 až 1945"},2,"budova!$C$144:$C$146"]
["nevytápěný suterén",{"$f":"ParametryZateplení!$E$5","v":"1946 až 1960"},3,"budova!$C$147:$C$152"]
["nevytápěný suterén",{"$f":"ParametryZateplení!$E$6","v":"1961 až 1980"},4,"budova!$C$153:$C$157"]
["nevytápěný suterén",{"$f":"ParametryZateplení!$E$7","v":"1981 až 1994"},5,"budova!$C$158:$C$162"]
["nevytápěný suterén",{"$f":"ParametryZateplení!$E$8","v":"1995 a dále"},6,"budova!$C$163:$C$166"]
["okna",{"$f":"$C$1","v":0},{"$f":"$C$4","v":0},{"$f":"INDEX(D40:D45,C39)","v":{"$error":"#VALUE!"}}]
["okna",{"$f":"ParametryZateplení!$E$3","v":"do 1920"},1,"budova!$C$167:$C$174"]
["okna",{"$f":"ParametryZateplení!$E$4","v":"1921 až 1945"},2,"budova!$C$175:$C$182"]
["okna",{"$f":"ParametryZateplení!$E$5","v":"1946 až 1960"},3,"budova!$C$183:$C$190"]
["okna",{"$f":"ParametryZateplení!$E$6","v":"1961 až 1980"},4,"budova!$C$191:$C$198"]
["okna",{"$f":"ParametryZateplení!$E$7","v":"1981 až 1994"},5,"budova!$C$199:$C$207"]
["okna",{"$f":"ParametryZateplení!$E$8","v":"1995 a dále"},6,"budova!$C$208:$C$214"]
["dveře-vrata",{"$f":"$C$1","v":0},{"$f":"$C$4","v":0},{"$f":"INDEX(D47:D52,C46)","v":{"$error":"#VALUE!"}}]
["dveře-vrata",{"$f":"ParametryZateplení!$E$3","v":"do 1920"},1,"budova!$C$215:$C$221"]
["dveře-vrata",{"$f":"ParametryZateplení!$E$4","v":"1921 až 1945"},2,"budova!$C$222:$C$228"]
["dveře-vrata",{"$f":"ParametryZateplení!$E$5","v":"1946 až 1960"},3,"budova!$C$229:$C$235"]
["dveře-vrata",{"$f":"ParametryZateplení!$E$6","v":"1961 až 1980"},4,"budova!$C$236:$C$242"]
["dveře-vrata",{"$f":"ParametryZateplení!$E$7","v":"1981 až 1994"},5,"budova!$C$243:$C$249"]
["dveře-vrata",{"$f":"ParametryZateplení!$E$8","v":"1995 a dále"},6,"budova!$C$250:$C$256"]
["střešní okna-světlíky",{"$f":"$C$1","v":0},{"$f":"$C$4","v":0},{"$f":"INDEX(D54:D59,C53)","v":{"$error":"#VALUE!"}}]
["střešní okna-světlíky",{"$f":"ParametryZateplení!$E$3","v":"do 1920"},1,"budova!$C$257:$C$262"]
["střešní okna-světlíky",{"$f":"ParametryZateplení!$E$4","v":"1921 až 1945"},2,"budova!$C$263:$C$268"]
["střešní okna-světlíky",{"$f":"ParametryZateplení!$E$5","v":"1946 až 1960"},3,"budova!$C$269:$C$274"]
["střešní okna-světlíky",{"$f":"ParametryZateplení!$E$6","v":"1961 až 1980"},4,"budova!$C$275:$C$280"]
["střešní okna-světlíky",{"$f":"ParametryZateplení!$E$7","v":"1981 až 1994"},5,"budova!$C$281:$C$286"]
["střešní okna-světlíky",{"$f":"ParametryZateplení!$E$8","v":"1995 a dále"},6,"budova!$C$287:$C$289"]
["podlaha na zemině",{"$f":"$C$1","v":0},{"$f":"$C$4","v":0},{"$f":"INDEX(D61:D66,C60)","v":{"$error":"#VALUE!"}}]
["podlaha na zemině",{"$f":"ParametryZateplení!$E$3","v":"do 1920"},1,"budova!$C$290:$C$291"]
["podlaha na zemině",{"$f":"ParametryZateplení!$E$4","v":"1921 až 1945"},2,"budova!$C$292:$C$293"]
["podlaha na zemině",{"$f":"ParametryZateplení!$E$5","v":"1946 až 1960"},3,"budova!$C$294:$C$295"]
["podlaha na zemině",{"$f":"ParametryZateplení!$E$6","v":"1961 až 1980"},4,"budova!$C$296:$C$297"]
["podlaha na zemině",{"$f":"ParametryZateplení!$E$7","v":"1981 až 1994"},5,"budova!$C$298:$C$299"]
["podlaha na zemině",{"$f":"ParametryZateplení!$E$8","v":"1995 a dále"},6,"budova!$C$300:$C$304"]
[]
[]
["Konstrukce","Období","Konstrukce","Kce","Součinitel prostupu tepla","Požadavek U","U rec","Upož","Kategorie"]
["stěny",{"$f":"ParametryZateplení!$E$3","v":"do 1920"},"zdivo z cihel pálených plných tloušťky 450 mm",{"$f":"CONCATENATE(B70,\"-\",C70)","v":"do 1920-zdivo z cihel pálených plných tloušťky 450 mm"},1.4,0.3,0.25,0.15,{"$f":"$J$16","v":"stěny"}]
["stěny",{"$f":"ParametryZateplení!$E$4","v":"1921 až 1945"},"zdivo z cihel pálených plných tloušťky 450 mm",{"$f":"CONCATENATE(B71,\"-\",C71)","v":"1921 až 1945-zdivo z cihel pálených plných tloušťky 450 mm"},1.4,0.3,0.25,0.15,{"$f":"$J$16","v":"stěny"}]
["stěny",{"$f":"ParametryZateplení!$E$4","v":"1921 až 1945"},"zdivo z děrovaných cihel a tvárnic tloušťky cca 300 mm","1921 až 1945-zdivo z děrovaných cihel a tvárnic tloušťky cca 300 mm",1.3,0.3,0.25,0.15,"stěny"]
["stěny",{"$f":"ParametryZateplení!$E$4","v":"1921 až 1945"},"zdivo ze škvárobetonu tloušťky 250 mm až 300 mm","1921 až 1945-zdivo ze škvárobetonu tloušťky 250 mm až 300 mm",1.2,0.3,0.25,0.15,"stěny"]
["stěny",{"$f":"ParametryZateplení!$E$5","v":"1946 až 1960"},"zdivo z cihel pálených plných tloušťky 450 mm","1946 až 1960-zdivo z cihel pálených plných tloušťky 450 mm",1.4,0.3,0.25,0.15,"stěny"]
["stěny",{"$f":"ParametryZateplení!$E$5","v":"1946 až 1960"},"zdivo z děrovaných cihel a tvárnic","1946 až 1960-zdivo z děrovaných cihel a tvárnic",1.3,0.3,0.25,0.15,"stěny"]
["stěny",{"$f":"ParametryZateplení!$E$5","v":"1946 až 1960"},"zdivo ze škvárobetonu tloušťky 250 mm až 300 mm","1946 až 1960-zdivo ze škvárobetonu tloušťky 250 mm až 300 mm",1.2,0.3,0.25,0.15,"stěny"]
["stěny",{"$f":"ParametryZateplení!$E$5","v":"1946 až 1960"},"zdivo z lehkých betonů tloušťky cca 300 mm","1946 až 1960-zdivo z lehkých betonů tloušťky cca 300 mm",1.4,0.3,0.25,0.15,"stěny"]
["stěny",{"$f":"ParametryZateplení!$E$6","v":"1961 až 1980"},"zdivo z děrovaných cihel a tvárnic tloušťky cca 300 mm","1961 až 1980-zdivo z děrovaných cihel a tvárnic tloušťky cca 300 mm",1.3,0.3,0.25,0.15,"stěny"]
["stěny",{"$f":"ParametryZateplení!$E$6","v":"1961 až 1980"},"zdivo ze škvárobetonu tloušťky 250 mm až 300 mm","1961 až 1980-zdivo ze škvárobetonu tloušťky 250 mm až 300 mm",1.2,0.3,0.25,0.15,"stěny"]
["stěny",{"$f":"ParametryZateplení!$E$6","v":"1961 až 1980"},"zdivo z lehkých betonů tloušťky cca 300 mm","1961 až 1980-zdivo z lehkých betonů tloušťky cca 300 mm",1.4,0.3,0.25,0.15,"stěny"]
["stěny",{"$f":"ParametryZateplení!$E$6","v":"1961 až 1980"},"panel z lehkého betonu tloušťky 240 mm až 300 mm","1961 až 1980-panel z lehkého betonu tloušťky 240 mm až 300 mm",0.9,0.3,0.25,0.15,"stěny"]
["stěny",{"$f":"ParametryZateplení!$E$6","v":"1961 až 1980"},"zdivo z pórobetonu tloušťky cca 300 mm","1961 až 1980-zdivo z pórobetonu tloušťky cca 300 mm",0.7,0.3,0.25,0.15,"stěny"]
["stěny",{"$f":"ParametryZateplení!$E$6","v":"1961 až 1980"},"keramický panel tloušťky 250 mm až 300 mm bez tep. izolace","1961 až 1980-keramický panel tloušťky 250 mm až 300 mm bez tep. izolace",1.8,0.3,0.25,0.15,"stěny"]
["stěny",{"$f":"ParametryZateplení!$E$6","v":"1961 až 1980"},"kovoplastický panel (tzv. Boletický) tloušťky 120 mm",{"$f":"CONCATENATE(ZpůsobVýpočtu,\"-\",C84)","v":"0-kovoplastický panel (tzv. Boletický) tloušťky 120 mm"},1.1000000000000001,0.3,0.2,0.15,"stěny"]
["stěny",{"$f":"ParametryZateplení!$E$6","v":"1961 až 1980"},"železobetonový panel sendvičový tloušťky 190 až 240 mm","1961 až 1980-železobetonový panel sendvičový tloušťky 190 až 240 mm",1,0.3,0.25,0.15,"stěny"]
["stěny",{"$f":"ParametryZateplení!$E$7","v":"1981 až 1994"},"zdivo z pórobetonových tvárnic tloušťky 400 mm","1981 až 1994-zdivo z pórobetonových tvárnic tloušťky 400 mm",0.7,0.3,0.25,0.15,"stěny"]
["stěny",{"$f":"ParametryZateplení!$E$7","v":"1981 až 1994"},"panel z lehkého betonu tloušťky cca 350 mm",{"$f":"CONCATENATE(Denostupně,\"-\",C87)","v":"-943,8-panel z lehkého betonu tloušťky cca 350 mm"},0.9,0.3,0.25,0.15,"stěny"]
["stěny",{"$f":"ParametryZateplení!$E$7","v":"1981 až 1994"},"keramický panel tloušťky 300 mm s tepelnou izolací","1981 až 1994-keramický panel tloušťky 300 mm s tepelnou izolací",0.8,0.3,0.25,0.15,"stěny"]
["stěny",{"$f":"ParametryZateplení!$E$7","v":"1981 až 1994"},"železobetonový panel sendvičový tloušťky cca 300 mm","1981 až 1994-železobetonový panel sendvičový tloušťky cca 300 mm",0.6,0.3,0.25,0.15,"stěny"]
["stěny",{"$f":"ParametryZateplení!$E$8","v":"1995 a dále"},"stěna rekonstruovaný objekt (1995 - 2001)","1995 a dále-stěna rekonstruovaný objekt (1995 - 2001)",0.7,0.3,0.25,0.15,"stěny"]
["stěny",{"$f":"ParametryZateplení!$E$8","v":"1995 a dále"},"nová stěna (1995 - 2001)","1995 a dále-nová stěna (1995 - 2001)",0.33,0.3,0.25,0.15,"stěny"]
["stěny",{"$f":"ParametryZateplení!$E$8","v":"1995 a dále"},"stěna lehká - nová od 2002","1995 a dále-stěna lehká - nová od 2002",0.3,0.3,0.2,0.15,"stěny"]
["stěny",{"$f":"ParametryZateplení!$E$8","v":"1995 a dále"},"stěna těžká - nová od 2002","1995 a dále-stěna těžká - nová od 2002",0.38,0.3,0.25,0.15,"stěny"]
["stěny",{"$f":"ParametryZateplení!$E$8","v":"1995 a dále"},"stěna těžká - nová od 2002",{"$f":"CONCATENATE(B94,\"-\",C94)","v":"1995 a dále-stěna těžká - nová od 2002"},0.38,0.3,0.25,0.15,"stěny"]
["stěny",{"$f":"ParametryZateplení!$E$8","v":"1995 a dále"},"stěna nová od 2011",{"$f":"CONCATENATE(B95,\"-\",C95)","v":"1995 a dále-stěna nová od 2011"},0.3,0.3,0.25,0.15,"stěny"]
["plochá střecha",{"$f":"ParametryZateplení!$E$3","v":"do 1920"},"plochá jednoplášťová střecha s vrstvou škvárobetonu","do 1920-plochá jednoplášťová střecha s vrstvou škvárobetonu",2,0.24,0.16,0.11,{"$f":"$J$17","v":"střecha"}]
["plochá střecha",{"$f":"ParametryZateplení!$E$4","v":"1921 až 1945"},"plochá jednoplášťová střecha s vrstvou škvárobetonu","1921 až 1945-plochá jednoplášťová střecha s vrstvou škvárobetonu",2,0.24,0.16,0.11,{"$f":"$J$17","v":"střecha"}]
["plochá střecha",{"$f":"ParametryZateplení!$E$4","v":"1921 až 1945"},"plochá jednoplášťová střecha s tepelnou izolací z dutých cihel","1921 až 1945-plochá jednoplášťová střecha s tepelnou izolací z dutých cihel",1.4,0.24,0.16,0.11,"střecha"]
["plochá střecha",{"$f":"ParametryZateplení!$E$4","v":"1921 až 1945"},"plochá dvouplášťová střecha s násypem","1921 až 1945-plochá dvouplášťová střecha s násypem",1.2,0.24,0.16,0.11,"střecha"]
["plochá střecha",{"$f":"ParametryZateplení!$E$5","v":"1946 až 1960"},"plochá jednoplášťová střecha s pěnobetonem a heraklitem","1946 až 1960-plochá jednoplášťová střecha s pěnobetonem a heraklitem",0.9,0.24,0.16,0.11,"střecha"]
["plochá střecha",{"$f":"ParametryZateplení!$E$6","v":"1961 až 1980"},"plochá jednoplášťová střecha s tepelnou izolací z plynosilikátových desek nebo pěnoskla","1961 až 1980-plochá jednoplášťová střecha s tepelnou izolací z plynosilikátových desek nebo pěnoskla",0.7,0.24,0.16,0.11,"střecha"]
["plochá střecha",{"$f":"ParametryZateplení!$E$6","v":"1961 až 1980"},"plochá jednoplášťová střecha s tepelnou izolací z polystyrénu tl. 50 mm","1961 až 1980-plochá jednoplášťová střecha s tepelnou izolací z polystyrénu tl. 50 mm",0.6,0.24,0.16,0.11,"střecha"]
["plochá střecha",{"$f":"ParametryZateplení!$E$6","v":"1961 až 1980"},"plochá dvouplášťová střecha s tepelnou izolací s minerálních vláken tloušťky 60 až 80 mm","1961 až 1980-plochá dvouplášťová střecha s tepelnou izolací s minerálních vláken tloušťky 60 až 80 mm",0.7,0.24,0.16,0.11,"střecha"]
["plochá střecha",{"$f":"ParametryZateplení!$E$7","v":"1981 až 1994"},"plochá jednoplášťová střecha s tepelnou izolací z polystyrénu tl. 100 mm","1981 až 1994-plochá jednoplášťová střecha s tepelnou izolací z polystyrénu tl. 100 mm",0.4,0.24,0.16,0.11,"střecha"]
["plochá střecha",{"$f":"ParametryZateplení!$E$7","v":"1981 až 1994"},"plochá dvouplášťová střecha s tepelnou izolací s minerálních vláken tloušťky 120 mm","1981 až 1994-plochá dvouplášťová střecha s tepelnou izolací s minerálních vláken tloušťky 120 mm",0.4,0.24,0.16,0.11,"střecha"]
["plochá střecha",{"$f":"ParametryZateplení!$E$8","v":"1995 a dále"},"plochá střecha 1995-2002","1995 a dále-plochá střecha 1995-2002",{"$f":"1/3","v":0.33333333333333331},0.24,0.16,0.11,"střecha"]
["plochá střecha",{"$f":"ParametryZateplení!$E$8","v":"1995 a dále"},"plochá střecha těžká po roce 2002","1995 a dále-plochá střecha těžká po roce 2002",0.3,0.24,0.16,0.11,"střecha"]
["plochá střecha",{"$f":"ParametryZateplení!$E$8","v":"1995 a dále"},"plochá střecha lehká po roce 2002","1995 a dále-plochá střecha lehká po roce 2002",0.24,0.24,0.16,0.11,"střecha"]
["plochá střecha",{"$f":"ParametryZateplení!$E$8","v":"1995 a dále"},"plochá střecha po roce 2002","1995 a dále-plochá střecha po roce 2002",0.24,0.24,0.16,0.11,"střecha"]
["plochá střecha",{"$f":"ParametryZateplení!$E$8","v":"1995 a dále"},"plochá střecha po roce 2007","1995 a dále-plochá střecha po roce 2007",0.24,0.24,0.16,0.11,"střecha"]
["šikmá střecha",{"$f":"ParametryZateplení!$E$3","v":"do 1920"},"šikmá střecha nezateplená","do 1920-šikmá střecha nezateplená",4,0.24,0.16,0.15,"střecha"]
["šikmá střecha",{"$f":"ParametryZateplení!$E$4","v":"1921 až 1945"},"šikmá střecha nezateplená","1921 až 1945-šikmá střecha nezateplená",4,0.24,0.16,0.15,"střecha"]
["šikmá střecha",{"$f":"ParametryZateplení!$E$5","v":"1946 až 1960"},"šikmá střecha nezateplená","1946 až 1960-šikmá střecha nezateplená",4,0.24,0.16,0.15,"střecha"]
["šikmá střecha",{"$f":"ParametryZateplení!$E$6","v":"1961 až 1980"},"šikmá střecha zateplená","1961 až 1980-šikmá střecha zateplená",{"$f":"1/(0.05/0.065+0.1*2)","v":1.0317460317460316},0.24,0.16,0.15,"střecha"]
["šikmá střecha",{"$f":"ParametryZateplení!$E$7","v":"1981 až 1994"},"šikmá střecha zateplená","1981 až 1994-šikmá střecha zateplená",{"$f":"1/(0.08/0.065+0.1*2)","v":0.69892473118279563},0.24,0.16,0.15,"střecha"]
["šikmá střecha",{"$f":"ParametryZateplení!$E$8","v":"1995 a dále"},"šikmá střecha realizace 1995-2002","1995 a dále-šikmá střecha realizace 1995-2002",{"$f":"1/3","v":0.33333333333333331},0.24,0.16,0.15,"střecha"]
["šikmá střecha",{"$f":"ParametryZateplení!$E$8","v":"1995 a dále"},"šikmá střecha po roce 2002","1995 a dále-šikmá střecha po roce 2002",0.24,0.24,0.16,0.15,"střecha"]
["strop půdy",{"$f":"ParametryZateplení!$E$3","v":"do 1920"},"stropy dřevěné trámové pod půdou s násypem škváry","do 1920-stropy dřevěné trámové pod půdou s násypem škváry",1.6,0.3,0.2,0.15,"střecha"]
["strop půdy",{"$f":"ParametryZateplení!$E$3","v":"do 1920"},"stropy keramické do ocelových nosníků pod půdou s násypem škváry","do 1920-stropy keramické do ocelových nosníků pod půdou s násypem škváry",1,0.3,0.2,0.12,"střecha"]
["strop půdy",{"$f":"ParametryZateplení!$E$4","v":"1921 až 1945"},"stropy dřevěné trámové pod půdou s násypem škváry","1921 až 1945-stropy dřevěné trámové pod půdou s násypem škváry",1.6,0.3,0.2,0.12,"střecha"]
["strop půdy",{"$f":"ParametryZateplení!$E$4","v":"1921 až 1945"},"stropy keramické do ocelových nosníků pod půdou s násypem škváry","1921 až 1945-stropy keramické do ocelových nosníků pod půdou s násypem škváry",2.2000000000000002,0.3,0.2,0.12,"střecha"]
["strop půdy",{"$f":"ParametryZateplení!$E$4","v":"1921 až 1945"},"stropy železobetonové pod půdou s násypem a potěrem","1921 až 1945-stropy železobetonové pod půdou s násypem a potěrem",1,0.3,0.2,0.12,"střecha"]
["strop půdy",{"$f":"ParametryZateplení!$E$5","v":"1946 až 1960"},"stropy dřevěné trámové pod půdou s násypem škváry","1946 až 1960-stropy dřevěné trámové pod půdou s násypem škváry",1.6,0.3,0.2,0.12,"střecha"]
["strop půdy",{"$f":"ParametryZateplení!$E$5","v":"1946 až 1960"},"stropy keramické do ocelových nosníků pod půdou s násypem škváry","1946 až 1960-stropy keramické do ocelových nosníků pod půdou s násypem škváry",2.2000000000000002,0.3,0.2,0.12,"střecha"]
["strop půdy",{"$f":"ParametryZateplení!$E$5","v":"1946 až 1960"},"stropy železobetonové pod půdou s násypem a potěrem","1946 až 1960-stropy železobetonové pod půdou s násypem a potěrem",2.6,0.3,0.2,0.12,"střecha"]
["strop půdy",{"$f":"ParametryZateplení!$E$5","v":"1946 až 1960"},"stropy železobetonové pod půdou s vrstvou lehkého betonu","1946 až 1960-stropy železobetonové pod půdou s vrstvou lehkého betonu",1,0.3,0.2,0.12,"střecha"]
["strop půdy",{"$f":"ParametryZateplení!$E$6","v":"1961 až 1980"},"stropy dřevěné trámové pod půdou s násypem škváry","1961 až 1980-stropy dřevěné trámové pod půdou s násypem škváry",1.6,0.3,0.2,0.12,"střecha"]
["strop půdy",{"$f":"ParametryZateplení!$E$6","v":"1961 až 1980"},"stropy keramické do ocelových nosníků pod půdou s násypem škváry","1961 až 1980-stropy keramické do ocelových nosníků pod půdou s násypem škváry",2.2000000000000002,0.3,0.2,0.12,"střecha"]
["strop půdy",{"$f":"ParametryZateplení!$E$6","v":"1961 až 1980"},"stropy železobetonové pod půdou s násypem a potěrem","1961 až 1980-stropy železobetonové pod půdou s násypem a potěrem",2.6,0.3,0.2,0.12,"střecha"]
["strop půdy",{"$f":"ParametryZateplení!$E$6","v":"1961 až 1980"},"stropy železobetonové pod půdou s vrstvou lehkého betonu","1961 až 1980-stropy železobetonové pod půdou s vrstvou lehkého betonu",2.6,0.3,0.2,0.12,"střecha"]
["strop půdy",{"$f":"ParametryZateplení!$E$6","v":"1961 až 1980"},"stropy železobetonové panelové pod půdou s potěrem","1961 až 1980-stropy železobetonové panelové pod půdou s potěrem",2,0.3,0.2,0.12,"střecha"]
["strop půdy",{"$f":"ParametryZateplení!$E$6","v":"1961 až 1980"},"stropy keramické z panelů a vložek pod půdou s potěrem","1961 až 1980-stropy keramické z panelů a vložek pod půdou s potěrem",1,0.3,0.2,0.12,"střecha"]
["strop půdy",{"$f":"ParametryZateplení!$E$7","v":"1981 až 1994"},"stropy dřevěné trámové pod půdou s násypem škváry","1981 až 1994-stropy dřevěné trámové pod půdou s násypem škváry",1.6,0.3,0.2,0.12,"střecha"]
["strop půdy",{"$f":"ParametryZateplení!$E$7","v":"1981 až 1994"},"stropy keramické do ocelových nosníků pod půdou s násypem škváry","1981 až 1994-stropy keramické do ocelových nosníků pod půdou s násypem škváry",2.2000000000000002,0.3,0.2,0.12,"střecha"]
["strop půdy",{"$f":"ParametryZateplení!$E$7","v":"1981 až 1994"},"stropy železobetonové pod půdou s násypem a potěrem",{"$f":"CONCATENATE(B135,\"-\",C135)","v":"1981 až 1994-stropy železobetonové pod půdou s násypem a potěrem"},2.6,0.3,0.2,0.12,"střecha"]
["strop půdy",{"$f":"ParametryZateplení!$E$7","v":"1981 až 1994"},"stropy železobetonové pod půdou s vrstvou lehkého betonu","1981 až 1994-stropy železobetonové pod půdou s vrstvou lehkého betonu",2.6,0.3,0.2,0.12,"střecha"]
["strop půdy",{"$f":"ParametryZateplení!$E$7","v":"1981 až 1994"},"stropy železobetonové panelové pod půdou s potěrem","1981 až 1994-stropy železobetonové panelové pod půdou s potěrem",2,0.3,0.2,0.12,"střecha"]
["strop půdy",{"$f":"ParametryZateplení!$E$7","v":"1981 až 1994"},"stropy keramické z panelů a vložek pod půdou s potěrem","1981 až 1994-stropy keramické z panelů a vložek pod půdou s potěrem",0.48,0.3,0.2,0.12,"střecha"]
["strop půdy",{"$f":"ParametryZateplení!$E$8","v":"1995 a dále"},"strop pod půdou - 1995-2002 - přípustná","1995 a dále-strop pod půdou - 1995-2002 - přípustná",0.31,0.3,0.2,0.12,"střecha"]
["strop půdy",{"$f":"ParametryZateplení!$E$8","v":"1995 a dále"},"strop pod půdou - 1995-2002 - požadovaná","1995 a dále-strop pod půdou - 1995-2002 - požadovaná",0.22,0.3,0.2,0.12,"střecha"]
["strop půdy",{"$f":"ParametryZateplení!$E$8","v":"1995 a dále"},"strop pod půdou - po roce 2002","1995 a dále-strop pod půdou - po roce 2002",0.3,0.3,0.2,0.12,"střecha"]
["nevytápěný suterén",{"$f":"ParametryZateplení!$E$3","v":"do 1920"},"stropy dřevěné trámové nad suterénem s dřevěnou podlahou","do 1920-stropy dřevěné trámové nad suterénem s dřevěnou podlahou",0.9,0.6,0.4,0.3,{"$f":"$J$18","v":"podlaha"}]
["nevytápěný suterén",{"$f":"ParametryZateplení!$E$3","v":"do 1920"},"stropy keramické do ocelových nosníků nad suterénem s dřevěnou podlahou","do 1920-stropy keramické do ocelových nosníků nad suterénem s dřevěnou podlahou",1.2,0.6,0.4,0.3,{"$f":"$J$18","v":"podlaha"}]
["nevytápěný suterén",{"$f":"ParametryZateplení!$E$4","v":"1921 až 1945"},"stropy dřevěné trámové nad suterénem s dřevěnou podlahou","1921 až 1945-stropy dřevěné trámové nad suterénem s dřevěnou podlahou",0.9,0.6,0.4,0.3,"podlaha"]
["nevytápěný suterén",{"$f":"ParametryZateplení!$E$4","v":"1921 až 1945"},"stropy keramické do ocelových nosníků nad suterénem s dřevěnou podlahou","1921 až 1945-stropy keramické do ocelových nosníků nad suterénem s dřevěnou podlahou",1.2,0.6,0.4,0.3,"podlaha"]
["nevytápěný suterén",{"$f":"ParametryZateplení!$E$4","v":"1921 až 1945"},"stropy železobetonové nad suterénem s dřevěnou podlahou","1921 až 1945-stropy železobetonové nad suterénem s dřevěnou podlahou",1.6,0.6,0.4,0.3,"podlaha"]
["nevytápěný suterén",{"$f":"ParametryZateplení!$E$5","v":"1946 až 1960"},"stropy dřevěné trámové nad suterénem s dřevěnou podlahou","1946 až 1960-stropy dřevěné trámové nad suterénem s dřevěnou podlahou",0.9,0.6,0.4,0.3,"podlaha"]
["nevytápěný suterén",{"$f":"ParametryZateplení!$E$5","v":"1946 až 1960"},"stropy keramické do ocelových nosníků nad suterénem s dřevěnou podlahou","1946 až 1960-stropy keramické do ocelových nosníků nad suterénem s dřevěnou podlahou",1.2,0.6,0.4,0.3,"podlaha"]
["nevytápěný suterén",{"$f":"ParametryZateplení!$E$5","v":"1946 až 1960"},"stropy železobetonové nad suterénem s dřevěnou podlahou","1946 až 1960-stropy železobetonové nad suterénem s dřevěnou podlahou",1.6,0.6,0.4,0.3,"podlaha"]
["nevytápěný suterén",{"$f":"ParametryZateplení!$E$5","v":"1946 až 1960"},"stropy železobetonové nad suterénem s podlahou s PVC","1946 až 1960-stropy železobetonové nad suterénem s podlahou s PVC",1.6,0.6,0.4,0.3,"podlaha"]
["nevytápěný suterén",{"$f":"ParametryZateplení!$E$5","v":"1946 až 1960"},"stropy železobetonové panelové nad suterénem s podlahou s PVC","1946 až 1960-stropy železobetonové panelové nad suterénem s podlahou s PVC",1.4,0.6,0.4,0.3,"podlaha"]
["nevytápěný suterén",{"$f":"ParametryZateplení!$E$5","v":"1946 až 1960"},"stropy keramické z panelů a vložek nad suterénem s podlahou s PVC","1946 až 1960-stropy keramické z panelů a vložek nad suterénem s podlahou s PVC",0.9,0.6,0.4,0.3,"podlaha"]
["nevytápěný suterén",{"$f":"ParametryZateplení!$E$6","v":"1961 až 1980"},"stropy keramické do ocelových nosníků nad suterénem s dřevěnou podlahou","1961 až 1980-stropy keramické do ocelových nosníků nad suterénem s dřevěnou podlahou",1.2,0.6,0.4,0.3,"podlaha"]
["nevytápěný suterén",{"$f":"ParametryZateplení!$E$6","v":"1961 až 1980"},"stropy železobetonové nad suterénem s dřevěnou podlahou","1961 až 1980-stropy železobetonové nad suterénem s dřevěnou podlahou",1.6,0.6,0.4,0.3,"podlaha"]
["nevytápěný suterén",{"$f":"ParametryZateplení!$E$6","v":"1961 až 1980"},"stropy železobetonové nad suterénem s podlahou s PVC","1961 až 1980-stropy železobetonové nad suterénem s podlahou s PVC",1.6,0.6,0.4,0.3,"podlaha"]
["nevytápěný suterén",{"$f":"ParametryZateplení!$E$6","v":"1961 až 1980"},"stropy železobetonové panelové nad suterénem s podlahou s PVC","1961 až 1980-stropy železobetonové panelové nad suterénem s podlahou s PVC",1.4,0.6,0.4,0.3,"podlaha"]
["nevytápěný suterén",{"$f":"ParametryZateplení!$E$6","v":"1961 až 1980"},"stropy keramické z panelů a vložek nad suterénem s podlahou s PVC","1961 až 1980-stropy keramické z panelů a vložek nad suterénem s podlahou s PVC",0.9,0.6,0.4,0.3,"podlaha"]
["nevytápěný suterén",{"$f":"ParametryZateplení!$E$7","v":"1981 až 1994"},"stropy keramické do ocelových nosníků nad suterénem s dřevěnou podlahou","1981 až 1994-stropy keramické do ocelových nosníků nad suterénem s dřevěnou podlahou",1.2,0.6,0.4,0.3,"podlaha"]
["nevytápěný suterén",{"$f":"ParametryZateplení!$E$7","v":"1981 až 1994"},"stropy železobetonové nad suterénem s dřevěnou podlahou","1981 až 1994-stropy železobetonové nad suterénem s dřevěnou podlahou",1.6,0.6,0.4,0.3,"podlaha"]
["nevytápěný suterén",{"$f":"ParametryZateplení!$E$7","v":"1981 až 1994"},"stropy železobetonové nad suterénem s podlahou s PVC","1981 až 1994-stropy železobetonové nad suterénem s podlahou s PVC",1.6,0.6,0.4,0.3,"podlaha"]
["nevytápěný suterén",{"$f":"ParametryZateplení!$E$7","v":"1981 až 1994"},"stropy železobetonové panelové nad suterénem s podlahou s PVC","1981 až 1994-stropy železobetonové panelové nad suterénem s podlahou s PVC",1,0.6,0.4,0.3,"podlaha"]
["nevytápěný suterén",{"$f":"ParametryZateplení!$E$7","v":"1981 až 1994"},"stropy keramické z panelů a vložek nad suterénem s podlahou s PVC","1981 až 1994-stropy keramické z panelů a vložek nad suterénem s podlahou s PVC",0.9,0.6,0.4,0.3,"podlaha"]
["nevytápěný suterén",{"$f":"ParametryZateplení!$E$8","v":"1995 a dále"},"podlaha nad nevytápěným prostorem do roku 2002","1995 a dále-podlaha nad nevytápěným prostorem do roku 2002",0.77,0.6,0.4,0.3,"podlaha"]
["nevytápěný suterén",{"$f":"ParametryZateplení!$E$8","v":"1995 a dále"},"podlaha s podlahovým vytápěním lehká","1995 a dále-podlaha s podlahovým vytápěním lehká",0.24,0.6,0.4,0.3,"podlaha"]
["nevytápěný suterén",{"$f":"ParametryZateplení!$E$8","v":"1995 a dále"},"podlaha s podlahovým vytápěním těžká","1995 a dále-podlaha s podlahovým vytápěním těžká",0.3,0.6,0.4,0.3,"podlaha"]
["nevytápěný suterén",{"$f":"ParametryZateplení!$E$8","v":"1995 a dále"},"strop nad nevytápěným prostorem po roce 2002","1995 a dále-strop nad nevytápěným prostorem po roce 2002",0.6,0.6,0.4,0.3,"podlaha"]
["okna",{"$f":"ParametryZateplení!$E$3","v":"do 1920"},"okna dřevěná špaletová se 2 skly","do 1920-okna dřevěná špaletová se 2 skly",2.35,1.5,1.2,0.9,{"$f":"$J$19","v":"okna"}]
["okna",{"$f":"ParametryZateplení!$E$3","v":"do 1920"},"okna dřevěná jednoduchá s 1 sklem","do 1920-okna dřevěná jednoduchá s 1 sklem",4.5,1.5,1.2,0.9,{"$f":"$J$19","v":"okna"}]
["okna",{"$f":"ParametryZateplení!$E$3","v":"do 1920"},"okna dřevěná zdvojená se 2 skly","do 1920-okna dřevěná zdvojená se 2 skly",2.4,1.5,1.2,0.9,"okna"]
["okna",{"$f":"ParametryZateplení!$E$3","v":"do 1920"},"okna kovová zdvojená se 2 skly","do 1920-okna kovová zdvojená se 2 skly",3.3,1.5,1.2,0.9,"okna"]
["okna",{"$f":"ParametryZateplení!$E$3","v":"do 1920"},"kopility","do 1920-kopility",2.7,1.5,1.2,0.9,"okna"]
["okna",{"$f":"ParametryZateplení!$E$3","v":"do 1920"},"sklobetonová stěna (luxfery)","do 1920-sklobetonová stěna (luxfery)",3.1,1.5,1.2,0.9,"okna"]
["okna",{"$f":"ParametryZateplení!$E$3","v":"do 1920"},"okna vyměněná před 2011","do 1920-okna vyměněná před 2011",1.7,1.5,1.2,0.9,"okna"]
["okna",{"$f":"ParametryZateplení!$E$3","v":"do 1920"},"okna vyměněná po roce 2011","do 1920-okna vyměněná po roce 2011",1.5,1.5,1.2,0.9,"okna"]
["okna",{"$f":"ParametryZateplení!$E$4","v":"1921 až 1945"},"okna dřevěná špaletová se 2 skly","1921 až 1945-okna dřevěná špaletová se 2 skly",2.35,1.5,1.2,0.9,"okna"]
["okna",{"$f":"ParametryZateplení!$E$4","v":"1921 až 1945"},"okna dřevěná jednoduchá s 1 sklem","1921 až 1945-okna dřevěná jednoduchá s 1 sklem",4.5,1.5,1.2,0.9,"okna"]
["okna",{"$f":"ParametryZateplení!$E$4","v":"1921 až 1945"},"okna dřevěná zdvojená se 2 skly","1921 až 1945-okna dřevěná zdvojená se 2 skly",2.4,1.5,1.2,0.9,"okna"]
["okna",{"$f":"ParametryZateplení!$E$4","v":"1921 až 1945"},"okna kovová zdvojená se 2 skly","1921 až 1945-okna kovová zdvojená se 2 skly",3.3,1.5,1.2,0.9,"okna"]
["okna",{"$f":"ParametryZateplení!$E$4","v":"1921 až 1945"},"kopility","1921 až 1945-kopility",2.7,1.5,1.2,0.9,"okna"]
["okna",{"$f":"ParametryZateplení!$E$4","v":"1921 až 1945"},"sklobetonová stěna (luxfery)","1921 až 1945-sklobetonová stěna (luxfery)",3.1,1.5,1.2,0.9,"okna"]
["okna",{"$f":"ParametryZateplení!$E$4","v":"1921 až 1945"},"okna vyměněná před 2011","1921 až 1945-okna vyměněná před 2011",1.7,1.5,1.2,0.9,"okna"]
["okna",{"$f":"ParametryZateplení!$E$4","v":"1921 až 1945"},"okna vyměněná po roce 2011","1921 až 1945-okna vyměněná po roce 2011",1.5,1.5,1.2,0.9,"okna"]
["okna",{"$f":"ParametryZateplení!$E$5","v":"1946 až 1960"},"okna dřevěná špaletová se 2 skly","1946 až 1960-okna dřevěná špaletová se 2 skly",2.35,1.5,1.2,0.9,"okna"]
["okna",{"$f":"ParametryZateplení!$E$5","v":"1946 až 1960"},"okna dřevěná jednoduchá s 1 sklem","1946 až 1960-okna dřevěná jednoduchá s 1 sklem",4.5,1.5,1.2,0.9,"okna"]
["okna",{"$f":"ParametryZateplení!$E$5","v":"1946 až 1960"},"okna dřevěná zdvojená se 2 skly","1946 až 1960-okna dřevěná zdvojená se 2 skly",2.4,1.5,1.2,0.9,"okna"]
["okna",{"$f":"ParametryZateplení!$E$5","v":"1946 až 1960"},"okna kovová zdvojená se 2 skly","1946 až 1960-okna kovová zdvojená se 2 skly",3.3,1.5,1.2,0.9,"okna"]
["okna",{"$f":"ParametryZateplení!$E$5","v":"1946 až 1960"},"kopility","1946 až 1960-kopility",2.7,1.5,1.2,0.9,"okna"]
["okna",{"$f":"ParametryZateplení!$E$5","v":"1946 až 1960"},"sklobetonová stěna (luxfery)","1946 až 1960-sklobetonová stěna (luxfery)",3.1,1.5,1.2,0.9,"okna"]
["okna",{"$f":"ParametryZateplení!$E$5","v":"1946 až 1960"},"okna vyměněná před 2011","1946 až 1960-okna vyměněná před 2011",1.7,1.5,1.2,0.9,"okna"]
["okna",{"$f":"ParametryZateplení!$E$5","v":"1946 až 1960"},"okna vyměněná po roce 2011","1946 až 1960-okna vyměněná po roce 2011",1.5,1.5,1.2,0.9,"okna"]
["okna",{"$f":"ParametryZateplení!$E$6","v":"1961 až 1980"},"okna dřevěná špaletová se 2 skly","1961 až 1980-okna dřevěná špaletová se 2 skly",2.35,1.5,1.2,0.9,"okna"]
["okna",{"$f":"ParametryZateplení!$E$6","v":"1961 až 1980"},"okna dřevěná jednoduchá s 1 sklem","1961 až 1980-okna dřevěná jednoduchá s 1 sklem",4.5,1.5,1.2,0.9,"okna"]
["okna",{"$f":"ParametryZateplení!$E$6","v":"1961 až 1980"},"okna dřevěná zdvojená se 2 skly","1961 až 1980-okna dřevěná zdvojená se 2 skly",2.4,1.5,1.2,0.9,"okna"]
["okna",{"$f":"ParametryZateplení!$E$6","v":"1961 až 1980"},"okna kovová zdvojená se 2 skly","1961 až 1980-okna kovová zdvojená se 2 skly",3.3,1.5,1.2,0.9,"okna"]
["okna",{"$f":"ParametryZateplení!$E$6","v":"1961 až 1980"},"kopility",{"$f":"CONCATENATE(B195,\"-\",C195)","v":"1961 až 1980-kopility"},2.7,1.5,1.2,0.9,"okna"]
["okna",{"$f":"ParametryZateplení!$E$6","v":"1961 až 1980"},"sklobetonová stěna (luxfery)",{"$f":"CONCATENATE(B196,\"-\",C196)","v":"1961 až 1980-sklobetonová stěna (luxfery)"},3.1,1.5,1.2,0.9,"okna"]
["okna",{"$f":"ParametryZateplení!$E$6","v":"1961 až 1980"},"okna vyměněná před 2011",{"$f":"CONCATENATE(B197,\"-\",C197)","v":"1961 až 1980-okna vyměněná před 2011"},1.7,1.5,1.2,0.9,"okna"]
["okna",{"$f":"ParametryZateplení!$E$6","v":"1961 až 1980"},"okna vyměněná po roce 2011",{"$f":"CONCATENATE(B198,\"-\",C198)","v":"1961 až 1980-okna vyměněná po roce 2011"},1.5,1.5,1.2,0.9,"okna"]
["okna",{"$f":"ParametryZateplení!$E$7","v":"1981 až 1994"},"okna dřevěná zdvojená se 2 skly","1981 až 1994-okna dřevěná zdvojená se 2 skly",2.4,1.5,1.2,0.9,"okna"]
["okna",{"$f":"ParametryZateplení!$E$7","v":"1981 až 1994"},"okna dřevěná jednoduchá s izolačním dvojsklem","1981 až 1994-okna dřevěná jednoduchá s izolačním dvojsklem",2.5,1.5,1.2,0.9,"okna"]
["okna",{"$f":"ParametryZateplení!$E$7","v":"1981 až 1994"},"okna kovová zdvojená se 2 skly","1981 až 1994-okna kovová zdvojená se 2 skly",2.8,1.5,1.2,0.9,"okna"]
["okna",{"$f":"ParametryZateplení!$E$7","v":"1981 až 1994"},"okna kovová jednoduchá s izolačním dvojsklem","1981 až 1994-okna kovová jednoduchá s izolačním dvojsklem",3.2,1.5,1.2,0.9,"okna"]
["okna",{"$f":"ParametryZateplení!$E$7","v":"1981 až 1994"},"kopility","1981 až 1994-kopility",2.7,1.5,1.2,0.9,"okna"]
["okna",{"$f":"ParametryZateplení!$E$7","v":"1981 až 1994"},"sklobetonová stěna (luxfery)","1981 až 1994-sklobetonová stěna (luxfery)",3.1,1.5,1.2,0.9,"okna"]
["okna",{"$f":"ParametryZateplení!$E$7","v":"1981 až 1994"},"komůrkový polykarbonát",{"$f":"CONCATENATE(B205,\"-\",C205)","v":"1981 až 1994-komůrkový polykarbonát"},3.6,1.5,1.2,0.9,"okna"]
["okna",{"$f":"ParametryZateplení!$E$7","v":"1981 až 1994"},"okna nová po roce 2002",{"$f":"CONCATENATE(B206,\"-\",C206)","v":"1981 až 1994-okna nová po roce 2002"},1.7,1.5,1.2,0.9,"okna"]
["okna",{"$f":"ParametryZateplení!$E$7","v":"1981 až 1994"},"okna nová po roce 2011",{"$f":"CONCATENATE(B207,\"-\",C207)","v":"1981 až 1994-okna nová po roce 2011"},1.5,1.5,1.2,0.9,"okna"]
["okna",{"$f":"ParametryZateplení!$E$8","v":"1995 a dále"},"okna do roku 2002","1995 a dále-okna do roku 2002",1.8,1.5,1.2,0.9,"okna"]
["okna",{"$f":"ParametryZateplení!$E$8","v":"1995 a dále"},"okna nová po roce 2002",{"$f":"CONCATENATE(B209,\"-\",C209)","v":"1995 a dále-okna nová po roce 2002"},1.7,1.5,1.2,0.9,"okna"]
["okna",{"$f":"ParametryZateplení!$E$8","v":"1995 a dále"},"okna nová po roce 2011",{"$f":"CONCATENATE(B210,\"-\",C210)","v":"1995 a dále-okna nová po roce 2011"},1.5,1.5,1.2,0.9,"okna"]
["okna",{"$f":"ParametryZateplení!$E$8","v":"1995 a dále"},"okna repasovaná ",{"$f":"CONCATENATE(B211,\"-\",C211)","v":"1995 a dále-okna repasovaná "},2,1.5,1.2,0.9,"okna"]
["okna",{"$f":"ParametryZateplení!$E$8","v":"1995 a dále"},"komůrkový polykarbonát tl. 16 mm",{"$f":"CONCATENATE(B212,\"-\",C212)","v":"1995 a dále-komůrkový polykarbonát tl. 16 mm"},2,1.5,1.2,0.9,"okna"]
["okna",{"$f":"ParametryZateplení!$E$8","v":"1995 a dále"},"komůrkový polykarbonát tl. 25 mm",{"$f":"CONCATENATE(B213,\"-\",C213)","v":"1995 a dále-komůrkový polykarbonát tl. 25 mm"},1.5,1.5,1.2,0.9,"okna"]
["okna",{"$f":"ParametryZateplení!$E$8","v":"1995 a dále"},"komůrkový polykarbonát tl. 32 mm",{"$f":"CONCATENATE(B214,\"-\",C214)","v":"1995 a dále-komůrkový polykarbonát tl. 32 mm"},1.3,1.5,1.2,0.9,"okna"]
["dveře-vrata",{"$f":"ParametryZateplení!$E$3","v":"do 1920"},"dveře dřevěné prosklené s 1 sklem","do 1920-dveře dřevěné prosklené s 1 sklem",4,1.7,1.2,1,{"$f":"$J$20","v":"dveře"}]
["dveře-vrata",{"$f":"ParametryZateplení!$E$3","v":"do 1920"},"dveře dřevěné prosklené izolačním dvojsklem","do 1920-dveře dřevěné prosklené izolačním dvojsklem",3,1.7,1.2,1,{"$f":"$J$20","v":"dveře"}]
["dveře-vrata",{"$f":"ParametryZateplení!$E$3","v":"do 1920"},"dveře dřevěné plné","do 1920-dveře dřevěné plné",2.2999999999999998,1.7,1.2,1,"dveře"]
["dveře-vrata",{"$f":"ParametryZateplení!$E$3","v":"do 1920"},"dveře kovové prosklené s 1 sklem","do 1920-dveře kovové prosklené s 1 sklem",5.65,1.7,1.2,1,"dveře"]
["dveře-vrata",{"$f":"ParametryZateplení!$E$3","v":"do 1920"},"dveře kovové prosklené izolačním dvojsklem","do 1920-dveře kovové prosklené izolačním dvojsklem",5,1.7,1.2,1,"dveře"]
["dveře-vrata",{"$f":"ParametryZateplení!$E$3","v":"do 1920"},"dveře/vrata kovová plná","do 1920-dveře/vrata kovová plná",5.65,1.7,1.2,1,"dveře"]
["dveře-vrata",{"$f":"ParametryZateplení!$E$3","v":"do 1920"},"vrata sekční tepelně izolační","do 1920-vrata sekční tepelně izolační",2,1.7,1.2,1.2,"dveře"]
["dveře-vrata",{"$f":"ParametryZateplení!$E$4","v":"1921 až 1945"},"dveře dřevěné prosklené s 1 sklem","1921 až 1945-dveře dřevěné prosklené s 1 sklem",4,1.7,1.2,1,"dveře"]
["dveře-vrata",{"$f":"ParametryZateplení!$E$4","v":"1921 až 1945"},"dveře dřevěné prosklené izolačním dvojsklem","1921 až 1945-dveře dřevěné prosklené izolačním dvojsklem",3,1.7,1.2,1,"dveře"]
["dveře-vrata",{"$f":"ParametryZateplení!$E$4","v":"1921 až 1945"},"dveře dřevěné plné","1921 až 1945-dveře dřevěné plné",2.2999999999999998,1.7,1.2,1,"dveře"]
["dveře-vrata",{"$f":"ParametryZateplení!$E$4","v":"1921 až 1945"},"dveře kovové prosklené s 1 sklem","1921 až 1945-dveře kovové prosklené s 1 sklem",5.65,1.7,1.2,1,"dveře"]
["dveře-vrata",{"$f":"ParametryZateplení!$E$4","v":"1921 až 1945"},"dveře kovové prosklené izolačním dvojsklem","1921 až 1945-dveře kovové prosklené izolačním dvojsklem",5,1.7,1.2,1,"dveře"]
["dveře-vrata",{"$f":"ParametryZateplení!$E$4","v":"1921 až 1945"},"dveře/vrata kovová plná","1921 až 1945-dveře/vrata kovová plná",5.65,1.7,1.2,1,"dveře"]
["dveře-vrata",{"$f":"ParametryZateplení!$E$4","v":"1921 až 1945"},"vrata sekční tepelně izolační","1921 až 1945-vrata sekční tepelně izolační",2,1.7,1.2,1.2,"dveře"]
["dveře-vrata",{"$f":"ParametryZateplení!$E$5","v":"1946 až 1960"},"dveře dřevěné prosklené s 1 sklem","1946 až 1960-dveře dřevěné prosklené s 1 sklem",4,1.7,1.2,1,"dveře"]
["dveře-vrata",{"$f":"ParametryZateplení!$E$5","v":"1946 až 1960"},"dveře dřevěné prosklené izolačním dvojsklem","1946 až 1960-dveře dřevěné prosklené izolačním dvojsklem",3,1.7,1.2,1,"dveře"]
["dveře-vrata",{"$f":"ParametryZateplení!$E$5","v":"1946 až 1960"},"dveře dřevěné plné","1946 až 1960-dveře dřevěné plné",2.2999999999999998,1.7,1.2,1,"dveře"]
["dveře-vrata",{"$f":"ParametryZateplení!$E$5","v":"1946 až 1960"},"dveře kovové prosklené s 1 sklem","1946 až 1960-dveře kovové prosklené s 1 sklem",5.65,1.7,1.2,1,"dveře"]
["dveře-vrata",{"$f":"ParametryZateplení!$E$5","v":"1946 až 1960"},"dveře kovové prosklené izolačním dvojsklem","1946 až 1960-dveře kovové prosklené izolačním dvojsklem",5,1.7,1.2,1,"dveře"]
["dveře-vrata",{"$f":"ParametryZateplení!$E$5","v":"1946 až 1960"},"dveře/vrata kovová plná","1946 až 1960-dveře/vrata kovová plná",5.65,1.7,1.2,1,"dveře"]
["dveře-vrata",{"$f":"ParametryZateplení!$E$5","v":"1946 až 1960"},"vrata sekční tepelně izolační","1946 až 1960-vrata sekční tepelně izolační",2,1.7,1.2,1.2,"dveře"]
["dveře-vrata",{"$f":"ParametryZateplení!$E$6","v":"1961 až 1980"},"dveře dřevěné prosklené s 1 sklem","1961 až 1980-dveře dřevěné prosklené s 1 sklem",4,1.7,1.2,1,"dveře"]
["dveře-vrata",{"$f":"ParametryZateplení!$E$6","v":"1961 až 1980"},"dveře dřevěné prosklené izolačním dvojsklem","1961 až 1980-dveře dřevěné prosklené izolačním dvojsklem",2.2999999999999998,1.7,1.2,1,"dveře"]
["dveře-vrata",{"$f":"ParametryZateplení!$E$6","v":"1961 až 1980"},"dveře dřevěné plné","1961 až 1980-dveře dřevěné plné",4,1.7,1.2,1,"dveře"]
["dveře-vrata",{"$f":"ParametryZateplení!$E$6","v":"1961 až 1980"},"dveře kovové prosklené s 1 sklem","1961 až 1980-dveře kovové prosklené s 1 sklem",5.65,1.7,1.2,1,"dveře"]
["dveře-vrata",{"$f":"ParametryZateplení!$E$6","v":"1961 až 1980"},"dveře kovové prosklené izolačním dvojsklem","1961 až 1980-dveře kovové prosklené izolačním dvojsklem",3.5,1.7,1.2,1,"dveře"]
["dveře-vrata",{"$f":"ParametryZateplení!$E$6","v":"1961 až 1980"},"dveře/vrata kovová plná","1961 až 1980-dveře/vrata kovová plná",5.65,1.7,1.2,1,"dveře"]
["dveře-vrata",{"$f":"ParametryZateplení!$E$6","v":"1961 až 1980"},"vrata sekční tepelně izolační","1961 až 1980-vrata sekční tepelně izolační",2,1.7,1.2,1.2,"dveře"]
["dveře-vrata",{"$f":"ParametryZateplení!$E$7","v":"1981 až 1994"},"dveře dřevěné prosklené s 1 sklem","1981 až 1994-dveře dřevěné prosklené s 1 sklem",4,1.7,1.2,1,"dveře"]
["dveře-vrata",{"$f":"ParametryZateplení!$E$7","v":"1981 až 1994"},"dveře dřevěné prosklené izolačním dvojsklem",{"$f":"CONCATENATE(B244,\"-\",C244)","v":"1981 až 1994-dveře dřevěné prosklené izolačním dvojsklem"},3,1.7,1.2,1,"dveře"]
["dveře-vrata",{"$f":"ParametryZateplení!$E$7","v":"1981 až 1994"},"dveře dřevěné plné","1981 až 1994-dveře dřevěné plné",2.2999999999999998,1.7,1.2,1,"dveře"]
["dveře-vrata",{"$f":"ParametryZateplení!$E$7","v":"1981 až 1994"},"dveře kovové prosklené s 1 sklem","1981 až 1994-dveře kovové prosklené s 1 sklem",5.65,1.7,1.2,1,"dveře"]
["dveře-vrata",{"$f":"ParametryZateplení!$E$7","v":"1981 až 1994"},"dveře kovové prosklené izolačním dvojsklem",{"$f":"CONCATENATE(B247,\"-\",C247)","v":"1981 až 1994-dveře kovové prosklené izolačním dvojsklem"},3.5,1.7,1.2,1,"dveře"]
["dveře-vrata",{"$f":"ParametryZateplení!$E$7","v":"1981 až 1994"},"dveře/vrata kovová plná",{"$f":"CONCATENATE(B248,\"-\",C248)","v":"1981 až 1994-dveře/vrata kovová plná"},5.65,1.7,1.2,1,"dveře"]
["dveře-vrata",{"$f":"ParametryZateplení!$E$7","v":"1981 až 1994"},"vrata sekční tepelně izolační","1981 až 1994-vrata sekční tepelně izolační",2,1.7,1.2,1.2,"dveře"]
["dveře-vrata",{"$f":"ParametryZateplení!$E$8","v":"1995 a dále"},"dveře dřevěné prosklené s 1 sklem","1995 a dále-dveře dřevěné prosklené s 1 sklem",4,1.7,1.2,1,"dveře"]
["dveře-vrata",{"$f":"ParametryZateplení!$E$8","v":"1995 a dále"},"dveře dřevěné prosklené izolačním dvojsklem","1995 a dále-dveře dřevěné prosklené izolačním dvojsklem",3,1.7,1.2,1,"dveře"]
["dveře-vrata",{"$f":"ParametryZateplení!$E$8","v":"1995 a dále"},"dveře dřevěné plné","1995 a dále-dveře dřevěné plné",2.2999999999999998,1.7,1.2,1,"dveře"]
["dveře-vrata",{"$f":"ParametryZateplení!$E$8","v":"1995 a dále"},"dveře kovové prosklené s 1 sklem","1995 a dále-dveře kovové prosklené s 1 sklem",5.65,1.7,1.2,1,"dveře"]
["dveře-vrata",{"$f":"ParametryZateplení!$E$8","v":"1995 a dále"},"dveře kovové prosklené izolačním dvojsklem","1995 a dále-dveře kovové prosklené izolačním dvojsklem",3.5,1.7,1.2,1,"dveře"]
["dveře-vrata",{"$f":"ParametryZateplení!$E$8","v":"1995 a dále"},"dveře/vrata kovová plná","1995 a dále-dveře/vrata kovová plná",5.65,1.7,1.2,1,"dveře"]
["dveře-vrata",{"$f":"ParametryZateplení!$E$8","v":"1995 a dále"},"vrata sekční tepelně izolační","1995 a dále-vrata sekční tepelně izolační",2,1.7,1.2,1.2,"dveře"]
["střešní okna-světlíky",{"$f":"ParametryZateplení!$E$3","v":"do 1920"},"střešní okna dřevěná jednoduchá s 1 sklem","do 1920-střešní okna dřevěná jednoduchá s 1 sklem",4.5,1.5,1.1000000000000001,1.1000000000000001,{"$f":"$J$21","v":"světlíky"}]
["střešní okna-světlíky",{"$f":"ParametryZateplení!$E$3","v":"do 1920"},"střešní okna dřevěná jednoduchá s dvojsklem","do 1920-střešní okna dřevěná jednoduchá s dvojsklem",2,1.5,1.1000000000000001,1.1000000000000001,{"$f":"$J$21","v":"světlíky"}]
["střešní okna-světlíky",{"$f":"ParametryZateplení!$E$3","v":"do 1920"},"střešní svělíky kovové s 1 sklem",{"$f":"CONCATENATE(B259,\"-\",C259)","v":"do 1920-střešní svělíky kovové s 1 sklem"},5.65,1.5,1.1000000000000001,1.1000000000000001,"světlíky"]
["střešní okna-světlíky",{"$f":"ParametryZateplení!$E$3","v":"do 1920"},"střešní okna nová do roku 2007",{"$f":"CONCATENATE(B260,\"-\",C260)","v":"do 1920-střešní okna nová do roku 2007"},1.8,1.5,1.1000000000000001,1.1000000000000001,"světlíky"]
["střešní okna-světlíky",{"$f":"ParametryZateplení!$E$3","v":"do 1920"},"střešní okna nová po roce 2007",{"$f":"CONCATENATE(B261,\"-\",C261)","v":"do 1920-střešní okna nová po roce 2007"},1.5,1.5,1.1000000000000001,1.1000000000000001,"světlíky"]
["střešní okna-světlíky",{"$f":"ParametryZateplení!$E$3","v":"do 1920"},"střešní světlíky polykarbonát",{"$f":"CONCATENATE(B262,\"-\",C262)","v":"do 1920-střešní světlíky polykarbonát"},2.4,1.5,1.1000000000000001,1.1000000000000001,"světlíky"]
["střešní okna-světlíky",{"$f":"ParametryZateplení!$E$4","v":"1921 až 1945"},"střešní okna dřevěná jednoduchá s 1 sklem","1921 až 1945-střešní okna dřevěná jednoduchá s 1 sklem",4.5,1.5,1.1000000000000001,1.1000000000000001,"světlíky"]
["střešní okna-světlíky",{"$f":"ParametryZateplení!$E$4","v":"1921 až 1945"},"střešní okna dřevěná jednoduchá s dvojsklem","1921 až 1945-střešní okna dřevěná jednoduchá s dvojsklem",2,1.5,1.1000000000000001,1.1000000000000001,"světlíky"]
["střešní okna-světlíky",{"$f":"ParametryZateplení!$E$4","v":"1921 až 1945"},"střešní svělíky kovové s 1 sklem","1921 až 1945-střešní svělíky kovové s 1 sklem",5.65,1.5,1.1000000000000001,1.1000000000000001,"světlíky"]
["střešní okna-světlíky",{"$f":"ParametryZateplení!$E$4","v":"1921 až 1945"},"střešní okna nová do roku 2007","1921 až 1945-střešní okna nová do roku 2007",1.8,1.5,1.1000000000000001,1.1000000000000001,"světlíky"]
["střešní okna-světlíky",{"$f":"ParametryZateplení!$E$4","v":"1921 až 1945"},"střešní okna nová po roce 2007","1921 až 1945-střešní okna nová po roce 2007",1.5,1.5,1.1000000000000001,1.1000000000000001,"světlíky"]
["střešní okna-světlíky",{"$f":"ParametryZateplení!$E$4","v":"1921 až 1945"},"střešní světlíky polykarbonát","1921 až 1945-střešní světlíky polykarbonát",2.4,1.5,1.1000000000000001,1.1000000000000001,"světlíky"]
["střešní okna-světlíky",{"$f":"ParametryZateplení!$E$5","v":"1946 až 1960"},"střešní okna dřevěná jednoduchá s 1 sklem","1946 až 1960-střešní okna dřevěná jednoduchá s 1 sklem",4.5,1.5,1.1000000000000001,1.1000000000000001,"světlíky"]
["střešní okna-světlíky",{"$f":"ParametryZateplení!$E$5","v":"1946 až 1960"},"střešní okna dřevěná jednoduchá s dvojsklem","1946 až 1960-střešní okna dřevěná jednoduchá s dvojsklem",2,1.5,1.1000000000000001,1.1000000000000001,"světlíky"]
["střešní okna-světlíky",{"$f":"ParametryZateplení!$E$5","v":"1946 až 1960"},"střešní svělíky kovové s 1 sklem",{"$f":"CONCATENATE(B271,\"-\",C271)","v":"1946 až 1960-střešní svělíky kovové s 1 sklem"},5.65,1.5,1.1000000000000001,1.1000000000000001,"světlíky"]
["střešní okna-světlíky",{"$f":"ParametryZateplení!$E$5","v":"1946 až 1960"},"střešní okna nová do roku 2007",{"$f":"CONCATENATE(B272,\"-\",C272)","v":"1946 až 1960-střešní okna nová do roku 2007"},1.8,1.5,1.1000000000000001,1.1000000000000001,"světlíky"]
["střešní okna-světlíky",{"$f":"ParametryZateplení!$E$5","v":"1946 až 1960"},"střešní okna nová po roce 2007",{"$f":"CONCATENATE(B273,\"-\",C273)","v":"1946 až 1960-střešní okna nová po roce 2007"},1.5,1.5,1.1000000000000001,1.1000000000000001,"světlíky"]
["střešní okna-světlíky",{"$f":"ParametryZateplení!$E$5","v":"1946 až 1960"},"střešní světlíky polykarbonát",{"$f":"CONCATENATE(B274,\"-\",C274)","v":"1946 až 1960-střešní světlíky polykarbonát"},2.4,1.5,1.1000000000000001,1.1000000000000001,"světlíky"]
["střešní okna-světlíky",{"$f":"ParametryZateplení!$E$6","v":"1961 až 1980"},"střešní okna dřevěná jednoduchá s 1 sklem","1961 až 1980-střešní okna dřevěná jednoduchá s 1 sklem",4.5,1.5,1.1000000000000001,1.1000000000000001,"světlíky"]
["střešní okna-světlíky",{"$f":"ParametryZateplení!$E$6","v":"1961 až 1980"},"střešní okna dřevěná jednoduchá s dvojsklem","1961 až 1980-střešní okna dřevěná jednoduchá s dvojsklem",2,1.5,1.1000000000000001,1.1000000000000001,"světlíky"]
["střešní okna-světlíky",{"$f":"ParametryZateplení!$E$6","v":"1961 až 1980"},"střešní svělíky kovové s 1 sklem","1961 až 1980-střešní svělíky kovové s 1 sklem",5.65,1.5,1.1000000000000001,1.1000000000000001,"světlíky"]
["střešní okna-světlíky",{"$f":"ParametryZateplení!$E$6","v":"1961 až 1980"},"střešní okna nová do roku 2007",{"$f":"CONCATENATE(B278,\"-\",C278)","v":"1961 až 1980-střešní okna nová do roku 2007"},1.8,1.5,1.1000000000000001,1.1000000000000001,"světlíky"]
["střešní okna-světlíky",{"$f":"ParametryZateplení!$E$6","v":"1961 až 1980"},"střešní okna nová po roce 2007","1961 až 1980-střešní okna nová po roce 2007",1.5,1.5,1.1000000000000001,1.1000000000000001,"světlíky"]
["střešní okna-světlíky",{"$f":"ParametryZateplení!$E$6","v":"1961 až 1980"},"střešní světlíky polykarbonát","1961 až 1980-střešní světlíky polykarbonát",2.4,1.5,1.1000000000000001,1.1000000000000001,"světlíky"]
["střešní okna-světlíky",{"$f":"ParametryZateplení!$E$7","v":"1981 až 1994"},"střešní okna dřevěná jednoduchá s 1 sklem","1981 až 1994-střešní okna dřevěná jednoduchá s 1 sklem",4.5,1.5,1.1000000000000001,1.1000000000000001,"světlíky"]
["střešní okna-světlíky",{"$f":"ParametryZateplení!$E$7","v":"1981 až 1994"},"střešní okna dřevěná jednoduchá s dvojsklem","1981 až 1994-střešní okna dřevěná jednoduchá s dvojsklem",2,1.5,1.1000000000000001,1.1000000000000001,"světlíky"]
["střešní okna-světlíky",{"$f":"ParametryZateplení!$E$7","v":"1981 až 1994"},"střešní svělíky kovové s 1 sklem",{"$f":"CONCATENATE(B283,\"-\",C283)","v":"1981 až 1994-střešní svělíky kovové s 1 sklem"},5.65,1.5,1.1000000000000001,1.1000000000000001,"světlíky"]
["střešní okna-světlíky",{"$f":"ParametryZateplení!$E$7","v":"1981 až 1994"},"střešní okna nová do roku 2007",{"$f":"CONCATENATE(B284,\"-\",C284)","v":"1981 až 1994-střešní okna nová do roku 2007"},1.8,1.5,1.1000000000000001,1.1000000000000001,"světlíky"]
["střešní okna-světlíky",{"$f":"ParametryZateplení!$E$7","v":"1981 až 1994"},"střešní okna nová po roce 2007",{"$f":"CONCATENATE(B285,\"-\",C285)","v":"1981 až 1994-střešní okna nová po roce 2007"},1.5,1.5,1.1000000000000001,1.1000000000000001,"světlíky"]
["střešní okna-světlíky",{"$f":"ParametryZateplení!$E$7","v":"1981 až 1994"},"střešní světlíky polykarbonát",{"$f":"CONCATENATE(B286,\"-\",C286)","v":"1981 až 1994-střešní světlíky polykarbonát"},2.4,1.5,1.1000000000000001,1.1000000000000001,"světlíky"]
["střešní okna-světlíky",{"$f":"ParametryZateplení!$E$8","v":"1995 a dále"},"střešní okna nová do roku 2007","1995 a dále-střešní okna nová do roku 2007",1.8,1.5,1.1000000000000001,1.1000000000000001,"světlíky"]
["střešní okna-světlíky",{"$f":"ParametryZateplení!$E$8","v":"1995 a dále"},"střešní okna nová po roce 2007","1995 a dále-střešní okna nová po roce 2007",1.5,1.5,1.1000000000000001,1.1000000000000001,"světlíky"]
["střešní okna-světlíky",{"$f":"ParametryZateplení!$E$8","v":"1995 a dále"},"střešní světlíky polykarbonát","1995 a dále-střešní světlíky polykarbonát",2.4,1.5,1.1000000000000001,1.1000000000000001,"světlíky"]
["podlaha na zemině",{"$f":"ParametryZateplení!$E$3","v":"do 1920"},"podlaha na zemině nezateplená",{"$f":"CONCATENATE(B290,\"-\",C290)","v":"do 1920-podlaha na zemině nezateplená"},4,0.45,0.3,0.22,{"$f":"$J$18","v":"podlaha"}]
["podlaha na zemině",{"$f":"ParametryZateplení!$E$3","v":"do 1920"},"podlaha na zemině zateplená","do 1920-podlaha na zemině zateplená",{"$f":"1/1.15","v":0.86956521739130443},0.45,0.3,0.22,{"$f":"$J$18","v":"podlaha"}]
["podlaha na zemině",{"$f":"ParametryZateplení!$E$4","v":"1921 až 1945"},"podlaha na zemině nezateplená","1921 až 1945-podlaha na zemině nezateplená",4,0.45,0.3,0.22,"podlaha"]
["podlaha na zemině",{"$f":"ParametryZateplení!$E$4","v":"1921 až 1945"},"podlaha na zemině zateplená","1921 až 1945-podlaha na zemině zateplená",{"$f":"1/1.15","v":0.86956521739130443},0.45,0.3,0.22,"podlaha"]
["podlaha na zemině",{"$f":"ParametryZateplení!$E$5","v":"1946 až 1960"},"podlaha na zemině nezateplená","1946 až 1960-podlaha na zemině nezateplená",4,0.45,0.3,0.22,"podlaha"]
["podlaha na zemině",{"$f":"ParametryZateplení!$E$5","v":"1946 až 1960"},"podlaha na zemině zateplená","1946 až 1960-podlaha na zemině zateplená",{"$f":"1/1.15","v":0.86956521739130443},0.45,0.3,0.22,"podlaha"]
["podlaha na zemině",{"$f":"ParametryZateplení!$E$6","v":"1961 až 1980"},"podlaha na zemině nezateplená","1961 až 1980-podlaha na zemině nezateplená",4,0.45,0.3,0.22,"podlaha"]
["podlaha na zemině",{"$f":"ParametryZateplení!$E$6","v":"1961 až 1980"},"podlaha na zemině zateplená","1961 až 1980-podlaha na zemině zateplená",{"$f":"1/1.15","v":0.86956521739130443},0.45,0.3,0.22,"podlaha"]
["podlaha na zemině",{"$f":"ParametryZateplení!$E$7","v":"1981 až 1994"},"podlaha na zemině nezateplená","1981 až 1994-podlaha na zemině nezateplená",4,0.45,0.3,0.22,"podlaha"]
["podlaha na zemině",{"$f":"ParametryZateplení!$E$7","v":"1981 až 1994"},"podlaha na zemině zateplená","1981 až 1994-podlaha na zemině zateplená",1,0.45,0.3,0.22,"podlaha"]
["podlaha na zemině",{"$f":"ParametryZateplení!$E$8","v":"1995 a dále"},"podlaha na zemině nezateplená","1995 a dále-podlaha na zemině nezateplená",4,0.45,0.3,0.22,"podlaha"]
["podlaha na zemině",{"$f":"ParametryZateplení!$E$8","v":"1995 a dále"},"podlaha na zemině zateplená","1995 a dále-podlaha na zemině zateplená",{"$f":"1/1.15","v":0.86956521739130443},0.45,0.3,0.22,"podlaha"]
["podlaha na zemině",{"$f":"ParametryZateplení!$E$8","v":"1995 a dále"},"podlaha na zemině po roce 2002 zateplená","1995 a dále-podlaha na zemině po roce 2002 zateplená",0.6,0.45,0.3,0.22,"podlaha"]
["podlaha na zemině",{"$f":"ParametryZateplení!$E$8","v":"1995 a dále"},"podlaha na zemině po roce 2007 zateplená","1995 a dále-podlaha na zemině po roce 2007 zateplená",0.45,0.45,0.3,0.22,"podlaha"]
["podlaha na zemině",{"$f":"ParametryZateplení!$E$8","v":"1995 a dále"},"podlaha na zemině po roce 2007 zateplená více","1995 a dále-podlaha na zemině po roce 2007 zateplená více",0.3,0.45,0.3,0.22,"podlaha"]

{"sheet":"Budova_Opatření","index":15,"n_rows":59,"n_cols":11,"rows_kept":59,"cut":false,"hidden":true,"merged":[]}
[]
[null,"opatření","Lambda","Delta U",null,null,null,"Výběr","Index","Lambda","Delta U"]
["stěny","zateplení kontaktní systém, MV",4.2000000000000003E-2,0.02,null,null,"stěny",{"$f":"IF(ISBLANK(Zateplení!F43),\"\",Zateplení!F43)","v":""},{"$f":"IF(ISBLANK(Zateplení!F43),0,MATCH(Zateplení!F43,B$3:$B$13,0))","v":0},{"$f":"IF($I3=0,0,INDEX(C$3:C$13,$I3))","v":0},{"$f":"IF($I3=0,0,INDEX(D$3:D$13,$I3))","v":0}]
["stěny","zateplení kontaktní systém,  EPS",0.04,0.02,null,null,"plochá střecha",{"$f":"IF(Budova!$J$1=1,IF(ISBLANK(Zateplení!F51),\"\",Zateplení!F51),\"\")","v":""},{"$f":"IFERROR(IF(Budova!$J$1=1,IF(ISBLANK(Zateplení!F51),0,MATCH(Zateplení!F51,CHOOSE(Budova!$J$1,B$14:$B$19,$B$20:$B$23,$B$24:$B$27),0)),0),0)","v":0},{"$f":"IF($I4=0,0,INDEX(CHOOSE(Budova!$J$1,C$14:C$19,C$20:C$23,C$24:C$27),$I4))","v":0},{"$f":"IF($I4=0,0,INDEX(CHOOSE(Budova!$J$1,D$14:D$19,D$20:D$23,D$24:D$27),$I4))","v":0}]
["stěny","zateplení kontaktní systém,  šedý polystyren",3.4000000000000002E-2,0.02,null,null,"šikmá střecha",{"$f":"IF(Budova!$J$1=2,IF(ISBLANK(Zateplení!F51),\"\",Zateplení!F51),\"\")","v":""},{"$f":"IFERROR(IF(Budova!$J$1=2,IF(ISBLANK(Zateplení!F51),0,MATCH(Zateplení!F51,CHOOSE(Budova!$J$1,B$14:$B$19,$B$20:$B$23,$B$24:$B$27),0)),0),0)","v":0},{"$f":"IF($I5=0,0,INDEX(CHOOSE(Budova!$J$1,C$14:C$19,C$20:C$23,C$24:C$27),$I5))","v":0},{"$f":"IF($I5=0,0,INDEX(CHOOSE(Budova!$J$1,D$14:D$19,D$20:D$23,D$24:D$27),$I5))","v":0}]
["stěny","zateplení kontaktní systém,  XPS",3.5000000000000003E-2,0.02,null,null,"strop půdy",{"$f":"IF(Budova!$J$1=3,IF(ISBLANK(Zateplení!F51),\"\",Zateplení!F51),\"\")","v":""},{"$f":"IFERROR(IF(Budova!$J$1=3,IF(ISBLANK(Zateplení!F51),0,MATCH(Zateplení!F51,CHOOSE(Budova!$J$1,B$14:$B$19,$B$20:$B$23,$B$24:$B$27),0)),0),0)","v":0},{"$f":"IF($I6=0,0,INDEX(CHOOSE(Budova!$J$1,C$14:C$19,C$20:C$23,C$24:C$27),$I6))","v":0},{"$f":"IF($I6=0,0,INDEX(CHOOSE(Budova!$J$1,D$14:D$19,D$20:D$23,D$24:D$27),$I6))","v":0}]
["stěny","zateplení kontaktní systém,  fenolová pěna",2.3E-2,0.02,null,null,"nevytápěný suterén",{"$f":"IF(Budova!$L$1=1,IF(ISBLANK(Zateplení!F59),\"\",Zateplení!F59),\"\")","v":""},{"$f":"IFERROR(IF(Budova!$L$1=1,IF(ISBLANK(Zateplení!F59),0,MATCH(Zateplení!F59,CHOOSE(Budova!$L$1,$B$28:$B$34,$B$35:$B$38),0)),0),0)","v":0},{"$f":"IF($I7=0,0,INDEX(CHOOSE(Budova!$J$1,C$14:C$19,C$20:C$23,C$24:C$27),$I7))","v":0},{"$f":"IF($I7=0,0,INDEX(CHOOSE(Budova!$J$1,D$14:D$19,D$20:D$23,D$24:D$27),$I7))","v":0}]
["stěny","zateplení, minerální tepelně-izolační desky (Multipor)",4.4999999999999998E-2,0.02,null,null,"podlaha na zemině",{"$f":"IF(Budova!$L$1=2,IF(ISBLANK(Zateplení!F59),\"\",Zateplení!F59),\"\")","v":""},{"$f":"IFERROR(IF(Budova!$L$1=2,IF(ISBLANK(Zateplení!F59),0,MATCH(Zateplení!F59,CHOOSE(Budova!$L$1,$B$28:$B$34,$B$35:$B$38),0)),0),0)","v":0},{"$f":"IF($I8=0,0,INDEX(CHOOSE(Budova!$J$1,C$14:C$19,C$20:C$23,C$24:C$27),$I8))","v":0},{"$f":"IF($I8=0,0,INDEX(CHOOSE(Budova!$J$1,D$14:D$19,D$20:D$23,D$24:D$27),$I8))","v":0}]
["stěny","zateplení PUR panel",2.3E-2,0.02,null,null,"okna",{"$f":"IF(ISBLANK(Zateplení!F67),\"\",Zateplení!F67)","v":""},{"$f":"IF(ISBLANK(Zateplení!F67),0,MATCH(Zateplení!F67,B$39:$B$48,0))","v":0}]
["stěny","zateplení panel z MV",4.2000000000000003E-2,0.02,null,null,"dveře-vrata",{"$f":"IF(ISBLANK(Zateplení!F73),\"\",Zateplení!F73)","v":""},{"$f":"IF(ISBLANK(Zateplení!F73),0,MATCH(Zateplení!F73,B$49:$B$52,0))","v":0}]
["stěny","zateplení skládaný plášť s obkladem, izolace MV",4.2000000000000003E-2,0.05,null,null,"střešní okna-světlíky",{"$f":"IF(ISBLANK(Zateplení!F79),\"\",Zateplení!F79)","v":""},{"$f":"IF(ISBLANK(Zateplení!F79),0,MATCH(Zateplení!F79,B$53:$B$59,0))","v":0}]
["stěny","zateplení skládaný plášť s obkladem, izolace EPS",3.9E-2,0.05]
["stěny","zateplení skládaný plášť s obkladem, izolace PUR",2.3E-2,0.02,null,null,"stěny",null,null,{"$f":"IFERROR(J3,0)","v":0},{"$f":"IFERROR(K3,0)","v":0}]
["plochá střecha","zateplení ploché střechy, MV",0.04,0.02,null,null,"střecha",null,null,{"$f":"IFERROR(MAX(J4:J6),0)","v":0},{"$f":"IFERROR(MAX(K4:K6),0)","v":0}]
["plochá střecha","zateplení ploché střechy, EPS",3.9E-2,0.02,null,null,"podlaha",null,null,{"$f":"IFERROR(MAX(J7:J8),0)","v":0},{"$f":"IFERROR(MAX(K7:K8),0)","v":0}]
["plochá střecha","zateplení ploché střechy, XPS",3.4000000000000002E-2,0.02]
["plochá střecha","zateplení ploché střechy, polyuretan",2.5000000000000001E-2,0.02]
["plochá střecha","zateplení ploché střechy, polyuretan - minerální rouno",0.03,0.02]
["plochá střecha","zateplení ploché střechy, pěnové sklo",4.1000000000000002E-2,0.02]
["šikmá střecha","zateplení šikmé střechy mezi a pod krokve, MV ",0.05,0]
["šikmá střecha","zateplení šikmé střechy mezi a pod krokve, celulózovou izolací ",0.05,0]
["šikmá střecha","zateplení šikmé střechy nad krokve, polyuretan",2.5000000000000001E-2,0.02]
["šikmá střecha","zateplení šikmé střechy nad krokve, polystyren",3.5000000000000003E-2,0.02]
["strop půdy","zateplení stropu půdy MV - volně ložená",0.04,0.02]
["strop půdy","zateplení stropu půdy EPS - volně ložený",3.9E-2,0.02]
["strop půdy","zateplení stropu půdy MV - pochozí úprava",0.05,0.02]
["strop půdy","zateplení stropu půdy EPS -  pochozí úprava",4.5999999999999999E-2,0.02]
["nevytápěný suterén","zateplení stropu, MV",0.04,0.05]
["nevytápěný suterén","zateplení stropu,  EPS",3.9E-2,0.05]
["nevytápěný suterén","zateplení stropu, XPS",3.4000000000000002E-2,0.05]
["nevytápěný suterén","zateplení stropu, polyuretan",2.5000000000000001E-2,0.05]
["nevytápěný suterén","zateplení stropu, šedý polystyren",3.4000000000000002E-2,0.05]
["nevytápěný suterén","zateplení stropu celulózovou izolací ",3.9E-2,0.05]
["nevytápěný suterén","zateplení, minerální tepelně-izolační desky (Multipor)",4.4999999999999998E-2,0.05]
["podlaha na zemině","zateplení v konstrukci podlahy, EPS",4.3999999999999997E-2,0.02]
["podlaha na zemině","zateplení v konstrukci podlahy, XPS",3.3000000000000002E-2,0.02]
["podlaha na zemině","zateplení v konstrukci podlahy, šedý polystyren",3.2000000000000001E-2,0.02]
["podlaha na zemině","zateplení v konstrukci podlahy, pěnové sklo",4.8000000000000001E-2,0.02]
["okna","plastová s izolačním dvojsklem"]
["okna","dřevěná s izolačním dvojsklem"]
["okna","kovová s přerušeným tepelným mostem s izolačním dvojsklem"]
["okna","dřevo-hliníková s izolačním dvojsklem"]
["okna","plast-hliníková s izolačním dvojsklem"]
["okna","dřevěná s izolačním trojsklem"]
["okna","plastová s izolačním trojsklem"]
["okna","kovová s přerušeným tepelným mostem s izolačním trojsklem"]
["okna","dřevo-hliníková s izolačním trojsklem"]
["okna","plast-hliníková s izolačním trojsklem"]
["dveře-vrata","dveře dřevěné"]
["dveře-vrata","dveře kovové"]
["dveře-vrata","dveře plastové"]
["dveře-vrata","vrata tepelně izolační"]
["střešní okna-světlíky","plastová s izolačním dvojsklem"]
["střešní okna-světlíky","dřevěná s izolačním dvojsklem"]
["střešní okna-světlíky","kovová s přerušeným tepelným mostem s izolačním dvojsklem"]
["střešní okna-světlíky","plastová s izolačním trojsklem"]
["střešní okna-světlíky","dřevěná s izolačním trojsklem"]
["střešní okna-světlíky","kovová s přerušeným tepelným mostem s izolačním trojsklem"]
["střešní okna-světlíky","střešní světlíky"]

{"sheet":"ParametryRekuperace","index":16,"n_rows":1,"n_cols":2,"rows_kept":1,"cut":false,"hidden":true,"merged":[]}
["Minimální účinnost rekuperace [%]",0.67]

{"sheet":"ParametryZdroje","index":17,"n_rows":36,"n_cols":28,"rows_kept":36,"cut":false,"hidden":true,"merged":[]}
[null,"Starý zdroj"]
[]
["Index vybraného typu zdroje",{"$f":"IFERROR(MATCH(Zdroj!E4,B7:G7,0),0)","v":0}]
["Počet nositelů energie vybraného zdroje",{"$f":"INDEX($B$5:$G$5,1,B3)","v":4},1,1,1,1,7,null,null,null,null,null,"Index paliva",{"$f":"MATCH(Zdroj!I6,TStarýKotelHelp[Nositel],0)","v":{"$error":"#N/A"}}]
["Počet nositelů energie",{"$f":"COUNTA(TStaréKotle[kotel na tuhá paliva])","v":4},{"$f":"COUNTA(TStaréKotle[kotel na zemní plyn])","v":1},{"$f":"COUNTA(TStaréKotle[elektrokotel])","v":1},{"$f":"COUNTA(TStaréKotle[kotel na topný olej])","v":1},{"$f":"COUNTA(TStaréKotle[tepelné čerpadlo])","v":1},{"$f":"COUNTA(TStaréKotle[centrální zásobování teplem])","v":7},null,null,null,null,null,"Jednotka",{"$f":"IFERROR(IF(ZdrojIdxOld=6,\"GJ\",INDEX(TStarýKotelHelp[Jednotka],N4)),\"\")","v":""}]
["Vybraný nositel energie je v daném sloupci",{"$f":"IFERROR(MATCH(Zdroj!$E$6,TStaréKotle[kotel na tuhá paliva],0),0)>0","v":false},{"$f":"IFERROR(MATCH(Zdroj!$E$6,TStaréKotle[kotel na zemní plyn],0),0)>0","v":false},{"$f":"IFERROR(MATCH(Zdroj!$E$6,TStaréKotle[elektrokotel],0),0)>0","v":false},{"$f":"IFERROR(MATCH(Zdroj!$E$6,TStaréKotle[kotel na topný olej],0),0)>0","v":false},{"$f":"IFERROR(MATCH(Zdroj!$E$6,TStaréKotle[tepelné čerpadlo],0),0)>0","v":false},{"$f":"IFERROR(MATCH(Zdroj!$E$6,TStaréKotle[centrální zásobování teplem],0),0)>0","v":false},null,{"$f":"IFERROR(MATCH(Zdroj!E5,TStáříKotle[Stáří kotle],0),0)","v":0},null,{"$f":"IF(ISBLANK(Zdroj!E7),0,MATCH(Zdroj!E7,TTypSZT[typ SZT],0))","v":0},null,"Text",{"$f":"IFERROR(IF(ZdrojIdxOld=6,\"tepla\",INDEX(TStarýKotelHelp[Text],N4)),\"\")","v":""},null,null,null,null,null,null,"Účinnost vybraného zdroje",{"$f":"IF(AND(ZdrojIdxOld>0,I6>0),INDEX(TEtaZdrojOld[[kotel na tuhá paliva]:[centrální zásobování teplem]],I6,ZdrojIdxOld),0)","v":0}]
["Paliva vybraného zdroje","kotel na tuhá paliva","kotel na zemní plyn","elektrokotel","kotel na topný olej","tepelné čerpadlo","centrální zásobování teplem",null,"Stáří kotle",null,"typ SZT",null,"Nositel","Jednotka","Text",null,null,null,null,null,null,"Období","kotel na tuhá paliva","kotel na zemní plyn","elektrokotel","kotel na topný olej","tepelné čerpadlo","centrální zásobování teplem"]
[{"$f":"ADDRESS(ROW(),COLUMN()+ZdrojIdxOld,1,1,\"ParametryZdroje\") & \":\" & ADDRESS(ROW(A8)+ZdrojPočetPaliv-1,COLUMN()+ZdrojIdxOld,1,1)","v":"ParametryZdroje!$A$8:$A$11"},"hnědé uhlí","zemní plyn","elektřina","topný olej","elektřina","zemní plyn",null,"před 1980",null,"účinná SZT",null,"černé uhlí","kg","paliva",null,"Minimální účinnost starého zdroje","[%]",0.05,null,null,"před 1980",0.6,0.65,0.95,0.6,1.5,1]
[null,"černé uhlí",null,null,null,null,"hnědé uhlí",null,"1980-2000",null,"ostatní SZT",null,"elektřina","kWh","elektřiny",null,"Maximální účinnost starého zdroje","[%]",0.95,null,null,"1980-2000",0.72,0.8,0.95,0.72,2,1]
[null,"palivové dřevo",null,null,null,null,"černé uhlí",null,"2000-2010",null,null,null,"hnědé uhlí","kg","paliva",null,"Minimální COP starého TČ","[1]",1,null,null,"2000-2010",0.77,0.85,0.95,0.77,2.5,1]
[null,"pelety",null,null,null,null,"palivové dřevo",null,"2010 a novější",null,null,null,"palivové dřevo","kg","paliva",null,"Maximální COP starého TČ","[1]",6,null,null,"2010 a novější",0.79,0.92,0.98,0.79,3,1]
[null,null,null,null,null,null,"pelety",null,null,null,null,null,"pelety","kg","paliva"]
[null,null,null,null,null,null,"elektřina",null,null,null,null,null,"topný olej","l","paliva"]
[null,null,null,null,null,null,"topný olej",null,null,null,null,null,"zemní plyn","m3","paliva"]
[]
["Výsledná účinnost:",{"$f":"IF(ZdrojIdxOld=5,Zdroj!I12,Zdroj!I10)","v":0}]
[]
[]
[]
[]
[null,"Nový zdroj"]
[]
["Index vybraného typu zdroje",{"$f":"IFERROR(MATCH(Zdroj!E16,TNovýKotel[kotel],0),0)","v":0}]
["Vstupní nositel energie",{"$f":"IF(ZdrojIdxNew<>0,INDEX(TNovýKotel[palivo],B23),\"\")","v":""}]
["Minimální účiinost",{"$f":"IF(ZdrojIdxNew<>0,INDEX(TNovýKotel[minimální účinnost],B23),0)","v":0}]
["Defaultní účinnost",{"$f":"IF(ZdrojIdxNew<>0,INDEX(TNovýKotel[defaultní účinnost],B23),0)","v":0}]
["Maximální účinnost",{"$f":"IF(ZdrojIdxNew<>0,INDEX(TNovýKotel[maximální ůčinnost],B23),0)","v":0}]
["Maximální výkon",{"$f":"IF(ZdrojIdxNew<>0,INDEX(TNovýKotel[maximální výkon],B23),0)","v":0}]
[null,"kotel","palivo","minimální účinnost","defaultní účinnost","maximální ůčinnost","maximální výkon"]
[null,"kotel na štěpku, pelety nebo brikety","pelety",0.8,0.81,1.1100000000000001,5000]
[null,"kotel na odpadní dřevo","odpadní dřevo",0.8,0.81,1.1100000000000001,5000]
[null,"kotel na bioplyn","bioplyn",0.8,0.92,1.1100000000000001,5000]
[null,"tepelné čerpadlo","elektřina",2.8,3,6,50000]
[]
[]
["Výsledná účinnost:",{"$f":"IF(ZdrojIdxNew=4,Zdroj!I21,Zdroj!I18)","v":0}]

{"sheet":"Nositele","index":18,"n_rows":45,"n_cols":17,"rows_kept":45,"cut":false,"hidden":true,"merged":[]}
[null,null,"Nositel","Jednotka","LHV","Jednotka LHV","EF CO2 [kg CO2/GJ]","Cena","Jednotka ceny","Rozmezí ceny","TZL_t","Jednotka TZL_t","TZL_kg","Jednotka TZL_kg","PM10 [%]","PM2,5 [%]","idx"]
[null,null,"hnědé uhlí","kg",1.7999999999999999E-2,"GJ/kg",99.1,3.4,"Kč/kg","3,4 Kč/kg",0.70399999999999996,"TZL kg/t",{"$f":"K2/1000","v":7.0399999999999998E-4},"kg/kg",0.995,0.95200000000000007,1]
[null,null,"černé uhlí","kg",3.1E-2,"GJ/kg",92.4,5.5,"Kč/kg","5,5 Kč/kg",1.23,"TZL kg/t",{"$f":"K3/1000","v":1.23E-3},"kg/kg",0.998,0.98099999999999998,2]
[null,null,"palivové dřevo","kg",1.4E-2,"GJ/kg",0,3.5,"Kč/kg","3,5 Kč/kg",2.12,"TZL kg/t",{"$f":"K4/1000","v":2.1199999999999999E-3},"kg/kg",0.998,0.99099999999999999,3]
[null,null,"pelety","kg",1.7000000000000001E-2,"GJ/kg",0,5.4,"Kč/kg","5,4 Kč/kg",0.26400000000000001,"kg/t",{"$f":"K5/1000","v":2.6400000000000002E-4},"kg/kg",0.998,0.98799999999999999,4]
[null,null,"zemní plyn","m3",3.4000000000000002E-2,"GJ/m3",55.4,10,"Kč/m3","10 Kč/m3 6,28-18,66 Kč za 1 m3",6.9,"TZL kg/10^6m3",{"$f":"K6/1000000","v":6.9E-6},"kg/m3",1,1,5]
[null,null,"elektřina","kWh",3.5999999999999999E-3,"GJ/kWh",239,2.67,"Kč/kWh","2,67 Kč/kWh akumulace 2,29-3,47, přímotop 2,67-2,86 Kč/kWh",3.6799999999999999E-2,"kg/MWh",{"$f":"K7/1000","v":3.68E-5},"kg/kWh",0.85,0.65,6]
[null,null,"topný olej","l",{"$f":"0.041*0.845","v":3.4645000000000002E-2},"GJ/l",73.3,29.83,"Kč/l","29,83 Kč/l",6.4000000000000001E-2,"kg/t",{"$f":"K8/1000*0.92","v":5.8879999999999999E-5},"kg/l",0.93,0.67,7]
[null,null,"odpadní dřevo","kg",1.7000000000000001E-2,"GJ/kg",0,0,"Kč/kg","0 Kč/kg",2.12,"TZL kg/t",{"$f":"K9/1000","v":2.1199999999999999E-3},"kg/kg",0.998,0.99099999999999999,8]
[null,null,"bioplyn","m3",3.4000000000000002E-2,"GJ/m3",0,0,"Kč/m3","0 Kč/m3 - bioplyn z vlastního zdroje",6.9,"TZL kg/10^6m3",{"$f":"K10/1000000","v":6.9E-6},"kg/m3",1,1,9]
[null,null,"elektřina ostatní","kWh",3.5999999999999999E-3,"GJ/kWh",281,5,"Kč/kWh","5 Kč/kWh",3.6799999999999999E-2,"kg/MWh",{"$f":"K11/1000","v":3.68E-5},"kg/kWh",0.85,0.65,10]
[null,null,"teplo","GJ",1,"GJ/GJ",null,400,"Kč/GJ",null,null,null,null,null,null,null,11]
[]
["Zdroj","Index","Nositel","Jednotka","LHV","Jednotka LHV","EF CO2 [kg CO2/GJ]","Cena","Jednotka ceny","Rozmezí ceny","TZL_t","Jednotka TZL_t","TZL_kg","Jednotka TZL_kg","PM10 [%]","PM2,5 [%]"]
["zdroj budova",{"$f":"IF(je_zdroj,0,MATCH(C15,TNositele[Nositel],0))","v":{"$error":"#N/A"}},{"$f":"IF(je_zdroj,\"\",Zateplení!J14)","v":""},{"$f":"IF(je_zdroj,\"\",INDEX(TNositele[Jednotka],$B15))","v":{"$error":"#N/A"}},{"$f":"IF(je_zdroj,0,INDEX(TNositele[LHV],$B15))","v":{"$error":"#N/A"}},{"$f":"IF(je_zdroj,\"\",INDEX(TNositele[Jednotka LHV],$B15))","v":{"$error":"#N/A"}},{"$f":"IF(je_zdroj,0,INDEX(TNositele[EF CO2 '[kg CO2/GJ']],$B15))","v":{"$error":"#N/A"}},{"$f":"IF(je_zdroj,0,INDEX(TNositele[Cena],$B15))","v":{"$error":"#N/A"}},{"$f":"IF(je_zdroj,\"\",INDEX(TNositele[Jednotka ceny],$B15))","v":{"$error":"#N/A"}},{"$f":"IF(je_zdroj,\"\",INDEX(TNositele[Rozmezí ceny],$B15))","v":{"$error":"#N/A"}},{"$f":"IF(je_zdroj,0,INDEX(TNositele[TZL_t],$B15))","v":{"$error":"#N/A"}},{"$f":"IF(je_zdroj,\"\",INDEX(TNositele[Jednotka TZL_t],$B15))","v":{"$error":"#N/A"}},{"$f":"IF(je_zdroj,0,INDEX(TNositele[TZL_kg],$B15))","v":{"$error":"#N/A"}},{"$f":"IF(je_zdroj,\"\",INDEX(TNositele[Jednotka TZL_kg],$B15))","v":{"$error":"#N/A"}},{"$f":"IF(je_zdroj,0,INDEX(TNositele[PM10 '[%']],$B15))","v":{"$error":"#N/A"}},{"$f":"IF(je_zdroj,0,INDEX(TNositele[PM2,5 '[%']],$B15))","v":{"$error":"#N/A"}}]
["zdroj starý",{"$f":"IF(je_zdroj,MATCH(C16,TNositele[Nositel],0),0)","v":0},{"$f":"IF(je_zdroj,Zdroj!I6,\"\")","v":""},{"$f":"IF(NOT(je_zdroj),\"\",INDEX(TNositele[Jednotka],$B16))","v":""},{"$f":"IF(NOT(je_zdroj),0,INDEX(TNositele[LHV],$B16))","v":0},{"$f":"IF(NOT(je_zdroj),\"\",INDEX(TNositele[Jednotka LHV],$B16))","v":""},{"$f":"IF(NOT(je_zdroj),0,INDEX(TNositele[EF CO2 '[kg CO2/GJ']],$B16))","v":0},{"$f":"IF(NOT(je_zdroj),0,INDEX(TNositele[Cena],$B16))","v":0},{"$f":"IF(NOT(je_zdroj),\"\",INDEX(TNositele[Jednotka ceny],$B16))","v":""},{"$f":"IF(NOT(je_zdroj),\"\",INDEX(TNositele[Rozmezí ceny],$B16))","v":""},{"$f":"IF(NOT(je_zdroj),0,INDEX(TNositele[TZL_t],$B16))","v":0},{"$f":"IF(NOT(je_zdroj),\"\",INDEX(TNositele[Jednotka TZL_t],$B16))","v":""},{"$f":"IF(NOT(je_zdroj),0,INDEX(TNositele[TZL_kg],$B16))","v":0},{"$f":"IF(NOT(je_zdroj),\"\",INDEX(TNositele[Jednotka TZL_kg],$B16))","v":""},{"$f":"IF(NOT(je_zdroj),0,INDEX(TNositele[PM10 '[%']],$B16))","v":0},{"$f":"IF(NOT(je_zdroj),0,INDEX(TNositele[PM2,5 '[%']],$B16))","v":0}]
["zdroj nový",{"$f":"IF(je_zdroj,MATCH(C17,TNositele[Nositel],0),0)","v":0},{"$f":"IF(je_zdroj,ParametryZdroje!B24,\"\")","v":""},{"$f":"IF(NOT(je_zdroj),\"\",INDEX(TNositele[Jednotka],$B17))","v":""},{"$f":"IF(NOT(je_zdroj),0,INDEX(TNositele[LHV],$B17))","v":0},{"$f":"IF(NOT(je_zdroj),\"\",INDEX(TNositele[Jednotka LHV],$B17))","v":""},{"$f":"IF(NOT(je_zdroj),0,INDEX(TNositele[EF CO2 '[kg CO2/GJ']],$B17))","v":0},{"$f":"IF(NOT(je_zdroj),0,INDEX(TNositele[Cena],$B17))","v":0},{"$f":"IF(NOT(je_zdroj),\"\",INDEX(TNositele[Jednotka ceny],$B17))","v":""},{"$f":"IF(NOT(je_zdroj),\"\",INDEX(TNositele[Rozmezí ceny],$B17))","v":""},{"$f":"IF(NOT(je_zdroj),0,INDEX(TNositele[TZL_t],$B17))","v":0},{"$f":"IF(NOT(je_zdroj),\"\",INDEX(TNositele[Jednotka TZL_t],$B17))","v":""},{"$f":"IF(NOT(je_zdroj),0,INDEX(TNositele[TZL_kg],$B17))","v":0},{"$f":"IF(NOT(je_zdroj),\"\",INDEX(TNositele[Jednotka TZL_kg],$B17))","v":""},{"$f":"IF(NOT(je_zdroj),0,INDEX(TNositele[PM10 '[%']],$B17))","v":0},{"$f":"IF(NOT(je_zdroj),0,INDEX(TNositele[PM2,5 '[%']],$B17))","v":0}]
["CZT budova",{"$f":"IF(je_zdroj,0,MATCH(C15,TNositele[Nositel],0))","v":{"$error":"#N/A"}},{"$f":"IF(je_zdroj,\"\",Zateplení!J14)","v":""},{"$f":"D12","v":"GJ"},{"$f":"E12","v":1},{"$f":"F12","v":"GJ/GJ"},{"$f":"IF(je_zdroj,0,INDEX(TNositele[EF CO2 '[kg CO2/GJ']],$B18))","v":{"$error":"#N/A"}},{"$f":"IF(je_zdroj,0,INDEX(TNositele[Cena],$B18))","v":{"$error":"#N/A"}},{"$f":"IF(je_zdroj,\"\",INDEX(TNositele[Jednotka ceny],$B18))","v":{"$error":"#N/A"}},{"$f":"IF(je_zdroj,\"\",INDEX(TNositele[Rozmezí ceny],$B18))","v":{"$error":"#N/A"}},{"$f":"IF(je_zdroj,0,INDEX(TNositele[TZL_t],$B18))","v":{"$error":"#N/A"}},{"$f":"IF(je_zdroj,\"\",INDEX(TNositele[Jednotka TZL_t],$B18))","v":{"$error":"#N/A"}},{"$f":"IF(je_zdroj,0,INDEX(TNositele[TZL_kg],$B18))","v":{"$error":"#N/A"}},{"$f":"IF(je_zdroj,\"\",INDEX(TNositele[Jednotka TZL_kg],$B18))","v":{"$error":"#N/A"}},{"$f":"IF(je_zdroj,0,INDEX(TNositele[PM10 '[%']],$B18))","v":{"$error":"#N/A"}},{"$f":"IF(je_zdroj,0,INDEX(TNositele[PM2,5 '[%']],$B18))","v":{"$error":"#N/A"}}]
["CZT starý zdroj",{"$f":"IF(je_zdroj,MATCH(C16,TNositele[Nositel],0),0)","v":0},{"$f":"IF(je_zdroj,Zdroj!I6,\"\")","v":""},{"$f":"D12","v":"GJ"},{"$f":"E12","v":1},{"$f":"F12","v":"GJ/GJ"},{"$f":"IF(NOT(je_zdroj),0,INDEX(TNositele[EF CO2 '[kg CO2/GJ']],$B19))","v":0},{"$f":"IF(NOT(je_zdroj),0,INDEX(TNositele[Cena],$B19))","v":0},{"$f":"IF(NOT(je_zdroj),\"\",INDEX(TNositele[Jednotka ceny],$B19))","v":""},{"$f":"IF(NOT(je_zdroj),\"\",INDEX(TNositele[Rozmezí ceny],$B19))","v":""},{"$f":"IF(NOT(je_zdroj),0,INDEX(TNositele[TZL_t],$B19))","v":0},{"$f":"IF(NOT(je_zdroj),\"\",INDEX(TNositele[Jednotka TZL_t],$B19))","v":""},{"$f":"IF(NOT(je_zdroj),0,INDEX(TNositele[TZL_kg],$B19))","v":0},{"$f":"IF(NOT(je_zdroj),\"\",INDEX(TNositele[Jednotka TZL_kg],$B19))","v":""},{"$f":"IF(NOT(je_zdroj),0,INDEX(TNositele[PM10 '[%']],$B19))","v":0},{"$f":"IF(NOT(je_zdroj),0,INDEX(TNositele[PM2,5 '[%']],$B19))","v":0}]
[]
["budova",null,{"$f":"IF(ZdrojIdxBudova=6,Nositele!C18,Nositele!C15)","v":""},{"$f":"IF(ZdrojIdxBudova=6,Nositele!D18,Nositele!D15)","v":{"$error":"#N/A"}},{"$f":"IF(ZdrojIdxBudova=6,Nositele!E18,Nositele!E15)","v":{"$error":"#N/A"}},{"$f":"IF(ZdrojIdxBudova=6,Nositele!F18,Nositele!F15)","v":{"$error":"#N/A"}},{"$f":"IF(ZdrojIdxBudova=6,Nositele!G18,Nositele!G15)","v":{"$error":"#N/A"}},{"$f":"IF(ZdrojIdxBudova=6,Nositele!H18,Nositele!H15)","v":{"$error":"#N/A"}},{"$f":"IF(ZdrojIdxBudova=6,Nositele!I18,Nositele!I15)","v":{"$error":"#N/A"}},{"$f":"IF(ZdrojIdxBudova=6,Nositele!J18,Nositele!J15)","v":{"$error":"#N/A"}},{"$f":"IF(ZdrojIdxBudova=6,Nositele!K18,Nositele!K15)","v":{"$error":"#N/A"}},{"$f":"IF(ZdrojIdxBudova=6,Nositele!L18,Nositele!L15)","v":{"$error":"#N/A"}},{"$f":"IF(ZdrojIdxBudova=6,Nositele!M18,Nositele!M15)","v":{"$error":"#N/A"}},{"$f":"IF(ZdrojIdxBudova=6,Nositele!N18,Nositele!N15)","v":{"$error":"#N/A"}},{"$f":"IF(ZdrojIdxBudova=6,Nositele!O18,Nositele!O15)","v":{"$error":"#N/A"}},{"$f":"IF(ZdrojIdxBudova=6,Nositele!P18,Nositele!P15)","v":{"$error":"#N/A"}}]
["starý",null,{"$f":"IF(ZdrojIdxOld=6,Nositele!C19,Nositele!C16)","v":""},{"$f":"IF(ZdrojIdxOld=6,Nositele!D19,Nositele!D16)","v":""},{"$f":"IF(ZdrojIdxOld=6,Nositele!E19,Nositele!E16)","v":0},{"$f":"IF(ZdrojIdxOld=6,Nositele!F19,Nositele!F16)","v":""},{"$f":"IF(ZdrojIdxOld=6,Nositele!G19,Nositele!G16)","v":0},{"$f":"IF(ZdrojIdxOld=6,Nositele!H19,Nositele!H16)","v":0},{"$f":"IF(ZdrojIdxOld=6,Nositele!I19,Nositele!I16)","v":""},{"$f":"IF(ZdrojIdxOld=6,Nositele!J19,Nositele!J16)","v":""},{"$f":"IF(ZdrojIdxOld=6,Nositele!K19,Nositele!K16)","v":0},{"$f":"IF(ZdrojIdxOld=6,Nositele!L19,Nositele!L16)","v":""},{"$f":"IF(ZdrojIdxOld=6,Nositele!M19,Nositele!M16)","v":0},{"$f":"IF(ZdrojIdxOld=6,Nositele!N19,Nositele!N16)","v":""},{"$f":"IF(ZdrojIdxOld=6,Nositele!O19,Nositele!O16)","v":0},{"$f":"IF(ZdrojIdxOld=6,Nositele!P19,Nositele!P16)","v":0}]
["nový",null,{"$f":"C17","v":""},{"$f":"D17","v":""},0,"",0,0,"","",0,"",0,"",0,0]
[]
["starý",null,{"$f":"IF(je_zdroj,C22,C21)","v":""},{"$error":"#N/A"},{"$error":"#N/A"},{"$error":"#N/A"},{"$error":"#N/A"},{"$error":"#N/A"},{"$error":"#N/A"},{"$error":"#N/A"},{"$error":"#N/A"},{"$error":"#N/A"},{"$error":"#N/A"},{"$error":"#N/A"},{"$error":"#N/A"},{"$error":"#N/A"}]
["nový",null,{"$f":"IF(je_zdroj,C23,C21)","v":""},{"$error":"#N/A"},{"$error":"#N/A"},{"$error":"#N/A"},{"$error":"#N/A"},{"$error":"#N/A"},{"$error":"#N/A"},{"$error":"#N/A"},{"$error":"#N/A"},{"$error":"#N/A"},{"$error":"#N/A"},{"$error":"#N/A"},{"$error":"#N/A"},{"$error":"#N/A"}]
[]
[]
[null,null,"Kotel - období - palivo","TZL","jednotka","TZL2","jednotka3","PM10 v %","PM2,5 v %"]
[null,null,"kotel na tuhá paliva-před 1980-hnědé uhlí",44.3,"TZL kg/t",{"$f":"D30/1000","v":4.4299999999999999E-2},"TZL v kg/kg",0.99299999999999999,0.99199999999999999]
[null,null,"kotel na tuhá paliva-1980-2000-hnědé uhlí",44.3,"TZL kg/t",{"$f":"D31/1000","v":4.4299999999999999E-2},"TZL v kg/kg",0.99299999999999999,0.99199999999999999]
[null,null,"kotel na tuhá paliva-2000-2010-hnědé uhlí",17.2,"TZL kg/t",1.72E-2,"TZL v kg/kg",0.99900000000000011,0.998]
[null,null,"kotel na tuhá paliva-2010 a novější-hnědé uhlí",2.2400000000000002,"TZL kg/t",2.2400000000000002E-3,"TZL v kg/kg",0.98099999999999998,0.94099999999999995]
[null,null,"kotel na tuhá paliva-před 1980-černé uhlí",67.7,"TZL kg/t",{"$f":"D34/1000","v":6.7699999999999996E-2},"TZL v kg/kg",0.997,0.99]
[null,null,"kotel na tuhá paliva-1980-2000-černé uhlí",67.7,"TZL kg/t",{"$f":"D35/1000","v":6.7699999999999996E-2},"TZL v kg/kg",0.997,0.99]
[null,null,"kotel na tuhá paliva-2000-2010-černé uhlí",6.94,"TZL kg/t",6.94E-3,"TZL v kg/kg",0.99400000000000011,0.96900000000000008]
[null,null,"kotel na tuhá paliva-2010 a novější-černé uhlí",2.25,"TZL kg/t",2.2499999999999998E-3,"TZL v kg/kg",0.998,0.98099999999999998]
[null,null,"kotel na tuhá paliva-před 1980-palivové dřevo",7.22,"TZL kg/t",{"$f":"D38/1000","v":7.2199999999999999E-3},"TZL v kg/kg",0.998,0.995]
[null,null,"kotel na tuhá paliva-1980-2000-palivové dřevo",7.22,"TZL kg/t",{"$f":"D39/1000","v":7.2199999999999999E-3},"TZL v kg/kg",0.998,0.995]
[null,null,"kotel na tuhá paliva-2000-2010-palivové dřevo",5.78,"TZL kg/t",5.7800000000000004E-3,"TZL v kg/kg",0.998,0.99299999999999999]
[null,null,"kotel na tuhá paliva-2010 a novější-palivové dřevo",2.12,"TZL kg/t",2.1199999999999999E-3,"TZL v kg/kg",0.998,0.99099999999999999]
[null,null,"kotel na tuhá paliva-před 1980-pelety",7.22,"TZL kg/t",{"$f":"D42/1000","v":7.2199999999999999E-3},"TZL v kg/kg",0.998,0.98799999999999999]
[null,null,"kotel na tuhá paliva-1980-2000-pelety",7.22,"TZL kg/t",{"$f":"D43/1000","v":7.2199999999999999E-3},"TZL v kg/kg",0.998,0.98799999999999999]
[null,null,"kotel na tuhá paliva-2000-2010-pelety",5.78,"TZL kg/t",5.7800000000000004E-3,"TZL v kg/kg",0.998,0.98799999999999999]
[null,null,"kotel na tuhá paliva-2010 a novější-pelety",2.12,"TZL kg/t",2.1199999999999999E-3,"TZL v kg/kg",0.998,0.98799999999999999]

{"sheet":"ParametryOsvětlení","index":19,"n_rows":116,"n_cols":16,"rows_kept":116,"cut":false,"hidden":true,"merged":[[0,9,0,10],[0,8,1,8]]}
["klasika","halogen","výbojka","CFL","zářivka","příkon led","světelný tok",null,null,"Průměrný příkon [W]",null,null,"Typické parametry zdrojů"]
[40,30,{"$f":"ROUND((C3/F3)*F2,2)","v":6.62},{"$f":"ROUND((D3/F3)*F2,2)","v":5},{"$f":"ROUND((E3/F3)*F2,2)","v":3.67},3,{"$f":"F2*H3","v":0},null,null,"Minimální","Maximální",null,"typ","příkon","světelný tok","lm/W"]
[{"$f":"A2+($A$5-$A$2)/3","v":46.666666666666664},{"$f":"B2+($B$5-$B$2)/3","v":35.333333333333336},{"$f":"(C4/F4)*F3","v":12.133526850507986},{"$f":"(D4/F4)*F3","v":9.1666666666666679},{"$f":"(E4/F4)*F3","v":6.7222222222222241},5.5,470,null,"Klasické žárovky",40,1000,null,"klasika",25,200,{"$f":"O3/N3","v":8}]
[{"$f":"A3+($A$5-$A$2)/3","v":53.333333333333329},{"$f":"B3+($B$5-$B$2)/3","v":40.666666666666671},13.23657474600871,10,{"$f":"(E5/F5)*F4","v":7.3333333333333357},6,{"$f":"G3+($G$6-$G$3)/3","v":582},null,"Halogenové žárovky",30,500,null,"klasika",40,280,7]
[60,46,15.442670537010162,{"$f":"D4+(D7-D4)/3","v":12},{"$f":"(E6/F6)*F5","v":8.5555555555555571},7,{"$f":"G4+($G$6-$G$3)/3","v":694},null,"Zářivky",4,500,null,"klasika",60,630,10.5]
[{"$f":"A5+(A8-A5)/3","v":65},{"$f":"B5+(B7-B5)/2","v":51.5},17.648766328011614,{"$f":"D5+(D7-D4)/3","v":14},{"$f":"(E7/F7)*F6","v":9.7777777777777786},8,806,null,"Rtuťové výbojky",7,500,null,"klasika",75,1000,13.333333333333334]
[70,57,19.854862119013067,16,11,9,{"$f":"(G6+G8)/2","v":930.5},null,"Kompaktní zářivky (CFL)",5,500,null,"klasika",100,1340,13.4]
[75,{"$f":"B7+(B10-B7)/3","v":63.666666666666664},22.060957910014519,{"$f":"D7+($D$32-$D$7)/25","v":16.8},{"$f":"E7+($E$10-$E$7)/3","v":13.333333333333334},10,1055,null,null,null,null,null,"klasika",150,2140,14.266666666666667]
[{"$f":"(A8+A10)/2","v":87.5},{"$f":"B8+(B10-B7)/3","v":70.333333333333329},24.267053701015971,{"$f":"D8+($D$32-$D$7)/25","v":17.600000000000001},{"$f":"E8+($E$10-$E$7)/3","v":15.666666666666668},11,{"$f":"G8+(G11-G8)/3","v":1210.3333333333333},null,null,null,null,null,"klasika",200,2800,14]
[100,77,26.47314949201742,18.400000000000002,18,12,{"$f":"G9+(G11-G8)/3","v":1365.6666666666665},null,null,null,null,null,"klasika",300,4200,14]
[{"$f":"A10+($A$19-$A$10)/9","v":105.55555555555556},{"$f":"B10+($B$33-$B$10)/23","v":80.173913043478265},28.679245283018872,19.200000000000003,{"$f":"E10+($E$14-$E$10)/4","v":20.5},13,1521,null,null,null,null,null,"výbojka",80,3600,45]
[{"$f":"A11+($A$19-$A$10)/9","v":111.11111111111111},{"$f":"B11+($B$33-$B$10)/23","v":83.34782608695653},30.885341074020324,20.000000000000004,{"$f":"E11+($E$14-$E$10)/4","v":23},14,{"$f":"G11+($G$18-$G$11)/7","v":1603.7142857142858},null,null,null,null,null,"výbojka",125,6000,48]
[116.66666666666667,86.521739130434796,33.091436865021777,20.800000000000004,{"$f":"E12+($E$14-$E$10)/4","v":25.5},15,1686.4285714285716,null,null,null,null,null,"výbojka",250,12700,50.8]
[122.22222222222223,89.695652173913061,35.297532656023229,21.600000000000005,28,16,1769.1428571428573,null,null,null,null,null,"CFL",10,600,60]
[127.77777777777779,92.869565217391326,37.503628447024681,22.400000000000006,{"$f":"E14+($E$43-$E$14)/28","v":28.285714285714285},17,1851.8571428571431,null,null,null,null,null,"CFL",16,980,61.25]
[133.33333333333334,96.043478260869591,39.709724238026133,23.200000000000006,{"$f":"E15+($E$43-$E$14)/28","v":28.571428571428569},18,1934.5714285714289,null,null,null,null,null,"CFL",36,2800,77.777777777777771]
[138.88888888888889,99.217391304347856,41.915820029027586,24.000000000000007,28.857142857142854,19,2017.2857142857147,null,null,null,null,null,"CFL",80,6000,75]
[144.44444444444443,102.39130434782612,44.121915820029038,24.800000000000008,29.142857142857139,20,2100,null,null,null,null,null,"zářivka",80,7000,87.5]
[150,105.56521739130439,46.32801161103049,25.600000000000009,29.428571428571423,21,{"$f":"G18+($G$28-$G$18)/10","v":2150},null,null,null,null,null,"zářivka",58,5250,90.517241379310349]
[{"$f":"A19+($A$32-$A$19)/13","v":153.84615384615384},108.73913043478265,48.534107402031943,26.400000000000009,29.714285714285708,22,{"$f":"G19+($G$28-$G$18)/10","v":2200},null,null,null,null,null,"zářivka",49,4900,100]
[{"$f":"A20+($A$32-$A$19)/13","v":157.69230769230768},111.91304347826092,50.740203193033395,27.20000000000001,29.999999999999993,23,2250,null,null,null,null,null,"zářivka",36,3350,93.055555555555557]
[161.53846153846152,115.08695652173918,51.823899371069189,28.000000000000011,{"$f":"E21+($E$43-$E$14)/28","v":30.285714285714278},{"$f":"F21+($F$76-$F$20)/57","v":23.491228070175438},2300,null,null,null,null,null,"zářivka",28,1700,60.714285714285715]
[165.38461538461536,118.26086956521745,52.90759554910499,28.800000000000011,30.571428571428562,{"$f":"F22+($F$76-$F$20)/57","v":23.982456140350877},2350,null,null,null,null,null,"zářivka",18,1350,75]
[169.2307692307692,121.43478260869571,53.991291727140791,29.600000000000012,30.857142857142847,24.473684210526315,2400,null,null,null,null,null,"zářivka",11,900,81.818181818181813]
[173.07692307692304,124.60869565217398,55.074987905176592,30.400000000000013,31.142857142857132,24.964912280701753,2450,null,null,null,null,null,"led",5.5,470,85.454545454545453]
[176.92307692307688,127.78260869565224,56.158684083212393,31.200000000000014,31.428571428571416,25.456140350877192,2500,null,null,null,null,null,"led",8,806,100.75]
[180.76923076923072,130.95652173913049,57.242380261248194,32.000000000000014,31.714285714285701,25.94736842105263,2550,null,null,null,null,null,"led",10,1055,105.5]
[184.61538461538456,134.13043478260875,58.326076439283995,32.800000000000011,31.999999999999986,26.438596491228068,2600,null,null,null,null,null,"led",13,1521,117]
[188.4615384615384,137.304347826087,59.409772617319796,33.600000000000009,32.28571428571427,26.929824561403507,2650,null,null,null,null,null,"led",20,2100,105]
[192.30769230769224,140.47826086956525,60.493468795355597,34.400000000000006,32.571428571428555,27.421052631578945,2700,null,null,null,null,null,"led",30,2600,86.666666666666671]
[196.15384615384608,143.6521739130435,61.577164973391397,35.200000000000003,32.85714285714284,27.912280701754383,2750]
[200,146.82608695652175,62.660861151427198,36,33.142857142857125,28.403508771929822,2800]
[{"$f":"A32+($A$60-$A$32)/28","v":203.57142857142858},150,63.744557329462992,{"$f":"D32+($D$96-$D$32)/65","v":36.676923076923075},33.428571428571409,28.89473684210526,2850]
[{"$f":"A33+($A$60-$A$32)/28","v":207.14285714285717},{"$f":"B33-B32+B33","v":153.17391304347825},64.8282535074988,{"$f":"D33+($D$96-$D$32)/65","v":37.353846153846149},33.714285714285694,29.385964912280699,2900]
[210.71428571428575,{"$f":"B34-B33+B34","v":156.3478260869565},65.911949685534594,38.030769230769224,33.999999999999979,29.877192982456137,2950]
[214.28571428571433,159.52173913043475,66.995645863570402,38.707692307692298,34.285714285714263,30.368421052631575,3000]
[217.85714285714292,162.695652173913,68.079342041606196,39.384615384615373,34.571428571428548,30.859649122807014,3050]
[221.4285714285715,165.86956521739125,69.163038219642004,40.061538461538447,34.857142857142833,31.350877192982452,3100]
[225.00000000000009,169.04347826086951,70.246734397677798,40.738461538461522,35.142857142857117,31.84210526315789,3150]
[228.57142857142867,172.21739130434776,71.330430575713592,41.415384615384596,35.428571428571402,32.333333333333329,3200]
[232.14285714285725,175.39130434782601,72.4141267537494,42.092307692307671,35.714285714285687,32.824561403508767,3250]
[235.71428571428584,178.56521739130426,73.497822931785194,42.769230769230745,35.999999999999972,33.315789473684205,3300]
[239.28571428571442,181.73913043478251,74.581519109821002,43.44615384615382,36,33.807017543859644,3350]
[242.857142857143,184.91304347826076,75.665215287856796,44.123076923076894,{"$f":"E43+($E$74-$E$43)/31","v":36.516129032258064},34.298245614035082,3400]
[246.42857142857159,188.08695652173901,76.748911465892604,44.799999999999969,{"$f":"E44+($E$74-$E$43)/31","v":37.032258064516128},34.78947368421052,3450]
[250.00000000000017,191.26086956521726,77.832607643928398,45.476923076923043,37.548387096774192,35.280701754385959,3500]
[253.57142857142875,194.43478260869551,78.916303821964206,46.153846153846118,38.064516129032256,35.771929824561397,3550]
[257.14285714285734,197.60869565217376,80,46.830769230769192,38.58064516129032,36.263157894736835,3600]
[260.71428571428589,200.78260869565202,{"$f":"C48+($C$96-$C$48)/48","v":80.9375},47.507692307692267,39.096774193548384,36.754385964912274,3650]
[264.28571428571445,203.95652173913027,{"$f":"C49+($C$96-$C$48)/48","v":81.875},48.184615384615341,39.612903225806448,37.245614035087712,3700]
[267.857142857143,{"$f":"B50-B49+B50","v":207.13043478260852},82.8125,48.861538461538416,40.129032258064512,37.73684210526315,3750]
[271.42857142857156,210.30434782608677,83.75,49.53846153846149,40.645161290322577,38.228070175438589,3800]
[275.00000000000011,213.47826086956502,84.6875,50.215384615384565,41.161290322580641,38.719298245614027,3850]
[278.57142857142867,216.65217391304327,85.625,50.892307692307639,41.677419354838705,39.210526315789465,3900]
[282.14285714285722,219.82608695652152,86.5625,51.569230769230714,42.193548387096769,39.701754385964904,3950]
[285.71428571428578,222.99999999999977,87.5,52.246153846153788,42.709677419354833,40.192982456140342,4000]
[289.28571428571433,226.17391304347802,88.4375,52.923076923076863,43.225806451612897,40.68421052631578,4050]
[292.85714285714289,229.34782608695627,89.375,53.599999999999937,43.741935483870961,41.175438596491219,4100]
[296.42857142857144,232.52173913043453,90.3125,54.276923076923012,44.258064516129025,41.666666666666657,4150]
[300,235.69565217391278,91.25,54.953846153846087,44.774193548387089,42.157894736842096,4200]
[303.57142857142856,238.86956521739103,92.1875,55.630769230769161,45.290322580645153,42.649122807017534,4250]
[307.14285714285711,242.04347826086928,93.125,56.307692307692236,45.806451612903217,43.140350877192972,4300]
[310.71428571428567,245.21739130434753,94.0625,56.98461538461531,46.322580645161281,43.631578947368411,4350]
[314.28571428571422,248.39130434782578,95,57.661538461538385,46.838709677419345,44.122807017543849,4400]
[317.85714285714278,251.56521739130403,95.9375,58.338461538461459,47.354838709677409,44.614035087719287,4450]
[321.42857142857133,254.73913043478228,96.875,59.015384615384534,47.870967741935473,45.105263157894726,4500]
[{"$f":"A66-A65+A66","v":324.99999999999989},257.91304347826053,97.8125,59.692307692307608,48.387096774193537,45.596491228070164,4550]
[328.57142857142844,261.08695652173878,98.75,60.369230769230683,48.903225806451601,46.087719298245602,4600]
[332.142857142857,264.26086956521704,99.6875,61.046153846153757,49.419354838709666,46.578947368421041,4650]
[335.71428571428555,267.43478260869529,100.625,61.723076923076832,49.93548387096773,47.070175438596479,4700]
[339.28571428571411,270.60869565217354,101.5625,62.399999999999906,50.451612903225794,47.561403508771917,4750]
[342.85714285714266,273.78260869565179,102.5,63.076923076922981,50.967741935483858,48.052631578947356,4800]
[346.42857142857122,276.95652173913004,103.4375,63.753846153846055,51.483870967741922,48.543859649122794,4850]
[349.99999999999977,280.13043478260829,104.375,64.43076923076913,52,49.035087719298232,4900]
[353.57142857142833,283.30434782608654,105.3125,65.107692307692204,{"$f":"E74+($E$81-$E$74)/7","v":52.857142857142854},{"$f":"F74+($F$76-$F$20)/40","v":49.735087719298235},4950]
[357.14285714285688,286.47826086956479,106.25,65.784615384615279,53.714285714285708,50,5000]
[360.71428571428544,289.65217391304304,107.1875,66.461538461538353,54.571428571428562,{"$f":"F76+($F$116-$F$76)/40","v":50.325000000000003},5050]
[364.28571428571399,292.82608695652129,108.125,67.138461538461428,55.428571428571416,{"$f":"F77+($F$116-$F$76)/40","v":50.650000000000006},5100]
[367.85714285714255,295.99999999999955,109.0625,67.815384615384502,56.28571428571427,50.975000000000009,5150]
[371.4285714285711,299.1739130434778,110,68.492307692307577,57.142857142857125,51.300000000000011,5200]
[374.99999999999966,302.34782608695605,110.9375,69.169230769230651,58,51.625000000000014,5250]
[378.57142857142821,305.5217391304343,111.875,69.846153846153726,{"$f":"E81+($E$116-$E$81)/35","v":58.628571428571426},51.950000000000017,5300]
[{"$f":"A82-A81+A82","v":382.14285714285677},308.69565217391255,112.8125,70.5230769230768,{"$f":"E82+($E$116-$E$81)/35","v":59.257142857142853},52.27500000000002,5350]
[385.71428571428532,311.8695652173908,113.75,71.199999999999875,59.885714285714279,52.600000000000023,5400]
[389.28571428571388,{"$f":"ZpůsobVýpočtu-B83+ZpůsobVýpočtu","v":-308.69565217391255},114.6875,71.876923076922949,60.514285714285705,52.925000000000026,5450]
[392.85714285714243,{"$f":"B85-ZpůsobVýpočtu+B85","v":-617.3913043478251},115.625,72.553846153846024,61.142857142857132,53.250000000000028,5500]
[396.42857142857099,-926.08695652173765,116.5625,73.230769230769098,61.771428571428558,53.575000000000031,5550]
[399.99999999999955,{"$f":"Denostupně-B86+Denostupně","v":-1270.2086956521748},117.5,73.907692307692173,62.399999999999984,53.900000000000034,5600]
[403.5714285714281,{"$f":"B88-Denostupně+B88","v":-1596.6173913043497},118.4375,74.584615384615248,63.028571428571411,54.225000000000037,5650]
[407.14285714285666,-1923.0260869565245,119.375,75.261538461538322,63.657142857142837,54.55000000000004,5700]
[410.71428571428521,-2249.4347826086996,120.3125,75.938461538461397,64.285714285714263,54.875000000000043,5750]
[414.28571428571377,-2575.8434782608747,121.25,76.615384615384471,64.914285714285697,55.200000000000045,5800]
[417.85714285714232,-2902.2521739130498,122.1875,77.292307692307546,65.54285714285713,55.525000000000048,5850]
[421.42857142857088,-3228.6608695652249,123.125,77.96923076923062,66.171428571428564,55.850000000000051,5900]
[424.99999999999943,-3555.0695652173999,124.0625,78.646153846153695,66.8,56.175000000000054,5950]
[428.57142857142799,-3881.478260869575,125,80,67.428571428571431,56.500000000000057,6000]
[432.14285714285654,-4207.8869565217501,{"$f":"C96-C95+C96","v":125.9375},{"$f":"D96-D95+D96","v":81.353846153846305},68.057142857142864,56.82500000000006,6050]
[435.7142857142851,-4534.2956521739252,126.875,82.707692307692611,68.685714285714297,57.150000000000063,6100]
[{"$f":"A98-A97+A98","v":439.28571428571365},-4860.7043478261003,127.8125,84.061538461538916,69.314285714285731,57.475000000000065,6150]
[442.85714285714221,-5187.1130434782754,128.75,85.415384615385221,69.942857142857164,57.800000000000068,6200]
[446.42857142857076,-5513.5217391304504,129.6875,86.769230769231527,70.571428571428598,58.125000000000071,6250]
[449.99999999999932,-5839.9304347826255,130.625,88.123076923077832,71.200000000000031,58.450000000000074,6300]
[453.57142857142787,-6166.3391304348006,131.5625,89.476923076924137,71.828571428571465,58.775000000000077,6350]
[457.14285714285643,-6492.7478260869757,132.5,90.830769230770443,72.457142857142898,59.10000000000008,6400]
[460.71428571428498,-6819.1565217391508,133.4375,92.184615384616748,73.085714285714332,59.425000000000082,6450]
[464.28571428571354,-7145.5652173913259,134.375,93.538461538463054,73.714285714285765,59.750000000000085,6500]
[467.85714285714209,-7471.9739130435009,135.3125,94.892307692309359,74.342857142857198,60.075000000000088,6550]
[471.42857142857065,-7798.382608695676,136.25,96.246153846155664,74.971428571428632,60.400000000000091,6600]
[474.9999999999992,-8124.7913043478511,137.1875,97.60000000000197,75.600000000000065,60.725000000000094,6650]
[478.57142857142776,-8451.2000000000262,138.125,98.953846153848275,76.228571428571499,61.050000000000097,6700]
[482.14285714285631,-8777.6086956522013,139.0625,100.30769230769458,76.857142857142932,61.375000000000099,6750]
[485.71428571428487,-9104.0173913043764,140,101.66153846154089,77.485714285714366,61.700000000000102,6800]
[489.28571428571342,-9430.4260869565514,140.9375,103.01538461538719,78.114285714285799,62.025000000000105,6850]
[492.85714285714198,-9756.8347826087265,141.875,104.3692307692335,78.742857142857233,62.350000000000108,6900]
[{"$f":"A114-A113+A114","v":496.42857142857054},-10083.243478260902,142.8125,105.7230769230798,79.371428571428666,62.675000000000111,6950]
[499.99999999999909,-10409.652173913077,143.75,107.07692307692611,80,63,7000]

{"sheet":"ParametryFVE","index":20,"n_rows":7,"n_cols":3,"rows_kept":7,"cut":false,"hidden":true,"merged":[]}
["Název","Jednotka","Hodnota"]
["Minimální využití instalovaného výkonu FVE","h/r",500]
["Maximální využití instalovaného výkonu FVE","h/r",4000]
["Minimální podíl kapacity baterie k výkonu baterie",1,1]
["Maximální podíl kapacity baterie k výkonu baterie",1,2]
["Maximální výkon FVE","kWp",1000]
["Maximální kapacita baterie","kWh",1000]

{"sheet":"Jen_zdroj","index":21,"n_rows":28,"n_cols":22,"rows_kept":28,"cut":false,"hidden":true,"merged":[]}
["Starý zdroj"]
[]
["Zdroj/palivo","Zadaný zdroj","Instalovaný výkon\n[kWt]","Výhřevnost\n[GJ/m.j.]","Účinnost\n[%]","Faktor primární energie\n[1]","Faktor TZL\n[kg/m.j.]","Faktor PM10\n[%]","Faktor PM2,5\n[%]","Faktor CO2\n[kg/GJ]","Měrná cena vstupu\n[Kč/m.j.]","Spotřeba na vstupu [m.j.]","Spotřeba na vstupu [kWh]","Výroba tepla\n[kWh]","Spotřeba primární energie\n[kWh]","Využití instalovaného výkonu\n[h]","Využití OK","Emise CO2\n[kg]","Emise TZL\n[kg]","Emise PM10\n[kg]","Emise PM2,5\n[kg]","Výdaje za vstupy\n[Kč]"]
[{"$f":"ParametryZdroje!M10","v":"hnědé uhlí"},{"$f":"AND(ZdrojIdxOld=1,Zdroj!$I$6=A4)","v":false},{"$f":"Zdroj!$E$13","v":0},{"$f":"Nositele!E2","v":1.7999999999999999E-2},{"$f":"Účinnost_stará","v":0},{"$f":"VLOOKUP($A4,Primární!$A$2:$B$14,2,FALSE)","v":1},{"$f":"VLOOKUP(TStaréKotle[[#Headers],[kotel na tuhá paliva]] & \"-\" & Zdroj!$I$5 & \"-\" & $A4,TKotleTP[],4,FALSE)","v":{"$error":"#N/A"}},{"$f":"VLOOKUP(TStaréKotle[[#Headers],[kotel na tuhá paliva]] & \"-\" & Zdroj!$I$5 & \"-\" & $A4,TKotleTP[],6,FALSE)","v":{"$error":"#N/A"}},{"$f":"VLOOKUP(TStaréKotle[[#Headers],[kotel na tuhá paliva]] & \"-\" & Zdroj!$I$5 & \"-\" & $A4,TKotleTP[],7,FALSE)","v":{"$error":"#N/A"}},{"$f":"Nositele!G2","v":99.1},{"$f":"Nositele!H2","v":3.4},{"$f":"$M4*kWh_na_GJ/D4","v":0},{"$f":"IFERROR(N4/$E4,0)","v":0},{"$f":"US_z_listu_kotel","v":0},{"$f":"M4*F4","v":0},{"$f":"IFERROR(N4/$C4,0)","v":0},{"$f":"AND(P4>=1000,P4<=7000)","v":false},{"$f":"IFERROR(M4*kWh_na_GJ*$J4,0)","v":0},{"$f":"L4*$G4","v":{"$error":"#N/A"}},{"$f":"S4*$H4","v":{"$error":"#N/A"}},{"$f":"T4*$I4","v":{"$error":"#N/A"}},{"$f":"K4*L4","v":0}]
[{"$f":"ParametryZdroje!M8","v":"černé uhlí"},{"$f":"AND(ZdrojIdxOld=1,Zdroj!$I$6=A5)","v":false},{"$f":"Zdroj!$E$13","v":0},{"$f":"Nositele!E3","v":3.1E-2},0,{"$f":"VLOOKUP($A5,Primární!$A$2:$B$14,2,FALSE)","v":1},{"$f":"VLOOKUP(TStaréKotle[[#Headers],[kotel na tuhá paliva]] & \"-\" & Zdroj!$I$5 & \"-\" & $A5,TKotleTP[],4,FALSE)","v":{"$error":"#N/A"}},{"$f":"VLOOKUP(TStaréKotle[[#Headers],[kotel na tuhá paliva]] & \"-\" & Zdroj!$I$5 & \"-\" & $A5,TKotleTP[],6,FALSE)","v":{"$error":"#N/A"}},{"$f":"VLOOKUP(TStaréKotle[[#Headers],[kotel na tuhá paliva]] & \"-\" & Zdroj!$I$5 & \"-\" & $A5,TKotleTP[],7,FALSE)","v":{"$error":"#N/A"}},{"$f":"Nositele!G3","v":92.4},{"$f":"Nositele!H3","v":5.5},0,0,0,0,{"$f":"IFERROR(N5/$C5,0)","v":0},{"$f":"AND(P5>=1000,P5<=7000)","v":false},0,{"$f":"L5*$G5","v":{"$error":"#N/A"}},{"$f":"S5*$H5","v":{"$error":"#N/A"}},{"$f":"T5*$I5","v":{"$error":"#N/A"}},{"$f":"K5*L5","v":0}]
[{"$f":"ParametryZdroje!M11","v":"palivové dřevo"},{"$f":"AND(ZdrojIdxOld=1,Zdroj!$I$6=A6)","v":false},{"$f":"Zdroj!$E$13","v":0},{"$f":"Nositele!E4","v":1.4E-2},0,{"$f":"VLOOKUP($A6,Primární!$A$2:$B$14,2,FALSE)","v":1},{"$f":"VLOOKUP(TStaréKotle[[#Headers],[kotel na tuhá paliva]] & \"-\" & Zdroj!$I$5 & \"-\" & $A6,TKotleTP[],4,FALSE)","v":{"$error":"#N/A"}},{"$f":"VLOOKUP(TStaréKotle[[#Headers],[kotel na tuhá paliva]] & \"-\" & Zdroj!$I$5 & \"-\" & $A6,TKotleTP[],6,FALSE)","v":{"$error":"#N/A"}},{"$f":"VLOOKUP(TStaréKotle[[#Headers],[kotel na tuhá paliva]] & \"-\" & Zdroj!$I$5 & \"-\" & $A6,TKotleTP[],7,FALSE)","v":{"$error":"#N/A"}},{"$f":"Nositele!G4","v":0},{"$f":"Nositele!H4","v":3.5},0,0,0,0,0,false,0,{"$error":"#N/A"},{"$error":"#N/A"},{"$error":"#N/A"},0]
[{"$f":"ParametryZdroje!M12","v":"pelety"},{"$f":"AND(ZdrojIdxOld=1,Zdroj!$I$6=A7)","v":false},{"$f":"Zdroj!$E$13","v":0},{"$f":"Nositele!E5","v":1.7000000000000001E-2},0,{"$f":"VLOOKUP($A7,Primární!$A$2:$B$14,2,FALSE)","v":1},{"$f":"VLOOKUP(TStaréKotle[[#Headers],[kotel na tuhá paliva]] & \"-\" & Zdroj!$I$5 & \"-\" & $A7,TKotleTP[],4,FALSE)","v":{"$error":"#N/A"}},{"$f":"VLOOKUP(TStaréKotle[[#Headers],[kotel na tuhá paliva]] & \"-\" & Zdroj!$I$5 & \"-\" & $A7,TKotleTP[],6,FALSE)","v":{"$error":"#N/A"}},{"$f":"VLOOKUP(TStaréKotle[[#Headers],[kotel na tuhá paliva]] & \"-\" & Zdroj!$I$5 & \"-\" & $A7,TKotleTP[],7,FALSE)","v":{"$error":"#N/A"}},{"$f":"Nositele!G5","v":0},{"$f":"Nositele!H5","v":5.4},0,0,0,0,0,false,0,{"$error":"#N/A"},{"$error":"#N/A"},{"$error":"#N/A"},0]
[{"$f":"ParametryZdroje!M14","v":"zemní plyn"},{"$f":"ZdrojIdxOld=2","v":false},{"$f":"Zdroj!$E$13","v":0},{"$f":"Nositele!E6","v":3.4000000000000002E-2},0,{"$f":"VLOOKUP($A8,Primární!$A$2:$B$14,2,FALSE)","v":1},{"$f":"Nositele!M6","v":6.9E-6},{"$f":"Nositele!O6","v":1},{"$f":"Nositele!P6","v":1},{"$f":"Nositele!G6","v":55.4},{"$f":"Nositele!H6","v":10},0,0,0,0,0,false,0,0,0,0,0]
[{"$f":"TStarýKotelHelp[[#This Row],[Nositel]]","v":"elektřina"},{"$f":"ZdrojIdxOld=3","v":false},{"$f":"Zdroj!$E$13","v":0},{"$f":"Nositele!E7","v":3.5999999999999999E-3},0,{"$f":"VLOOKUP($A9,Primární!$A$2:$B$14,2,FALSE)","v":2.2999999999999998},{"$f":"Nositele!M7","v":3.68E-5},{"$f":"Nositele!O7","v":0.85},{"$f":"Nositele!P7","v":0.65},{"$f":"Nositele!G7","v":239},{"$f":"Nositele!H7","v":2.67},0,0,0,0,0,false,0,0,0,0,0]
[{"$f":"ParametryZdroje!M13","v":"topný olej"},{"$f":"ZdrojIdxOld=4","v":false},{"$f":"Zdroj!$E$13","v":0},{"$f":"Nositele!E8","v":3.4645000000000002E-2},0,{"$f":"VLOOKUP($A10,Primární!$A$2:$B$14,2,FALSE)","v":1.2},{"$f":"Nositele!M8","v":5.8879999999999999E-5},{"$f":"Nositele!O8","v":0.93},{"$f":"Nositele!P8","v":0.67},{"$f":"Nositele!G8","v":73.3},{"$f":"Nositele!H8","v":29.83},0,0,0,0,0,false,0,0,0,0,0]
[{"$f":"TStaréKotle[[#Headers],[tepelné čerpadlo]]","v":"tepelné čerpadlo"},{"$f":"ZdrojIdxOld=5","v":false},{"$f":"Zdroj!$E$13","v":0},{"$f":"Nositele!E7","v":3.5999999999999999E-3},0,{"$f":"F9","v":2.2999999999999998},{"$f":"Nositele!M7","v":3.68E-5},{"$f":"Nositele!O7","v":0.85},{"$f":"Nositele!P7","v":0.65},{"$f":"Nositele!G7","v":239},{"$f":"Nositele!H7","v":2.67},0,0,0,0,0,false,0,0,0,0,0]
[{"$f":"TStaréKotle[[#Headers],[centrální zásobování teplem]] & \" - energie\"","v":"centrální zásobování teplem - energie"},{"$f":"ZdrojIdxOld=6","v":false},0,{"$f":"Nositele!E12","v":1},0,{"$f":"IF(Typ_SZT=1,Primární!$E$2,IF(Typ_SZT=2,Primární!$E$3,0))","v":0},{"$f":"IFERROR(VLOOKUP(Zdroj!$I$6,TNositele[],11,FALSE),0)","v":0},{"$f":"IFERROR(VLOOKUP(Zdroj!$I$6,TNositele[],13,FALSE),0)","v":0},{"$f":"IFERROR(VLOOKUP(Zdroj!$I$6,TNositele[],14,FALSE),0)","v":0},{"$f":"IFERROR(VLOOKUP(Zdroj!$I$6,TNositele[],5,FALSE)/100,0)","v":0},{"$f":"Nositele!H12","v":400},0,0,0,0,0,true,{"$f":"IFERROR(M12*kWh_na_GJ*$J12*$F$12,0)","v":0},0,0,0,0]
[{"$f":"IFERROR(INDEX(A$4:A$12,$B$13),0)","v":0},{"$f":"IFERROR(MATCH(TRUE,$B$4:$B$12,0),0)","v":0},null,null,null,null,null,null,null,null,null,{"$f":"IFERROR(INDEX(L$4:L$12,$B$13),0)","v":0},0,0,0,0,0,0,0,0,0,0]
[]
[]
["Nový zdroj"]
[]
["Zdroj/palivo","Zadaný zdroj","Instalovaný výkon\n[kWt]","Výhřevnost\n[GJ/m.j.]","Účinnost\n[%]","Faktor primární energie\n[1]","Faktor TZL\n[kg/m.j.]","Faktor PM10\n[%]","Faktor PM2,5\n[%]","Faktor CO2\n[kg/GJ]","Měrná cena vstupu\n[Kč/m.j.]","Spotřeba na vstupu [m.j.]","Spotřeba na vstupu [kWh]","Výroba tepla\n[kWh]","Spotřeba primární energie\n[kWh]","Využití instalovaného výkonu\n[h]","Využití OK","Emise CO2\n[kg]","Emise TZL\n[kg]","Emise PM10\n[kg]","Emise PM2,5\n[kg]","Výdaje za vstupy\n[Kč]"]
[{"$f":"ParametryZdroje!$B$30:$B$33","v":"kotel na štěpku, pelety nebo brikety"},{"$f":"ZdrojIdxNew=1","v":false},{"$f":"Zdroj!$E$19","v":0},{"$f":"Nositele!E5","v":1.7000000000000001E-2},{"$f":"Účinnost_nová","v":0},{"$f":"F7","v":1},{"$f":"Nositele!$F$45","v":2.1199999999999999E-3},{"$f":"Nositele!H45","v":0.998},{"$f":"Nositele!I45","v":0.98799999999999999},{"$f":"Nositele!G5","v":0},{"$f":"Nositele!H5","v":5.4},{"$f":"M19*kWh_na_GJ/$D19","v":0},{"$f":"IFERROR(N19/$E19,0)","v":0},{"$f":"US_z_listu_kotel","v":0},{"$f":"M19*$F19","v":0},{"$f":"IFERROR(N19/$C19,0)","v":0},{"$f":"AND(P19>=1000,P19<=7000)","v":false},{"$f":"IFERROR(M19*kWh_na_GJ*$J19,0)","v":0},{"$f":"L19*$G19","v":0},{"$f":"S19*$H19","v":0},{"$f":"T19*$I19","v":0},{"$f":"K19*L19","v":0}]
["kotel na odpadní dřevo",{"$f":"ZdrojIdxNew=2","v":false},{"$f":"Zdroj!$E$19","v":0},{"$f":"Nositele!E9","v":1.7000000000000001E-2},{"$f":"Účinnost_nová","v":0},{"$f":"VLOOKUP(\"odpadní dřevo\",Primární!$A$2:$B$14,2,FALSE)","v":1},{"$f":"Nositele!$F$41","v":2.1199999999999999E-3},{"$f":"Nositele!H41","v":0.998},{"$f":"Nositele!I41","v":0.99099999999999999},{"$f":"Nositele!G9","v":0},{"$f":"Nositele!H9","v":0},{"$f":"M20*kWh_na_GJ/$D20","v":0},{"$f":"IFERROR(N20/$E20,0)","v":0},{"$f":"US_z_listu_kotel","v":0},{"$f":"M20*$F20","v":0},0,false,{"$f":"IFERROR(M20*kWh_na_GJ*$J20,0)","v":0},0,0,{"$f":"S20*$I20","v":0},0]
["kotel na bioplyn",{"$f":"ZdrojIdxNew=3","v":false},{"$f":"Zdroj!$E$19","v":0},{"$f":"Nositele!E10","v":3.4000000000000002E-2},{"$f":"Účinnost_nová","v":0},{"$f":"VLOOKUP(\"bioplyn\",Primární!$A$2:$B$14,2,FALSE)","v":1.2},{"$f":"Nositele!M10","v":6.9E-6},{"$f":"Nositele!O10","v":1},{"$f":"Nositele!P10","v":1},{"$f":"Nositele!G10","v":0},{"$f":"Nositele!H10","v":0},{"$f":"M21*kWh_na_GJ/$D21","v":0},0,{"$f":"US_z_listu_kotel","v":0},0,0,false,{"$f":"IFERROR(M21*kWh_na_GJ*$J21,0)","v":0},0,0,{"$f":"S21*$I21","v":0},0]
["tepelné čerpadlo",{"$f":"ZdrojIdxNew=4","v":false},{"$f":"Zdroj!$E$19","v":0},{"$f":"Nositele!E7","v":3.5999999999999999E-3},{"$f":"Účinnost_nová","v":0},{"$f":"F11","v":2.2999999999999998},{"$f":"Nositele!M7","v":3.68E-5},{"$f":"Nositele!O7","v":0.85},{"$f":"Nositele!P7","v":0.65},{"$f":"Nositele!G7","v":239},{"$f":"Nositele!H7","v":2.67},{"$f":"M22*kWh_na_GJ/$D22","v":0},0,{"$f":"US_z_listu_kotel","v":0},0,0,false,{"$f":"IFERROR(M22*kWh_na_GJ*$J22,0)","v":0},0,0,{"$f":"S22*$I22","v":0},0]
[{"$f":"IFERROR(INDEX(A$19:A$21,$B$23),0)","v":0},{"$f":"IFERROR(MATCH(TRUE,$B$19:$B$22,0),0)","v":0},{"$f":"IFERROR(INDEX(C$19:C$22,$B$23),0)","v":0},{"$f":"IFERROR(INDEX(D$19:D$22,$B$23),0)","v":0},{"$f":"IFERROR(INDEX(E$19:E$22,$B$23),0)","v":0},0,0,0,0,null,null,{"$f":"IFERROR(INDEX(L$19:L$22,$B$23),0)","v":0},0,0,0,0,0,0,0,0,0,0]
[]
[]
[]
["Zdroj/palivo","Zadaný zdroj","Instalovaný výkon\n[kWt]","Výhřevnost\n[GJ/m.j.]","Účinnost\n[%]","Faktor primární energie\n[1]","Faktor TZL\n[kg/m.j.]","Faktor PM10\n[%]","Faktor PM2,5\n[%]","Faktor CO2\n[kg/GJ]","Měrná cena vstupu\n[Kč/m.j.]","Spotřeba na vstupu [m.j.]","Spotřeba na vstupu [kWh]","Výroba tepla\n[kWh]","Spotřeba primární energie\n[kWh]","Využití instalovaného výkonu\n[h]","Využití OK","Emise CO2\n[kg]","Emise TZL\n[kg]","Emise PM10\n[kg]","Emise PM2,5\n[kg]","Výdaje za vstupy\n[Kč]"]
["ÚSPORA",null,null,null,null,null,null,null,null,null,null,null,{"$f":"M13-M23","v":0},null,{"$f":"O13-O23","v":0},null,null,{"$f":"R13-R23","v":0},{"$f":"S13-S23","v":0},{"$f":"T13-T23","v":0},{"$f":"U13-U23","v":0},{"$f":"V13-V23","v":0}]

{"sheet":"Jen_zateplení","index":22,"n_rows":32,"n_cols":19,"rows_kept":32,"cut":false,"hidden":true,"merged":[]}
["Před zateplením"]
[]
["Zdroj/palivo","Zadaný zdroj","Výhřevnost\n[GJ/m.j.]","Účinnost\n[%]","Faktor primární energie\n[1]","Faktor TZL\n[kg/m.j.]","Faktor PM10\n[%]","Faktor PM2,5\n[%]","Faktor CO2\n[kg/GJ]","Měrná cena vstupu\n[Kč/m.j.]","Spotřeba na vstupu [m.j.]","Spotřeba na vstupu [kWh]","Výroba tepla\n[kWh]","Spotřeba primární energie\n[kWh]","Emise CO2\n[kg]","Emise TZL\n[kg]","Emise PM10\n[kg]","Emise PM2,5\n[kg]","Výdaje za vstupy\n[Kč]"]
[{"$f":"ParametryZdroje!M10","v":"hnědé uhlí"},{"$f":"OR(AND(ZdrojIdxBudova=1,Zateplení!$J$14=A19,NOT(je_zdroj)),AND(ZdrojIdxOld=1,Zdroj!$I$6=A4))","v":false},{"$f":"Nositele!E2","v":1.7999999999999999E-2},{"$f":"Účinnost_stará","v":0},{"$f":"VLOOKUP($A4,Primární!$A$2:$B$14,2,FALSE)","v":1},{"$f":"Nositele!M2","v":7.0399999999999998E-4},{"$f":"Nositele!O2","v":0.995},{"$f":"Nositele!P2","v":0.95200000000000007},{"$f":"Nositele!G2","v":99.1},{"$f":"Nositele!H2","v":3.4},{"$f":"L4*kWh_na_GJ/$C4","v":{"$error":"#DIV/0!"}},{"$f":"M4/$D4","v":{"$error":"#DIV/0!"}},{"$f":"Bilance!$B$24","v":0},{"$f":"L4*E4","v":{"$error":"#DIV/0!"}},{"$f":"IFERROR(L4*kWh_na_GJ*$I4,0)","v":0},{"$f":"K4*$F4","v":{"$error":"#DIV/0!"}},{"$f":"P4*$G4","v":{"$error":"#DIV/0!"}},{"$f":"Q4*$H4","v":{"$error":"#DIV/0!"}},{"$f":"J4*K4","v":{"$error":"#DIV/0!"}}]
[{"$f":"ParametryZdroje!M8","v":"černé uhlí"},{"$f":"OR(AND(ZdrojIdxBudova=1,Zateplení!$J$14=A20,NOT(je_zdroj)),AND(ZdrojIdxOld=1,Zdroj!$I$6=A5))","v":false},{"$f":"Nositele!E3","v":3.1E-2},0,{"$f":"VLOOKUP($A5,Primární!$A$2:$B$14,2,FALSE)","v":1},{"$f":"Nositele!M3","v":1.23E-3},{"$f":"Nositele!O3","v":0.998},{"$f":"Nositele!P3","v":0.98099999999999998},{"$f":"Nositele!G3","v":92.4},{"$f":"Nositele!H3","v":5.5},{"$error":"#DIV/0!"},{"$f":"M5/$D5","v":{"$error":"#DIV/0!"}},{"$f":"Bilance!$B$24","v":0},{"$error":"#DIV/0!"},0,{"$error":"#DIV/0!"},{"$f":"P5*$G5","v":{"$error":"#DIV/0!"}},{"$f":"Q5*$H5","v":{"$error":"#DIV/0!"}},{"$error":"#DIV/0!"}]
[{"$f":"ParametryZdroje!M11","v":"palivové dřevo"},{"$f":"OR(AND(ZdrojIdxBudova=1,Zateplení!$J$14=A21,NOT(je_zdroj)),AND(ZdrojIdxOld=1,Zdroj!$I$6=A6))","v":false},{"$f":"Nositele!E4","v":1.4E-2},0,{"$f":"VLOOKUP($A6,Primární!$A$2:$B$14,2,FALSE)","v":1},{"$f":"Nositele!M4","v":2.1199999999999999E-3},{"$f":"Nositele!O4","v":0.998},{"$f":"Nositele!P4","v":0.99099999999999999},{"$f":"Nositele!G4","v":0},{"$f":"Nositele!H4","v":3.5},{"$error":"#DIV/0!"},{"$error":"#DIV/0!"},{"$f":"Bilance!$B$24","v":0},{"$error":"#DIV/0!"},0,{"$error":"#DIV/0!"},{"$error":"#DIV/0!"},{"$error":"#DIV/0!"},{"$error":"#DIV/0!"}]
[{"$f":"ParametryZdroje!M12","v":"pelety"},{"$f":"OR(AND(ZdrojIdxBudova=1,Zateplení!$J$14=A22,NOT(je_zdroj)),AND(ZdrojIdxOld=1,Zdroj!$I$6=A7))","v":false},{"$f":"Nositele!E5","v":1.7000000000000001E-2},0,{"$f":"VLOOKUP($A7,Primární!$A$2:$B$14,2,FALSE)","v":1},{"$f":"Nositele!M5","v":2.6400000000000002E-4},{"$f":"Nositele!O5","v":0.998},{"$f":"Nositele!P5","v":0.98799999999999999},{"$f":"Nositele!G5","v":0},{"$f":"Nositele!H5","v":5.4},{"$error":"#DIV/0!"},{"$error":"#DIV/0!"},{"$f":"Bilance!$B$24","v":0},{"$error":"#DIV/0!"},0,{"$error":"#DIV/0!"},{"$error":"#DIV/0!"},{"$error":"#DIV/0!"},{"$error":"#DIV/0!"}]
[{"$f":"ParametryZdroje!M14","v":"zemní plyn"},{"$f":"OR(AND(ZdrojIdxBudova=2,NOT(je_zdroj)),ZdrojIdxOld=2)","v":false},{"$f":"Nositele!E6","v":3.4000000000000002E-2},0,{"$f":"VLOOKUP($A8,Primární!$A$2:$B$14,2,FALSE)","v":1},{"$f":"Nositele!M6","v":6.9E-6},{"$f":"Nositele!O6","v":1},{"$f":"Nositele!P6","v":1},{"$f":"Nositele!G6","v":55.4},{"$f":"Nositele!H6","v":10},{"$error":"#DIV/0!"},{"$error":"#DIV/0!"},{"$f":"Bilance!$B$24","v":0},{"$error":"#DIV/0!"},0,{"$error":"#DIV/0!"},{"$error":"#DIV/0!"},{"$error":"#DIV/0!"},{"$error":"#DIV/0!"}]
[{"$f":"TStarýKotelHelp[[#This Row],[Nositel]]","v":"elektřina"},{"$f":"OR(AND(ZdrojIdxBudova=3,NOT(je_zdroj)),ZdrojIdxOld=3)","v":false},{"$f":"Nositele!E7","v":3.5999999999999999E-3},0,{"$f":"VLOOKUP($A9,Primární!$A$2:$B$14,2,FALSE)","v":2.2999999999999998},{"$f":"Nositele!M7","v":3.68E-5},{"$f":"Nositele!O7","v":0.85},{"$f":"Nositele!P7","v":0.65},{"$f":"Nositele!G7","v":239},{"$f":"Nositele!H7","v":2.67},{"$error":"#DIV/0!"},{"$error":"#DIV/0!"},{"$f":"Bilance!$B$24","v":0},{"$error":"#DIV/0!"},0,{"$error":"#DIV/0!"},{"$error":"#DIV/0!"},{"$error":"#DIV/0!"},{"$error":"#DIV/0!"}]
[{"$f":"ParametryZdroje!M13","v":"topný olej"},{"$f":"OR(AND(ZdrojIdxBudova=4,NOT(je_zdroj)),ZdrojIdxOld=4)","v":false},{"$f":"Nositele!E8","v":3.4645000000000002E-2},0,{"$f":"VLOOKUP($A10,Primární!$A$2:$B$14,2,FALSE)","v":1.2},{"$f":"Nositele!M8","v":5.8879999999999999E-5},{"$f":"Nositele!O8","v":0.93},{"$f":"Nositele!P8","v":0.67},{"$f":"Nositele!G8","v":73.3},{"$f":"Nositele!H8","v":29.83},{"$error":"#DIV/0!"},{"$error":"#DIV/0!"},{"$f":"Bilance!$B$24","v":0},{"$error":"#DIV/0!"},0,{"$error":"#DIV/0!"},{"$error":"#DIV/0!"},{"$error":"#DIV/0!"},{"$error":"#DIV/0!"}]
[{"$f":"TStaréKotle[[#Headers],[tepelné čerpadlo]]","v":"tepelné čerpadlo"},{"$f":"OR(AND(ZdrojIdxBudova=5,NOT(je_zdroj)),ZdrojIdxOld=5)","v":false},{"$f":"Nositele!E7","v":3.5999999999999999E-3},0,{"$f":"E9","v":2.2999999999999998},{"$f":"Nositele!M7","v":3.68E-5},{"$f":"Nositele!O7","v":0.85},{"$f":"Nositele!P7","v":0.65},{"$f":"Nositele!G7","v":239},{"$f":"Nositele!H7","v":2.67},{"$error":"#DIV/0!"},{"$error":"#DIV/0!"},{"$f":"Bilance!$B$24","v":0},{"$error":"#DIV/0!"},0,{"$error":"#DIV/0!"},{"$error":"#DIV/0!"},{"$error":"#DIV/0!"},{"$error":"#DIV/0!"}]
[{"$f":"TStaréKotle[[#Headers],[centrální zásobování teplem]] & \" - energie\"","v":"centrální zásobování teplem - energie"},{"$f":"OR(AND(ZdrojIdxBudova=6,NOT(je_zdroj)),ZdrojIdxOld=6)","v":false},{"$f":"Nositele!E12","v":1},0,{"$f":"IF(Typ_SZT=1,Primární!$E$2,IF(Typ_SZT=2,Primární!$E$3,0))","v":0},{"$f":"IFERROR(VLOOKUP(Zdroj!$I$6,TNositele[],11,FALSE),0)","v":0},{"$f":"IFERROR(VLOOKUP(Zdroj!$I$6,TNositele[],13,FALSE),0)","v":0},{"$f":"IFERROR(VLOOKUP(Zdroj!$I$6,TNositele[],14,FALSE),0)","v":0},{"$f":"IFERROR(VLOOKUP(Zdroj!$I$6,TNositele[],5,FALSE)/100,0)","v":0},{"$f":"Nositele!H12","v":400},{"$error":"#DIV/0!"},{"$error":"#DIV/0!"},{"$f":"Bilance!$B$24","v":0},{"$error":"#DIV/0!"},{"$f":"IFERROR(L12*kWh_na_GJ*$I12*$E$12,0)","v":0},{"$error":"#DIV/0!"},{"$error":"#DIV/0!"},{"$error":"#DIV/0!"},{"$error":"#DIV/0!"}]
[{"$f":"IFERROR(INDEX(A$4:A$12,$B$13),0)","v":0},{"$f":"IFERROR(MATCH(TRUE,$B$4:$B$12,0),0)","v":0},{"$f":"IFERROR(INDEX(C$4:C$12,$B$13),0)","v":0},0,0,0,0,0,0,0,{"$f":"IFERROR(INDEX(K$4:K$12,$B$13),0)","v":0},0,0,0,0,0,0,0,0]
[]
[]
["Po zateplení"]
[]
["Zdroj/palivo","Zadaný zdroj","Výhřevnost\n[GJ/m.j.]","Účinnost\n[%]","Faktor primární energie\n[1]","Faktor TZL\n[kg/m.j.]","Faktor PM10\n[%]","Faktor PM2,5\n[%]","Faktor CO2\n[kg/GJ]","Měrná cena vstupu\n[Kč/m.j.]","Spotřeba na vstupu [m.j.]","Spotřeba na vstupu [kWh]","Výroba tepla\n[kWh]","Spotřeba primární energie\n[kWh]","Emise CO2\n[kg]","Emise TZL\n[kg]","Emise PM10\n[kg]","Emise PM2,5\n[kg]","Výdaje za vstupy\n[Kč]"]
[{"$f":"A4","v":"hnědé uhlí"},{"$f":"B4","v":false},{"$f":"C4","v":1.7999999999999999E-2},{"$f":"Účinnost_stará","v":0},{"$f":"E4","v":1},7.0399999999999998E-4,0.995,0.95200000000000007,99.1,3.4,{"$f":"L19*kWh_na_GJ/$C19","v":{"$error":"#DIV/0!"}},{"$f":"M19/$D19","v":{"$error":"#DIV/0!"}},{"$f":"Bilance!$C$24","v":0},{"$f":"L19*E19","v":{"$error":"#DIV/0!"}},{"$f":"IFERROR(L19*kWh_na_GJ*$I19,0)","v":0},{"$f":"K19*$F19","v":{"$error":"#DIV/0!"}},{"$f":"P19*$G19","v":{"$error":"#DIV/0!"}},{"$f":"Q19*$H19","v":{"$error":"#DIV/0!"}},{"$f":"J19*K19","v":{"$error":"#DIV/0!"}}]
[{"$f":"A5","v":"černé uhlí"},false,{"$f":"C5","v":3.1E-2},0,1,1.23E-3,0.998,0.98099999999999998,92.4,5.5,{"$error":"#DIV/0!"},{"$f":"M20/$D20","v":{"$error":"#DIV/0!"}},{"$f":"Bilance!$C$24","v":0},{"$error":"#DIV/0!"},0,{"$error":"#DIV/0!"},{"$f":"P20*$G20","v":{"$error":"#DIV/0!"}},{"$f":"Q20*$H20","v":{"$error":"#DIV/0!"}},{"$error":"#DIV/0!"}]
["palivové dřevo",false,{"$f":"C6","v":1.4E-2},0,1,2.1199999999999999E-3,0.998,0.99099999999999999,0,3.5,{"$error":"#DIV/0!"},{"$error":"#DIV/0!"},{"$f":"Bilance!$C$24","v":0},{"$error":"#DIV/0!"},0,{"$error":"#DIV/0!"},{"$error":"#DIV/0!"},{"$error":"#DIV/0!"},{"$error":"#DIV/0!"}]
["pelety",false,{"$f":"C7","v":1.7000000000000001E-2},0,1,2.6400000000000002E-4,0.998,0.98799999999999999,0,5.4,{"$error":"#DIV/0!"},{"$error":"#DIV/0!"},{"$f":"Bilance!$C$24","v":0},{"$error":"#DIV/0!"},0,{"$error":"#DIV/0!"},{"$error":"#DIV/0!"},{"$error":"#DIV/0!"},{"$error":"#DIV/0!"}]
["zemní plyn",false,{"$f":"C8","v":3.4000000000000002E-2},0,1,6.9E-6,1,1,55.4,10,{"$error":"#DIV/0!"},{"$error":"#DIV/0!"},{"$f":"Bilance!$C$24","v":0},{"$error":"#DIV/0!"},0,{"$error":"#DIV/0!"},{"$error":"#DIV/0!"},{"$error":"#DIV/0!"},{"$error":"#DIV/0!"}]
["elektřina",false,{"$f":"C9","v":3.5999999999999999E-3},0,2.2999999999999998,3.68E-5,0.85,0.65,239,2.67,{"$error":"#DIV/0!"},{"$error":"#DIV/0!"},{"$f":"Bilance!$C$24","v":0},{"$error":"#DIV/0!"},0,{"$error":"#DIV/0!"},{"$error":"#DIV/0!"},{"$error":"#DIV/0!"},{"$error":"#DIV/0!"}]
["topný olej",false,{"$f":"C10","v":3.4645000000000002E-2},0,1.2,5.8879999999999999E-5,0.93,0.67,73.3,29.83,{"$error":"#DIV/0!"},{"$error":"#DIV/0!"},{"$f":"Bilance!$C$24","v":0},{"$error":"#DIV/0!"},0,{"$error":"#DIV/0!"},{"$error":"#DIV/0!"},{"$error":"#DIV/0!"},{"$error":"#DIV/0!"}]
["tepelné čerpadlo",false,{"$f":"C11","v":3.5999999999999999E-3},0,2.2999999999999998,3.68E-5,0.85,0.65,239,2.67,{"$error":"#DIV/0!"},{"$error":"#DIV/0!"},{"$f":"Bilance!$C$24","v":0},{"$error":"#DIV/0!"},0,{"$error":"#DIV/0!"},{"$error":"#DIV/0!"},{"$error":"#DIV/0!"},{"$error":"#DIV/0!"}]
["centrální zásobování teplem - energie",false,{"$f":"C12","v":1},0,{"$f":"IF(Typ_SZT=1,Primární!$E$2,IF(Typ_SZT=2,Primární!$E$3,0))","v":0},0,0,0,0,400,{"$error":"#DIV/0!"},{"$error":"#DIV/0!"},{"$f":"Bilance!$C$24","v":0},{"$error":"#DIV/0!"},{"$f":"IFERROR(L27*kWh_na_GJ*$I27*$E$27,0)","v":0},{"$error":"#DIV/0!"},{"$error":"#DIV/0!"},{"$error":"#DIV/0!"},{"$error":"#DIV/0!"}]
[{"$f":"IFERROR(INDEX(A$4:A$12,$B$13),0)","v":0},{"$f":"IFERROR(MATCH(TRUE,$B$19:$B$27,0),0)","v":0},{"$f":"IFERROR(INDEX(C$19:C$27,$B$13),0)","v":0},0,0,0,0,0,0,0,{"$f":"IFERROR(INDEX(K$19:K$27,$B$13),0)","v":0},0,0,0,0,0,0,0,0]
[]
[]
["Zdroj/palivo","Zadaný zdroj","Výhřevnost\n[GJ/m.j.]","Účinnost\n[%]","Faktor primární energie\n[1]","Faktor TZL\n[kg/m.j.]","Faktor PM10\n[%]","Faktor PM2,5\n[%]","Faktor CO2\n[kg/GJ]","Měrná cena vstupu\n[Kč/m.j.]","Spotřeba na vstupu [m.j.]","Spotřeba na vstupu [kWh]","Výroba tepla\n[kWh]","Spotřeba primární energie\n[kWh]","Emise CO2\n[kg]","Emise TZL\n[kg]","Emise PM10\n[kg]","Emise PM2,5\n[kg]","Výdaje za vstupy\n[Kč]"]
["ÚSPORA",null,null,null,null,null,null,null,null,null,{"$f":"K13-K28","v":0},{"$f":"L13-L28","v":0},{"$f":"M13-M28","v":0},{"$f":"N13-N28","v":0},0,0,0,0,0]

{"sheet":"Zdroj_a_zateplení","index":23,"n_rows":47,"n_cols":22,"rows_kept":47,"cut":false,"hidden":true,"merged":[]}
["Bez zateplení + starý zdroj"]
[]
["Zdroj/palivo","Zadaný zdroj","Instalovaný výkon\n[kWt]","Výhřevnost\n[GJ/m.j.]","Účinnost\n[%]","Faktor primární energie\n[1]","Faktor TZL\n[kg/m.j.]","Faktor PM10\n[%]","Faktor PM2,5\n[%]","Faktor CO2\n[kg/GJ]","Měrná cena vstupu\n[Kč/m.j.]","Spotřeba na vstupu [m.j.]","Spotřeba na vstupu [kWh]","Výroba tepla\n[kWh]","Spotřeba primární energie\n[kWh]","Využití instalovaného výkonu\n[h]","Využití OK","Emise CO2\n[kg]","Emise TZL\n[kg]","Emise PM10\n[kg]","Emise PM2,5\n[kg]","Výdaje za vstupy\n[Kč]"]
[{"$f":"ParametryZdroje!M10","v":"hnědé uhlí"},{"$f":"OR(AND(ZdrojIdxBudova=1,Zateplení!$J$14=A19,NOT(je_zdroj)),AND(ZdrojIdxOld=1,Zdroj!$I$6=A4))","v":false},{"$f":"Zdroj!$E$13","v":0},{"$f":"Nositele!E2","v":1.7999999999999999E-2},{"$f":"Účinnost_stará","v":0},{"$f":"VLOOKUP($A4,Primární!$A$2:$B$14,2,FALSE)","v":1},{"$f":"VLOOKUP(TStaréKotle[[#Headers],[kotel na tuhá paliva]] & \"-\" & Zdroj!$I$5 & \"-\" & $A4,TKotleTP[],4,FALSE)","v":{"$error":"#N/A"}},{"$f":"VLOOKUP(TStaréKotle[[#Headers],[kotel na tuhá paliva]] & \"-\" & Zdroj!$I$5 & \"-\" & $A4,TKotleTP[],6,FALSE)","v":{"$error":"#N/A"}},{"$f":"VLOOKUP(TStaréKotle[[#Headers],[kotel na tuhá paliva]] & \"-\" & Zdroj!$I$5 & \"-\" & $A4,TKotleTP[],7,FALSE)","v":{"$error":"#N/A"}},{"$f":"Nositele!G2","v":99.1},{"$f":"Nositele!H2","v":3.4},{"$f":"$M4*kWh_na_GJ/D4","v":{"$error":"#DIV/0!"}},{"$f":"N4/E4","v":{"$error":"#DIV/0!"}},{"$f":"Bilance!$B$24","v":0},{"$f":"M4*F4","v":{"$error":"#DIV/0!"}},{"$f":"IFERROR(N4/$C4,0)","v":0},{"$f":"AND(P4>=1000,P4<=7000)","v":false},{"$f":"IFERROR(M4*kWh_na_GJ*$J4,0)","v":0},{"$f":"L4*$G4","v":{"$error":"#DIV/0!"}},{"$f":"S4*$H4","v":{"$error":"#DIV/0!"}},{"$f":"T4*$I4","v":{"$error":"#DIV/0!"}},{"$f":"K4*L4","v":{"$error":"#DIV/0!"}}]
[{"$f":"ParametryZdroje!M8","v":"černé uhlí"},{"$f":"OR(AND(ZdrojIdxBudova=1,Zateplení!$J$14=A20,NOT(je_zdroj)),AND(ZdrojIdxOld=1,Zdroj!$I$6=A5))","v":false},{"$f":"Zdroj!$E$13","v":0},{"$f":"Nositele!E3","v":3.1E-2},0,{"$f":"VLOOKUP($A5,Primární!$A$2:$B$14,2,FALSE)","v":1},{"$f":"VLOOKUP(TStaréKotle[[#Headers],[kotel na tuhá paliva]] & \"-\" & Zdroj!$I$5 & \"-\" & $A5,TKotleTP[],4,FALSE)","v":{"$error":"#N/A"}},{"$f":"VLOOKUP(TStaréKotle[[#Headers],[kotel na tuhá paliva]] & \"-\" & Zdroj!$I$5 & \"-\" & $A5,TKotleTP[],6,FALSE)","v":{"$error":"#N/A"}},{"$f":"VLOOKUP(TStaréKotle[[#Headers],[kotel na tuhá paliva]] & \"-\" & Zdroj!$I$5 & \"-\" & $A5,TKotleTP[],7,FALSE)","v":{"$error":"#N/A"}},{"$f":"Nositele!G3","v":92.4},{"$f":"Nositele!H3","v":5.5},{"$error":"#DIV/0!"},{"$f":"N5/E5","v":{"$error":"#DIV/0!"}},{"$f":"Bilance!$B$24","v":0},{"$error":"#DIV/0!"},{"$f":"IFERROR(N5/$C5,0)","v":0},{"$f":"AND(P5>=1000,P5<=7000)","v":false},0,{"$f":"L5*$G5","v":{"$error":"#DIV/0!"}},{"$f":"S5*$H5","v":{"$error":"#DIV/0!"}},{"$f":"T5*$I5","v":{"$error":"#DIV/0!"}},{"$f":"K5*L5","v":{"$error":"#DIV/0!"}}]
[{"$f":"ParametryZdroje!M11","v":"palivové dřevo"},{"$f":"OR(AND(ZdrojIdxBudova=1,Zateplení!$J$14=A21,NOT(je_zdroj)),AND(ZdrojIdxOld=1,Zdroj!$I$6=A6))","v":false},{"$f":"Zdroj!$E$13","v":0},{"$f":"Nositele!E4","v":1.4E-2},0,{"$f":"VLOOKUP($A6,Primární!$A$2:$B$14,2,FALSE)","v":1},{"$f":"VLOOKUP(TStaréKotle[[#Headers],[kotel na tuhá paliva]] & \"-\" & Zdroj!$I$5 & \"-\" & $A6,TKotleTP[],4,FALSE)","v":{"$error":"#N/A"}},{"$f":"VLOOKUP(TStaréKotle[[#Headers],[kotel na tuhá paliva]] & \"-\" & Zdroj!$I$5 & \"-\" & $A6,TKotleTP[],6,FALSE)","v":{"$error":"#N/A"}},{"$f":"VLOOKUP(TStaréKotle[[#Headers],[kotel na tuhá paliva]] & \"-\" & Zdroj!$I$5 & \"-\" & $A6,TKotleTP[],7,FALSE)","v":{"$error":"#N/A"}},{"$f":"Nositele!G4","v":0},{"$f":"Nositele!H4","v":3.5},{"$error":"#DIV/0!"},{"$error":"#DIV/0!"},{"$f":"Bilance!$B$24","v":0},{"$error":"#DIV/0!"},0,false,0,{"$error":"#DIV/0!"},{"$error":"#DIV/0!"},{"$error":"#DIV/0!"},{"$error":"#DIV/0!"}]
[{"$f":"ParametryZdroje!M12","v":"pelety"},{"$f":"OR(AND(ZdrojIdxBudova=1,Zateplení!$J$14=A22,NOT(je_zdroj)),AND(ZdrojIdxOld=1,Zdroj!$I$6=A7))","v":false},{"$f":"Zdroj!$E$13","v":0},{"$f":"Nositele!E5","v":1.7000000000000001E-2},0,{"$f":"VLOOKUP($A7,Primární!$A$2:$B$14,2,FALSE)","v":1},{"$f":"VLOOKUP(TStaréKotle[[#Headers],[kotel na tuhá paliva]] & \"-\" & Zdroj!$I$5 & \"-\" & $A7,TKotleTP[],4,FALSE)","v":{"$error":"#N/A"}},{"$f":"VLOOKUP(TStaréKotle[[#Headers],[kotel na tuhá paliva]] & \"-\" & Zdroj!$I$5 & \"-\" & $A7,TKotleTP[],6,FALSE)","v":{"$error":"#N/A"}},{"$f":"VLOOKUP(TStaréKotle[[#Headers],[kotel na tuhá paliva]] & \"-\" & Zdroj!$I$5 & \"-\" & $A7,TKotleTP[],7,FALSE)","v":{"$error":"#N/A"}},{"$f":"Nositele!G5","v":0},{"$f":"Nositele!H5","v":5.4},{"$error":"#DIV/0!"},{"$error":"#DIV/0!"},{"$f":"Bilance!$B$24","v":0},{"$error":"#DIV/0!"},0,false,0,{"$error":"#DIV/0!"},{"$error":"#DIV/0!"},{"$error":"#DIV/0!"},{"$error":"#DIV/0!"}]
[{"$f":"ParametryZdroje!M14","v":"zemní plyn"},{"$f":"OR(AND(ZdrojIdxBudova=2,NOT(je_zdroj)),ZdrojIdxOld=2)","v":false},{"$f":"Zdroj!$E$13","v":0},{"$f":"Nositele!E6","v":3.4000000000000002E-2},0,{"$f":"VLOOKUP($A8,Primární!$A$2:$B$14,2,FALSE)","v":1},{"$f":"Nositele!M6","v":6.9E-6},{"$f":"Nositele!O6","v":1},{"$f":"Nositele!P6","v":1},{"$f":"Nositele!G6","v":55.4},{"$f":"Nositele!H6","v":10},{"$error":"#DIV/0!"},{"$error":"#DIV/0!"},{"$f":"Bilance!$B$24","v":0},{"$error":"#DIV/0!"},0,false,0,{"$error":"#DIV/0!"},{"$error":"#DIV/0!"},{"$error":"#DIV/0!"},{"$error":"#DIV/0!"}]
[{"$f":"TStarýKotelHelp[[#This Row],[Nositel]]","v":"elektřina"},{"$f":"OR(AND(ZdrojIdxBudova=3,NOT(je_zdroj)),ZdrojIdxOld=3)","v":false},{"$f":"Zdroj!$E$13","v":0},{"$f":"Nositele!E7","v":3.5999999999999999E-3},0,{"$f":"VLOOKUP($A9,Primární!$A$2:$B$14,2,FALSE)","v":2.2999999999999998},{"$f":"Nositele!M7","v":3.68E-5},{"$f":"Nositele!O7","v":0.85},{"$f":"Nositele!P7","v":0.65},{"$f":"Nositele!G7","v":239},{"$f":"Nositele!H7","v":2.67},{"$error":"#DIV/0!"},{"$error":"#DIV/0!"},{"$f":"Bilance!$B$24","v":0},{"$error":"#DIV/0!"},0,false,0,{"$error":"#DIV/0!"},{"$error":"#DIV/0!"},{"$error":"#DIV/0!"},{"$error":"#DIV/0!"}]
[{"$f":"ParametryZdroje!M13","v":"topný olej"},{"$f":"OR(AND(ZdrojIdxBudova=4,NOT(je_zdroj)),ZdrojIdxOld=4)","v":false},{"$f":"Zdroj!$E$13","v":0},{"$f":"Nositele!E8","v":3.4645000000000002E-2},0,{"$f":"VLOOKUP($A10,Primární!$A$2:$B$14,2,FALSE)","v":1.2},{"$f":"Nositele!M8","v":5.8879999999999999E-5},{"$f":"Nositele!O8","v":0.93},{"$f":"Nositele!P8","v":0.67},{"$f":"Nositele!G8","v":73.3},{"$f":"Nositele!H8","v":29.83},{"$error":"#DIV/0!"},{"$error":"#DIV/0!"},{"$f":"Bilance!$B$24","v":0},{"$error":"#DIV/0!"},0,false,0,{"$error":"#DIV/0!"},{"$error":"#DIV/0!"},{"$error":"#DIV/0!"},{"$error":"#DIV/0!"}]
[{"$f":"TStaréKotle[[#Headers],[tepelné čerpadlo]]","v":"tepelné čerpadlo"},{"$f":"OR(AND(ZdrojIdxBudova=5,NOT(je_zdroj)),ZdrojIdxOld=5)","v":false},{"$f":"Zdroj!$E$13","v":0},{"$f":"Nositele!E7","v":3.5999999999999999E-3},0,{"$f":"F9","v":2.2999999999999998},{"$f":"Nositele!M7","v":3.68E-5},{"$f":"Nositele!O7","v":0.85},{"$f":"Nositele!P7","v":0.65},{"$f":"Nositele!G7","v":239},{"$f":"Nositele!H7","v":2.67},{"$error":"#DIV/0!"},{"$error":"#DIV/0!"},{"$f":"Bilance!$B$24","v":0},{"$error":"#DIV/0!"},0,false,0,{"$error":"#DIV/0!"},{"$error":"#DIV/0!"},{"$error":"#DIV/0!"},{"$error":"#DIV/0!"}]
[{"$f":"TStaréKotle[[#Headers],[centrální zásobování teplem]] & \" - energie\"","v":"centrální zásobování teplem - energie"},{"$f":"OR(AND(ZdrojIdxBudova=6,NOT(je_zdroj)),ZdrojIdxOld=6)","v":false},0,{"$f":"Nositele!E12","v":1},0,{"$f":"IF(Typ_SZT=1,Primární!$E$2,IF(Typ_SZT=2,Primární!$E$3,0))","v":0},{"$f":"IFERROR(VLOOKUP(Zdroj!$I$6,TNositele[],11,FALSE),0)","v":0},{"$f":"IFERROR(VLOOKUP(Zdroj!$I$6,TNositele[],13,FALSE),0)","v":0},{"$f":"IFERROR(VLOOKUP(Zdroj!$I$6,TNositele[],14,FALSE),0)","v":0},{"$f":"IFERROR(VLOOKUP(Zdroj!$I$6,TNositele[],5,FALSE)/100,0)","v":0},{"$f":"Nositele!H12","v":400},{"$error":"#DIV/0!"},{"$error":"#DIV/0!"},{"$f":"Bilance!$B$24","v":0},{"$error":"#DIV/0!"},0,true,{"$f":"IFERROR(M12*kWh_na_GJ*$J12*$F$12,0)","v":0},{"$error":"#DIV/0!"},{"$error":"#DIV/0!"},{"$error":"#DIV/0!"},{"$error":"#DIV/0!"}]
[{"$f":"IFERROR(INDEX(A$4:A$12,$B$13),0)","v":0},{"$f":"IFERROR(MATCH(TRUE,$B$4:$B$12,0),0)","v":0},{"$f":"IFERROR(INDEX(C$4:C$12,$B$13),0)","v":0},0,0,0,0,0,0,0,0,{"$f":"IFERROR(INDEX(L$4:L$12,$B$13),0)","v":0},0,0,0,0,0,0,0,0,0,0]
[]
[]
["Starý zdroj na nepokrytou novou spotřebu"]
[]
["Zdroj/palivo","Zadaný zdroj","Instalovaný výkon\n[kWt]","Výhřevnost\n[GJ/m.j.]","Účinnost\n[%]","Faktor primární energie\n[1]","Faktor TZL\n[kg/m.j.]","Faktor PM10\n[%]","Faktor PM2,5\n[%]","Faktor CO2\n[kg/GJ]","Měrná cena vstupu\n[Kč/m.j.]","Spotřeba na vstupu [m.j.]","Spotřeba na vstupu [kWh]","Výroba tepla\n[kWh]","Spotřeba primární energie\n[kWh]","Využití instalovaného výkonu\n[h]","Využití OK","Emise CO2\n[kg]","Emise TZL\n[kg]","Emise PM10\n[kg]","Emise PM2,5\n[kg]","Výdaje za vstupy\n[Kč]"]
[{"$f":"A4","v":"hnědé uhlí"},{"$f":"B4","v":false},{"$f":"Zdroj!$E$13","v":0},{"$f":"D4","v":1.7999999999999999E-2},{"$f":"Účinnost_stará","v":0},{"$f":"F4","v":1},{"$error":"#N/A"},{"$error":"#N/A"},{"$error":"#N/A"},99.1,3.4,{"$f":"$M19*kWh_na_GJ/D19","v":{"$error":"#DIV/0!"}},{"$f":"N19/E19","v":{"$error":"#DIV/0!"}},{"$f":"IF(je_zdroj,Bilance!$C$29,Bilance!$C$24)","v":0},{"$f":"M19*F19","v":{"$error":"#DIV/0!"}},{"$f":"IFERROR(N19/$C19,0)","v":0},{"$f":"AND(P19>=1000,P19<=7000)","v":false},{"$f":"IFERROR(M19*kWh_na_GJ*$J19,0)","v":0},{"$f":"L19*$G19","v":{"$error":"#DIV/0!"}},{"$f":"S19*$H19","v":{"$error":"#DIV/0!"}},{"$f":"T19*$I19","v":{"$error":"#DIV/0!"}},{"$f":"K19*L19","v":{"$error":"#DIV/0!"}}]
["černé uhlí",false,{"$f":"Zdroj!$E$13","v":0},3.1E-2,0,1,{"$error":"#N/A"},{"$error":"#N/A"},{"$error":"#N/A"},92.4,5.5,{"$error":"#DIV/0!"},{"$f":"N20/E20","v":{"$error":"#DIV/0!"}},{"$f":"IF(je_zdroj,Bilance!$C$29,Bilance!$C$24)","v":0},{"$error":"#DIV/0!"},{"$f":"IFERROR(N20/$C20,0)","v":0},{"$f":"AND(P20>=1000,P20<=7000)","v":false},0,{"$f":"L20*$G20","v":{"$error":"#DIV/0!"}},{"$f":"S20*$H20","v":{"$error":"#DIV/0!"}},{"$f":"T20*$I20","v":{"$error":"#DIV/0!"}},{"$f":"K20*L20","v":{"$error":"#DIV/0!"}}]
["palivové dřevo",false,{"$f":"Zdroj!$E$13","v":0},1.4E-2,0,1,{"$error":"#N/A"},{"$error":"#N/A"},{"$error":"#N/A"},0,3.5,{"$error":"#DIV/0!"},{"$error":"#DIV/0!"},{"$f":"IF(je_zdroj,Bilance!$C$29,Bilance!$C$24)","v":0},{"$error":"#DIV/0!"},0,false,0,{"$error":"#DIV/0!"},{"$error":"#DIV/0!"},{"$error":"#DIV/0!"},{"$error":"#DIV/0!"}]
["pelety",false,{"$f":"Zdroj!$E$13","v":0},1.7000000000000001E-2,0,1,{"$error":"#N/A"},{"$error":"#N/A"},{"$error":"#N/A"},0,5.4,{"$error":"#DIV/0!"},{"$error":"#DIV/0!"},{"$f":"IF(je_zdroj,Bilance!$C$29,Bilance!$C$24)","v":0},{"$error":"#DIV/0!"},0,false,0,{"$error":"#DIV/0!"},{"$error":"#DIV/0!"},{"$error":"#DIV/0!"},{"$error":"#DIV/0!"}]
["zemní plyn",false,{"$f":"Zdroj!$E$13","v":0},3.4000000000000002E-2,0,1,6.9E-6,1,1,55.4,10,{"$error":"#DIV/0!"},{"$error":"#DIV/0!"},{"$f":"IF(je_zdroj,Bilance!$C$29,Bilance!$C$24)","v":0},{"$error":"#DIV/0!"},0,false,0,{"$error":"#DIV/0!"},{"$error":"#DIV/0!"},{"$error":"#DIV/0!"},{"$error":"#DIV/0!"}]
["elektřina",false,{"$f":"Zdroj!$E$13","v":0},3.5999999999999999E-3,0,2.2999999999999998,3.68E-5,0.85,0.65,239,2.67,{"$error":"#DIV/0!"},{"$error":"#DIV/0!"},{"$f":"IF(je_zdroj,Bilance!$C$29,Bilance!$C$24)","v":0},{"$error":"#DIV/0!"},0,false,0,{"$error":"#DIV/0!"},{"$error":"#DIV/0!"},{"$error":"#DIV/0!"},{"$error":"#DIV/0!"}]
["topný olej",false,{"$f":"Zdroj!$E$13","v":0},3.4645000000000002E-2,0,1.2,5.8879999999999999E-5,0.93,0.67,73.3,29.83,{"$error":"#DIV/0!"},{"$error":"#DIV/0!"},{"$f":"IF(je_zdroj,Bilance!$C$29,Bilance!$C$24)","v":0},{"$error":"#DIV/0!"},0,false,0,{"$error":"#DIV/0!"},{"$error":"#DIV/0!"},{"$error":"#DIV/0!"},{"$error":"#DIV/0!"}]
["tepelné čerpadlo",false,{"$f":"Zdroj!$E$13","v":0},3.5999999999999999E-3,0,2.2999999999999998,3.68E-5,0.85,0.65,239,2.67,{"$error":"#DIV/0!"},{"$error":"#DIV/0!"},{"$f":"IF(je_zdroj,Bilance!$C$29,Bilance!$C$24)","v":0},{"$error":"#DIV/0!"},0,false,0,{"$error":"#DIV/0!"},{"$error":"#DIV/0!"},{"$error":"#DIV/0!"},{"$error":"#DIV/0!"}]
["centrální zásobování teplem - energie",false,0,1,0,{"$f":"IF(Typ_SZT=1,Primární!$E$2,IF(Typ_SZT=2,Primární!$E$3,0))","v":0},{"$f":"G12","v":0},{"$f":"H12","v":0},{"$f":"I12","v":0},{"$f":"J12","v":0},{"$f":"K12","v":400},{"$error":"#DIV/0!"},{"$error":"#DIV/0!"},{"$f":"IF(je_zdroj,Bilance!$C$29,Bilance!$C$24)","v":0},{"$error":"#DIV/0!"},0,true,{"$f":"IFERROR(M27*kWh_na_GJ*$J27*$F$12,0)","v":0},{"$error":"#DIV/0!"},{"$error":"#DIV/0!"},{"$error":"#DIV/0!"},{"$error":"#DIV/0!"}]
[{"$f":"IFERROR(INDEX(A$4:A$12,$B$13),0)","v":0},{"$f":"IFERROR(MATCH(TRUE,$B$4:$B$12,0),0)","v":0},{"$f":"IFERROR(INDEX(C$19:C$27,$B$13),0)","v":0},0,0,0,0,0,0,0,0,{"$f":"IFERROR(INDEX(L$19:L$27,$B$13),0)","v":0},{"$f":"IFERROR(INDEX(M$19:M$27,$B$13),0)","v":0},{"$f":"IFERROR(INDEX(N$19:N$27,$B$13),0)","v":0},{"$f":"IFERROR(INDEX(O$19:O$27,$B$13),0)","v":0},{"$f":"IFERROR(INDEX(P$4:P$12,$B$13),0)","v":0},0,{"$f":"IFERROR(INDEX(R$19:R$27,$B$13),0)","v":0},{"$f":"IFERROR(INDEX(S$19:S$27,$B$13),0)","v":0},{"$f":"IFERROR(INDEX(T$19:T$27,$B$13),0)","v":0},{"$f":"IFERROR(INDEX(U$19:U$27,$B$13),0)","v":0},{"$f":"IFERROR(INDEX(V$19:V$27,$B$13),0)","v":0}]
[]
[]
["Se zateplením + nový zdroj"]
[]
["Zdroj/palivo","Zadaný zdroj","Instalovaný výkon\n[kWt]","Výhřevnost\n[GJ/m.j.]","Účinnost\n[%]","Faktor primární energie\n[1]","Faktor TZL\n[kg/m.j.]","Faktor PM10\n[%]","Faktor PM2,5\n[%]","Faktor CO2\n[kg/GJ]","Měrná cena vstupu\n[Kč/m.j.]","Spotřeba na vstupu [m.j.]","Spotřeba na vstupu [kWh]","Výroba tepla\n[kWh]","Spotřeba primární energie\n[kWh]","Využití instalovaného výkonu\n[h]","Využití OK","Emise CO2\n[kg]","Emise TZL\n[kg]","Emise PM10\n[kg]","Emise PM2,5\n[kg]","Výdaje za vstupy\n[Kč]"]
[{"$f":"ParametryZdroje!$B$30:$B$33","v":"kotel na štěpku, pelety nebo brikety"},{"$f":"ZdrojIdxNew=1","v":false},{"$f":"Zdroj!$E$19","v":0},{"$f":"Jen_zdroj!D19","v":1.7000000000000001E-2},{"$f":"Účinnost_nová","v":0},{"$f":"Jen_zdroj!F19","v":1},{"$f":"Jen_zdroj!G19","v":2.1199999999999999E-3},{"$f":"Jen_zdroj!H19","v":0.998},{"$f":"Jen_zdroj!I19","v":0.98799999999999999},{"$f":"Jen_zdroj!J19","v":0},{"$f":"Jen_zdroj!K19","v":5.4},{"$f":"$M34*kWh_na_GJ/D34","v":{"$error":"#DIV/0!"}},{"$f":"N34/E34","v":{"$error":"#DIV/0!"}},{"$f":"IF(je_zdroj,Bilance!$C$28,0)","v":0},{"$f":"M34*$F34","v":{"$error":"#DIV/0!"}},{"$f":"IFERROR(N34/$C34,0)","v":0},{"$f":"AND(P34>=1000,P34<=7000)","v":false},{"$f":"IFERROR(M34*kWh_na_GJ*$J34,0)","v":0},{"$f":"L34*$G34","v":{"$error":"#DIV/0!"}},{"$f":"S34*$H34","v":{"$error":"#DIV/0!"}},{"$f":"T34*$I34","v":{"$error":"#DIV/0!"}},{"$f":"K34*L34","v":{"$error":"#DIV/0!"}}]
["kotel na odpadní dřevo",{"$f":"ZdrojIdxNew=2","v":false},{"$f":"Zdroj!$E$19","v":0},{"$f":"Jen_zdroj!D20","v":1.7000000000000001E-2},{"$f":"Účinnost_nová","v":0},{"$f":"Jen_zdroj!F20","v":1},{"$f":"Jen_zdroj!G20","v":2.1199999999999999E-3},{"$f":"Jen_zdroj!H20","v":0.998},{"$f":"Jen_zdroj!I20","v":0.99099999999999999},{"$f":"Jen_zdroj!J20","v":0},{"$f":"Jen_zdroj!K20","v":0},{"$f":"$M35*kWh_na_GJ/D35","v":{"$error":"#DIV/0!"}},{"$f":"N35/E35","v":{"$error":"#DIV/0!"}},{"$f":"IF(je_zdroj,Bilance!$C$28,0)","v":0},{"$f":"M35*$F35","v":{"$error":"#DIV/0!"}},0,false,{"$f":"IFERROR(M35*kWh_na_GJ*$J35,0)","v":0},{"$error":"#DIV/0!"},{"$error":"#DIV/0!"},{"$f":"S35*$I35","v":{"$error":"#DIV/0!"}},{"$error":"#DIV/0!"}]
["kotel na bioplyn",{"$f":"ZdrojIdxNew=3","v":false},{"$f":"Zdroj!$E$19","v":0},{"$f":"Jen_zdroj!D21","v":3.4000000000000002E-2},{"$f":"Účinnost_nová","v":0},{"$f":"Jen_zdroj!F21","v":1.2},{"$f":"Jen_zdroj!G21","v":6.9E-6},{"$f":"Jen_zdroj!H21","v":1},{"$f":"Jen_zdroj!I21","v":1},{"$f":"Jen_zdroj!J21","v":0},{"$f":"Jen_zdroj!K21","v":0},{"$f":"$M36*kWh_na_GJ/D36","v":{"$error":"#DIV/0!"}},{"$error":"#DIV/0!"},{"$f":"IF(je_zdroj,Bilance!$C$28,0)","v":0},{"$error":"#DIV/0!"},0,false,{"$f":"IFERROR(M36*kWh_na_GJ*$J36,0)","v":0},{"$error":"#DIV/0!"},{"$error":"#DIV/0!"},{"$f":"S36*$I36","v":{"$error":"#DIV/0!"}},{"$error":"#DIV/0!"}]
["tepelné čerpadlo",{"$f":"ZdrojIdxNew=4","v":false},{"$f":"Zdroj!$E$19","v":0},{"$f":"Jen_zdroj!D22","v":3.5999999999999999E-3},{"$f":"Účinnost_nová","v":0},{"$f":"Jen_zdroj!F22","v":2.2999999999999998},{"$f":"Jen_zdroj!G22","v":3.68E-5},{"$f":"Jen_zdroj!H22","v":0.85},{"$f":"Jen_zdroj!I22","v":0.65},{"$f":"Jen_zdroj!J22","v":239},{"$f":"Jen_zdroj!K22","v":2.67},{"$f":"$M37*kWh_na_GJ/D37","v":{"$error":"#DIV/0!"}},{"$error":"#DIV/0!"},{"$f":"IF(je_zdroj,Bilance!$C$28,0)","v":0},{"$error":"#DIV/0!"},0,false,{"$f":"IFERROR(M37*kWh_na_GJ*$J37,0)","v":0},{"$error":"#DIV/0!"},{"$error":"#DIV/0!"},{"$f":"S37*$I37","v":{"$error":"#DIV/0!"}},{"$error":"#DIV/0!"}]
[{"$f":"IFERROR(INDEX(A$34:A$36,$B$38),0)","v":0},{"$f":"IFERROR(MATCH(TRUE,$B$34:$B$37,0),0)","v":0},{"$f":"IFERROR(INDEX(C$34:C$37,$B$38),0)","v":0},0,0,0,0,0,0,0,0,0,0,0,0,0,0,0,0,0,0,0]
[]
[]
["Nový stav"]
[{"$f":"A38","v":0},null,null,null,null,null,null,null,null,null,null,null,{"$f":"M28+M38","v":0},{"$f":"N28+N38","v":0},{"$f":"O28+O38","v":0},null,null,{"$f":"R28+R38","v":0},{"$f":"S28+S38","v":0},{"$f":"T28+T38","v":0},{"$f":"U28+U38","v":0},{"$f":"V28+V38","v":0}]
[]
[]
[]
["Zdroj/palivo","Zadaný kotel","Instalovaný výkon\n[kWt]","Výhřevnost\n[GJ/m.j.]","Účinnost\n[%]","Faktor primární energie\n[1]","Faktor TZL\n[kg/m.j.]","Faktor PM10\n[%]","Faktor PM2,5\n[%]","Faktor CO2\n[kg/GJ]","Měrná cena vstupu\n[Kč/m.j.]","Spotřeba na vstupu [m.j.]","Spotřeba na vstupu [kWh]","Výroba tepla\n[kWh]","Spotřeba primární energie\n[kWh]","Využití instalovaného výkonu\n[h]","Využití OK","Emise CO2\n[kg]","Emise TZL\n[kg]","Emise PM10\n[kg]","Emise PM2,5\n[kg]","Výdaje za vstupy\n[Kč]"]
["ÚSPORA",null,null,null,null,null,null,null,null,null,null,null,{"$f":"M13-M42","v":0},{"$f":"N13-N42","v":0},{"$f":"O13-O42","v":0},null,null,{"$f":"R13-R42","v":0},{"$f":"S13-S42","v":0},{"$f":"T13-T42","v":0},{"$f":"U13-U42","v":0},{"$f":"V13-V42","v":0}]

{"sheet":"Primární","index":24,"n_rows":14,"n_cols":5,"rows_kept":14,"cut":false,"hidden":true,"merged":[]}
["Energonositel","Faktor primární energie z neobnovitelných zdrojů energie (-)",null,"SZT","Faktor primární energie z neobnovitelných zdrojů energie (-)"]
["zemní plyn",1,null,"účinná SZT",1]
["hnědé uhlí",1,null,"ostatní SZT",1.3]
["černé uhlí",1,null,null,1.3]
["propan-butan/LPG",1.2]
["topný olej",1.2]
["elektřina",2.2999999999999998]
["pelety",1]
["palivové dřevo",1]
["odpadní dřevo",1]
["bioplyn",1.2]
["zemní plyn",1]
["hnědé uhlí",1]
["černé uhlí",1]